{"text_format":"3","workbook":"xlsx","n_sheets":4,"sheets":["Version","Conv. Construction BoQ","Summary","Form C2.3 Summary of Pricing Sc"],"not_rendered":{"defined_names":12,"comments":1},"read":"whole","date_system":"1900"}

{"sheet":"Version","index":0,"n_rows":1,"n_cols":1,"rows_kept":1}
["This Pricing Schedule is based on the COTO Draft Standard (DS) October 2020, and updated for the Works Pro-Forma Book 3 - 2024.1 – July 2024 version saved in EDMS folder 7475454"]

{"sheet":"Conv. Construction BoQ","index":1,"n_rows":4047,"n_cols":7,"rows_kept":4047,"merged":[[917,8,918,8],[919,8,920,8],[922,8,923,8]]}
[]
["SCHEDULES","ITEM NO","DESCRIPTION","UNIT","QUANTITY","RATE","AMOUNT"]
[]
[null,"C1.2","GENERAL REQUIREMENTS AND PROVISIONS"]
[null,"C1.2.1","Environmental Management"]
[null,"C1.2.1.1","Monitoring of compliance with and reporting on the EMP","month",12,null,{"$f":"E6*F6","v":0}]
[null,"C1.2.1.2","Dedicated environmental officer (if specified in the Contract Documentation)","month",12,null,{"$f":"E7*F7","v":0}]
[null,"C1.2.2","Programming and Reporting"]
[null,"C1.2.2.1","Submission of a Scheme 1 Programme","lump sum"]
[null,"C1.2.2.2","Reviewing and updating a Scheme 1 Programme","month ",null,null,{"$f":"E10*F10","v":0}]
[null,"C1.2.2.3","Submission of a Scheme 2 Initial Programme","lump sum",1,null,{"$f":"E11*F11","v":0}]
[null,"C1.2.2.4","Submission of a Scheme 2 Full Programme","lump sum",1,null,{"$f":"E12*F12","v":0}]
[null,"C1.2.2.5","Reviewing and updating a Scheme 2 programme every month","month",12,null,{"$f":"E13*F13","v":0}]
[null,"C1.2.2.6","Preparation and submission of all information and reports specified in the Contract Documentation","month",12,null,{"$f":"E14*F14","v":0}]
[null,"C1.2.3","Routine road maintenance of existing public roads within the Site of the Works or other public roads outside the Site of the Works which are used as detours"]
[null,"C 1.2.3.1","Grass cutting","hectare (ha)",null,null,{"$f":"E16*F16","v":0}]
[null,"C1.2.3.2","Drain cleaning","kilometre (km)",null,null,0]
[null,"C1.2.3.3","Cleaning out culverts","cubic metre (m3)",null,null,0]
[null,"C1.2.3.4","Collection of rubbish / litter","kilometre (km)",null,null,0]
[null,"C1.2.3.5","Base patching using crushed stone material stabilised with bitumen emulsion and cement","cubic metre (m3)",null,null,0]
[null,"C1.2.3.6","Base and/or surface patching using cold premixed asphalt","kilogram (kg)",null,null,0]
[null,"C1.2.3.7","Base and/or surface patching using hot plant mixed asphalt","ton (t)",null,null,0]
[null,"C1.2.3.8","Replacement of damaged guardrails including posts","metre (m)",null,null,0]
[null,"C1.2.3.9","Grading of temporary gravel deviations and existing roads used as detours","kilometre (km)",null,null,0]
[null,"C1.2.3.10","Watering of temporary gravel deviations and existing roads used as detours","kilolitre (kℓ)",null,null,0]
[null,"C1.2.3.11","Other road maintenance work ordered by the Engineer","provisional sum"]
[null,"C1.2.3.12","Handling cost, profit and all other charges in respect of item C1.2.3.11","percentage (%)",{"$f":"G26","v":0},null,{"$f":"E27*F27","v":0}]
[null,"C1.2.3.13","Liaison with the routine road maintenance contractor","month",null,null,{"$f":"E28*F28","v":0}]
[null,"C1.2.4","Stakeholder liaison","month",12,null,{"$f":"E29*F29","v":0}]
[null,"C1.2.5","Safety"]
[null,"C1.2.5.1","Health and safety plan","lump sum",1,null,{"$f":"E31*F31","v":0}]
[null,"C1.2.5.2","Implementation of health and safety plan","month",12,null,{"$f":"E32*F32","v":0}]
[null,"C1.2.6","Work adjacent to properties"]
[null,"C1.2.6.1","Survey of adjacent properties","number (No.)",null,null,{"$f":"E34*F34","v":0}]
[null,"C1.2.6.2","Preventive and/or mitigation measures","provisional sum"]
[null,"C1.2.6.3","Handling cost, profit and all other charges in respect of item C1.2.6.2","percentage (%)",{"$f":"G35","v":0},null,{"$f":"E36*F36","v":0}]
[null,"PC1.2.7","Road safety audits"]
[null,"C1.2.7.1","Stage 4 work zone traffic management audit","provisional sum"]
[null,"C1.2.7.2","Handling cost, profit and all other charges in respect of item C1.2.7.1","percentage (%)",{"$f":"G38","v":0},null,{"$f":"E39*F39","v":0}]
[null,"C1.2.7.3","Stage 5 pre-opening stage traffic safety audit","provisional sum"]
[null,"C1.2.7.4","Handling cost, profit and all other charges in respect of item C1.2.7.3","percentage (%)",{"$f":"G40","v":0},null,{"$f":"E41*F41","v":0}]
[null,"C1.2.8","Dayworks"]
[null,"C1.2.8.1","Personnel"]
[null,"C1.2.8.1(a)","Unskilled labourer","hour (h)",120,null,{"$f":"E44*F44","v":0}]
[null,"C1.2.8.1(b)","Semi-skilled labourer","hour (h)",120,null,0]
[null,"C1.2.8.1(c)","Skilled labourer","hour (h)",80,null,0]
[null,"C1.2.8.1(d)","Gang leader","hour (h)",80,null,0]
[null,"C1.2.8.1(e)","Foreman","hour (h)",60,null,0]
[null,"C1.2.8.1(f)","Skilled artisan","hour (h)",80,null,0]
[null,"C1.2.8.2","Construction equipment (specify size and/or model number)"]
[null,"C1.2.8.2(a)","Motor grader","hour (h)",40,null,{"$f":"E51*F51","v":0}]
[null,"C1.2.8.2(b)","Vibratory roller","hour (h)",40,null,0]
[null,"C1.2.8.2(c)","Pneumatic roller","hour (h)",40,null,0]
[null,"C1.2.8.2(d)","Front end loader","hour (h)",40,null,0]
[null,"C1.2.8.2(e)","Tractor loader backhoe","hour (h)",40,null,0]
[null,"C1.2.8.2(f)","Excavator","hour (h)",40,null,0]
[null,"C1.2.8.2(g)","Compressor","hour (h)",40,null,0]
[null,"C1.2.8.2(h)","Tipper Truck (10 m3)","hour (h)",40,null,0]
[null,"C1.2.8.2(i)","Water truck (10 000 litre)","hour (h)",40,null,0]
[null,"C1.2.8.2(j)","Milling Machine","hour (h)",40,null,0]
[null,"C1.2.8.3","Vehicles (specify size)"]
[null,"C1.2.8.3(a)","Light delivery vehicle","kilometre (km)",1000,null,{"$f":"E62*F62","v":0}]
[null,"C1.2.8.3(b)","Flatbed truck ","kilometre (km)",1000,null,{"$f":"E63*F63","v":0}]
[null,"C1.2.8.3(c)","Dump truck ","kilometre (km)",1000,null,{"$f":"E64*F64","v":0}]
[null,"C1.2.8.3(d)","Other vehicles (specify)","kilometre (km)",null,null,{"$f":"E65*F65","v":0}]
[null,"C1.2.8.4","Materials"]
[null,"C1.2.8.4(a)","Procurement of materials","provisional sum",1,{"v":2050000,"d":"R2,050,000.00"},{"$f":"E67*F67","v":{"v":2050000,"d":"R2,050,000.00"}}]
[null,"C1.2.8.4(b)","Contractor's handling costs, profit and all other charges in respect of item C1.2.8.4(a)","percentage (%)",{"$f":"G67","v":{"v":2050000,"d":"R2,050,000.00"}},null,{"$f":"E68*F68","v":0}]
[null,"C1.2.9","Disposal of non-useable assets"]
[null,"C1.2.9.1","Disposal of non-useable assets identified in the Contract Documentation at time of tender\n(list items and quantity)","rate (per asset)"]
[null,"C1.2.9.2","Disposal of non-useable assets not identified at time of tender","provisional sum"]
[null,"C1.2.9.3","Handling cost, profit and all other charges in respect of item C1.2.9.2","percentage (%)",{"$f":"G71","v":0},null,{"$f":"E72*F72","v":0}]
[null,"PC1.2.10","Dispute Adjudication Board (DAB)"]
[null,"C1.2.10.1","Employer’s contribution to DAB (50%)","prime cost (PC) sum",1,{"v":240000,"d":"R240,000.00"},{"$f":"E74*F74","v":{"v":240000,"d":"R240,000.00"}}]
[]
[]
[]
[null,"C1.2","TOTAL CARRIED FORWARD TO SUMMARY",{"$nulls":3},{"$f":"SUM(G6:G77)","v":{"v":2290000,"d":"R2,290,000.00"}}]
[]
[null,"C1.3","CONTRACTOR’S SITE ESTABLISHMENT AND GENERAL OBLIGATIONS"]
[null,"PC1.3.1","The Contractor's general obligations"]
[null,"C1.3.1.1","Fixed obligations","lump sum",1,null,{"$f":"E82*F82","v":0}]
[null,"C1.3.1.2","Value-related obligations","lump sum",1,null,{"$f":"E83*F83","v":0}]
[null,"C1.3.1.3","Time-related obligations"]
[null,"C1.3.1.3(a)","Mobilisation period","month",3,null,0]
[null,"C1.3.1.3(b)","Execution of the works","month",12,null,0]
[null,"C1.3.1.4","Suspension Cost"]
[null,"C1.3.1.4(a)","De-establishment","number",1,null,{"$f":"E88*F88","v":0}]
[null,"C1.3.1.4(b)","Re-establishment","number",1,null,0]
[null,"C1.3.1.4(c)","Suspension period","month",3,null,0]
[null,"C1.3.1.4(d)","Engineer's cost","prime cost (PC) sum",1,{"v":500000,"d":"R500,000.00"},{"v":500000,"d":"R500,000.00"}]
[null,"C1.3.1.4(e)","Handling cost, profit and all other charges in respect of item C1.3.1.4(d)","percentage (%)",{"$f":"G91","v":{"v":500000,"d":"R500,000.00"}},null,{"$f":"E92*F92","v":0}]
[null,"C1.3.2","Contract sign boards","square metre (m2)",20,null,{"$f":"E93*F93","v":0}]
[]
[]
[]
[null,"C1.3","TOTAL CARRIED FORWARD TO SUMMARY",{"$nulls":3},{"$f":"SUM(G82:G96)","v":{"v":500000,"d":"R500,000.00"}}]
[]
[null,"C1.4","FACILITIES FOR THE ENGINEER"]
[null,"C1.4.1","Site accommodation"]
[null,"C1.4.1.1","Offices and conference room ","square metre (m2)",180,null,{"$f":"E101*F101","v":0}]
[null,"C1.4.1.2","Laboratories","square metre (m2)",120,null,0]
[null,"C1.4.1.3","Open concrete working floors and verandas","square metre (m2)",60,null,0]
[null,"C1.4.1.4","Roofs over open concrete working floors and verandas","square metre (m2)",70,null,0]
[null,"C1.4.1.5","Store rooms inside the laboratory ","square metre (m2)",20,null,0]
[null,"C1.4.1.6","Car ports","number (No.)",6,null,0]
[null,"C1.4.1.7","Ablution unit (equipped as specified)","number (No.)",4,null,0]
[null,"C1.4.1.8","Change room with a shower","number (No.)",null,null,0]
[null,"C1.4.1.9","Kitchen unit (equipped as specified)","number (No.)",1,null,0]
[null,"C1.4.1.10","Type A prefabricated house (equipped as specified)","number (No.)",null,null,0]
[null,"C1.4.1.11","Type B prefabricated house (equipped as specified)","number (No.)",null,null,0]
[null,"C1.4.1.12","Type C prefabricated house (equipped as specified)","number (No.)",null,null,0]
[null,"C1.4.1.13","Rented housing paid for by the Contractor","provisional sum",1,{"v":750000,"d":"R750,000.00"},{"$f":"E113*F113","v":{"v":750000,"d":"R750,000.00"}}]
[null,"C1.4.1.14","Contractor's handling costs, profit and all other charges in respect of item C1.4.1.13","percentage (%)",{"$f":"G113","v":{"v":750000,"d":"R750,000.00"}},null,{"$f":"E114*F114","v":0}]
[null,"C1.4.2","Items measured by area"]
[null,"C1.4.2.1","Shelving as specified, complete with brackets","square metre (m2)",10,null,{"$f":"E116*F116","v":0}]
[null,"C1.4.2.2","Work benches with a concrete slab top","square metre (m2)",15,null,0]
[null,"C1.4.2.3","Work-benches with a wooden top","square metre (m2)",15,null,0]
[null,"C1.4.2.4","Constant-temperature baths of concrete and/or plastered brick","square metre (m2)",10,null,0]
[null,"C1.4.2.5","Concrete footings and pedestals for laboratory equipment","square metre (m2)",6,null,0]
[null,"C1.4.2.6","Roller blinds, opaque type","square metre (m2)",15,null,0]
[null,"C1.4.2.7","Venetian blinds","square metre (m2)",15,null,0]
[null,"C1.4.2.8","Notice boards","square metre (m2)",4,null,0]
[null,"C1.4.2.9","White boards","square metre (m2)",4,null,0]
[null,"C1.4.2.10","Galvanised wire mesh fencing for store rooms","square metre (m2)",200,null,0]
[null,"C1.4.2.11","Galvanised wire mesh store room gate with a padlock","square metre (m2)",null,null,0]
[null,"C1.4.3","Items measured by number"]
[null,"C1.4.3.1","Office swivel chair","number (No.)",3,null,{"$f":"E128*F128","v":0}]
[null,"C1.4.3.2","Office chair ","number (No.)",20,null,0]
[null,"C1.4.3.3","Draughtsman's stool","number (No.)",2,null,0]
[null,"C1.4.3.4","Laboratory high chair","number (No.)",6,null,0]
[null,"C1.4.3.5","Office desk with 3 drawers (at least one lockable drawer)","number (No.)",6,null,0]
[null,"C1.4.3.6","Typist desk (L-shaped)","number (No.)",4,null,0]
[null,"C1.4.3.7","Drawing table","number (No.)",2,null,0]
[null,"C1.4.3.8","Conference table","number (No.)",1,null,0]
[null,"C1.4.3.9","Bookcase","number (No.)",5,null,0]
[null,"C1.4.3.10","Filing cabinet","number (No.)",1,null,0]
[null,"C1.4.3.11","General purpose steel cabinet with shelves","number (No.)",10,null,0]
[null,"C1.4.3.12","Wall mounted pivot plan filing system","number (No.)",5,null,0]
[null,"C1.4.3.13","220/250 volt power outlet plug point","number (No.)",20,null,0]
[null,"C1.4.3.14","400/231 volt 3-phase power outlet plug point","number (No.)",10,null,0]
[null,"C1.4.3.15","Single 1500m, 58 watt fluorescent tube ceiling light","number (No.)",20,null,0]
[null,"C1.4.3.16","Single 1500mm, 22 watt LED tube ceiling light","number (No.)",10,null,0]
[null,"C1.4.3.17","11 watt compact fluorescent bulb ceiling light","number (No.)",10,null,0]
[null,"C1.4.3.18","7 watt LED bulb ceiling light ","number (No.)",5,null,0]
[null,"C1.4.3.19","Wash-hand basin ","number (No.)",3,null,0]
[null,"C1.4.3.20","Laboratory basin ","number (No.)",3,null,0]
[null,"C1.4.3.21","Extractor fan","number (No.)",3,null,0]
[null,"C1.4.3.22","Fume cupboard","number (No.)",1,null,0]
[null,"C1.4.3.23","Fire extinguisher 9,0 kg, dry powder type","number (No.)",10,null,0]
[null,"C1.4.3.24","Air-conditioning unit","number (No.)",10,null,0]
[null,"C1.4.3.25","Heater","number (No.)",4,null,0]
[null,"C1.4.3.26","Concrete specimen curing bath","number (No.)",10,null,0]
[null,"C1.4.3.27","Waste paper basket","number (No.)",10,null,0]
[null,"C1.4.3.28","UPS / Voltage stabiliser","number (No.)",4,null,0]
[null,"C1.4.3.29","A3 / A4 colour printer, copier, scanner","number (No.)",1,null,0]
[null,"C1.4.3.30","A4 colour printer, copier, scanner","number (No.)",1,null,0]
[null,"C1.4.3.31","Rain gauge","number (No.)",1,null,0]
[null,"C1.4.3.32","Minimum/maximum atmospheric temperature gauge","number (No.)",1,null,0]
[null,"C1.4.3.33","Digital thermometer","number (No.)",2,null,0]
[null,"C1.4.3.34","Mobile outdoor weather station","number (No.)",2,null,0]
[null,"C1.4.3.35","3,0m aluminium straight edge complete with two measuring wedges","number (No.)",1,null,0]
[null,"C1.4.3.36","Measuring wheel","number (No.)",2,null,0]
[null,"C1.4.3.37","First aid kit","number (No.)",2,null,0]
[null,"C1.4.3.38","Standpipe complete with 30m of 19mm dia. heavy duty hose pipe","number (No.)",null,null,0]
[null,"PC1.4.3.39","Projector and screen (size stated)","number (No.)",null,null,0]
[null,"C1.4.4","Prime cost items"]
[null,"C1.4.4.1","Cell phones costs, including pro-rata rentals, for calls made in connection with contract administration","prime cost (PC) sum",1,{"v":7500,"d":"R7,500.00"},{"$f":"E168*F168","v":{"v":7500,"d":"R7,500.00"}}]
[null,"C1.4.4.2","Handling costs and profit in respect of item C1.4.4.1","percentage (%)",{"$f":"G168","v":{"v":7500,"d":"R7,500.00"}},null,0]
[null,"C1.4.4.3","The provision of a direct independent telephone line for the Engineer, including the monthly rental charges and the cost of business calls ","prime cost (PC) sum",1,{"v":20000,"d":"R20,000.00"},{"v":20000,"d":"R20,000.00"}]
[null,"C1.4.4.4","Handling costs and profit in respect of item C1.4.4.3","percentage (%)",{"$f":"G170","v":{"v":20000,"d":"R20,000.00"}},null,0]
[null,"C1.4.4.5","The provision of internet connectivity and WiFi data for Engineer’s site staff","prime cost (PC) sum",1,{"v":20000,"d":"R20,000.00"},{"v":20000,"d":"R20,000.00"}]
[null,"C1.4.4.6","Handling costs and profit in respect of item C1.4.4.5","percentage (%)",{"$f":"G172","v":{"v":20000,"d":"R20,000.00"}},null,0]
[null,"C1.4.4.7","The provision of paper and ink for a combination colour printer/copier/scanner ","prime cost (PC) sum",1,{"v":20000,"d":"R20,000.00"},{"v":20000,"d":"R20,000.00"}]
[null,"C1.4.4.8","Handling costs and profit in respect of item C1.4.4.7","percentage (%)",{"$f":"G174","v":{"v":20000,"d":"R20,000.00"}},null,0]
[null,"C1.4.4.9","The provision of a complete 220/250 volt single phase electrical power installation, including all poles, insulators, wiring, switchboards, mains connections, meters etc.","prime cost (PC) sum"]
[null,"C1.4.4.10","Handling costs and profit in respect of item C1.4.4.9","percentage (%)"]
[null,"C1.4.4.11","The provision of a complete 440/231 volt three phase electrical power installation, including all poles, insulators, wiring, switchboards, mains connections, meters etc.","prime cost (PC) sum",1,{"v":150000,"d":"R150,000.00"},{"$f":"E178*F178","v":{"v":150000,"d":"R150,000.00"}}]
[null,"C1.4.4.12","Handling costs and profit in respect of item C1.4.4.11","percentage (%)",{"$f":"G178","v":{"v":150000,"d":"R150,000.00"}},null,{"$f":"E179*F179","v":0}]
[null,"C1.4.4.13","Provision of a 440/231 volt three phase electricity generator if electricity from a power supply authority is not available on site","prime cost (PC) sum"]
[null,"C1.4.4.14","Handling costs and profit in respect of item C1.4.4.13","percentage (%)",{"$f":"G180","v":0},null,{"$f":"E181*F181","v":0}]
[null,"C1.4.4.15","The provision of all gas installations required at the site offices, laboratories and at the Engineer’s staff accommodation (if required), including gas storage cylinders, tubing, regulators, gas burners and shut-off cocks","prime cost (PC) sum",1,20000,{"$f":"E182*F182","v":{"v":20000,"d":"R20,000.00"}}]
[null,"C1.4.4.16","Handling costs and profit in respect of item C1.4.4.15","percentage (%)",{"$f":"G182","v":{"v":20000,"d":"R20,000.00"}},null,{"$f":"E183*F183","v":0}]
[null,"C1.4.5","Services at site offices, laboratories and site accommodation"]
[null,"C1.4.5.1","Fixed costs","lump sum",1,null,{"$f":"E185*F185","v":0}]
[null,"C1.4.5.2","Running costs","month",12,null,{"$f":"E186*F186","v":0}]
[null,"C1.4.6","Office staff"]
[null,"C1.4.6.1","Secretary / receptionist","month",12,null,{"$f":"E188*F188","v":0}]
[null,"C1.4.6.2","Technical assistant","month",12,null,{"$f":"E189*F189","v":0}]
[null,"C1.4.7","Site inspection transport"]
[null,"C1.4.7.1","Provision of a bus, mini-bus or combi van for site inspection purposes (specify type and size of vehicle)","per day",10,null,{"$f":"E191*F191","v":0}]
[null,"C1.4.7.2","Travel on site","kilometre (km)",1000,null,{"$f":"E192*F192","v":0}]
[null,"C1.4.8","Site security measures for the Engineer’s facilities"]
[null,"C1.4.8.1","Supply and installation of all required security measures at the Engineer’s site offices and laboratories","lump sum",1,null,{"$f":"E194*F194","v":0}]
[null,"C1.4.8.2","Provision of security guards / watchmen and an armed response service at the Engineer’s site offices and laboratories","month",12,null,{"$f":"E195*F195","v":0}]
[null,"C1.4.8.3","Supply and installation of all required security measures at the Engineer’s site accommodation","lump sum"]
[null,"C1.4.8.4","Provision of security guards / watchmen and an armed response service at the Engineer’s site accommodation","month",null,null,{"$f":"E197*F197","v":0}]
[null,"C1.4.8.5","Supply and installation of an alarm system at the Engineer’s rented accommodation (No. of houses stated …)","lump sum"]
[null,"C1.4.8.6","Provision of an armed response service at the Engineer’s rented accommodation (No. of houses stated …)","month",null,null,{"$f":"E199*F199","v":0}]
[]
[]
[]
[null,"C1.4","TOTAL CARRIED FORWARD TO SUMMARY",{"$nulls":3},{"$f":"SUM(G101:G202)","v":{"v":987500,"d":"R987,500.00"}}]
[]
[null,"C1.5","ACCOMMODATION OF TRAFFIC"]
[null,"C1.5.1","Accommodation of pedestrian and non-motorised traffic"]
[null,"C1.5.1.1","Accommodation of pedestrian and non-motorised traffic","month",null,null,{"$f":"E207*F207","v":0}]
[null,"C1.5.1.2","Construction of temporary pedestrian walkways and/or cycle paths:"]
[null,"C1.5.1.2(a)","Gravel surfaced pedestrian walkways / cycle paths","square metre (m2)",null,null,{"$f":"E209*F209","v":0}]
[null,"C1.5.1.2(b)","Bitumen surfaced pedestrian walkways / cycle paths","square metre (m2)",null,null,{"$f":"E210*F210","v":0}]
[null,"C1.5.1.2(c)","60mm concrete block paved pedestrian walkways / cycle paths","square metre (m2)",null,null,{"$f":"E211*F211","v":0}]
[null,"C1.5.2","Accommodation of vehicular traffic","month",12,null,{"$f":"E212*F212","v":0}]
[null,"C1.5.3","Liaison with traffic authorities","month",12,null,{"$f":"E213*F213","v":0}]
[null,"PC1.5.4","Construction of temporary deviations"]
[null,null,"The applicable payment items required for the construction of temporary deviations shall be taken from the relevant chapters and sections in Chapters 1, 3, 5, 9 and 10 and inserted into the Pricing Schedule here. Each payment item for the construction of temporary deviations shall be preceded by the main payment item number C1.5.4 / followed by the payment number for the applicable payment item"]
[null,"C1.5.5","Maintenance of temporary deviations"]
[null,"C1.5.5.1","Grass cutting","hectare (ha)",null,null,{"$f":"E217*F217","v":0}]
[null,"C1.5.5.2","Drain cleaning","kilometre (km)",null,null,0]
[null,"C1.5.5.3","Cleaning out culverts","cubic metre (m3)",null,null,0]
[null,"C1.5.5.4","Collection of rubbish / litter","kilometre (km)",null,null,0]
[null,"C1.5.5.5","Base patching using crushed stone material stabilised with bitumen emulsion and cement","cubic metre (m3)",null,null,0]
[null,"C1.5.5.6","Base and/or surface patching using cold premixed asphalt","kilogram (kg)",null,null,0]
[null,"C1.5.5.7","Base and/or surface patching using hot plant mixed asphalt","tonne (t)",null,null,0]
[null,"C1.5.5.8","Replacement of damaged guardrails","metre (m)",null,null,0]
[null,"C1.5.5.9","Grading of temporary deviations and existing roads used as detours","kilometre (km)",null,null,0]
[null,"C1.5.5.10","Watering of temporary deviations and existing roads used as detours","kilolitre (kℓ)",null,null,0]
[null,"C1.5.5.11","Other road maintenance work ordered by the Engineer","provisional sum"]
[null,"C1.5.5.12","Handling cost, profit and all other charges in respect of item C1.5.6.11","percentage (%)",{"$f":"G227","v":0},null,{"$f":"E228*F228","v":0}]
[null,"C1.5.6","Removal of temporary deviations","kilometre (km)",null,null,{"$f":"E229*F229","v":0}]
[null,"C1.5.7","Temporary traffic control facilities"]
[null,"C1.5.7.1","Delineators including mounting bases and ballast:"]
[null,"C1.5.7.1(a)","Single sided, reversible left or right (size indicated)","number (No.)",1000,null,{"$f":"E232*F232","v":0}]
[null,"C1.5.7.1(b)","Double sided, reversible left or right (size indicated)","number (No.)",3000,null,{"$f":"E233*F233","v":0}]
[null,"C1.5.7.2","Traffic cones, minimum height 750mm","number (No.)",50,null,{"$f":"E234*F234","v":0}]
[null,"C1.5.7.3","Flagmen","man-shift",9240,null,{"$f":"E235*F235","v":0}]
[null,"C1.5.7.4","Traffic controllers","man-shift",2000,null,{"$f":"E236*F236","v":0}]
[null,"C1.5.7.5","Provision of illuminated traffic signs:"]
[null,"C1.5.7.5(a)","Sign mounted flashing amber lights (2 lights with the specified power supply) mounted on a backing board which is:"]
[null,"C1.5.7.5(a)(i)","900mm wide x 150mm high","number (No.)",30,null,{"$f":"E239*F239","v":0}]
[null,"C1.5.7.5(a)(ii)","1200mm wide x 200mm high","number (No.)",30,null,0]
[null,"C1.5.7.5(b)","Flashing LED illuminated arrow board","number (No.)",2,null,0]
[null,"C1.5.7.5(c)","Illuminated road sign – R & TR series (diameter indicated)","number (No.)",null,null,0]
[null,"C1.5.7.5(d)","Illuminated road sign – TW series (length of sides indicated)","number (No.)",null,null,0]
[null,"C1.5.7.5(e)","Mobile variable message sign","number (No.)",6,null,0]
[null,"C1.5.7.5(f)","Mobile variable message sign with a speed measuring and display capability","month",6,null,0]
[null,"C1.5.7.6","Maintenance of illuminated traffic signs:"]
[null,"C1.5.7.6(a)","Sign mounted flashing amber lights (a pair of two lights mounted on a separate backing board) ","month",12,null,{"$f":"E247*F247","v":0}]
[null,"C1.5.7.6(b)","Flashing LED illuminated arrow board","month",12,null,0]
[null,"C1.5.7.6(c)","Illuminated road sign – R & TR series (diameter indicated)","month",null,null,0]
[null,"C1.5.7.6(d)","Illuminated road sign – TW series (length of sides indicated)","month",null,null,0]
[null,"C1.5.7.6(e)","Mobile variable message sign","month",12,null,0]
[null,"C1.5.7.6(f)","Mobile variable message sign with a speed measuring and display capability","month",12,null,0]
[null,"C1.5.7.7","Traffic calming devices:"]
[null,"C1.5.7.7(a)","25mm high x 100mm wide asphalt rumble strips","metre (m)",null,null,{"$f":"E254*F254","v":0}]
[null,"C1.5.7.7(b)","50mm high x 500m wide asphalt rumble strips","metre (m)",null,null,0]
[null,"C1.5.7.7(c)","150mm high x 3m wide asphalt speed control humps","metre (m)",null,null,0]
[null,"C1.5.7.8","Traffic control stations","month",12,null,0]
[null,"C1.5.7.9","Cleaning of traffic control facilities","month",12,null,0]
[null,"C1.5.8","Traffic safety officer","man-month",12,null,0]
[null,"C1.5.9","Traffic safety vehicle","month",12,null,0]
[null,"C1.5.10","Tow trucks"]
[null,"C1.5.10.1","Provision of a tow truck on call for light vehicles weighing less than two tonnes","month",null,null,{"$f":"E262*F262","v":0}]
[null,"C1.5.10.2","Provision of a tow truck on call for heavy vehicles weighing two tonnes or more","month",null,null,{"$f":"E263*F263","v":0}]
[null,"C1.5.11","Provision of safety equipment for visitors"]
[null,"C1.5.11.1","Provision of reflective safety vests for visitors","number (No.)",6,null,{"$f":"E265*F265","v":0}]
[null,"C1.5.11.2","Provision of hard hats for visitors","number (No.)",6,null,{"$f":"E266*F266","v":0}]
[null,"C1.5.12","Additional traffic accommodation facilities ordered by the Engineer:"]
[null,"C1.5.12.1","Provision of additional traffic accommodation facilities ","provisional sum",1,{"v":1500000,"d":"R1,500,000.00"},{"$f":"E268*F268","v":{"v":1500000,"d":"R1,500,000.00"}}]
[null,"C1.5.12.2","Handling cost, profit and all other charges in respect of item C1.5.12.1","percentage (%)",{"$f":"G268","v":{"v":1500000,"d":"R1,500,000.00"}},null,{"$f":"E269*F269","v":0}]
[]
[]
[]
[null,"C1.5","TOTAL CARRIED FORWARD TO SUMMARY",{"$nulls":3},{"$f":"SUM(G205:G272)","v":{"v":1500000,"d":"R1,500,000.00"}}]
[]
[null,"C1.6","CLEARING AND GRUBBING"]
[null,"C1.6.1","Clearing"]
[null,"C1.6.1.1","Clearing with machines and some hand labour where necessary","hectare (ha)",null,null,{"$f":"E277*F277","v":0}]
[null,"C1.6.1.2","Clearing with hand labour only when labour enhanced work is specified","hectare (ha)",null,null,{"$f":"E278*F278","v":0}]
[null,"C1.6.1.3","Clearing for new fence lines (over a width of 2,0m)","kilometre (km)",null,null,{"$f":"E279*F279","v":0}]
[null,"C1.6.1.4","Clearing for service trenches (over the agreed width required)","square metre (m2)",null,null,{"$f":"E280*F280","v":0}]
[null,"C1.6.2","Grubbing"]
[null,"C1.6.2.1","Grubbing with machines and some hand labour where necessary","hectare (ha)",null,null,{"$f":"E282*F282","v":0}]
[null,"C1.6.2.2","Grubbing with hand labour when labour enhancement work is specified or it is not practical to use a machine","hectare (ha)",null,null,{"$f":"E283*F283","v":0}]
[null,"C1.6.2.3","Grubbing by hand for new fence lines (over a width of 2,0m)","kilometre (km)",null,null,{"$f":"E284*F284","v":0}]
[null,"C1.6.2.4","Grubbing by hand for service trenches (over the agreed width required)","square metre (m2)",null,null,{"$f":"E285*F285","v":0}]
[null,"C1.6.3","Removal and grubbing of large trees and tree stumps:"]
[null,"C1.6.3.1","Girth equal to or exceeding 1,0m up to and including 2,0m","number (No.)",null,null,{"$f":"E287*F287","v":0}]
[null,"C1.6.3.2","Girth exceeding 2,0m up to and including 3,0m","number (No.)",null,null,{"$f":"E288*F288","v":0}]
[null,"C1.6.3.3","Girth exceeding 3,0m","number (No.)",null,null,{"$f":"E289*F289","v":0}]
[null,"C1.6.3.4","Removal of trees in forests and plantations","hectare (ha)",null,null,{"$f":"E290*F290","v":0}]
[null,"C1.6.4","Removal of buildings and structures"]
[null,"C1.6.4.1","… (Identify type and location of each building or structure with a separate sub-item)","lump sum"]
[null,"C1.6.5","Spreading organic matter and covering with soil","cubic metre (m3)",null,null,{"$f":"E293*F293","v":0}]
[null,"C1.6.6","Mulching selected organic matter","cubic metre (m3)",null,null,{"$f":"E294*F294","v":0}]
[null,"C1.6.7","Re-clearing of previously cleared areas","hectare (ha)",null,null,{"$f":"E295*F295","v":0}]
[null,"C1.6.8","Conservation of vegetation:"]
[null,"C1.6.8.1","Establishment of a temporary nursery","number (No.)",null,null,{"$f":"E297*F297","v":0}]
[null,"C1.6.8.2","Removal, storage and maintenance of shrubs","number (No.)",null,null,0]
[null,"C1.6.8.3","Removal, storage and maintenance of trees, girth up to and including 1,0m","number (No.)",null,null,0]
[null,"C1.6.8.4","Removal, storage and maintenance of trees, girth exceeding 1,0m up to and including 2,0m","number (No.)",null,null,0]
[null,"C1.6.8.5","Removal, storage and maintenance of trees, girth exceeding 2,0m up to and including 3,0m","number (No.)",null,null,0]
[null,"C1.6.8.6","Removal, storage and maintenance of trees, girth exceeding 3,0m","number (No.)",null,null,0]
[null,"C1.6.9","Conservation of topsoil:"]
[null,"C1.6.9.1","Stockpiling topsoil","cubic metre (m3)",null,null,{"$f":"E304*F304","v":0}]
[null,"C1.6.9.2","Windrowing topsoil","cubic metre (m3)",null,null,{"$f":"E305*F305","v":0}]
[null,"C1.6.10","Disposal of hazardous waste material:"]
[null,"C1.6.10.1","Disposal of hazardous waste material at an approved hazardous waste material facility","provisional sum"]
[null,"C1.6.10.2","Handling cost, profit and all other charges in respect of item C1.6.10.1","percentage (%)",{"$f":"G307","v":0},null,{"$f":"F308*E308","v":0}]
[]
[]
[]
[null,"C1.6","TOTAL CARRIED FORWARD TO SUMMARY",{"$nulls":3},{"$f":"SUM(G277:G311)","v":0}]
[]
[null,"C1.7","LOADING AND HAULING"]
[null,"C1.7.1","Loading"]
[null,"C1.7.1.1","Loading from stockpile using machines and some hand labour where necessary","cubic metre (m3)",600,null,{"$f":"E316*F316","v":0}]
[null,"C1.7.1.2","Loading from heaps or windrows using machines and/some hand labour where necessary","cubic metre (m3)",150,null,{"$f":"E317*F317","v":0}]
[null,"C1.7.1.3","Loading by hand only from stockpile or heaps when labour enhancement work is specified or it is not possible to use machines","cubic metre (m3)",50,null,{"$f":"E318*F318","v":0}]
[null,"C1.7.2","Hauling"]
[null,"C1.7.2.1","Hauling material for use in the Works and off-loading it on the site of the Works:"]
[null,"C1.7.2.1(a)","Soil, gravel, crushed stone and pavement layer material","cubic metre - kilometre (m3 - km)",600,null,{"$f":"E321*F321","v":0}]
[null,"C1.7.2.1(b)","Boulders and hard material","cubic metre - kilometre (m3 - km)",300,null,{"$f":"E322*F322","v":0}]
[null,"C1.7.2.2","Hauling material to spoil and off-loading it at a designated spoil or stockpile area:"]
[null,"C1.7.2.2(a)","Cleared and grubbed material (organic matter and all other unsuitable or waste material)","cubic metre - kilometre (m3 - km)",null,null,{"$f":"E324*F324","v":0}]
[null,"C1.7.2.2(b)","Soil and gravel material","cubic metre - kilometre (m3 - km)",2000,null,{"$f":"E325*F325","v":0}]
[null,"C1.7.2.2(c)","Boulders, hard material and concrete","cubic metre - kilometre (m3 - km)",null,null,{"$f":"E326*F326","v":0}]
[null,"C1.7.2.2(d)","Asphalt layers at approved area","cubic metre - kilometre (m3 - km)",10000,null,{"$f":"E327*F327","v":0}]
[]
[]
[null,"C1.7","TOTAL CARRIED FORWARD TO SUMMARY",{"$nulls":3},{"$f":"SUM(G316:G329)","v":0}]
[]
[null,"C2.1","GENERAL REQUIREMENTS AND TRENCHING FOR SERVICES"]
[null,"C2.1.1","Location, identification, protection and relocation of existing services"]
[null,"C2.1.1.1","Contractor’s obligations","lump sum"]
[null,"C2.1.1.2","Permanent services relocation or protection work by others","prime cost (PC) sum"]
[null,"C2.1.1.3","Handling costs and profit in respect of item C2.1.1.2 above","percentage (%)",{"$f":"G335","v":0},null,{"$f":"F336*E336","v":0}]
[null,"C2.1.1.4","Permanent services relocation or protection work by the Contractor","provisional sum"]
[null,"C2.1.2","Existing services location, detection and verification "]
[null,"C2.1.2.1","Using specialist detection services (ground penetrating radar, radio detection etc.)  ","prime cost (PC) sum"]
[null,"C2.1.2.2","Handling costs and profit in respect of item C2.1.2.1 above","percentage (%)",{"$f":"G339","v":0},null,{"$f":"F340*E340","v":0}]
[null,"C2.1.2.3","Survey to verify existing service positions","prime cost (PC) sum"]
[null,"C2.1.2.4","Handling costs and profit in respect of item C2.1.2.3 above ","percentage (%)",{"$f":"G341","v":0},null,{"$f":"F342*E342","v":0}]
[null,"C2.1.2.5","Using hand excavation to locate, expose and verify services  ","cubic metre (m3)",null,null,{"$f":"E343*F343","v":0}]
[null,"C2.1.3","Obtaining construction or work permits","lump sum"]
[null,"C2.1.4","Provision of guarantees or deposits for services "]
[null,"C2.1.4.1","Providing guarantees and deposits                          ","prime cost (PC) sum"]
[null,"C2.1.4.2","Handling costs and profit in respect of item C2.1.4.1 above            ","percentage (%)",{"$f":"G346","v":0},null,{"$f":"F347*E347","v":0}]
[null,"C2.1.5","Provision of record drawings and applicable data","lump sum"]
[null,"C2.1.6","Trench excavation (in soft material)"]
[null,"C2.1.6.1","Trenches up to 1,0m wide"]
[null,"C2.1.6.1(a)","Up to 1,0m deep","cubic metre (m3)",null,null,{"$f":"E351*F351","v":0}]
[null,"C2.1.6.1(b)","Over 1,0m and up to 2,0m deep","cubic metre (m3)",null,null,{"$f":"E352*F352","v":0}]
[null,"C2.1.6.1(c)","Over 2,0m deep etc. to be inserted, increased by additional 1,0m depths as required","cubic metre (m3)",null,null,{"$f":"E353*F353","v":0}]
[null,"C2.1.6.2","Trenches over 1,0m and up to 2,0m wide"]
[null,"C2.1.6.2(a)","Up to 1,0m deep","cubic metre (m3)",null,null,{"$f":"E355*F355","v":0}]
[null,"C2.1.6.2(b)","Over 1,0m and up to 2,0m deep","cubic metre (m3)",null,null,{"$f":"E356*F356","v":0}]
[null,"C2.1.6.2(c)","Over 2,0m deep etc., increased by additional 1,0m depths as required","cubic metre (m3)",null,null,{"$f":"E357*F357","v":0}]
[null,"C2.1.6.3","Trenches over 2,0m wide and up to 3,0m etc., increased by additional 1,0m widths as required"]
[null,"C2.1.6.3(a)","Up to 1,0m deep","cubic metre (m3)",null,null,{"$f":"E359*F359","v":0}]
[null,"C2.1.6.3(b)","Over 1,0m and up to 2,0m deep","cubic metre (m3)",null,null,{"$f":"E360*F360","v":0}]
[null,"C2.1.6.3(c)","Over 2,0m deep etc., increased by additional 1,0m depths as required","cubic metre (m3)",null,null,{"$f":"E361*F361","v":0}]
[null,"C2.1.7","Extra over items C2.1.6, C2.1.8 and C2.1.16 for excavating in:"]
[null,"C2.1.7.1","Hard material irrespective of depth ","cubic metre (m3)",null,null,{"$f":"E363*F363","v":0}]
[null,"C2.1.7.2","Stabilised material irrespective of depth ","cubic metre (m3)",null,null,{"$f":"E364*F364","v":0}]
[null,"C2.1.8","Excavations outside the normal trench profile","cubic metre (m3)",null,null,{"$f":"E365*F365","v":0}]
[null,"C2.1.9","Trench excavation using labour enhanced construction methods"]
[null,"C2.1.9.1","Trenches up to 1,0m wide (in soft material) "]
[null,"C2.1.9.1(a)","Up to 1,0m deep","cubic metre (m3)",null,null,{"$f":"E368*F368","v":0}]
[null,"C2.1.9.1(b)","Over 1,0m and up to 1,5m deep","cubic metre (m3)",null,null,{"$f":"E369*F369","v":0}]
[null,"C2.1.9.2","Trenches over 1,0m and up to 2,0m wide (in soft material)"]
[null,"C2.1.9.2(a)","Up to 1,0m deep","cubic metre (m3)",null,null,{"$f":"E371*F371","v":0}]
[null,"C2.1.9.2(b)","Over 1,0m and up to 1,5m deep","cubic metre (m3)",null,null,{"$f":"E372*F372","v":0}]
[null,"C2.1.9.3","Trenches up to 1,0m wide (in intermediate material) "]
[null,"C2.1.9.3(a)","Up to 1,0m deep","cubic metre (m3)",null,null,{"$f":"E374*F374","v":0}]
[null,"C2.1.9.3(b)","Over 1,0m and up to 1,5m deep","cubic metre (m3)",null,null,{"$f":"E375*F375","v":0}]
[null,"C2.1.9.4","Trenches over 1,0m and up to 2,0m wide (in intermediate material)"]
[null,"C2.1.9.4(a)","Up to 1,0m deep","cubic metre (m3)",null,null,{"$f":"E377*F377","v":0}]
[null,"C2.1.9.4(b)","Over 1,0m and up to 1,5m deep","cubic metre (m3)",null,null,{"$f":"E378*F378","v":0}]
[null,"C2.1.10","Excavation in tunnels exceeding 3,0m in length in:"]
[null,"C2.1.10.1","Soft material ","cubic metre (m3)",null,null,{"$f":"E380*F380","v":0}]
[null,"C2.1.10.2","Hard material  ","cubic metre (m3)",null,null,{"$f":"E381*F381","v":0}]
[null,"C2.1.11","Backfilling of trenches"]
[null,"C2.1.11.1","Backfill compacted to 93% (100% for sand) of MDD (areas subject to traffic loads) using material:  "]
[null,"C2.1.11.1(a)","From the excavated trench material","cubic metre (m3)",null,null,{"$f":"E384*F384","v":0}]
[null,"C2.1.11.1(b)","From other excavations on Site ","cubic metre (m3)",null,null,{"$f":"E385*F385","v":0}]
[null,"C2.1.11.1(c)","From approved borrow areas","cubic metre (m3)",null,null,{"$f":"E386*F386","v":0}]
[null,"C2.1.11.1(d)","From sources provided by the Contractor","cubic metre (m3)",null,null,{"$f":"E387*F387","v":0}]
[null,"C2.1.11.1(e)","From commercial sources (state material type)","cubic metre (m3)",null,null,{"$f":"E388*F388","v":0}]
[null,"C2.1.11.2","Backfill compacted to 90% (100% for sand) of MDD or complying with the DCP requirements of Clause A2.1.8.2c) (areas not subject to traffic loads) using material:  "]
[null,"C2.1.11.2(a)","From the excavated trench material","cubic metre (m3)",null,null,{"$f":"E390*F390","v":0}]
[null,"C2.1.11.2(b)","From other excavations on Site ","cubic metre (m3)",null,null,{"$f":"E391*F391","v":0}]
[null,"C2.1.11.2(c)","From approved borrow areas","cubic metre (m3)",null,null,{"$f":"E392*F392","v":0}]
[null,"C2.1.11.2(d)","From sources provided by the Contractor","cubic metre (m3)",null,null,{"$f":"E393*F393","v":0}]
[null,"C2.1.11.2(e)","From commercial sources (state material type)","cubic metre (m3)",null,null,{"$f":"E394*F394","v":0}]
[null,"C2.1.12","Backfilling additional excavations in trench floors due to poor founding conditions using: "]
[null,"C2.1.12.1","Geotextile (state grade or class)","square metre (m2)",null,null,{"$f":"E396*F396","v":0}]
[null,"C2.1.12.2","Concrete aggregate (37,5mm aggregate size)","cubic metre (m3)",null,null,{"$f":"E397*F397","v":0}]
[null,"C2.1.12.3","Concrete (state class)  ","cubic metre (m3)",null,null,{"$f":"E398*F398","v":0}]
[null,"C2.1.13","Extra over item C2.1.11 for backfilling with soil cement or stabilised material"]
[null,"C2.1.13.1","Backfilling trenches using soil cement using (state type of material i.e. G5, G7 or G8) material  ","cubic metre (m3)",null,null,{"$f":"E400*F400","v":0}]
[null,"C2.1.13.2","Backfilling trenches using stabilised (state type of material i.e. G5, G7 or G8) material compacted to 93% of MDD","cubic metre (m3)",null,null,{"$f":"E401*F401","v":0}]
[null,"C2.1.13.3","Backfilling around poles using stabilised (state type of material i.e. G5, G7 or G8) material compacted to 95% of MDD","cubic metre (m3)",null,null,{"$f":"E402*F402","v":0}]
[null,"C2.1.13.4","Cement (state class of cement)","kilogram (kg)",null,null,{"$f":"E403*F403","v":0}]
[null,"C2.1.14","Extra over items C2.1.11, C2.1.12 and C2.1.13 for additional compaction of backfill"]
[null,"C2.1.14.1","Compaction increased from 90% of MDD to 93% of MDD","cubic metre (m3)",null,null,{"$f":"E405*F405","v":0}]
[null,"C2.1.14.2","Compaction increased from 93% of MDD to 95% of MDD","cubic metre (m3)",null,null,{"$f":"E406*F406","v":0}]
[null,"C2.1.14.3","Compaction increased from 95% of MDD to 98% of MDD","cubic metre (m3)",null,null,{"$f":"E407*F407","v":0}]
[null,"C2.1.15","Stone packing"]
[null,"C2.1.15.1","In bolsters","cubic metre (m3)",null,null,{"$f":"E409*F409","v":0}]
[null,"C2.1.15.2","In tunnels","cubic metre (m3)",null,null,{"$f":"E410*F410","v":0}]
[null,"C2.1.16","Subsurface drains in trench bottoms (Contract Documentation reference or drawing number indicated) ","metre (m)",null,null,{"$f":"E411*F411","v":0}]
[null,"C2.1.17","Removal and disposal of spoil material from trench excavations:"]
[null,"C2.1.17.1","To spoil sites provided by the Employer as indicated in the Contract Documentation or as instructed by the Engineer","cubic metre (m3)",null,null,{"$f":"E413*F413","v":0}]
[null,"C2.1.17.2","To spoil sites or dumping areas provided by the Contractor","cubic metre (m3)",null,null,{"$f":"E414*F414","v":0}]
[null,"C2.1.18","Timbering, strutting and shoring  "]
[null,"C2.1.18.1","Timbering, strutting and shoring left in excavations  ","square metre (m2)",null,null,{"$f":"E416*F416","v":0}]
[null,"C2.1.18.2","Timbering, strutting and shoring opposite a structure or service (state reference in Contract Documentation or indicate drawing number etc.)","metre (m)",null,null,{"$f":"E417*F417","v":0}]
[null,"C2.1.19","Dealing with water during services work"]
[null,"C2.1.19.1","Dealing with surface water","lump sum"]
[null,"C2.1.19.2","Dealing with subsurface water","lump sum"]
[null,"C2.1.20","Specified temporary works to control water inflow (state reference in Contract Documentation or indicate drawing number etc.)"]
[null,"C2.1.20.1","Provide equipment","lump sum"]
[null,"C2.1.20.2","Operate and maintain","day",null,null,{"$f":"E423*F423","v":0}]
[null,"C2.1.20.3","Remove equipment","lump sum"]
[null,"C2.1.21","Supply and installation of sandbags in trenches"]
[null,"C2.1.21.1","Biodegradable bags (state bag size, material type and description)","number of bags (No.)",null,null,{"$f":"E426*F426","v":0}]
[null,"C2.1.21.2","Geofabric bags (state bag size, material type and description)","number of bags (No.)",null,null,{"$f":"E427*F427","v":0}]
[null,"C2.1.22","Existing services that intersect or adjoin a trench"]
[null,"C2.1.22.1","Services that intersect a trench (angles between centre-lines in plan 45o to 90o)"]
[null,"C2.1.22.1(a)","… (State type and size of each intersecting service)","number (No.)",null,null,{"$f":"E430*F430","v":0}]
[null,"C2.1.22.1(b)","… (State type and size of each intersecting service)","number (No.)",null,null,{"$f":"E431*F431","v":0}]
[null,"C2.1.22.1(c)","… (State type and size of each intersecting service etc.)","number (No.)",null,null,{"$f":"E432*F432","v":0}]
[null,"C2.1.22.2","Services that adjoin a trench (parallel to or at an angle between centre-lines in plan of less than 45o) "]
[null,"C2.1.22.2(a)","… (State type and size of each adjoining service)","metre (m)",null,null,{"$f":"E434*F434","v":0}]
[null,"C2.1.22.2(b)","… (State type and size of each adjoining service)","metre (m)",null,null,{"$f":"E435*F435","v":0}]
[null,"C2.1.22.2(c)","… (State type and size of each adjoining service etc.)","metre (m)",null,null,{"$f":"E436*F436","v":0}]
[null,"C2.1.23","Reinstatement of trenches in existing surfaced roads using:"]
[null,"C2.1.23.1","Selected material (state material type and source e.g. G7 or G8, commercial/borrow pits/etc. and layer thickness) compacted to (state minimum compaction) ...% of MDD","cubic metre (m3)",null,null,{"$f":"E438*F438","v":0}]
[null,"C2.1.23.2","Subbase material (state material type and source e.g. G5 or G6, commercial/borrow pit etc. and layer thickness) compacted to (state minimum compaction) ...% of MDD  ","cubic metre (m3)",null,null,0]
[null,"C2.1.23.3","Stabilised subbase material (state material type and source e.g. C3 or C4, commercial/borrow pit etc. and layer thickness) using (state percentage and type of stabilising agent) compacted to (state minimum compaction) ...% of MDD","cubic metre (m3)",null,null,0]
[null,"C2.1.23.4","Base material (state material type and source e.g. G1 or G2, commercial/quarry etc. and layer thickness) compacted to (state minimum compaction either 102% for G2 or 104% for G1) ...% of MDD","cubic metre (m3)",null,null,0]
[null,"C2.1.23.5","Prime coat (state type of material and application rate)  ","square metre (m2)",null,null,0]
[null,"C2.1.23.6","Tack coat (state type of material and application rate)  ","square metre (m2)",null,null,0]
[null,"C2.1.23.7","Asphalt material (state asphalt type e.g. continuously graded, binder type, layer thickness and minimum density)","ton (t)",null,null,0]
[null,"C2.1.23.8","Surface treatments (state surfacing type, binder type and application rate, aggregate size and application rate etc.)  ","square metre (m2)",null,null,0]
[null,"C2.1.24","Saw-cutting before excavation "]
[null,"C2.1.24.1","Saw-cutting asphalt to an average depth:"]
[null,"C2.1.24.1(a)","Not exceeding 50mm","square metre (m2)",null,null,{"$f":"E448*F448","v":0}]
[null,"C2.1.24.1(b)","Exceeding 50mm but not exceeding 100mm","square metre (m2)",null,null,{"$f":"E449*F449","v":0}]
[null,"C2.1.24.1(c)","Exceeding 100mm but not exceeding 150mm","square metre (m2)",null,null,{"$f":"E450*F450","v":0}]
[null,"C2.1.24.2","Saw-cutting concrete to an average depth:"]
[null,"C2.1.24.2(a)","Not exceeding 50mm","square metre (m2)",null,null,{"$f":"E452*F452","v":0}]
[null,"C2.1.24.2(b)","Exceeding 50mm but not exceeding 100mm","square metre (m2)",null,null,{"$f":"E453*F453","v":0}]
[null,"C2.1.24.2(c)","Exceeding 100mm but not exceeding 150mm","square metre (m2)",null,null,{"$f":"E454*F454","v":0}]
[null,"C2.1.24.3","Saw-cutting other materials (type of material to be specified) to an average depth:"]
[null,"C2.1.24.3(a)","Not exceeding 50mm","square metre (m2)",null,null,{"$f":"E456*F456","v":0}]
[null,"C2.1.24.3(b)","Exceeding 50mm but not exceeding 100mm","square metre (m2)",null,null,{"$f":"E457*F457","v":0}]
[null,"C2.1.24.3(c)","Exceeding 100mm but not exceeding 150mm","square metre (m2)",null,null,{"$f":"E458*F458","v":0}]
[null,"C2.1.25","Removal of existing services:"]
[null,"C2.1.25.1","… (State type and size of each service (duct, pipe or cable) removed)","metre (m)",null,null,{"$f":"E460*F460","v":0}]
[null,"C2.1.25.2","… (State type and size of each service (duct, pipe or cable) removed)","metre (m)",null,null,{"$f":"E461*F461","v":0}]
[null,"C2.1.25.3","… etc.  (insert additional items as required)","metre (m)",null,null,{"$f":"E462*F462","v":0}]
[null,"C2.1.26","Disposal of existing service materials:"]
[null,"C2.1.26.1","… (State type and size of each service (duct, pipe or cable) disposed of)","metre (m)",null,null,{"$f":"E464*F464","v":0}]
[null,"C2.1.26.2","… (State type and size of each service (duct, pipe or cable) disposed of)","metre (m)",null,null,{"$f":"E465*F465","v":0}]
[null,"C2.1.26.3","… etc. (insert additional items as required)","metre (m)",null,null,{"$f":"E466*F466","v":0}]
[null,"C2.1.27","Demolition of existing manholes, access chambers and other service structures consisting of:"]
[null,"C2.1.27.1","Unreinforced concrete","cubic metre (m3)",null,null,{"$f":"E468*F468","v":0}]
[null,"C2.1.27.2","Reinforced concrete","cubic metre (m3)",null,null,{"$f":"E469*F469","v":0}]
[null,"C2.1.27.3","Masonry","cubic metre (m3)",null,null,{"$f":"E470*F470","v":0}]
[]
[]
[]
[null,"C2.1","TOTAL CARRIED FORWARD TO SUMMARY",{"$nulls":3},{"$f":"SUM(G334:G473)","v":0}]
[]
[]
[null,"C2.2","DRY SERVICES "]
[null,"C2.2.1","Supply, lay and prove ducts"]
[null,"C2.2.1.1","… (state for each duct the material type, class, joint type etc. (example HDPE pliable type N450 with compression couplings))"]
[null,"C2.2.1.1(a)","… (state diameter (example 110mm diameter (OD))","metre (m)",null,null,{"$f":"E480*F480","v":0}]
[null,"C2.2.1.1(b)","… (state diameter (example 160mm diameter (OD))","metre (m)",null,null,{"$f":"E481*F481","v":0}]
[null,"C2.2.1.2","… (state for each duct the material type, class, joint type etc.)"]
[null,"C2.2.1.2(a)","… (state diameter)","metre (m)",null,null,{"$f":"E483*F483","v":0}]
[null,"C2.2.1.2(b)","… (state diameter)","metre (m)",null,null,{"$f":"E484*F484","v":0}]
[null,"C2.2.2","Extra over item C2.2.1 for the provision of split ducts"]
[null,"C2.2.2.1","… (state for each duct the material type, class, etc.)"]
[null,"C2.2.2.1(a)","… (state diameter (example 110mm diameter (OD))","metre (m)",null,null,{"$f":"E487*F487","v":0}]
[null,"C2.2.2.1(b)","… (state diameter (example 160mm diameter (OD))","metre (m)",null,null,{"$f":"E488*F488","v":0}]
[null,"C2.2.2.2","… (state for each duct the material type, class etc.)"]
[null,"C2.2.2.2(a)","… (state diameter)","metre (m)",null,null,{"$f":"E490*F490","v":0}]
[null,"C2.2.2.2(b)","… (state diameter)","metre (m)",null,null,{"$f":"E491*F491","v":0}]
[null,"C2.2.3","Lay and prove ducts provided by others"]
[null,"C2.2.3.1","… (state for each duct to be laid the material type)"]
[null,"C2.2.3.1(a)","… (state diameter (example 110mm diameter (OD))","metre (m)",null,null,{"$f":"E494*F494","v":0}]
[null,"C2.2.3.1(b)","… (state diameter (example 160mm diameter (OD))","metre (m)",null,null,{"$f":"E495*F495","v":0}]
[null,"C2.2.3.2","… (state for each duct to be laid the material type)"]
[null,"C2.2.3.2(a)","… (state diameter)","metre (m)",null,null,{"$f":"E497*F497","v":0}]
[null,"C2.2.3.2(b)","… (state diameter)","metre (m)",null,null,{"$f":"E498*F498","v":0}]
[null,"C2.2.4","Bedding for ducts compacted to 90 % of MDD (100 % for sand) using material:"]
[null,"C2.2.4.1","Selected from the excavated trench material","cubic metre (m3)",null,null,{"$f":"E500*F500","v":0}]
[null,"C2.2.4.2","Selected from other excavations on site","cubic metre (m3)",null,null,{"$f":"E501*F501","v":0}]
[null,"C2.2.4.3","Selected from approved borrow areas","cubic metre (m3)",null,null,{"$f":"E502*F502","v":0}]
[null,"C2.2.4.4","Selected from sources provided by the Contractor","cubic metre (m3)",null,null,{"$f":"E503*F503","v":0}]
[null,"C2.2.4.5","From commercial sources"]
[null,"C2.2.4.5(a)","Non-cohesive material (state material type)","cubic metre (m3)",null,null,{"$f":"E505*F505","v":0}]
[null,"C2.2.4.5(b)","Crushed stone material (state material type) ","cubic metre (m3)",null,null,{"$f":"E506*F506","v":0}]
[null,"C2.2.4.6","Extra over items C2.2.4.1 to C2.2.4.5 for stabilising material with cement","cubic metre (m3)",null,null,{"$f":"E507*F507","v":0}]
[null,"C2.2.4.7","Cement (state class/type of cement) for stabilising bedding","kilogram (kg)",null,null,{"$f":"E508*F508","v":0}]
[null,"C2.2.5","Concrete for bedding and encasement of ducts"]
[null,"C2.2.5.1","Concrete bedding (state class of concrete)","cubic metre (m3)",null,null,{"$f":"E510*F510","v":0}]
[null,"C2.2.5.2","Concrete encasement of ducts (state class of concrete) ","cubic metre (m3)",null,null,{"$f":"E511*F511","v":0}]
[null,"C2.2.6","Duct accessories (markers, marking, draw wires and end caps etc.)"]
[null,"C2.2.6.1","Duct markers (state type) ","number (No.)",null,null,{"$f":"E513*F513","v":0}]
[null,"C2.2.6.2","Duct marking (state type)","number (No.)",null,null,{"$f":"E514*F514","v":0}]
[null,"C2.2.6.3","Draw wires (state type)","metre (m)",null,null,{"$f":"E515*F515","v":0}]
[null,"C2.2.6.4","End caps or plugs (state type)  ","number (No.)",null,null,{"$f":"E516*F516","v":0}]
[null,"C2.2.6.5","Other accessories"]
[null,"C2.2.6.5(a)","… (state type)","number (No.)",null,null,{"$f":"E518*F518","v":0}]
[null,"C2.2.6.5(b)","… (state type)","metre (m)",null,null,{"$f":"E519*F519","v":0}]
[null,"C2.2.7","Handholes, manholes and access chambers for ducts "]
[null,"C2.2.7.1","Handholes (state type and drawing reference etc.)"]
[null,"C2.2.7.1(a)","… (state depth range (example over 1,0m and up to 1,5m deep))","number (No.)",null,null,{"$f":"E522*F522","v":0}]
[null,"C2.2.7.1(b)","… (state depth range (example over 1,5m and up to 2,0m deep))","number (No.)",null,null,{"$f":"E523*F523","v":0}]
[null,"C2.2.7.2","Manholes (state type and drawing reference etc.) "]
[null,"C2.2.7.2(a)","… (state depth range)","number (No.)",null,null,{"$f":"E525*F525","v":0}]
[null,"C2.2.7.2(b)","… (state depth range)","number (No.)",null,null,{"$f":"E526*F526","v":0}]
[null,"C2.2.7.3","Access chambers (state type and drawing reference etc.)   "]
[null,"C2.2.7.3(a)","… (state depth range)","number (No.)",null,null,{"$f":"E528*F528","v":0}]
[null,"C2.2.7.3(b)","… (state depth range)","number (No.)",null,null,{"$f":"E529*F529","v":0}]
[null,"C2.2.7.4","Other structures"]
[null,"C2.2.7.4(a)","… (state type, depth range and drawing reference etc.)","number (No.)",null,null,{"$f":"E531*F531","v":0}]
[null,"C2.2.7.4(b)","… (state type, depth range and drawing reference etc.)","number (No.)",null,null,{"$f":"E532*F532","v":0}]
[null,"C2.2.8","Covers and frames for duct handholes, manholes and access chambers"]
[null,"C2.2.8.1","… (State type, strength class and size of cover and frame)","number (No.)",null,null,{"$f":"E534*F534","v":0}]
[null,"C2.2.8.2","… (State type, strength class and size of cover and frame)","number (No.)",null,null,{"$f":"E535*F535","v":0}]
[null,"C2.2.8.3","… (State type, strength class and size of cover and frame)","number (No.)",null,null,{"$f":"E536*F536","v":0}]
[null,"C2.2.8.4","… etc. (insert additional items as required)","number (No.)",null,null,{"$f":"E537*F537","v":0}]
[null,"C2.2.9","Install duct handhole, manhole and access chamber covers and frames provided by others"]
[null,"C2.2.9.1","… (State type, strength class and size of cover and frame)","number (No.)",null,null,{"$f":"E539*F539","v":0}]
[null,"C2.2.9.2","… (State type, strength class and size of cover and frame)","number (No.)",null,null,{"$f":"E540*F540","v":0}]
[null,"C2.2.9.3","… (State type, strength class and size of cover and frame)","number (No.)",null,null,{"$f":"E541*F541","v":0}]
[null,"C2.2.9.4","… etc. (insert additional items as required)","number (No.)",null,null,{"$f":"E542*F542","v":0}]
[]
[]
[]
[null,"C2.2","TOTAL CARRIED FORWARD TO SUMMARY",{"$nulls":3},{"$f":"SUM(G479:G545)","v":0}]
[]
[null,"C2.3","WET SERVICES"]
[null,"C2.3.1","Supply, lay, joint and test sewers"]
[null,"C2.3.1.1","… (State for each sewer the pipe material type, class, joint type and the class of bedding etc.)"]
[null,"C2.3.1.1(a)","… (state diameter)","metre (m)",null,null,{"$f":"E551*F551","v":0}]
[null,"C2.3.1.1(b)","… (state diameter)","metre (m)",null,null,{"$f":"E552*F552","v":0}]
[null,"C2.3.1.2","… (state for each sewer the pipe material type, class, joint type and the class of bedding etc.)"]
[null,"C2.3.1.2(a)","… (state diameter)","metre (m)",null,null,{"$f":"E554*F554","v":0}]
[null,"C2.3.1.2(b)","… (state diameter)","metre (m)",null,null,{"$f":"E555*F555","v":0}]
[null,"C2.3.1.3","…etc. (insert additional items as required)",{"$nulls":3},{"$f":"E556*F556","v":0}]
[null,"C2.3.2","Extra over item C2.3.1 for sewer specials"]
[null,"C2.3.2.1","… (state for each sewer special the type, class, etc.)"]
[null,"C2.3.2.1(a)","… (state diameter)","number (No.)",null,null,{"$f":"E559*F559","v":0}]
[null,"C2.3.2.1(b)","… (state diameter)","number (No.)",null,null,{"$f":"E560*F560","v":0}]
[null,"C2.3.2.2","… (state for each sewer special the type, class, etc.)"]
[null,"C2.3.2.2(a)","… (state diameter)","number (No.)",null,null,{"$f":"E562*F562","v":0}]
[null,"C2.3.2.2(b)","… (state diameter)","number (No.)",null,null,{"$f":"E563*F563","v":0}]
[null,"C2.3.2.3","…etc. (insert additional items as required)",{"$nulls":3},{"$f":"E564*F564","v":0}]
[null,"C2.3.3","Bedding for sewers (Class B and C) and fill blanket compacted to 90% of MDD (100% for sand)"]
[null,"C2.3.3.1","Bedding using selected granular material"]
[null,"C2.3.3.1(a)","From the excavated trench material","cubic metre (m3)",null,null,{"$f":"E567*F567","v":0}]
[null,"C2.3.3.1(b)","From other excavations on site","cubic metre (m3)",null,null,{"$f":"E568*F568","v":0}]
[null,"C2.3.3.1(c)","From approved borrow areas","cubic metre (m3)",null,null,{"$f":"E569*F569","v":0}]
[null,"C2.3.3.1(d)","From sources provided by the Contractor","cubic metre (m3)",null,null,{"$f":"E570*F570","v":0}]
[null,"C2.3.3.1(e)","From commercial sources","cubic metre (m3)",null,null,{"$f":"E571*F571","v":0}]
[null,"C2.3.3.2","Selected fill blanket material"]
[null,"C2.3.3.2(a)","From the excavated trench material","cubic metre (m3)",null,null,{"$f":"E573*F573","v":0}]
[null,"C2.3.3.2(b)","From other excavations on Site","cubic metre (m3)",null,null,0]
[null,"C2.3.3.2(c)","From approved borrow areas","cubic metre (m3)",null,null,0]
[null,"C2.3.3.2(d)","From sources provided by the Contractor","cubic metre (m3)",null,null,0]
[null,"C2.3.3.2(e)","From commercial sources","cubic metre (m3)",null,null,0]
[null,"C2.3.3.3","Extra over items C2.3.3.1(a) to C2.3.3.1(c) and C2.3.3.2(a) to C2.3.3.2(c) for screening material    ","cubic metre (m3)",null,null,0]
[null,"C2.3.4","Concrete for bedding (Class A) and encasement for sewers"]
[null,"C2.3.4.1","Concrete (Class A) bedding (state class of concrete)","cubic metre (m3)",null,null,{"$f":"E580*F580","v":0}]
[null,"C2.3.4.2","Concrete encasement (state class of concrete)  ","cubic metre (m3)",null,null,{"$f":"E581*F581","v":0}]
[null,"C2.3.5","Manholes, inspection chambers and cleaning eyes for sewers "]
[null,"C2.3.5.1","Manholes (state type and drawing reference etc.) "]
[null,"C2.3.5.1(a)","… (state pipe size and depth range)","number (No.)",null,null,{"$f":"E584*F584","v":0}]
[null,"C2.3.5.1(b)","… (state pipe size and depth range)","number (No.)",null,null,{"$f":"E585*F585","v":0}]
[null,"C2.3.5.2","Extra over item C2.3.5.1 for backdrops for manholes (state type and drawing reference etc.)"]
[null,"C2.3.5.2(a)","… (state pipe size and depth range)","number (No.)",null,null,{"$f":"E587*F587","v":0}]
[null,"C2.3.5.2(b)","… (state pipe size and depth range)","number (No.)",null,null,{"$f":"E588*F588","v":0}]
[null,"C2.3.5.3","Inspection chambers (state type and drawing reference etc.) "]
[null,"C2.3.5.3(a)","… (state pipe size and depth range)","number (No.)",null,null,{"$f":"E590*F590","v":0}]
[null,"C2.3.5.3(b)","… (state pipe size and depth range)","number (No.)",null,null,{"$f":"E591*F591","v":0}]
[null,"C2.3.5.4","Cleaning eyes (state type and drawing reference etc.)"]
[null,"C2.3.5.4(a)","… (state depth range)","number (No.)",null,null,{"$f":"E593*F593","v":0}]
[null,"C2.3.5.4(b)","… (state depth range)","number (No.)",null,null,{"$f":"E594*F594","v":0}]
[null,"C2.3.5.5","Other structures (state type and drawing reference etc.)"]
[null,"C2.3.5.5(a)","… (state pipe size and depth range)","number (No.)",null,null,{"$f":"E596*F596","v":0}]
[null,"C2.3.5.5(b)","… (state pipe size and depth range)","number (No.)",null,null,{"$f":"E597*F597","v":0}]
[null,"C2.3.6","Covers and frames for sewer manholes, inspection chambers and other structures"]
[null,"C2.3.6.1","… (state type, strength class and size of cover and frame)","number (No.)",null,null,{"$f":"E599*F599","v":0}]
[null,"C2.3.6.2","… (state type, strength class and size of cover and frame)","number (No.)",null,null,{"$f":"E600*F600","v":0}]
[null,"C2.3.6.3","… (state type, strength class and size of cover and frame)","number (No.)",null,null,{"$f":"E601*F601","v":0}]
[null,"C2.3.6.4","… etc. (insert additional items as required)","number (No.)",null,null,{"$f":"E602*F602","v":0}]
[null,"C2.3.7","Sewer accessories (anchor blocks, marker posts, plug stoppers etc.)"]
[null,"C2.3.7","Anchor blocks (state type and drawing reference) ","number (No.)",null,null,{"$f":"E604*F604","v":0}]
[null,"C2.3.7","Anchor blocks (state type and drawing reference)","cubic metre (m3)",null,null,{"$f":"E605*F605","v":0}]
[null,"C2.3.7","Marker posts (state type and drawing reference) ","number (No.)",null,null,{"$f":"E606*F606","v":0}]
[null,"C2.3.7","Plug stoppers (state type)","number (No.)",null,null,{"$f":"E607*F607","v":0}]
[null,"C2.3.7","Other accessories"]
[null,"C2.3.7(a)","… (state type)","number (No.)",null,null,{"$f":"E609*F609","v":0}]
[null,"C2.3.7(b)","… (state type)","number (No.)",null,null,{"$f":"E610*F610","v":0}]
[null,"C2.3.8","Sewer connections (erf and existing line connections)"]
[null,"C2.3.8.1","Erf connections (state type, depth range and drawing reference)"]
[null,"C2.3.8.1(a)","Connection length (state length in metres) ","number (No.)",null,null,{"$f":"E613*F613","v":0}]
[null,"C2.3.8.1(b)","Connection length (state length in metres) ","number (No.)",null,null,{"$f":"E614*F614","v":0}]
[null,"C2.3.8.1(c)","Etc., (insert additional items as required) ","number (No.)",null,null,{"$f":"E615*F615","v":0}]
[null,"C2.3.8.2","Erf connections (state type, depth range and drawing reference)"]
[null,"C2.3.8.2(a)","Connection length (state length in metres) ","number (No.)",null,null,{"$f":"E617*F617","v":0}]
[null,"C2.3.8.2(b)","Connection length (state length in metres) ","number (No.)",null,null,{"$f":"E618*F618","v":0}]
[null,"C2.3.8.2(c)","… etc. (insert additional items as required)","number (No.)",null,null,{"$f":"E619*F619","v":0}]
[null,"C2.3.8.3","Erf connections to sewer manholes"]
[null,"C2.3.8.3(a)","… (state type, depth range, etc.)","Sum",null,null,{"$f":"E621*F621","v":0}]
[null,"C2.3.8.3(b)","… (state type, depth range, etc.)","Sum",null,null,{"$f":"E622*F622","v":0}]
[null,"C2.3.8.4","Connecting sewers to existing manholes "]
[null,"C2.3.8.4(a)","… (state position, specification and drawing reference etc.)","Sum",null,null,{"$f":"E624*F624","v":0}]
[null,"C2.3.8.4(b)","… (state position, specification and drawing reference etc.)","Sum",null,null,{"$f":"E625*F625","v":0}]
[null,"C2.3.8.4(c)","… etc. (insert additional items as required)","Sum",null,null,{"$f":"E626*F626","v":0}]
[null,"C2.3.8.5","Breaking into an existing sewer and building a new manhole "]
[null,"C2.3.8.5(a)","… (state position, specification and drawing reference etc.)","Sum",null,null,{"$f":"E628*F628","v":0}]
[null,"C2.3.8.5(b)","… (state position, specification and drawing reference etc.)","Sum",null,null,{"$f":"E629*F629","v":0}]
[null,"C2.3.8.5(c)","… etc. (insert additional items as required)","Sum",null,null,{"$f":"E630*F630","v":0}]
[null,"C2.3.9","Raising and lowering existing sewer manholes"]
[null,"C2.3.9.1","Raising manholes "]
[null,"C2.3.9.1(a)","… (state manhole type and drawing reference and height raised)","number (No.)",null,null,{"$f":"E633*F633","v":0}]
[null,"C2.3.9.1(b)","… (state manhole type and drawing reference and height raised)","number (No.)",null,null,{"$f":"E634*F634","v":0}]
[null,"C2.3.9.2","Lowering manholes "]
[null,"C2.3.9.2(a)","… (state manhole type and drawing reference and height lowered)","number (No.)",null,null,{"$f":"E636*F636","v":0}]
[null,"C2.3.9.2(b)","… (state manhole type and drawing reference and height lowered)","number (No.)",null,null,{"$f":"E637*F637","v":0}]
[null,"C2.3.10","Testing of sewer manholes  ","number (No.)",null,null,{"$f":"E638*F638","v":0}]
[null,"C2.3.11","CCTV camera inspections "]
[null,"C2.3.11.1","… (state pipe diameter)","metre (m)",null,null,{"$f":"E640*F640","v":0}]
[null,"C2.3.11.2","… (state pipe diameter)","metre (m)",null,null,0]
[null,"C2.3.12","… (Pay items C2.3.12 to C2.3.20 have been deliberately left for use for additional contract specific sewer related pay items inserted via the Contract Documentation)",{"$nulls":3},0]
[null,"C2.3.13",{"$nulls":4},0]
[null,"C2.3.14",{"$nulls":4},0]
[null,"C2.3.15",{"$nulls":4},0]
[null,"C2.3.16",{"$nulls":4},0]
[null,"C2.3.17",{"$nulls":4},0]
[null,"C2.3.18",{"$nulls":4},0]
[null,"C2.3.19",{"$nulls":4},0]
[null,"C2.3.20",{"$nulls":4},0]
[null,"C2.3.21","Supply and lay water mains complete with couplings"]
[null,"C2.3.21.1","… (state for each water main the pipe material type, class, coupling type and the class of bedding etc.)"]
[null,"C2.3.21.1(a)","… (state diameter)","metre (m)",null,null,{"$f":"E653*F653","v":0}]
[null,"C2.3.21.1(b)","… (state diameter)","metre (m)",null,null,{"$f":"E654*F654","v":0}]
[null,"C2.3.21.2","… (state for each water main the pipe material type, class, coupling type and the class of bedding etc.)"]
[null,"C2.3.21.2(a)","… (state diameter)","metre (m)",null,null,{"$f":"E656*F656","v":0}]
[null,"C2.3.21.2(b)","… (state diameter)","metre (m)",null,null,{"$f":"E657*F657","v":0}]
[null,"C2.3.21.3","… etc. (insert additional items as required)",{"$nulls":3},{"$f":"E658*F658","v":0}]
[null,"C2.3.22","Extra over item C2.3.21 for supplying and fixing water main fittings or specials complete with couplings "]
[null,"C2.3.22.1","… (state for each water main fitting or special the type, class etc.)"]
[null,"C2.3.22.1(a)","… (state diameter)","number (No.)",null,null,{"$f":"E661*F661","v":0}]
[null,"C2.3.22.1(b)","… (state diameter)","number (No.)",null,null,{"$f":"E662*F662","v":0}]
[null,"C2.3.22.2","… (state for each water main fitting or special the type, class etc.)"]
[null,"C2.3.22.2(a)","… (state diameter)","number (No.)",null,null,{"$f":"E664*F664","v":0}]
[null,"C2.3.22.2(b)","… (state diameter)","number (No.)",null,null,{"$f":"E665*F665","v":0}]
[null,"C2.3.22.3","… etc. (insert additional items as required)",{"$nulls":3},{"$f":"E666*F666","v":0}]
[null,"C2.3.23","Extra over item C2.3.21 for supplying and fixing water main valves"]
[null,"C2.3.23.1","… (state for each water main valve the type, class etc.)"]
[null,"C2.3.23.1(a)","… (state diameter)","number (No.)",null,null,{"$f":"E669*F669","v":0}]
[null,"C2.3.23.1(b)","… (state diameter)","number (No.)",null,null,{"$f":"E670*F670","v":0}]
[null,"C2.3.23.2","... (state for each water main valve the type, class etc.)"]
[null,"C2.3.23.2(a)","… (state diameter)","number (No.)",null,null,{"$f":"E672*F672","v":0}]
[null,"C2.3.23.2(b)","… (state diameter)","number (No.)",null,null,{"$f":"E673*F673","v":0}]
[null,"C2.3.23.3","… etc. (insert additional items as required)",{"$nulls":3},{"$f":"E674*F674","v":0}]
[null,"C2.3.24","Extra over item C2.3.21 for cutting of pipes and the supplying and fixing of extra couplings"]
[null,"C2.3.24.1","… (state for each water main the pipe material type and coupling type)"]
[null,"C2.3.24.1(a)","… (state diameter)","number (No.)",null,null,{"$f":"E677*F677","v":0}]
[null,"C2.3.24.1(b)","… (state diameter)","number (No.)",null,null,{"$f":"E678*F678","v":0}]
[null,"C2.3.24.2","… (state for each water main the pipe material type and coupling type)"]
[null,"C2.3.24.2(a)","… (state diameter)","number (No.)",null,null,{"$f":"E680*F680","v":0}]
[null,"C2.3.24.2(b)","… (state diameter)","number (No.)",null,null,{"$f":"E681*F681","v":0}]
[null,"C2.3.24.3","… etc. (insert additional items as required)",{"$nulls":3},{"$f":"E682*F682","v":0}]
[null,"C2.3.25","Extra over items C2.3.21, C2.3.22 and C2.3.23 for supplying and installing joints with machined collars and special couplings "]
[null,"C2.3.25.1","… (state for each water main the pipe collar and special coupling type)"]
[null,"C2.3.25.1(a)","… (state diameter)","number (No.)",null,null,{"$f":"E685*F685","v":0}]
[null,"C2.3.25.1(b)","… (state diameter)","number (No.)",null,null,{"$f":"E686*F686","v":0}]
[null,"C2.3.25.2","… (state for each water main the pipe collar and special coupling type)"]
[null,"C2.3.25.2(a)","… (state diameter)","number (No.)",null,null,{"$f":"E688*F688","v":0}]
[null,"C2.3.25.2(b)","… (state diameter)","number (No.)",null,null,{"$f":"E689*F689","v":0}]
[null,"C2.3.25.3","… etc. (insert additional items as required)",{"$nulls":3},{"$f":"E690*F690","v":0}]
[null,"C2.3.26","Supplying and installing pipes, specials and valves on short pipe runs"]
[null,"C2.3.26.1","… (state for each short run water main the pipe material type, class and class of bedding etc.)"]
[null,"C2.3.26.1(a)","… (state pipe diameter and length)","metre (m)",null,null,{"$f":"E693*F693","v":0}]
[null,"C2.3.26.1(b)","… (state pipe diameter and length)","metre (m)",null,null,{"$f":"E694*F694","v":0}]
[null,"C2.3.26.2","… (state for each short run water main the fitting, bend or special type, class etc.)"]
[null,"C2.3.26.2(a)","… (state diameter)","number (No.)",null,null,{"$f":"E696*F696","v":0}]
[null,"C2.3.26.2(b)","… (state diameter)","number (No.)",null,null,{"$f":"E697*F697","v":0}]
[null,"C2.3.26.3","… etc. (insert additional items as required)",{"$nulls":3},{"$f":"E698*F698","v":0}]
[null,"C2.3.27","Extra over item C2.3.21 for encasing (wrapping) joints "]
[null,"C2.3.27.1","… (state for each water main the number of joints to be encased (wrapped))"]
[null,"C2.3.27.1(a)","… (state diameter)","number (No.)",null,null,{"$f":"E701*F701","v":0}]
[null,"C2.3.27.1(b)","… (state diameter)","number (No.)",null,null,{"$f":"E702*F702","v":0}]
[null,"C2.3.28","Installation of hydrants and water meters "]
[null,"C2.3.28.1","… (describe hydrant type)","number (No.)",null,null,{"$f":"E704*F704","v":0}]
[null,"C2.3.28.2","… (describe water meter type)","number (No.)",null,null,{"$f":"E705*F705","v":0}]
[null,"C2.3.28.3","… etc. (insert additional items as required)","number (No.)",null,null,{"$f":"E706*F706","v":0}]
[null,"C2.3.29","Bedding for water mains (Class B and C) and fill blanket compacted to 90% of MDD (100% for sand)"]
[null,"C2.3.29.1","Bedding using selected granular material"]
[null,"C2.3.29.1(a)","From the excavated trench material","cubic metre (m3)",null,null,{"$f":"E709*F709","v":0}]
[null,"C2.3.29.1(b)","From other excavations on Site","cubic metre (m3)",null,null,{"$f":"E710*F710","v":0}]
[null,"C2.3.29.1(c)","From approved borrow areas","cubic metre (m3)",null,null,{"$f":"E711*F711","v":0}]
[null,"C2.3.29.1(d)","From sources provided by the Contractor","cubic metre (m3)",null,null,{"$f":"E712*F712","v":0}]
[null,"C2.3.29.1(e)","From commercial sources","cubic metre (m3)",null,null,{"$f":"E713*F713","v":0}]
[null,"C2.3.29.2","Selected fill blanket material"]
[null,"C2.3.29.2(a)","From the excavated trench material","cubic metre (m3)",null,null,{"$f":"E715*F715","v":0}]
[null,"C2.3.29.2(b)","From other excavations on Site","cubic metre (m3)",null,null,0]
[null,"C2.3.29.2(c)","From approved borrow areas","cubic metre (m3)",null,null,0]
[null,"C2.3.29.2(d)","From sources provided by the Contractor","cubic metre (m3)",null,null,0]
[null,"C2.3.29.2(e)","From commercial sources","cubic metre (m3)",null,null,0]
[null,"C2.3.29.3","Extra over items C2.3.29.1(a) to C2.3.29.1(c) and C2.3.29.2(a) to C2.3.29.2(c) for screening material    ","cubic metre (m3)",null,null,0]
[null,"C2.3.30","Concrete for bedding (Class A) and encasement for water mains"]
[null,"C2.3.30.1","Concrete (Class A) bedding (state class of concrete)","cubic metre (m3)",null,null,{"$f":"E722*F722","v":0}]
[null,"C2.3.30.2","Concrete encasement (state class of concrete) ","cubic metre (m3)",null,null,{"$f":"E723*F723","v":0}]
[null,"C2.3.31","Manholes, valve and hydrant chambers etc. for water mains"]
[null,"C2.3.31.1","Manholes (state type and drawing references etc.) "]
[null,"C2.3.31.1(a)","… (state pipe size and depth range)","number (No.)",null,null,{"$f":"E726*F726","v":0}]
[null,"C2.3.31.1(b)","… (state pipe size and depth range)","number (No.)",null,null,{"$f":"E727*F727","v":0}]
[null,"C2.3.31.2","Valve chambers (state valve type (gate valve, single or double air valve etc.) and drawing references etc."]
[null,"C2.3.31.2(a)","… (state pipe size and depth range)","number (No.)",null,null,{"$f":"E729*F729","v":0}]
[null,"C2.3.31.2(b)","… (state pipe size and depth range)","number (No.)",null,null,{"$f":"E730*F730","v":0}]
[null,"C2.3.31.3","Hydrant chambers (state type etc. and drawing references etc.) "]
[null,"C2.3.31.3(a)","… (state pipe size and depth range)","number (No.)",null,null,{"$f":"E732*F732","v":0}]
[null,"C2.3.31.3(b)","… (state pipe size and depth range)","number (No.)",null,null,{"$f":"E733*F733","v":0}]
[null,"C2.3.31.4","Other structures (state type etc. and drawing reference etc.)"]
[null,"C2.3.31.4(a)","… (state pipe size and depth range)","number (No.)",null,null,{"$f":"E735*F735","v":0}]
[null,"C2.3.31.4(b)","… (state pipe size and depth range)","number (No.)",null,null,{"$f":"E736*F736","v":0}]
[null,"C2.3.32","Covers and frames for water main manholes, valve and hydrant chambers and other structures"]
[null,"C2.3.32.1","… (describe manhole or chamber and state type of cover and frame)","number (No.)",null,null,{"$f":"E738*F738","v":0}]
[null,"C2.3.32.2","… (describe manhole or chamber and state type of cover and frame)","number (No.)",null,null,{"$f":"E739*F739","v":0}]
[null,"C2.3.32.3","… (describe manhole or chamber and state type of cover and frame)","number (No.)",null,null,{"$f":"E740*F740","v":0}]
[null,"C2.3.32.4","… etc. (insert additional items as required)","number (No.)",null,null,{"$f":"E741*F741","v":0}]
[null,"C2.3.33","Water main accessories (anchor or thrust blocks, pedestals or marker posts etc.)"]
[null,"C2.3.33.1","Anchor or thrust blocks (state type and drawing reference) ","number (No.)",null,null,{"$f":"E743*F743","v":0}]
[null,"C2.3.33.2","Anchor or thrust blocks (state type and drawing reference)","cubic metre (m3)",null,null,{"$f":"E744*F744","v":0}]
[null,"C2.3.33.3","Pedestals (state type and drawing reference)","number (No.)",null,null,{"$f":"E745*F745","v":0}]
[null,"C2.3.33.4","Pedestals (state type and drawing reference)","cubic metre (m3)",null,null,{"$f":"E746*F746","v":0}]
[null,"C2.3.33.5","Marker posts or blocks (state type and drawing reference) ","number (No.)",null,null,{"$f":"E747*F747","v":0}]
[null,"C2.3.33.6","Other accessories"]
[null,"C2.3.33.6(a)","… (state type)","number (No.)",null,null,{"$f":"E749*F749","v":0}]
[null,"C2.3.33.6(b)","… (state type)","number (No.)",null,null,{"$f":"E750*F750","v":0}]
[null,"C2.3.34","Connections to existing water mains "]
[null,"C2.3.34.1","… (state connection details)","number (No.)",null,null,{"$f":"E752*F752","v":0}]
[null,"C2.3.34.2","… (state connection details)","number (No.)",null,null,{"$f":"E753*F753","v":0}]
[null,"C2.3.34.3","… (state connection details)","number (No.)",null,null,{"$f":"E754*F754","v":0}]
[null,"C2.3.34.4","… etc. (insert additional items as required)","number (No.)",null,null,{"$f":"E755*F755","v":0}]
[null,"C2.3.35","Raising and lowering existing manholes or valve or hydrant chambers"]
[null,"C2.3.35.1","Raising manholes or valve of hydrant chambers"]
[null,"C2.3.35.1(a)","… (state manhole type and drawing reference and height raised)"," ",null,null,{"$f":"E758*F758","v":0}]
[null,"C2.3.35.1(b)","… (state manhole type and drawing reference and height raised)","number (No.)",null,null,{"$f":"E759*F759","v":0}]
[null,"C2.3.35.2","Lowering manholes or valve or hydrant chambers"]
[null,"C2.3.35.2(a)","… (state type and drawing reference and height lowered)","number (No.)",null,null,{"$f":"E761*F761","v":0}]
[null,"C2.3.35.2(b)","… (state type and drawing reference and height lowered)","number (No.)",null,null,{"$f":"E762*F762","v":0}]
[null,"C2.3.36","Disinfection of potable water pipelines "]
[null,"C2.3.36.1","… (state diameter of pipe disinfected)","metre (m)",null,null,{"$f":"E764*F764","v":0}]
[null,"C2.3.36.2","… (state diameter of pipe disinfected)","metre (m)",null,null,{"$f":"E765*F765","v":0}]
[null,"C2.3.36.3","… etc. (insert additional items as required)","metre (m)",null,null,{"$f":"E766*F766","v":0}]
[]
[]
[]
[null,"C2.3","TOTAL CARRIED FORWARD TO SUMMARY",{"$nulls":3},{"$f":"SUM(G550:G769)","v":0}]
[]
[null,"C2.4","ENERGY AND OTHER SERVICES"]
[null,"C2.4.1","Bedding for electric power cables using material:"]
[null,"C2.4.1.1","Selected from the excavated trench material","cubic metre (m3)",null,null,{"$f":"E774*F774","v":0}]
[null,"C2.4.1.2","Selected from other excavations on site","cubic metre (m3)",null,null,{"$f":"E775*F775","v":0}]
[null,"C2.4.1.3","Selected from approved borrow areas","cubic metre (m3)",null,null,{"$f":"E776*F776","v":0}]
[null,"C2.4.1.4","Selected from sources provided by the Contractor","cubic metre (m3)",null,null,{"$f":"E777*F777","v":0}]
[null,"C2.4.1.5","From commercial sources"]
[null,"C2.4.1.5(a)","Uncrushed material (state material type)","cubic metre (m3)",null,null,{"$f":"E779*F779","v":0}]
[null,"C2.4.1.5(b)","Crushed stone material (state material type)","cubic metre (m3)",null,null,{"$f":"E780*F780","v":0}]
[null,"C2.4.2","Concrete for bedding and encasement for electric power cables "]
[null,"C2.4.2.1","Concrete bedding (Class C16/20-20 concrete)","cubic metre (m3)",null,null,{"$f":"E782*F782","v":0}]
[null,"C2.4.2.2","Concrete encasement of cables (Class C16/20-20 concrete)","cubic metre (m3)",null,null,{"$f":"E783*F783","v":0}]
[null,"C2.4.3","Cable laying accessories (warning tape, protection slabs, markers etc.)"]
[null,"C2.4.3.1","Electrical warning tape (state type)","metre (m)",null,null,{"$f":"E785*F785","v":0}]
[null,"C2.4.3.2","Concrete slab protection (state type and dimensions etc.) ","metre (m)",null,null,{"$f":"E786*F786","v":0}]
[null,"C2.4.3.3","Cable markers (state type)","number (No.)",null,null,{"$f":"E787*F787","v":0}]
[null,"C2.4.3.4","Other accessories"]
[null,"C2.4.3.4(a)","… (state type)","metre (m)",null,null,{"$f":"E789*F789","v":0}]
[null,"C2.4.3.4(b)","… (state type)","number (No.)",null,null,{"$f":"E790*F790","v":0}]
[]
[]
[]
[null,"C2.4","TOTAL CARRIED FORWARD TO SUMMARY",{"$nulls":3},{"$f":"SUM(G774:G793)","v":0}]
[]
[null,"C3.1","DRAINS"]
[null,"C3.1.1","Excavation for open drains:"]
[null,"C3.1.1.1","Excavating all material situated within the following depth ranges below the surface level using conventional methods:"]
[null,"C3.1.1.1(a)","0m to 1,5m","cubic metre (m3)",null,null,{"$f":"E799*F799","v":0}]
[null,"C3.1.1.1(b)","Exceeding 1,5m and up to 3,0m","cubic metre (m3)",null,null,0]
[null,"C3.1.1.1(c)","Etc. in increments of 1,5m","cubic metre (m3)",null,null,0]
[null,"C3.1.1.2","Extra over sub-item C3.1.1.1 for excavation in hard and boulder material, irrespective of depth","cubic metre (m3)",null,null,0]
[null,"C3.1.1.3","Extra over sub-item C3.1.1.1 for excavation in stabilised existing road layers, irrespective of depth","cubic metre (m3)",null,null,0]
[null,"C3.1.1.4","Excavating soft material situated 0m to 1,5m below the surface level using labour enhanced construction methods","cubic metre (m3)",null,null,0]
[null,"C3.1.1.5","Excavating intermediate material situated 0m to 1,5m below the surface level using labour enhanced construction methods","cubic metre (m3)",null,null,0]
[null,"C3.1.2","Clearing, shaping and disposal of accumulated sediment in existing unlined open drains "]
[null,"C3.1.2.1","Using conventional methods","cubic metre (m3)",null,null,{"$f":"E807*F807","v":0}]
[null,"C3.1.2.2","Using labour enhanced construction methods","cubic metre (m3)",null,null,{"$f":"E808*F808","v":0}]
[null,"C3.1.3","Excavation, clearing and disposal of accumulated sediment in existing lined drains and drainage systems"]
[null,"C3.1.3.1","Using conventional methods (up to 1,5m):"]
[null,"C3.1.3.1(a)","Manholes and inlet and outlet structures","cubic metre (m3)",75,null,{"$f":"E811*F811","v":0}]
[null,"C3.1.3.1(b)","Culvert barrels","cubic metre (m3)",70,null,{"$f":"E812*F812","v":0}]
[null,"C3.1.3.1(c)","Concrete or other lined side drains","cubic metre (m3)",null,null,{"$f":"E813*F813","v":0}]
[null,"C3.1.3.2","Using conventional methods (in excess of 1,5m):"]
[null,"C3.1.3.2(a)","Manholes and inlet and outlet structures","cubic metre (m3)",75,null,{"$f":"E815*F815","v":0}]
[null,"C3.1.3.2(b)","Culvert barrels","cubic metre (m3)",40,null,{"$f":"E816*F816","v":0}]
[null,"C3.1.3.2(c)","Concrete or other lined side drains","cubic metre (m3)",null,null,{"$f":"E817*F817","v":0}]
[null,"C3.1.3.3","Using labour enhanced construction methods:"]
[null,"C3.1.3.3(a)","Manholes and inlet and outlet structures","cubic metre (m3)",50,null,{"$f":"E819*F819","v":0}]
[null,"C3.1.3.3(b)","Culvert barrels","cubic metre (m3)",50,null,{"$f":"E820*F820","v":0}]
[null,"C3.1.3.3(c)","Concrete or other lined side drains","cubic metre (m3)",14400,null,{"$f":"E821*F821","v":0}]
[null,"C3.1.4","Excavation and disposal of material for subsoil drainage systems:"]
[null,"C3.1.4.1","Excavating in all material situated within the following depth ranges below the surface:"]
[null,"C3.1.4.1(a)","0m to 1,5m","cubic metre (m3)",null,null,{"$f":"E824*F824","v":0}]
[null,"C3.1.4.1(b)","Exceeding 1,5m and up to 3,0m","cubic metre (m3)",null,null,0]
[null,"C3.1.4.1(c)","Etc. in increments of 1,5m","cubic metre (m3)",null,null,0]
[null,"C3.1.4.2","Excavating soft material situated within 0m to 1,5m below the surface level using labour enhanced construction methods","cubic metre (m3)",null,null,0]
[null,"C3.1.4.3","Excavating intermediate material situated within 0m to 1,5m below the surface level using labour enhanced construction methods","cubic metre (m3)",null,null,0]
[null,"C3.1.4.4","Extra over sub-item C3.1.4.1 for excavation in hard and boulder material, irrespective of depth","cubic metre (m3)",null,null,0]
[null,"C3.1.4.5","Extra over sub-item C3.1.4.1 for excavation through stabilised existing road layers","cubic metre (m3)",null,null,0]
[null,"C3.1.4.6","Excavation and disposal of material for composite in-plane fin-drain type drainage systems using a trenching machine:"]
[null,"C3.1.4.6(a)","Trench width of … and depth of ....","metre (m)",null,null,{"$f":"E832*F832","v":0}]
[null,"C3.1.4.6(b)","Etc. for width of … and depth of …","metre (m)",null,null,{"$f":"E833*F833","v":0}]
[null,"C3.1.5","Impermeable backfilling to subsoil drainage systems"]
[null,"C3.1.5.1","Un-stabilised natural gravel obtained from approved sources on the site","cubic metre (m3)",null,null,{"$f":"E835*F835","v":0}]
[null,"PC3.1.5.2","G5A material obtained from commercial sources","cubic metre (m3)",null,null,{"$f":"E836*F836","v":0}]
[null,"C3.1.5.3","Extra over items C3.1.5.1 and C3.1.5.2 for stabilisation with 4,0% CEM II (32.5) cement","cubic metre (m3)",null,null,{"$f":"E837*F837","v":0}]
[null,"C3.1.6","Construction of banks and dykes:"]
[null,"C3.1.6.1","Banks and dykes using conventional methods","cubic metre (m3)",null,null,{"$f":"E839*F839","v":0}]
[null,"C3.1.6.2","Banks and dykes using labour enhanced construction methods","cubic metre (m3)",null,null,{"$f":"E840*F840","v":0}]
[null,"C3.1.7","Natural permeable material in subsoil drainage systems (approved crushed stone):"]
[null,"C3.1.7.1","Crushed stone obtained from approved sources on the site (state grade and size)","cubic metre (m3)",null,null,{"$f":"E842*F842","v":0}]
[null,"C3.1.7.2","Crushed stone obtained from commercial sources (state grade)","cubic metre (m3)",null,null,{"$f":"E843*F843","v":0}]
[null,"C3.1.8","Natural permeable material in subsoil drainage systems (approved natural sand):"]
[null,"C3.1.8.1","Natural sand obtained from approved sources (state grade & source)","cubic metre (m3)",null,null,{"$f":"E845*F845","v":0}]
[null,"C3.1.8.2","Natural sand from commercial sources (state grade)","cubic metre (m3)",null,null,{"$f":"E846*F846","v":0}]
[null,"C3.1.9","Pipes in subsoil drainage systems:"]
[null,"C3.1.9.1","U-PVC pipes and fittings, normal duty, complete with couplings (state size and whether or not perforated or slotted)","metre (m)",null,null,{"$f":"E848*F848","v":0}]
[null,"C3.1.10","Polymer film sheeting or similar approved material, for lining subsoil drainage systems:"]
[null,"C3.1.10.1","0,15mm thick","square metre (m2)",null,null,{"$f":"E850*F850","v":0}]
[null,"C3.1.10.2","0,25mm thick","square metre (m2)",null,null,{"$f":"E851*F851","v":0}]
[null,"C3.1.11","Geotextiles (indicate type, grade, etc.)","square metre (m2)",null,null,{"$f":"E852*F852","v":0}]
[null,"C3.1.12","Composite drainage systems"]
[null,"C3.1.12.1","In-plane drainage systems (state size, type of core and type grade, etc. of geotextile)","metre (m)",null,null,{"$f":"E854*F854","v":0}]
[null,"C3.1.12.2","Vertical subsoil strip drainage systems (state size, type of core and type grade, etc. of geotextile)","metre (m)",null,null,{"$f":"E855*F855","v":0}]
[null,"C3.1.12.3","Panel drainage systems (state size, type of core and type grade, etc. of geotextile)","metre (m)",null,null,{"$f":"E856*F856","v":0}]
[null,"C3.1.12.4","Alternative drainage systems as detailed in Contract Documentation (state size, type and other details)","metre (m)",null,null,{"$f":"E857*F857","v":0}]
[null,"C3.1.13","Concrete outlet structures, manhole boxes, junction boxes and cleaning eyes for subsoil drainage systems:"]
[null,"C3.1.13.1","Outlet structures (specify each type and drawing reference)","number (No.)",null,null,{"$f":"E859*F859","v":0}]
[null,"C3.1.13.2","Inspection boxes (specify each type and drawing reference)","number (No.)",null,null,{"$f":"E860*F860","v":0}]
[null,"C3.1.13.3","Junction boxes (specify each type and drawing reference)","number (No.)",null,null,{"$f":"E861*F861","v":0}]
[null,"C3.1.13.4","Cleaning eyes (specify each type and drawing reference)","number (No.)",null,null,{"$f":"E862*F862","v":0}]
[null,"C3.1.14","Caps for subsoil drain pipes:"]
[null,"C3.1.14.1","Concrete caps","number (No.)",null,null,{"$f":"E864*F864","v":0}]
[null,"C3.1.14.2","Cast metal iron caps","number (No.)",null,null,{"$f":"E865*F865","v":0}]
[null,"C3.1.14.3","Other (Glass fibre reinforced, PVC etc.) (specify)","number (No.)",null,null,{"$f":"E866*F866","v":0}]
[null,"C3.1.15","Repairing or replacing existing drainage systems","provisional sum"]
[null,"C3.1.16","Loading and hauling of material in excess of 1,0 km","cubic metre - kilometre (m3 - km)",null,null,{"$f":"E868*F868","v":0}]
[null,"C3.1.17","Backfilling existing eroded side drains","cubic metre (m3)",null,null,{"$f":"E869*F869","v":0}]
[null,"C3.1.18","Backfilling of drains with selected material compacted to 93% of MDD prior to construction of concrete lining and/or stone pitched lining","cubic metre (m3)",null,null,{"$f":"E870*F870","v":0}]
[null,"C3.1.19","Exposing of existing subsoil drains","cubic metre (m3)",null,null,{"$f":"E871*F871","v":0}]
[null,"C3.1.20","Breaking into existing drainage structures and install subsoil drain pipe","number (No.)",null,null,{"$f":"E872*F872","v":0}]
[null,"C3.1.21","Clearing of existing subsoil drains"]
[null,"C3.1.21.1","Cleaning rod, brush and flushing","metre (m)",null,null,{"$f":"E874*F874","v":0}]
[null,"C3.1.21.2","Hydro jetting","metre (m)",null,null,{"$f":"E875*F875","v":0}]
[null,"C3.1.22","Test flushing of subsoil drain pipe systems","number (No.)",null,null,{"$f":"E876*F876","v":0}]
[null,"C3.1.23","Subsoil drain outlet marker (type or drawing specified)","number (No.)",null,null,{"$f":"E877*F877","v":0}]
[null,"C3.1.24","Submission of as built drawings by the Contractor","provisional sum"]
[]
[]
[]
[null,"C3.1","TOTAL CARRIED FORWARD TO SUMMARY",{"$nulls":3},{"$f":"SUM(G799:G881)","v":0}]
[]
[null,"C3.2"]
[null,"C3.2.1","Excavation for culvert structures:"]
[null,"C3.2.1.1","Excavating in all material situated within the following depth ranges below the surface level:"]
[null,"C3.2.1.1(a)","0m to 1,5m","cubic metre (m3)",null,null,{"$f":"E887*F887","v":0}]
[null,"C3.2.1.1(b)","Exceeding 1,5m and up to 3,0m","cubic metre (m3)",null,null,0]
[null,"C3.2.1.1(c)","Etc. in increments of 1,5m","cubic metre (m3)",null,null,0]
[null,"C3.2.1.2","Excavating soft material 0m to 1,5m below the surface level using labour enhanced construction methods, or instructed by hand under Clause A3.2.7.2(d)","cubic metre (m3)",null,null,0]
[null,"C3.2.1.3","Excavating intermediate material 0m to 1,5m below the surface level using labour enhanced construction methods, or instructed by hand under Clause A3.2.7.2(d)","cubic metre (m3)",null,null,0]
[null,"C3.2.1.4","Extra over sub-item C3.2.1.1 for excavation in hard or boulder material, irrespective of depth","cubic metre (m3)",null,null,0]
[null,"C3.2.1.5","Extra over sub-item C3.2.1.1 for excavation in stabilised existing road layers, irrespective of depth","cubic metre (m3)",null,null,0]
[null,"PC3.2.2","Backfilling"]
[null,"C3.2.2.1","Using the excavated material","cubic metre (m3)",null,null,{"$f":"E895*F895","v":0}]
[null,"C3.2.2.2","Using imported selected material:"]
[null,"C3.2.2.2(a)","From commercial sources (State type)","cubic metre (m3)",null,null,{"$f":"E897*F897","v":0}]
[null,"C3.2.2.2(b)","From sources on site (State type)","cubic metre (m3)",null,null,{"$f":"E898*F898","v":0}]
[null,"C3.2.2.3","Extra over sub-items C3.2.2.1 and C3.2.2.2 for soil cement backfilling "]
[null,"C3.2.2.3(a)","With wet mixture (specify cement content) ","cubic metre (m3)",null,null,{"$f":"E900*F900","v":0}]
[null,"C3.2.2.3(b)","With dry mixture (specify cement content) ","cubic metre (m3)",null,null,{"$f":"E901*F901","v":0}]
[null,"C3.2.2.3(c)","Variation in cement","kilogram (kg)",null,null,{"$f":"E902*F902","v":0}]
[null,"C3.2.2.4","Extra over sub-items C3.2.2.1 and C3.2.2.2 for screed layers (class of concrete indicated)","cubic metre (m3)",null,null,{"$f":"E903*F903","v":0}]
[null,"C3.2.3","Concrete pipe culverts:"]
[null,"C3.2.3.1","On Class A bedding (type and diameter indicated)","metre (m)",null,null,{"$f":"E905*F905","v":0}]
[null,"C3.2.3.2","On Class B bedding (type and diameter indicated)","metre (m)",null,null,{"$f":"E906*F906","v":0}]
[null,"C3.2.3.3","On Class C bedding (type and diameter indicated)","metre (m)",null,null,{"$f":"E907*F907","v":0}]
[null,"C3.2.3.4","On Class D bedding (type and diameter indicated)","metre (m)",null,null,{"$f":"E908*F908","v":0}]
[null,"C3.2.3.5","Provision of skew ends of pipe culvert (type and diameter indicated)","number (No.)",null,null,{"$f":"E909*F909","v":0}]
[null,"C3.2.4","Metal and U-PVC culverts:"]
[null,"C3.2.4.1","… (size, wall thickness and type indicated)","metre (m)",null,null,{"$f":"E911*F911","v":0}]
[null,"C3.2.4.2","Provision of skew or bevelled ends for metal culverts","number (No.)",null,null,{"$f":"E912*F912","v":0}]
[null,"C3.2.4.3","Anchor bolts (size and type indicated)","number (No.)",null,null,{"$f":"E913*F913","v":0}]
[null,"C3.2.4.4","Protective coating to metal culverts (culvert size; inside/outside/ both sides; coating type & thickness indicated)","metre (m)",null,null,{"$f":"E914*F914","v":0}]
[null,"C3.2.5","Rectangular culverts with prefabricated elements:"]
[null,"C3.2.5.1","Prefabricated portal culverts; wall and roof combination (size and type indicated)","metre (m)",null,null,{"$f":"E916*F916","v":0}]
[null,"C3.2.5.2","Prefabricated floor slabs (size and type indicated)","metre (m)",null,null,{"$f":"E917*F917","v":0}]
[null,"C3.2.5.3","Prefabricated roof slabs (size and type indicated)","metre (m)",null,null,{"$f":"E918*F918","v":0}]
[null,"C3.2.6","Extra over items C3.2.3, C3.2.4 and C3.2.5 for constructing inclined culverts","metre (m)",null,null,{"$f":"E919*F919","v":0}]
[null,"C3.2.7","Cast in situ concrete and formwork:"]
[null,"C3.2.7.1","In Class A bedding, screeds, concrete backfill and the encasing for pipes, including formwork (class of concrete indicated)","cubic metre (m3)",null,null,{"$f":"E921*F921","v":0}]
[null,"C3.2.7.2","In complete in situ floor slabs for rectangular culverts, manholes and catchpits including formwork, joints and Class U2 surface finish (class of concrete indicated) (installed at a standard depth of 1,0m)","cubic metre (m3)",null,null,0]
[null,"C3.2.7.3","In walls, excluding formwork but including Class U2 surface finish (class of concrete indicated)","cubic metre (m3)",null,null,0]
[null,"C3.2.7.4","In roof slabs for rectangular culverts, excluding formwork but including Class U2 surfacing finish and joints (class of concrete indicated)","cubic metre (m3)",null,null,0]
[null,"C3.2.7.5","In inlet and outlet structures including kerbs, chutes and downpipes, skewed ends, catchpits, manholes, thrust and anchor blocks, excluding formwork but including Class U2 surfacing finish (class of concrete indicated)","cubic metre (m3)",null,null,0]
[null,"C3.2.7.6","Formwork of concrete under items C3.2.7.3 to 5 above (Class of finish indicated)","square metre (m2)",null,null,0]
[null,"C3.2.7.7","Concrete linings for the inverts of metal culverts, including formwork and Class U2 surface finish (class of concrete indicated)","cubic metre (m3)",null,null,0]
[null,"C3.2.8","Concrete backfill or encasement for culverts (Type and Class of concrete indicated)","cubic metre (m3)",null,null,0]
[null,"C3.2.9","Prefabricated concrete inlets and outlets to culverts (size and type indicated)","number (No.)",null,null,0]
[null,"C3.2.10","Reinforcement:"]
[null,"C3.2.10.1","Mild steel bars","ton (t)",null,null,{"$f":"E931*F931","v":0}]
[null,"C3.2.10.2","High-tensile steel bars","ton (t)",null,null,{"$f":"E932*F932","v":0}]
[null,"C3.2.10.3","Welded steel fabric","kilogram (kg)",null,null,{"$f":"E933*F933","v":0}]
[null,"C3.2.10.4","Other material (specify)","kilogram (kg)",null,null,{"$f":"E934*F934","v":0}]
[null,"C3.2.11","Anchoring of reinforcing steel: \nReinforcing (type, bar diameter) into formed holes (hole diameter and depth stated) in (description of member) ","number (No.)",null,null,{"$f":"E935*F935","v":0}]
[null,"C3.2.12","Demolition of concrete members or elements:"]
[null,"C3.2.12.1","Full member or element (location and description) ","cubic metre (m3)",null,null,{"$f":"E937*F937","v":0}]
[null,"C3.2.12.2","Partial member or element (location and description) ","cubic metre (m3)",null,null,{"$f":"E938*F938","v":0}]
[null,"PC3.2.13","Removing and re-laying existing culverts:"]
[null,"C3.2.13.1","Removing and stacking existing culverts for re-use (size and type indicated)","metre (m)",null,null,{"$f":"E940*F940","v":0}]
[null,"C3.2.13.2","Removing and re-laying existing culverts without stacking (size and type of bedding indicated)","metre (m)",null,null,{"$f":"E941*F941","v":0}]
[null,"C3.2.13.3","Re-laying existing culverts from stacking (size and type of bedding indicated)","metre (m)",null,null,{"$f":"E942*F942","v":0}]
[null,"C3.2.14","Protective mastic asphalt coating for corrugated metal culvert units (state whether to be applied by brush or by spray gun)","square metre (m2)",null,null,{"$f":"E943*F943","v":0}]
[null,"C3.2.15","Manholes and catch pits, with prefabricated elements"]
[null,"C3.2.15.1","Prefabricated floors (installed at a standard depth of 1,0m):"]
[null,"C3.2.15.1(a)","… (size and type indicated)","number (No.)",null,null,{"$f":"E946*F946","v":0}]
[null,"C3.2.15.1(b)","… (size and type indicated etc.)","number (No.)",null,null,{"$f":"E947*F947","v":0}]
[null,"C3.2.15.2","Prefabricated roofs:"]
[null,"C3.2.15.2(a)","… (size and type indicated)","number (No.)",null,null,{"$f":"E949*F949","v":0}]
[null,"C3.2.15.2(b)","… (size and type indicated etc.)","number (No.)",null,null,{"$f":"E950*F950","v":0}]
[null,"C3.2.15.3","Prefabricated walls:"]
[null,"C3.2.15.3(a)","… (size and type indicated)","metre (m)",null,null,{"$f":"E952*F952","v":0}]
[null,"C3.2.15.3(b)","… (size and type indicated etc.)","metre (m)",null,null,{"$f":"E953*F953","v":0}]
[null,"C3.2.15.4","Extra over item C3.2.15.1 and C3.2.7.2 for variations in the depths of all types of concrete manholes with prefabricated, or in situ concrete or brickwork wall combinations deeper than 1,0m designated for tendering purposes","metre (m)",null,null,{"$f":"E954*F954","v":0}]
[null,"C3.2.16","Brickwork (Engineering bricks):"]
[null,"C3.2.16.1","115mm thick","square metre (m2)",null,null,{"$f":"E956*F956","v":0}]
[null,"C3.2.16.2","230mm thick","square metre (m2)",null,null,0]
[null,"C3.2.16.3","345mm thick","square metre (m2)",null,null,0]
[null,"C3.2.16.4","… (specify thickness)","square metre (m2)",null,null,0]
[null,"C3.2.17","Plaster","square metre (m2)",null,null,0]
[null,"C3.2.18","Benching","cubic metre (m3)",null,null,0]
[null,"C3.2.19","Accessories"]
[null,"C3.2.19.1","Manhole frames (description and reference to drawing)","number (No.)",null,null,{"$f":"E963*F963","v":0}]
[null,"C3.2.19.2","Inlet grids or covers (description and reference to drawing)","number (No.)",null,null,0]
[null,"C3.2.19.3","Manhole frames (type, load bearing and SANS specification indicated)","number (No.)",null,null,0]
[null,"C3.2.19.4","Manhole covers or gratings (type, load bearing and SANS specification indicated)","number (No.)",null,null,0]
[null,"C3.2.19.5","Inlet channel frames (type, load bearing and SANS specification indicated)","number (No.)",null,null,0]
[null,"C3.2.19.6","Inlet channel gratings (type, load bearing and SANS specification indicated)","number (No.)",null,null,0]
[null,"C3.2.19.7","Step irons (description and SANS specification indicated)","number (No.)",null,null,0]
[null,"C3.2.19.8","… (etc. for other accessories)","number (No.)",null,null,0]
[null,"C3.2.20","Anchors for pipes (description)","number (No.)",null,null,0]
[null,"C3.2.21","Prefabricated reinforced-concrete skew end units for concrete culverts constructed at a skew angle (type and dimensions of unit and class of bedding indicated)","number (No.)",null,null,0]
[null,"C3.2.22","Cutting of concrete pipes (diameter indicated)","number (No.)",null,null,0]
[null,"C3.2.23","Breaking into existing drainage structures and building in pipes or culverts of the following size (pipe diameter and/or culvert size to be stated)","number (No.)",null,null,0]
[null,"C3.2.24","Compaction of bedding for inlets, outlets, manholes and catchpits:"]
[null,"C3.2.24.1","Preparation and compaction of in situ bedding material to 90% of MDD (depth indicated)","cubic metre (m3)",null,null,{"$f":"E976*F976","v":0}]
[null,"C3.2.24.2","Extra-over sub-item C3.2.24.1 for compaction to 93% of MDD (depth indicated)","cubic metre (m3)",null,null,{"$f":"E977*F977","v":0}]
[null,"C3.2.25","Painting of exposed steel bars with two coats of zinc rich primer (Type specified)","litre (ℓ)",null,null,{"$f":"E978*F978","v":0}]
[null,"C3.2.26","Repair with cementitious mortar or concrete (class) to (description) ","litre (ℓ)",null,null,{"$f":"E979*F979","v":0}]
[null,"C3.2.27","Repair with epoxy mortar","litre (ℓ)",null,null,{"$f":"E980*F980","v":0}]
[]
[]
[]
[null,"C3.2","TOTAL CARRIED FORWARD TO SUMMARY",{"$nulls":3},{"$f":"SUM(G887:G983)","v":0}]
[]
[null,"C3.3","CONCRETE KERBING AND CHANNELING, ASPHALT BERMS, CHUTES, DOWNPIPES, AS WELL AS CONCRETE, STONE PITCHED AND GABION LININGS FOR OPEN DRAINS"]
[null,"C3.3.1","Concrete kerbing:"]
[null,"C3.3.1.1","Prefabricated kerbing (description of type of kerb and bedding with reference to drawing)"]
[null,"C3.3.1.1(a)","… (state type of kerb and bedding with reference to drawing)","metre (m)",null,null,{"$f":"E989*F989","v":0}]
[null,"C3.3.1.1(b)","… (etc. for other types)","metre (m)",null,null,{"$f":"E990*F990","v":0}]
[null,"C3.3.1.2","Cast in situ kerbing "]
[null,"C3.3.1.2(a)","… (state type of kerb, class of concrete with reference to drawing)","metre (m)",null,null,{"$f":"E992*F992","v":0}]
[null,"C3.3.1.2(b)","… (etc. for other types)","metre (m)",null,null,{"$f":"E993*F993","v":0}]
[null,"C3.3.2","Concrete kerbing-channeling combination:"]
[null,"C3.3.2.1","Prefabricated kerbing-channeling (description of type of channel and bedding with reference to drawing)"]
[null,"C3.3.2.1(a)","… (state type of kerb and bedding with reference to drawing)","metre (m)",null,null,{"$f":"E996*F996","v":0}]
[null,"C3.3.2.1(b)","… (etc. for other types)","metre (m)",null,null,{"$f":"E997*F997","v":0}]
[null,"C3.3.2.2","Cast in situ kerbing-channeling (description with reference to drawing and class of concrete and finish indicated)"]
[null,"C3.3.2.2(a)","… (state type of kerb and bedding with reference to drawing)","metre (m)",null,null,{"$f":"E999*F999","v":0}]
[null,"C3.3.2.2(b)","… (etc. for other types)","metre (m)",null,null,{"$f":"E1000*F1000","v":0}]
[null,"C3.3.3","Extra over items C3.3.1 and C3.3.2 for concrete kerbing or concrete kerbing and channeling on curves"]
[null,"C3.3.3.1","On curves of radii more than or equal to 5,0m but less than 20m","metre (m)",null,null,{"$f":"E1002*F1002","v":0}]
[null,"C3.3.3.2","On curves with radii more than or equal to 1,0m but less than 5,0m","metre (m)",null,null,{"$f":"E1003*F1003","v":0}]
[null,"C3.3.3.3","On curves with radii less than 1,0m","metre (m)",null,null,{"$f":"E1004*F1004","v":0}]
[null,"C3.3.4","Extra over item C3.3.2 for drop kerbs at pedestrian crossings and driveways","metre (m)",null,null,{"$f":"E1005*F1005","v":0}]
[null,"C3.3.5","Asphalt berms"]
[null,"C3.3.5.1","Asphalt berms placed where there are no vehicle restraint systems (drawing reference indicated)","metre (m)",null,null,{"$f":"E1007*F1007","v":0}]
[null,"C3.3.5.2","Asphalt berms placed at existing vehicle restraint systems (drawing reference indicated)","metre (m)",null,null,{"$f":"E1008*F1008","v":0}]
[null,"C3.3.5.3","Prime coat (type indicated)","square metre (m2)",null,null,{"$f":"E1009*F1009","v":0}]
[null,"C3.3.5.4","Bond coat (type indicated)","square metre (m2)",null,null,{"$f":"E1010*F1010","v":0}]
[null,"PC3.3.6","Chutes (typical designs):"]
[null,"C3.3.6.1","Prefabricated chutes (description of type with reference to drawing)","metre (m)",null,null,{"$f":"E1012*F1012","v":0}]
[null,"C3.3.6.2","Cast in situ concrete chutes (description, with reference to drawing and class of concrete and finish indicated)","metre (m)",null,null,{"$f":"E1013*F1013","v":0}]
[null,"C3.3.6.3","Stone pitched chutes (description with reference to drawing and class of concrete indicated)","metre (m)",null,null,{"$f":"E1014*F1014","v":0}]
[null,"C3.3.7","Cast in situ concrete chutes (measured by components):"]
[null,"C3.3.7.1","Concrete (class indicated)","cubic metre (m3)",null,null,{"$f":"E1016*F1016","v":0}]
[null,"C3.3.7.2","Formwork (surface finish indicated)","square metre (m2)",null,null,{"$f":"E1017*F1017","v":0}]
[null,"C3.3.7.3","Stone pitched chutes"]
[null,"C3.3.7.3(a)","Grouted stone pitching (type of chute indicated)","square metre (m2)",null,null,{"$f":"E1019*F1019","v":0}]
[null,"C3.3.7.3(b)","Grouted stone pitching on a concrete bed (class of concrete and type of chute indicated)","square metre (m2)",null,null,{"$f":"E1020*F1020","v":0}]
[null,"C3.3.8","Linings for open drains:"]
[null,"C3.3.8.1","Cast in situ concrete lining (class of concrete and type of open drain indicated)","cubic metre (m3)",null,null,{"$f":"E1022*F1022","v":0}]
[null,"C3.3.8.2","Class U2 surface finish to cast in situ concrete (type of open drain indicated)","square metre (m2)",null,null,{"$f":"E1023*F1023","v":0}]
[null,"C3.3.8.3","Stone pitched lining (200mm thickness)"]
[null,"C3.3.8.3(a)","Grouted stone pitching (type of open drain indicated)","square metre (m2)",null,null,{"$f":"E1025*F1025","v":0}]
[null,"C3.3.8.3(b)","Grouted stone pitching on a concrete bed (class of concrete and type of open drain indicated)","square metre (m2)",null,null,{"$f":"E1026*F1026","v":0}]
[null,"C3.3.9","Formwork to cast in situ concrete lining for open drains (Class F2 surface finish):"]
[null,"C3.3.9.1","To sides with formwork on the internal face only","square metre (m2)",null,null,{"$f":"E1028*F1028","v":0}]
[null,"C3.3.9.2","To sides with formwork on both internal and external faces (each face measured)","square metre (m2)",null,null,{"$f":"E1029*F1029","v":0}]
[null,"C3.3.9.3","To ends of slabs","square metre (m2)",null,null,{"$f":"E1030*F1030","v":0}]
[null,"C3.3.10","Sealed joints in concrete and stone pitched linings of open drains (description of each type with reference to drawing)","metre (m)",null,null,{"$f":"E1031*F1031","v":0}]
[null,"C3.3.11","Concrete screed or backfill below chutes (thickness and class of concrete indicated)","cubic metre (m3)",null,null,{"$f":"E1032*F1032","v":0}]
[null,"C3.3.12","Reinforcement:"]
[null,"C3.3.12.1","Mild steel bars","ton (t)",null,null,{"$f":"E1034*F1034","v":0}]
[null,"C3.3.12.2","High-tensile steel bars","ton (t)",null,null,0]
[null,"C3.3.12.3","Welded steel fabric","kilogram (kg)",null,null,0]
[null,"C3.3.12.4","Other material (specify)","kilogram (kg)",null,null,0]
[null,"C3.3.13","Polymer film sheeting (thickness specified) for concrete-lined open drains","square metre (m2)",null,null,0]
[null,"C3.3.14","Cutting bituminous surfacing and pavement layers for concrete kerbing, channeling or concrete-lined drains","metre (m)",null,null,0]
[null,"C3.3.15","Energy dissipaters in outlet structures"]
[null,"C3.3.15.1","Precast concrete blocks in outlet structures","number (No.)",72,null,{"$f":"E1041*F1041","v":0}]
[null,"C3.3.15.2","Stones set in outlet structures","square metre (m2)",90,null,{"$f":"E1042*F1042","v":0}]
[null,"C3.3.16","Demolition and removal of existing kerbs and/or channel (specify maximum size)","cubic metre (m3)",null,null,{"$f":"E1043*F1043","v":0}]
[]
[]
[]
[null,"C3.3","TOTAL CARRIED FORWARD TO SUMMARY",{"$nulls":3},{"$f":"SUM(G989:G1046)","v":0}]
[]
[null,"C4.1","BORROW MATERIALS"]
[null,"C4.1.1","Compiling and implementing M&U plans"]
[null,"C4.1.1.1","For borrow pits (list all borrow pits separately)","number (No.)",null,null,{"$f":"E1051*F1051","v":0}]
[null,"C4.1.1.2","For quarries (list all quarries separately)","number (No.)",null,null,{"$f":"E1052*F1052","v":0}]
[null,"C4.1.2","Additional material investigations during the supplementary exploration"]
[null,"C4.1.2.1","Cost of additional trial pits and/or drilling and laboratory testing  ","provisional sum"]
[null,"C4.1.2.2","Handling costs and profit in respect of item C4.1.2.1","percentage (%)",{"$f":"G1054","v":0},null,{"$f":"E1055*F1055","v":0}]
[null,"C4.1.3","Construction and maintenance of temporary haul and access roads"]
[null,"C4.1.3.1","Temporary unsealed roads","kilometre (km)",null,null,{"$f":"E1057*F1057","v":0}]
[null,"C4.1.3.2","Cost to repair existing public roads or streets","provisional sum"]
[null,"C4.1.3.3","Handling cost and profit in respect of item C4.1.3.2","percentage (%)",{"$f":"G1058","v":0},null,{"$f":"E1059*F1059","v":0}]
[null,"C4.1.4","Removing of the overburden"]
[null,"C4.1.4.1","In borrow pits","cubic metre (m3)",null,null,{"$f":"E1061*F1061","v":0}]
[null,"C4.1.4.2","In quarries:"]
[null,"C4.1.4.2(a)","Soft material","cubic metre (m3)",null,null,{"$f":"E1063*F1063","v":0}]
[null,"C4.1.4.2(b)","Hard material (by blasting)","cubic metre (m3)",null,null,{"$f":"E1064*F1064","v":0}]
[null,"C4.1.5","Excavating of materials in the borrow pits and quarries, material obtained from"]
[null,"C4.1.5.1","Soft excavation ","cubic metre (m3)",null,null,{"$f":"E1066*F1066","v":0}]
[null,"C4.1.5.2","Boulder excavation class A","cubic metre (m3)",null,null,{"$f":"E1067*F1067","v":0}]
[null,"C4.1.5.3","Boulder excavation class B","cubic metre (m3)",null,null,{"$f":"E1068*F1068","v":0}]
[null,"C4.1.5.4","Hard excavation (other than by blasting)","cubic metre (m3)",null,null,{"$f":"E1069*F1069","v":0}]
[null,"C4.1.5.5","Hard excavation (by blasting)","cubic metre (m3)",null,null,{"$f":"E1070*F1070","v":0}]
[null,"C4.1.6","Providing crushing, screening and related plants"]
[null,"C4.1.6.1","Single-stage crushing plant","number (No.)",null,null,{"$f":"E1072*F1072","v":0}]
[null,"C4.1.6.2","Two-stage crushing plant","number (No.)",null,null,{"$f":"E1073*F1073","v":0}]
[null,"C4.1.6.3","Multiple-stage crushing and screening plant","number (No.)",null,null,{"$f":"E1074*F1074","v":0}]
[null,"C4.1.6.4","Screening plant","number (No.)",null,null,{"$f":"E1075*F1075","v":0}]
[null,"C4.1.6.5","… etc., for other plants (as stated by the Engineer and/or the Contractor)","number (No.)",null,null,{"$f":"E1076*F1076","v":0}]
[null,"C4.1.7","Producing the material by"]
[null,"C4.1.7.1","Single-stage crushing ","cubic metre (m3)",null,null,{"$f":"E1078*F1078","v":0}]
[null,"C4.1.7.2","Two-stage crushing ","cubic metre (m3)",null,null,{"$f":"E1079*F1079","v":0}]
[null,"C4.1.7.3","Multiple-stage crushing including screening","cubic metre (m3)",null,null,{"$f":"E1080*F1080","v":0}]
[null,"C4.1.7.4","Screening only ","cubic metre (m3)",null,null,{"$f":"E1081*F1081","v":0}]
[null,"C4.1.7.5","… etc., for other plants (as stated by the Engineer and/or the Contractor)","cubic metre (m3)",null,null,{"$f":"E1082*F1082","v":0}]
[null,"C4.1.8","Moving and re-erecting the crushing, screening and related plants on the site"]
[null,"C4.1.8.1","Single-stage crushing plant","number (No.)",null,null,{"$f":"E1084*F1084","v":0}]
[null,"C4.1.8.2","Two-stage crushing plant","number (No.)",null,null,0]
[null,"C4.1.8.3","Multiple-stage crushing and screening plant  ","number (No.)",null,null,0]
[null,"C4.1.8.4","Screening plant","number (No.)",null,null,0]
[null,"C4.1.8.5","… etc., for other plants (as stated by the Engineer and/or the Contractor)","number (No.)",null,null,0]
[null,"C4.1.9","Breaking down oversize material ","cubic metre (m3)",null,null,0]
[null,"C4.1.10","Compacting the floor of the stockpile sites","cubic metre (m3)",null,null,0]
[null,"C4.1.11","Constructing a platform for the stockpile site ","cubic metre (m3)",null,null,0]
[null,"C4.1.12","Stockpiling the material"]
[null,"C4.1.12.1","Material from a producing plant","cubic metre (m3)",null,null,{"$f":"E1093*F1093","v":0}]
[null,"C4.1.12.2","Material directly from the excavation","cubic metre (m3)",null,null,{"$f":"E1094*F1094","v":0}]
[null,"C4.1.13","Removing surplus material from the stockpile","cubic metre (m3)",null,null,{"$f":"E1095*F1095","v":0}]
[null,"C4.1.14","Removing the fill platform and temporary banks at the stockpile sites upon completion"]
[null,"C4.1.14.1","Fill platform","cubic metre (m3)",null,null,{"$f":"E1097*F1097","v":0}]
[null,"C4.1.14.2","Temporary banks","cubic metre (m3)",null,null,{"$f":"E1098*F1098","v":0}]
[null,"C4.1.15","Shaping and finishing the borrow pit and quarry areas, and the stockpile sites"]
[null,"C4.1.15.1","Shaping and finishing the borrow pit and quarry areas, and the stockpile sites:"]
[null,"C4.1.15.1(a)","Borrow pits (list all borrow pits separately)","hectare (ha)",null,null,{"$f":"E1101*F1101","v":0}]
[null,"C4.1.15.1(b)","Quarries (list all quarries separately)","hectare (ha)",null,null,{"$f":"E1102*F1102","v":0}]
[null,"C4.1.15.1(c)","Stockpile sites","hectare (ha)",null,null,{"$f":"E1103*F1103","v":0}]
[null,"C4.1.15.2","Finishing of the borrow pit and quarry areas, and the stockpile sites using labour enhanced methods of construction:"]
[null,"C4.1.15.2(a)","Borrow pits (list all borrow pits separately)","hectare (ha)",null,null,{"$f":"E1105*F1105","v":0}]
[null,"C4.1.15.2(b)","Quarries (list all quarries separately)","hectare (ha)",null,null,{"$f":"E1106*F1106","v":0}]
[null,"C4.1.15.2(c)","Stockpile sites","hectare (ha)",null,null,{"$f":"E1107*F1107","v":0}]
[null,"C4.1.16","Personnel"]
[null,"C4.1.16.1","Materials manager","month",null,null,{"$f":"E1109*F1109","v":0}]
[null,"C4.1.16.2","Excavation controller","month",null,null,{"$f":"E1110*F1110","v":0}]
[null,"C4.1.16.3","Stockpile controller","month",null,null,{"$f":"E1111*F1111","v":0}]
[null,"C4.1.17","Weighbridge facility"]
[null,"C4.1.17.1","Providing, erecting and removal of a weighbridge facility","lump sum"]
[null,"C4.1.17.2","Operating the weighbridge","month",null,null,{"$f":"E1114*F1114","v":0}]
[null,"C4.1.18","Compensation to landowners or legal occupants in respect of land acquisition, royalties and/or loss of crops"]
[null,"C4.1.18.1","Amount allowed, expenditure to be approved or instructed by the Employer  ","provisional sum"]
[null,"C4.1.18.2","Handling costs and profit in respect of item C4.1.18.1","percentage (%)",{"$f":"G1116","v":0},null,{"$f":"E1117*F1117","v":0}]
[null,"C4.1.19","Excavating hard material","cubic metre (m3) or ton (t)",null,null,{"$f":"E1118*F1118","v":0}]
[null,"C4.1.20","Producing the material by"]
[null,"C4.1.20.1","Single stage crushing","cubic metre (m3) or ton (t)",null,null,{"$f":"E1120*F1120","v":0}]
[null,"C4.1.20.2","Multi-stage crushing and screening","cubic metre (m3) or ton (t)",null,null,{"$f":"E1121*F1121","v":0}]
[null,"C4.1.21","Stockpiling the crushed material","cubic metre (m3) or ton (t)",null,null,{"$f":"E1122*F1122","v":0}]
[]
[]
[]
[null,"C4.1","TOTAL CARRIED FORWARD TO SUMMARY",{"$nulls":3},{"$f":"SUM(G1051:G1125)","v":0}]
[]
[null,"C4.2","CUT MATERIAL"]
[null,"C4.2.1","Compiling and implementing M&U plans for the cuttings"]
[null,"C4.2.1.1","Cuttings exceeding 5 000 m3 up to 10 000 m3","number (No.)",null,null,{"$f":"E1130*F1130","v":0}]
[null,"C4.2.1.2","Cuttings exceeding 10 000 m3 up to 20 000 m3","number (No.)",null,null,{"$f":"E1131*F1131","v":0}]
[null,"C4.2.1.3","Cuttings exceeding 20 000 m3 up to 50 000 m3","number (No.)",null,null,{"$f":"E1132*F1132","v":0}]
[null,"C4.2.1.4","Cuttings exceeding 50 000 m3 up to 100 000 m3","number (No.)",null,null,{"$f":"E1133*F1133","v":0}]
[null,"C4.2.1.5","Cuttings larger than 100 000 m3","number (No.)",null,null,{"$f":"E1134*F1134","v":0}]
[null,"C4.2.2","Additional material investigations during the supplementary exploration"]
[null,"C4.2.2.1","Cost of additional trial pits and/or drilling and laboratory testing","provisional sum"]
[null,"C4.2.2.2","Handling costs and profit in respect of item C4.2.2.1","percentage (%)",{"$f":"G1136","v":0},null,{"$f":"E1137*F1137","v":0}]
[null,"C4.2.3","Excavating of materials in cuttings, material obtained from"]
[null,"C4.2.3.1","Soft excavation ","cubic metre (m3)",null,null,{"$f":"E1139*F1139","v":0}]
[null,"C4.2.3.2","Boulder excavation class A","cubic metre (m3)",null,null,{"$f":"E1140*F1140","v":0}]
[null,"C4.2.3.3","Boulder excavation class B","cubic metre (m3)",null,null,{"$f":"E1141*F1141","v":0}]
[null,"C4.2.3.4","Hard excavation (other than by blasting)","cubic metre (m3)",null,null,{"$f":"E1142*F1142","v":0}]
[null,"C4.2.3.5","Hard excavation (by blasting)","cubic metre (m3)",null,null,{"$f":"E1143*F1143","v":0}]
[null,"C4.2.4","Excavating of materials in box cuts, material obtained from"]
[null,"C4.2.4.1","Soft excavation ","cubic metre (m3)",null,null,{"$f":"E1145*F1145","v":0}]
[null,"C4.2.4.2","Boulder excavation class A","cubic metre (m3)",null,null,{"$f":"E1146*F1146","v":0}]
[null,"C4.2.4.3","Boulder excavation class B","cubic metre (m3)",null,null,{"$f":"E1147*F1147","v":0}]
[null,"C4.2.4.4","Hard excavation (other than by blasting)","cubic metre (m3)",null,null,{"$f":"E1148*F1148","v":0}]
[null,"C4.2.4.5","Hard excavation (by blasting)","cubic metre (m3)",null,null,{"$f":"E1149*F1149","v":0}]
[null,"C4.2.5","Excavating of materials in designated excavations, material obtained from"]
[null,"C4.2.5.1","Soft excavation ","cubic metre (m3)",null,null,{"$f":"E1151*F1151","v":0}]
[null,"C4.2.5.2","Boulder excavation class A","cubic metre (m3)",null,null,{"$f":"E1152*F1152","v":0}]
[null,"C4.2.5.3","Boulder excavation class B","cubic metre (m3)",null,null,{"$f":"E1153*F1153","v":0}]
[null,"C4.2.5.4","Hard excavation (other than by blasting)","cubic metre (m3)",null,null,{"$f":"E1154*F1154","v":0}]
[null,"C4.2.5.5","Hard excavation (by blasting)","cubic metre (m3)",null,null,{"$f":"E1155*F1155","v":0}]
[null,"C4.2.6","Widening of existing cuttings"]
[null,"C4.2.6.1","Soft excavation ","cubic metre (m3)",null,null,{"$f":"E1157*F1157","v":0}]
[null,"C4.2.6.2","Boulder excavation class A","cubic metre (m3)",null,null,{"$f":"E1158*F1158","v":0}]
[null,"C4.2.6.3","Boulder excavation class B","cubic metre (m3)",null,null,{"$f":"E1159*F1159","v":0}]
[null,"C4.2.6.4","Hard excavation (other than by blasting)","cubic metre (m3)",null,null,{"$f":"E1160*F1160","v":0}]
[null,"C4.2.6.5","Hard excavation (by blasting)","cubic metre (m3)",null,null,{"$f":"E1161*F1161","v":0}]
[null,"C4.2.7","Removal of unsuitable stable cut material to spoil"]
[null,"C4.2.7.1","In layer thicknesses of 200mm and less","cubic metre (m3)",null,null,{"$f":"E1163*F1163","v":0}]
[null,"C4.2.7.2","In layer thicknesses exceeding 200mm ","cubic metre (m3)",null,null,{"$f":"E1164*F1164","v":0}]
[null,"C4.2.8","Excavate material to spoil in sites designated by the Employer, material obtained from"]
[null,"C4.2.8.1","Soft excavation, overburden and unsuitable material","cubic metre (m3)",null,null,{"$f":"E1166*F1166","v":0}]
[null,"C4.2.8.2","Boulder excavation class A ","cubic metre (m3)",null,null,{"$f":"E1167*F1167","v":0}]
[null,"C4.2.8.3","Boulder excavation class B ","cubic metre (m3)",null,null,{"$f":"E1168*F1168","v":0}]
[null,"C4.2.8.4","Hard excavation (other than by blasting)","cubic metre (m3)",null,null,{"$f":"E1169*F1169","v":0}]
[null,"C4.2.8.5","Hard excavation (by blasting)","cubic metre (m3)",null,null,{"$f":"E1170*F1170","v":0}]
[null,"C4.2.9","Excavate material to spoil in sites designated by the Contractor, material obtained from"]
[null,"C4.2.9.1","Soft excavation, overburden and unsuitable material","cubic metre (m3)",null,null,{"$f":"E1172*F1172","v":0}]
[null,"C4.2.9.2","Boulder excavation class A ","cubic metre (m3)",null,null,{"$f":"E1173*F1173","v":0}]
[null,"C4.2.9.3","Boulder excavation class B ","cubic metre (m3)",null,null,{"$f":"E1174*F1174","v":0}]
[null,"C4.2.9.4","Hard excavation (other than by blasting)","cubic metre (m3)",null,null,{"$f":"E1175*F1175","v":0}]
[null,"C4.2.9.5","Hard excavation (by blasting)","cubic metre (m3)",null,null,{"$f":"E1176*F1176","v":0}]
[null,"C4.2.10","Backfilling of the unavoidable overbreak in hard and boulder excavation"]
[null,"C4.2.10.1","Compliant gravel material","cubic metre (m3)",null,null,{"$f":"E1178*F1178","v":0}]
[null,"C4.2.10.2","Soil cement (stiff mix with 3% cement)","cubic metre (m3)",null,null,{"$f":"E1179*F1179","v":0}]
[null,"C4.2.10.3","Soil cement (wet mix with 5% cement)","cubic metre (m3)",null,null,{"$f":"E1180*F1180","v":0}]
[null,"C4.2.10.4","Concrete class 15 MPa","cubic metre (m3)",null,null,{"$f":"E1181*F1181","v":0}]
[null,"C4.2.11","Breaking down oversize material ","cubic metre (m3)",null,null,{"$f":"E1182*F1182","v":0}]
[null,"C4.2.12","Finishing the side slopes"]
[null,"C4.2.12.1","Cuttings: "]
[null,"C4.2.12.1(a)","In soft material ","square metre (m2)",null,null,{"$f":"E1185*F1185","v":0}]
[null,"C4.2.12.1(b)","In boulder material class A and B","square metre (m2)",null,null,0]
[null,"C4.2.12.1(c)","In hard material","square metre (m2)",null,null,0]
[null,"C4.2.12.1(d)","In soft material using labour enhanced methods of construction","square metre (m2)",null,null,0]
[null,"C4.2.12.2","Designated excavations","square metre (m2)",null,null,0]
[null,"C4.2.12.3","Designated excavations using labour enhanced methods of construction","square metre (m2)",null,null,0]
[]
[]
[]
[null,"C4.2","TOTAL CARRIED FORWARD TO SUMMARY",{"$nulls":3},{"$f":"SUM(G1130:G1193)","v":0}]
[]
[null,"C4.3","EXISTING ROAD MATERIALS"]
[null,"C4.3.1","Additional material investigations"]
[null,"C4.3.1.1","Cost of additional core drilling and trial pits, sampling of asphalt and laboratory testing ","provisional sum"]
[null,"C4.3.1.2","Handling cost and profit in respect of item C4.3.1.1","percentage (%)",{"$f":"G1198","v":0},null,{"$f":"E1199*F1199","v":0}]
[null,"C4.3.2","Cleaning the existing road surface"]
[null,"C4.3.2.1","Cost to clean the road surface ","provisional sum"]
[null,"C4.3.2.2","Handling costs and profit in respect of item C4.3.2.1","percentage (%)",{"$f":"G1201","v":0},null,{"$f":"E1202*F1202","v":0}]
[null,"C4.3.3","Removal of bituminous seal surfacing (thickness not exceeding 30mm)","square metre (m2)",null,null,{"$f":"E1203*F1203","v":0}]
[null,"C4.3.4","Saw-cutting existing materials within the following average depth ranges "]
[null,"C4.3.4.1","Asphalt material:"]
[null,"C4.3.4.1(a)","Up to 50mm","metre (m)",null,null,{"$f":"E1206*F1206","v":0}]
[null,"C4.3.4.1(b)","Exceeding 50mm and up to 100mm","metre (m)",null,null,{"$f":"E1207*F1207","v":0}]
[null,"C4.3.4.1(c)","Etc. in 50mm increments",{"$nulls":3},{"$f":"E1208*F1208","v":0}]
[null,"C4.3.4.2","Crushed stone and gravel material:"]
[null,"C4.3.4.2(a)","Up to 100mm","metre (m)",null,null,{"$f":"E1210*F1210","v":0}]
[null,"C4.3.4.2(b)","Exceeding 100mm and up to 200mm","metre (m)",null,null,{"$f":"E1211*F1211","v":0}]
[null,"C4.3.4.2(c)","Etc. in 100mm increments",{"$nulls":3},{"$f":"E1212*F1212","v":0}]
[null,"C4.3.4.3","Cemented material:"]
[null,"C4.3.4.3(a)","Up to 100mm","metre (m)",null,null,{"$f":"E1214*F1214","v":0}]
[null,"C4.3.4.3(b)","Exceeding 100mm and up to 200mm","metre (m)",null,null,{"$f":"E1215*F1215","v":0}]
[null,"C4.3.4.3(c)","Etc. in 100mm increments",{"$nulls":3},{"$f":"E1216*F1216","v":0}]
[null,"C4.3.4.4","Concrete material: "]
[null,"C4.3.4.4(a)","Up to 50mm","metre (m)",null,null,{"$f":"E1218*F1218","v":0}]
[null,"C4.3.4.4(b)","Exceeding 50mm and up to 100mm","metre (m)",null,null,{"$f":"E1219*F1219","v":0}]
[null,"C4.3.4.4(c)","Etc. in 50mm increments",{"$nulls":3},{"$f":"E1220*F1220","v":0}]
[null,"C4.3.5","Providing the milling machine on the site"]
[null,"C4.3.5.1","Small milling machine with a cutting width of 1,2m or smaller","number (No.)",1,null,{"$f":"E1222*F1222","v":0}]
[null,"C4.3.5.2","Large milling machine with a cutting width exceeding 1,2m","number (No.)",1,null,{"$f":"E1223*F1223","v":0}]
[null,"C4.3.6","Milling and removal of existing asphalt layers with an average milling depth (Contractor takes ownership)"]
[null,"C4.3.6.1","Not exceeding 50mm","cubic metre (m3)",210,null,{"$f":"E1225*F1225","v":0}]
[null,"C4.3.6.2","Exceeding 50mm but not exceeding 100mm","cubic metre (m3)",210,null,{"$f":"E1226*F1226","v":0}]
[null,"C4.3.6.3","Exceeding 100mm","cubic metre (m3)",150,null,{"$f":"E1227*F1227","v":0}]
[null,"C4.3.7","Milling and removal of existing asphalt layers with an average milling depth (Employer takes ownership)"]
[null,"C4.3.7.1","Not exceeding 50mm","cubic metre (m3)",105,null,{"$f":"E1229*F1229","v":0}]
[null,"C4.3.7.2","Exceeding 50mm but not exceeding 100mm","cubic metre (m3)",105,null,{"$f":"E1230*F1230","v":0}]
[null,"C4.3.7.3","Exceeding 100mm","cubic metre (m3)",75,null,{"$f":"E1231*F1231","v":0}]
[null,"C4.3.8","Excavating material by milling"]
[null,"C4.3.8.1","Crushed stone material","cubic metre (m3)",100,null,{"$f":"E1233*F1233","v":0}]
[null,"C4.3.8.2","Cemented material","cubic metre (m3)",null,null,{"$f":"E1234*F1234","v":0}]
[null,"C4.3.8.3","Natural gravel material","cubic metre (m3)",100,null,{"$f":"E1235*F1235","v":0}]
[null,"C4.3.9","Excavating material by using conventional road construction equipment"]
[null,"C4.3.9.1","Asphalt material ","cubic metre (m3)",null,null,{"$f":"E1237*F1237","v":0}]
[null,"C4.3.9.2","Crushed stone and macadam materials","cubic metre (m3)",null,null,{"$f":"E1238*F1238","v":0}]
[null,"C4.3.9.3","Cemented material","cubic metre (m3)",null,null,{"$f":"E1239*F1239","v":0}]
[null,"C4.3.9.4","Natural gravel and sand materials","cubic metre (m3)",null,null,{"$f":"E1240*F1240","v":0}]
[null,"C4.3.9.5","Coarse fill and rock fill","cubic metre (m3)",null,null,{"$f":"E1241*F1241","v":0}]
[null,"C4.3.10","Excavating material by using labour enhanced methods of construction"]
[null,"C4.3.10.1","Asphalt material","cubic metre (m3)",null,null,{"$f":"E1243*F1243","v":0}]
[null,"C4.3.10.2","Crushed stone and macadam materials","cubic metre (m3)",null,null,{"$f":"E1244*F1244","v":0}]
[null,"C4.3.10.3","Cemented material","cubic metre (m3)",null,null,{"$f":"E1245*F1245","v":0}]
[null,"C4.3.10.4","Natural gravel and sand materials","cubic metre (m3)",null,null,{"$f":"E1246*F1246","v":0}]
[null,"C4.3.11","Breaking down a stabilised layer by using conventional road construction equipment","cubic metre (m3)",null,null,{"$f":"E1247*F1247","v":0}]
[null,"C4.3.12","Removing of existing concrete material within the following average depth ranges"]
[null,"C4.3.12.1","The break-up method:"]
[null,"C4.3.12.1(a)","Not exceeding 150mm","cubic metre (m3)",null,null,{"$f":"E1250*F1250","v":0}]
[null,"C4.3.12.1(b)","Exceeding 150mm but not exceeding 250mm","cubic metre (m3)",null,null,{"$f":"E1251*F1251","v":0}]
[null,"C4.3.12.2","The break-up method using labour enhanced methods of construction:"]
[null,"C4.3.12.2(a)","Not exceeding 75mm","cubic metre (m3)",null,null,{"$f":"E1253*F1253","v":0}]
[null,"C4.3.12.2(b)","Exceeding 75mm but not exceeding 200mm","cubic metre (m3)",null,null,{"$f":"E1254*F1254","v":0}]
[null,"C4.3.12.3","The lift-out method:"]
[null,"C4.3.12.3(a)","Not exceeding 150mm","cubic metre (m3)",null,null,{"$f":"E1256*F1256","v":0}]
[null,"C4.3.12.3(b)","Exceeding 150mm but not exceeding 250mm","cubic metre (m3)",null,null,{"$f":"E1257*F1257","v":0}]
[null,"C4.3.13","Lifting of existing paving blocks (specify the type or size and thickness)"]
[null,"C4.3.13.1","Using construction equipment ","square metre (m2)",null,null,{"$f":"E1259*F1259","v":0}]
[null,"C4.3.13.2","Using labour enhanced methods of construction","square metre (m2)",null,null,{"$f":"E1260*F1260","v":0}]
[null,"C4.3.14","Removing of existing road edging and services structures"]
[null,"C4.3.14.1","Removing of existing road edging using construction equipment:"]
[null,"C4.3.14.1(a)","Kerbing and edge beams: "]
[null,"C4.3.14.1(a)(i)","In situ concrete kerbing and edge beams","cubic metre (m3)",null,null,{"$f":"E1264*F1264","v":0}]
[null,"C4.3.14.1(a)(ii)","Precast concrete kerbing (specify type or figure)","metre (m)",null,null,0]
[null,"C4.3.14.1(a)(iii)","Precast concrete kerbing (specify type or figure) and situ concrete channel (specify dimensions)","metre (m)",null,null,0]
[null,"C4.3.14.1(b)","Kerb inlets","number (No.)",null,null,0]
[null,"C4.3.14.1(c)","Grid inlets","number (No.)",null,null,0]
[null,"C4.3.14.1(d)","Etc., for other services structures","number (No.)",null,null,0]
[null,"C4.3.14.2","Removing of existing road edging using labour enhanced methods of construction:"]
[null,"C4.3.14.2(a)","Kerbing and edge beams: "]
[null,"C4.3.14.2(a)(i)","In situ concrete kerbing and edge beams","cubic metre (m3)",null,null,{"$f":"E1272*F1272","v":0}]
[null,"C4.3.14.2(a)(ii)","Precast concrete kerbing (specify type or figure)","metre (m)",null,null,0]
[null,"C4.3.14.2(a)(iii)","Precast concrete kerbing (specify type or figure) and situ concrete channel (specify dimensions)","metre (m)",null,null,0]
[null,"C4.3.14.2(b)","Kerb inlets","number (No.)",null,null,0]
[null,"C4.3.14.2(c)","Grid inlets","number (No.)",null,null,0]
[null,"C4.3.14.2(d)","Etc., for other services structures","number (No.)",null,null,0]
[null,"C4.3.15","Stockpiling of road layer materials"]
[null,"C4.3.15.1","Asphalt material","cubic metre (m3)",null,null,{"$f":"E1279*F1279","v":0}]
[null,"C4.3.15.2","Crushed stone material","cubic metre (m3)",null,null,{"$f":"E1280*F1280","v":0}]
[null,"C4.3.15.3","Cemented material","cubic metre (m3)",null,null,{"$f":"E1281*F1281","v":0}]
[null,"C4.3.15.4","Natural gravel material","cubic metre (m3)",null,null,{"$f":"E1282*F1282","v":0}]
[null,"C4.3.15.5","Concrete pavements","cubic metre (m3)",null,null,{"$f":"E1283*F1283","v":0}]
[null,"C4.3.16","Stacking paving blocks and road edging"]
[null,"C4.3.16.1","Paving blocks (specify type or size and thickness)","number (No.)",null,null,{"$f":"E1285*F1285","v":0}]
[null,"C4.3.16.2","Precast concrete kerbing (specify type or figure and length)","number (No.)",null,null,{"$f":"E1286*F1286","v":0}]
[null,"C4.3.16.3","Precast kerb inlets","number (No.)",null,null,{"$f":"E1287*F1287","v":0}]
[null,"C4.3.16.4","Precast manholes","number (No.)",null,null,{"$f":"E1288*F1288","v":0}]
[null,"C4.3.17","Excavate non-compliant or excess pavement layer material to spoil in sites designated by the Employer, material consisting of"]
[null,"C4.3.17.1","Asphalt material","cubic metre (m3)",null,null,{"$f":"E1290*F1290","v":0}]
[null,"C4.3.17.2","Crushed stone, macadam, gravel and sand material","cubic metre (m3)",null,null,{"$f":"E1291*F1291","v":0}]
[null,"C4.3.17.3","Cemented material","cubic metre (m3)",null,null,{"$f":"E1292*F1292","v":0}]
[null,"C4.3.17.4","Concrete material","cubic metre (m3)",null,null,{"$f":"E1293*F1293","v":0}]
[null,"C4.3.18","Excavate non-compliant or excess pavement layer material to spoil in sites designated by the Contractor, material consisting of"]
[null,"C4.3.18.1","Asphalt material","cubic metre (m3)",null,null,{"$f":"E1295*F1295","v":0}]
[null,"C4.3.18.2","Crushed stone, macadam, gravel and sand material","cubic metre (m3)",null,null,{"$f":"E1296*F1296","v":0}]
[null,"C4.3.18.3","Cemented material","cubic metre (m3)",null,null,{"$f":"E1297*F1297","v":0}]
[null,"C4.3.18.4","Concrete material","cubic metre (m3)",null,null,{"$f":"E1298*F1298","v":0}]
[null,"C4.3.19","Spoiling of paving blocks and road edging in spoil sites designated by the Employer"]
[null,"C4.3.19.1","Paving blocks ","cubic metre (m3)",null,null,{"$f":"E1300*F1300","v":0}]
[null,"C4.3.19.2","Precast and in situ concrete kerbing, edge beams and channels at precast kerbing","cubic metre (m3)",null,null,{"$f":"E1301*F1301","v":0}]
[null,"C4.3.19.3","Kerb and grid inlets, and other services structures","number (No.)",null,null,{"$f":"E1302*F1302","v":0}]
[null,"C4.3.20","Spoiling of paving blocks and road edging in spoil sites designated by the Contractor"]
[null,"C4.3.20.1","Paving blocks ","cubic metre (m3)",null,null,{"$f":"E1304*F1304","v":0}]
[null,"C4.3.20.2","Precast and in situ concrete kerbing, edge beams and channels at precast kerbing","cubic metre (m3)",null,null,{"$f":"E1305*F1305","v":0}]
[null,"C4.3.20.3","Kerb and grid inlets, and other services structures","number (No.)",null,null,{"$f":"E1306*F1306","v":0}]
[]
[]
[]
[null,"C4.3","TOTAL CARRIED FORWARD TO SUMMARY",{"$nulls":3},{"$f":"SUM(G1198:G1309)","v":0}]
[]
[null,"C4.4","COMMERCIAL MATERIALS"]
[null,"C4.4.1","Commercial materials identified by the Employer from commercial, private or other non-commercial suppliers (specify the source/s) "]
[null,"C4.4.1.1","Pavement layer material:"]
[null,"C4.4.1.1(a)","Type G1 material","cubic metre (m3)",null,null,{"$f":"E1315*F1315","v":0}]
[null,"C4.4.1.1(b)","Type G2 material","cubic metre (m3)",25,null,0]
[null,"C4.4.1.1(c)","Type G5 material","cubic metre (m3)",1000,null,0]
[null,"C4.4.1.1(d)","Type G7 material","cubic metre (m3)",1000,null,0]
[null,"C4.4.1.1(e)","Etc. for other Type G3 to G9 materials","cubic metre (m3)",null,null,0]
[null,"C4.4.1.1(f)","Etc. for other Type G3 to G9 materials","cubic metre (m3)",null,null,0]
[null,"C4.4.1.1(g)","Etc. for other Type G3 to G9 materials","cubic metre (m3)",null,null,0]
[null,"C4.4.1.1(h)","Etc. for other Type G3 to G9 materials","cubic metre (m3)",null,null,0]
[null,"C4.4.1.1(i)","Etc. for other Type G3 to G9 materials","cubic metre (m3)",null,null,0]
[null,"C4.4.1.1(j)","Etc. for other Type G3 to G9 materials","cubic metre (m3)",null,null,0]
[null,"C4.4.1.1(k)","Etc. for other Type G3 to G9 materials","cubic metre (m3)",null,null,0]
[null,"C4.4.1.1(l)","Etc. for other Type G3 to G9 materials","cubic metre (m3)",null,null,0]
[null,"C4.4.1.1(m)","Sand for the base and shoulder layers","cubic metre (m3)",null,null,0]
[null,"C4.4.1.1(n)","Sand for a subbase layer","cubic metre (m3)",null,null,0]
[null,"C4.4.1.1(o)","Sand for a selected layer","cubic metre (m3)",null,null,0]
[null,"C4.4.1.1(p)","Natural or crushed gravel material for an unsealed shoulder layer","cubic metre (m3)",null,null,0]
[null,"C4.4.1.1(q)","Natural or crushed gravel material for the wearing course of an unsealed road","cubic metre (m3)",null,null,0]
[null,"C4.4.1.2","Macadam material:"]
[null,"C4.4.1.2(a)","Coarse aggregate","cubic metre (m3)",null,null,{"$f":"E1333*F1333","v":0}]
[null,"C4.4.1.2(b)","Fine aggregate","cubic metre (m3)",null,null,{"$f":"E1334*F1334","v":0}]
[null,"C4.4.1.3","Drainage blanket layer material","cubic metre (m3)",null,null,{"$f":"E1335*F1335","v":0}]
[null,"C4.4.1.4","Soil cement material (pre-blended by the supplier)","cubic metre (m3)",null,null,{"$f":"E1336*F1336","v":0}]
[null,"C4.4.1.5","Fill material in the earthworks:"]
[null,"C4.4.1.5(a)","Normal or coarse fill","cubic metre (m3)",null,null,{"$f":"E1338*F1338","v":0}]
[null,"C4.4.1.5(b)","Rock fill","cubic metre (m3)",null,null,{"$f":"E1339*F1339","v":0}]
[null,"C4.4.1.5(c)","Sand","cubic metre (m3)",null,null,{"$f":"E1340*F1340","v":0}]
[null,"C4.4.1.6","Pioneer material","cubic metre (m3)",null,null,{"$f":"E1341*F1341","v":0}]
[null,"C4.4.2","Commercial materials identified by the Contractor from commercial, private or other non-commercial suppliers"]
[null,"C4.4.2.1","Pavement layer material:"]
[null,"C4.4.2.1(a)","Type G1 material","cubic metre (m3)",null,null,{"$f":"E1344*F1344","v":0}]
[null,"C4.4.2.1(b)","Type G2 material","cubic metre (m3)",null,null,0]
[null,"C4.4.2.1(c)","Etc. for other Type G3 to G9 materials","cubic metre (m3)",null,null,0]
[null,"C4.4.2.1(d)","Etc. for other Type G3 to G9 materials","cubic metre (m3)",null,null,0]
[null,"C4.4.2.1(e)","Etc. for other Type G3 to G9 materials","cubic metre (m3)",null,null,0]
[null,"C4.4.2.1(f)","Etc. for other Type G3 to G9 materials","cubic metre (m3)",null,null,0]
[null,"C4.4.2.1(g)","Etc. for other Type G3 to G9 materials","cubic metre (m3)",null,null,0]
[null,"C4.4.2.1(h)","Etc. for other Type G3 to G9 materials","cubic metre (m3)",null,null,0]
[null,"C4.4.2.1(i)","Etc. for other Type G3 to G9 materials","cubic metre (m3)",null,null,0]
[null,"C4.4.2.1(j)","Etc. for other Type G3 to G9 materials","cubic metre (m3)",null,null,0]
[null,"C4.4.2.1(k)","Etc. for other Type G3 to G9 materials","cubic metre (m3)",null,null,0]
[null,"C4.4.2.1(l)","Etc. for other Type G3 to G9 materials","cubic metre (m3)",null,null,0]
[null,"C4.4.2.1(m)","Sand for the base and shoulder layers","cubic metre (m3)",null,null,0]
[null,"C4.4.2.1(n)","Sand for a subbase layer","cubic metre (m3)",null,null,0]
[null,"C4.4.2.1(o)","Sand for a selected layer","cubic metre (m3)",null,null,0]
[null,"C4.4.2.1(p)","Natural or crushed gravel material for an unsealed shoulder layer","cubic metre (m3)",null,null,0]
[null,"C4.4.2.1(q)","Natural or crushed gravel material for the wearing course of an unsealed road","cubic metre (m3)",null,null,0]
[null,"C4.4.2.2","Macadam material:"]
[null,"C4.4.2.2(a)","Coarse aggregate","cubic metre (m3)",null,null,{"$f":"E1362*F1362","v":0}]
[null,"C4.4.2.2(b)","Fine aggregate","cubic metre (m3)",null,null,{"$f":"E1363*F1363","v":0}]
[null,"C4.4.2.3","Drainage blanket layer material","cubic metre (m3)",null,null,{"$f":"E1364*F1364","v":0}]
[null,"C4.4.2.4","Soil cement material (pre-blended by the supplier)","cubic metre (m3)",null,null,{"$f":"E1365*F1365","v":0}]
[null,"C4.4.2.5","Fill material in the earthworks:"]
[null,"C4.4.2.5(a)","Normal or coarse fill","cubic metre (m3)",null,null,{"$f":"E1367*F1367","v":0}]
[null,"C4.4.2.5(b)","Rock fill","cubic metre (m3)",null,null,{"$f":"E1368*F1368","v":0}]
[null,"C4.4.2.5(c)","Sand","cubic metre (m3)",null,null,{"$f":"E1369*F1369","v":0}]
[null,"C4.4.2.6","Pioneer material","cubic metre (m3)",null,null,{"$f":"E1370*F1370","v":0}]
[null,"C4.4.3","Cost to procure commercial materials identified by the Employer from private or non-commercial sources"]
[null,"C4.4.3.1","Cost of procuring","provisional sum"]
[null,"C4.4.3.2","Handling cost and profit in respect of item C4.4.3.1","percentage (%)",{"$f":"G1372","v":0},null,{"$f":"E1373*F1373","v":0}]
[null,"C4.4.4","Cementitious stabilising agents"]
[null,"C4.4.4.1","Cement","ton (t)",null,null,{"$f":"E1375*F1375","v":0}]
[null,"C4.4.4.2","Road lime","ton (t)",null,null,{"$f":"E1376*F1376","v":0}]
[null,"C4.4.4.3","Etc. for other agents","ton (t)",null,null,{"$f":"E1377*F1377","v":0}]
[null,"C4.4.5","Bituminous stabilising agents"]
[null,"C4.4.5.1","Penetration grade bitumen (specify grade)","ton (t)",null,null,{"$f":"E1379*F1379","v":0}]
[null,"C4.4.5.2","Emulsion stable grade (specify type)","ton (t)",null,null,{"$f":"E1380*F1380","v":0}]
[null,"C4.4.6","Fillers for bituminous stabilisation (specify filler types separately)","ton (t)",null,null,{"$f":"E1381*F1381","v":0}]
[null,"C4.4.7","Sampling and material testing by a commercial laboratory for the stabilisation designs"]
[null,"C4.4.7.1","Cost of sampling and material testing","provisional sum"]
[null,"C4.4.7.2","Handling cost and profit in respect of item C4.4.7.1","percentage (%)",{"$f":"G1383","v":0},null,{"$f":"E1384*F1384","v":0}]
[]
[]
[]
[null,"C4.4","TOTAL CARRIED FORWARD TO SUMMARY",{"$nulls":3},{"$f":"SUM(G1315:G1387)","v":0}]
[]
[null,"C4.5","ALTERNATIVE MATERIALS"]
[null,"C4.5.1","Additional material investigations"]
[null,"C4.5.1.1","Cost of sampling and laboratory testing ","provisional sum"]
[null,"C4.5.1.2","Handling cost and profit in respect of item C4.5.1.1","percentage (%)",{"$f":"G1392","v":0},null,{"$f":"F1393*E1393","v":0}]
[null,"C4.5.2","Removing unwanted material from alternative materials identified by the Employer"]
[null,"C4.5.2.1","Contaminant material","provisional sum"]
[null,"C4.5.2.2","Handling cost and profit in respect of item C4.5.2.1","percentage (%)",{"$f":"G1395","v":0},null,{"$f":"F1396*E1396","v":0}]
[null,"C4.5.2.3","Hazardous material","provisional sum"]
[null,"C4.5.2.4","Handling cost and profit in respect of item C4.5.2.3","percentage (%)",{"$f":"G1397","v":0},null,{"$f":"F1398*E1398","v":0}]
[null,"C4.5.3","Cost to procure alternative materials identified by the Employer"]
[null,"C4.5.3.1","Cost of procuring","provisional sum"]
[null,"C4.5.3.2","Handling cost and profit in respect of item C4.5.3.1","percentage (%)",{"$f":"G1400","v":0},null,{"$f":"F1401*E1401","v":0}]
[]
[]
[]
[null,"C4.5","TOTAL CARRIED FORWARD TO SUMMARY",{"$nulls":3},{"$f":"SUM(G1392:G1404)","v":0}]
[]
[null,"C5.1","ROADBED"]
[null,"C5.1.1","Roadbed construction and compaction:"]
[null,"C5.1.1.1","Compaction of in-situ material to 90% of MDD","cubic metre (m3)",null,null,{"$f":"E1409*F1409","v":0}]
[null,"C5.1.1.2","Compaction of in-situ material to 93% of MDD","cubic metre (m3)",null,null,0]
[null,"C5.1.1.3","Compaction of imported material to 90% of MDD","cubic metre (m3)",null,null,0]
[null,"C5.1.1.4","Compaction of imported material to 93% of MDD","cubic metre (m3)",null,null,0]
[null,"C5.1.1.5","Compaction of in-situ sand roadbed to 95% of MDD","cubic metre (m3)",300,null,0]
[null,"C5.1.1.6","Compaction of in-situ sand roadbed to 100% of MDD","cubic metre (m3)",null,null,0]
[null,"C5.1.2","Excavate material to spoil sites designed by the Employer:"]
[null,"C5.1.2.1","Excavate material to spoil from roadbed construction, material obtained from:"]
[null,"C5.1.2.1(a)","Soft excavation","cubic metre (m3)",1100,null,{"$f":"E1417*F1417","v":0}]
[null,"C5.1.2.1(b)","Boulder excavation Class A","cubic metre (m3)",null,null,{"$f":"E1418*F1418","v":0}]
[null,"C5.1.2.1(c)","Boulder excavation Class B","cubic metre (m3)",null,null,{"$f":"E1419*F1419","v":0}]
[null,"C5.1.2.1(d)","Hard excavation (other than by blasting)","cubic metre (m3)",null,null,{"$f":"E1420*F1420","v":0}]
[null,"C5.1.2.1(e)","Hard excavation (by blasting)","cubic metre (m3)",null,null,{"$f":"E1421*F1421","v":0}]
[null,"C5.1.2.2","Excavate material to spoil from roadbed construction, using labour enhancement, material obtained from:"]
[null,"C5.1.2.2(a)","Soft excavation","cubic metre (m3)",null,null,{"$f":"E1423*F1423","v":0}]
[null,"C5.1.2.2(b)","Intermediate excavation","cubic metre (m3)",null,null,{"$f":"E1424*F1424","v":0}]
[null,"C5.1.3","Excavate material to spoil sites designed by the Contractor:"]
[null,"C5.1.3.1","Excavate material to spoil from roadbed construction, material obtained from:"]
[null,"C5.1.3.1(a)","Soft excavation","cubic metre (m3)",null,null,{"$f":"E1427*F1427","v":0}]
[null,"C5.1.3.1(b)","Boulder excavation Class A","cubic metre (m3)",null,null,{"$f":"E1428*F1428","v":0}]
[null,"C5.1.3.1(c)","Boulder excavation Class B","cubic metre (m3)",null,null,{"$f":"E1429*F1429","v":0}]
[null,"C5.1.3.1(d)","Hard excavation (other than by blasting)","cubic metre (m3)",null,null,{"$f":"E1430*F1430","v":0}]
[null,"C5.1.3.1(e)","Hard excavation (by blasting)","cubic metre (m3)",null,null,{"$f":"E1431*F1431","v":0}]
[null,"C5.1.3.2","Excavate material to spoil from roadbed construction, using labour enhancement, material obtained from:"]
[null,"C5.1.3.2(a)","Soft excavation","cubic metre (m3)",null,null,{"$f":"E1433*F1433","v":0}]
[null,"C5.1.3.2(b)","Intermediate excavation","cubic metre (m3)",null,null,{"$f":"E1434*F1434","v":0}]
[null,"C5.1.4","Removal of unsuitable material to spoil:"]
[null,"C5.1.4.1","In layer thicknesses of 200mm and less"]
[null,"C5.1.4.1(a)","Stable material ","cubic metre (m3)",null,null,{"$f":"E1437*F1437","v":0}]
[null,"C5.1.4.1(b)","Unstable material","cubic metre (m3)",null,null,{"$f":"E1438*F1438","v":0}]
[null,"C5.1.4.2","In layer thicknesses exceeding 200mm"]
[null,"C5.1.4.2(a)","Stable material ","cubic metre (m3)",null,null,{"$f":"E1440*F1440","v":0}]
[null,"C5.1.4.2(b)","Unstable material","cubic metre (m3)",null,null,{"$f":"E1441*F1441","v":0}]
[null,"C5.1.5","In-situ treatment of roadbed in hard material:"]
[null,"C5.1.5.1","In-situ treatment by ripping","cubic metre (m3)",null,null,{"$f":"E1443*F1443","v":0}]
[null,"C5.1.5.2","In-situ treatment by drilling and blasting","cubic metre (m3)",null,null,{"$f":"E1444*F1444","v":0}]
[null,"C5.1.5.3","In-situ treatment by drilling and splitting the material using non-explosive, rock-breaking products","cubic metre (m3)",null,null,{"$f":"E1445*F1445","v":0}]
[null,"C5.1.6","Roller-pass compaction:"]
[null,"C5.1.6.1","Grid rollers ","square metre (m2)",null,null,{"$f":"E1447*F1447","v":0}]
[null,"C5.1.6.2","Pad foot vibratory rollers","square metre (m2)",null,null,0]
[null,"C5.1.6.3","Smooth drum vibratory rollers","square metre (m2)",null,null,0]
[null,"C5.1.6.4","Other vibratory rollers (specify)","square metre (m2)",null,null,0]
[null,"C5.1.6.5","Impact rollers","square metre (m2)",null,null,0]
[null,"C5.1.6.6","Pneumatic rollers","square metre (m2)",null,null,0]
[null,"C5.1.6.7","High energy impact compactor/roller (HEIC)","square metre (m2)",null,null,0]
[null,"C5.1.6.8","Other rollers (specify)","square metre (m2)",null,null,0]
[null,"C5.1.7","Construction of a roadbed trial section:"]
[null,"C5.1.7.1","Non wetting-up collapsing soil trial section at in-situ moisture content using conventional rollers and/or HEIC","cubic metre (m3)",null,null,{"$f":"E1456*F1456","v":0}]
[null,"C5.1.7.2","Non wetting-up collapsing soil trial section by excavating the soil to stockpile and then importing the soil from the stockpile to controlled compacted layers","cubic metre (m3)",null,null,0]
[null,"C5.1.7.3","Wetting-up collapsing soil trial section"]
[null,"C5.1.7.4","Inactive and normal clay","cubic metre (m3)",null,null,0]
[null,"C5.1.7.4(a)","By material modification","cubic metre (m3)",null,null,0]
[null,"C5.1.7.4(b)","By lime modification","cubic metre (m3)",null,null,0]
[null,"C5.1.7.4(c)","By removal of material","cubic metre (m3)",null,null,0]
[null,"C5.1.7.5","Active clay"]
[null,"C5.1.7.5(a)","Roadbed construction using lime","cubic metre (m3)",null,null,{"$f":"E1464*F1464","v":0}]
[null,"C5.1.7.5(b)","Roadbed construction by removal of active clay","cubic metre (m3)",null,null,0]
[null,"C5.1.7.6","Roller-pass compaction.","cubic metre (m3)",null,null,0]
[null,"C5.1.8","Construction of the roadbed in collapsing soil:"]
[null,"C5.1.8.1","Non wetting-up collapsing soil roadbed construction at in-situ moisture content using conventional rollers","cubic metre (m3)",null,null,{"$f":"E1468*F1468","v":0}]
[null,"C5.1.8.2","Non wetting-up collapsing soil roadbed construction at in-situ moisture content using HEIC","cubic metre (m3)",null,null,{"$f":"E1469*F1469","v":0}]
[null,"C5.1.8.3","Non wetting-up collapsing soil roadbed construction by excavating the soil to stockpile and then importing from the stockpile to controlled compacted layers","cubic metre (m3)",null,null,{"$f":"E1470*F1470","v":0}]
[null,"C5.1.8.4","Wetting-up collapsing soil roadbed construction","cubic metre (m3)",null,null,{"$f":"E1471*F1471","v":0}]
[null,"C5.1.8.5","Water for wetting-up collapsing soil roadbed construction","kilolitre (kℓ)",null,null,{"$f":"E1472*F1472","v":0}]
[null,"C5.1.9","Construction of roadbed comprising normal and  inactive clay:"]
[null,"C5.1.9.1","By material modification","cubic metre (m3)",null,null,{"$f":"E1474*F1474","v":0}]
[null,"C5.1.9.2","By lime modification","cubic metre (m3)",null,null,{"$f":"E1475*F1475","v":0}]
[null,"C5.1.9.3","By removal of material","cubic metre (m3)",null,null,{"$f":"E1476*F1476","v":0}]
[null,"C5.1.10","Construction of roadbed comprising active clay:"]
[null,"C5.1.10.1","Roadbed construction using lime","cubic metre (m3)",null,null,{"$f":"E1478*F1478","v":0}]
[null,"C5.1.10.2","Roadbed construction by removal of active clay","cubic metre (m3)",null,null,{"$f":"E1479*F1479","v":0}]
[null,"C5.1.11","Construction of roadbed comprising a pioneer layer","cubic metre (m3)",null,null,{"$f":"E1480*F1480","v":0}]
[null,"C5.1.12","Excavation for benches:"]
[null,"C5.1.12.1","Excavation for benches"]
[null,"C5.1.12.1(a)","Side-cut to fill in soft material","cubic metre (m3)",null,null,{"$f":"E1483*F1483","v":0}]
[null,"C5.1.12.1(b)","Side-cut to spoil in soft material","cubic metre (m3)",null,null,{"$f":"E1484*F1484","v":0}]
[null,"C5.1.12.2","Excavation for benches using labour enhancement"]
[null,"C5.1.12.2(a)","Side-cut to fill"]
[null,"C5.1.12.2(a)(i)","Soft material","cubic metre (m3)",null,null,{"$f":"E1487*F1487","v":0}]
[null,"C5.1.12.2(a)(ii)","Intermediate material","cubic metre (m3)",null,null,{"$f":"E1488*F1488","v":0}]
[null,"C5.1.12.2(b)","Side-cut to spoil"]
[null,"C5.1.12.2(b)(i)","Soft material","cubic metre (m3)",null,null,{"$f":"E1490*F1490","v":0}]
[null,"C5.1.12.2(b)(ii)","Intermediate material","cubic metre (m3)",null,null,{"$f":"E1491*F1491","v":0}]
[null,"C5.1.13","Construction of a levelling layer:"]
[null,"C5.1.13.1","Over roadbed treatment in hard material compacted to 90% MDD","cubic metre (m3)",null,null,{"$f":"E1493*F1493","v":0}]
[null,"C5.1.13.2","Over a constructed pioneer layer compacted to 90% MDD","cubic metre (m3)",null,null,{"$f":"E1494*F1494","v":0}]
[]
[]
[]
[null,"C5.1","TOTAL CARRIED FORWARD TO SUMMARY",{"$nulls":3},{"$f":"SUM(G1409:G1497)","v":0}]
[]
[null,"C5.2","FILL"]
[null,"C5.2.1","Compiling and implementing M&U plans:"]
[null,"C5.2.1.1","For fills more than 10 000 m3 (list all fills separately)","number (No.)",null,null,{"$f":"E1502*F1502","v":0}]
[null,"C5.2.1.2","For fills 1,0 km in length when less than 10 000 m3 (list all fills separately)","number (No.)",null,null,{"$f":"E1503*F1503","v":0}]
[null,"C5.2.2","Fill construction: "]
[null,"C5.2.2.1","Normal fill material in compacted layer thicknesses of 200mm and less:"]
[null,"C5.2.2.1(a)","Compacted to 90% of MDD","cubic metre (m3)",null,null,{"$f":"E1506*F1506","v":0}]
[null,"C5.2.2.1(b)","Compacted to 93% of MDD","cubic metre (m3)",null,null,{"$f":"E1507*F1507","v":0}]
[null,"C5.2.2.1(c)","Roller-pass compaction","square metre (m2)",null,null,{"$f":"E1508*F1508","v":0}]
[null,"C5.2.2.2","Coarse fill material in compacted layer thicknesses exceeding 200 mm but less than 500mm:"]
[null,"C5.2.2.2(a)","Compacted to 90% of MDD","cubic metre (m3)",null,null,{"$f":"E1510*F1510","v":0}]
[null,"C5.2.2.2(b)","Compacted to 93% of MDD","cubic metre (m3)",null,null,{"$f":"E1511*F1511","v":0}]
[null,"C5.2.2.2(c)","Roller-pass compaction","square metre (m2)",null,null,{"$f":"E1512*F1512","v":0}]
[null,"C5.2.2.3","Sand fill material in compacted layer thicknesses of 400mm and less, compacted to 100% of MDD "]
[null,"C5.2.2.4","Rock fill material all as per Clause A5.2.7.6","cubic metre (m3)",null,null,{"$f":"E1514*F1514","v":0}]
[null,"C5.2.2.5","Rock fill embankment toe","cubic metre (m3)",null,null,0]
[null,"C5.2.2.6","Sand filter layer","cubic metre (m3)",null,null,0]
[null,"C5.2.2.7","Drainage blanket layer","cubic metre (m3)",null,null,0]
[null,"C5.2.3","Side-cut to fill compacted to 93% of MDD in compacted layer thicknesses of 200mm and less","cubic metre (m3)",null,null,0]
[null,"C5.2.4","Correcting rock fills that are deficient in fine material, extra over C5.2.2.4","cubic metre (m3)",null,null,0]
[null,"C5.2.5","Fill in sidewalk: "]
[null,"C5.2.5.1","Fill material in sidewalk compacted to 93% of MDD","cubic metre (m3)",null,null,{"$f":"E1521*F1521","v":0}]
[null,"C5.2.5.2","Fill material in sidewalk compacted to 93% of MDD using labour enhanced methods of construction and light hand equipment","cubic metre (m3)",null,null,{"$f":"E1522*F1522","v":0}]
[null,"C5.2.6","Fill material in shoulder widening:"]
[null,"C5.2.6.1","Fill material in shoulder widening compacted to 93% of MDD ","cubic metre (m3)",null,null,{"$f":"E1524*F1524","v":0}]
[null,"C5.2.6.2","Fill material in shoulder widening compacted to 93% of MDD using labour enhancement and light hand equipment","cubic metre (m3)",null,null,{"$f":"E1525*F1525","v":0}]
[null,"C5.2.7","Construction of a trial section:"]
[null,"C5.2.7.1","Normal fill ","cubic metre (m3)",null,null,{"$f":"E1527*F1527","v":0}]
[null,"C5.2.7.2","Sand fill","cubic metre (m3)",null,null,{"$f":"E1528*F1528","v":0}]
[null,"C5.2.7.3","Rock fill","cubic metre (m3)",null,null,{"$f":"E1529*F1529","v":0}]
[null,"C5.2.7.4","Coarse fill  ","cubic metre (m3)",null,null,{"$f":"E1530*F1530","v":0}]
[null,"C5.2.7.5","Roller-pass compaction","cubic metre (m3)",null,null,{"$f":"E1531*F1531","v":0}]
[null,"C5.2.8","Breaking down oversize fill material on the road"]
[null,"C5.2.8.1","By normal grid rolling as per clause A5.3.7.3(b) (i) to (vii)","square metre-pass (m2-pass)",null,null,{"$f":"E1533*F1533","v":0}]
[null,"C5.2.8.2","By tamping roller","square metre-pass (m2-pass)",null,null,{"$f":"E1534*F1534","v":0}]
[null,"C5.2.8.3","By pad foot vibratory roller","square metre-pass (m2-pass)",null,null,{"$f":"E1535*F1535","v":0}]
[null,"C5.2.8.4","By vibratory roller","square metre-pass (m2-pass)",null,null,{"$f":"E1536*F1536","v":0}]
[null,"C5.2.9","Removal of oversize material","cubic metre (m3)",null,null,{"$f":"E1537*F1537","v":0}]
[null,"C5.2.10","Finishing off rock fill slopes:"]
[null,"C5.2.10.1","Finishing off rock fill slopes with soft material","cubic metre (m3)",null,null,{"$f":"E1539*F1539","v":0}]
[null,"C5.2.10.2","Finishing off rock fill slopes with soft material using labour enhancement and light hand equipment","cubic metre (m3)",null,null,{"$f":"E1540*F1540","v":0}]
[null,"C5.2.11","Finishing-off fill slopes, medians and interchange areas:"]
[null,"C5.2.11.1","Fill slopes","square metre (m2)",null,null,{"$f":"E1542*F1542","v":0}]
[null,"C5.2.11.2","Medians and interchange areas ","square metre (m2)",null,null,{"$f":"E1543*F1543","v":0}]
[]
[]
[]
[null,"C5.2","TOTAL CARRIED FORWARD TO SUMMARY",{"$nulls":3},{"$f":"SUM(G1502:G1546)","v":0}]
[]
[null,"C5.3","ROAD PAVEMENT LAYERS"]
[null,"C5.3.1","Compiling and implementing M&U plans for the construction of all the pavement layers.","number (No.)",1,null,{"$f":"E1550*F1550","v":0}]
[null,"C5.3.2","Construction of pavement layers"]
[null,"C5.3.2.1","Construction of layers using conventional construction methods:"]
[null,"C5.3.2.1(a)","Lower selected subgrade layer (layer thickness indicated) compacted to 93% of MDD","cubic metre (m3)",null,null,{"$f":"E1553*F1553","v":0}]
[null,"C5.3.2.1(b)","Lower selected subgrade layer (layer thickness indicated) compacted to 95% of MDD","cubic metre (m3)",290,null,0]
[null,"C5.3.2.1(c)","Upper selected subgrade layer (layer thickness indicated) compacted to 95% of MDD","cubic metre (m3)",null,null,0]
[null,"C5.3.2.1(d)","Upper selected subgrade layer (layer thickness indicated) compacted to 97% of MDD","cubic metre (m3)",280,null,0]
[null,"C5.3.2.1(e)","Sand layer (layer thickness indicated) compacted to 97% of MDD","cubic metre (m3)",null,null,0]
[null,"C5.3.2.1(f)","Sand layer (layer thickness indicated) compacted to 100% of MDD","cubic metre (m3)",null,null,0]
[null,"C5.3.2.1(g)","Gravel wearing course layer (layer thickness indicated) compacted to 95% of MDD","cubic metre (m3)",null,null,0]
[null,"C5.3.2.1(h)","Gravel shoulder layer (layer thickness indicated) compacted to 95% of MDD","cubic metre (m3)",750,null,0]
[null,"C5.3.2.1(i)","Lower subbase gravel layer (unstabilised) (layer thickness indicated) compacted to 95% of MDD","cubic metre (m3)",null,null,0]
[null,"C5.3.2.1(j)","Lower subbase gravel layer (chemically stabilised) (layer thickness indicated) compacted to 95% of MDD","cubic metre (m3)",null,null,0]
[null,"C5.3.2.1(k)","Upper subbase gravel layer (unstabilised) (layer thickness indicated) compacted to 97% of MDD","cubic metre (m3)",270,null,0]
[null,"C5.3.2.1(l)","Upper subbase gravel layer (chemically stabilised) (layer thickness indicated) compacted to 95% of MDD","cubic metre (m3)",null,null,0]
[null,"C5.3.2.1(m)","Gravel base layer (unstabilised) (layer thickness indicated) compacted to 100% of MDD","cubic metre (m3)",260,null,0]
[null,"C5.3.2.1(n)","Gravel base layer (chemically stabilised) (layer thickness indicated) compacted to 97% of MDD","cubic metre (m3)",null,null,0]
[null,"C5.3.2.1(o)","G5B crushed rock/boulder subbase layer (layer thickness indicated) compacted to 97% of MDD","cubic metre (m3)",null,null,0]
[null,"C5.3.2.1(p)","G5B crushed rock/boulder base layer (layer thickness indicated) compacted to 100% of MDD","cubic metre (m3)",null,null,0]
[null,"C5.3.2.1(q)","G5A crushed rock/boulder subbase layer (layer thickness indicated) compacted to 97% of MDD","cubic metre (m3)",null,null,0]
[null,"C5.3.2.1(r)","G5A crushed rock/boulder base layer (layer thickness indicated) compacted to 100% of MDD","cubic metre (m3)",null,null,0]
[null,"C5.3.2.1(s)","G4A crushed rock/boulder lower subbase layer (unstabilised or chemically stabilised) (layer thickness indicated) compacted to 95% of MDD","cubic metre (m3)",null,null,0]
[null,"C5.3.2.1(t)","G4A crushed rock/boulder upper subbase layer (unstabilised or chemically stabilised) (layer thickness indicated) compacted to 97% of MDD","cubic metre (m3)",null,null,0]
[null,"C5.3.2.1(u)","G4A crushed rock/boulder subbase layer compacted to 97% of MDD","cubic metre (m3)",null,null,0]
[null,"C5.3.2.1(v)","G3 crushed stone subbase layer (unstabilised or chemically stabilised) (layer thickness indicated) compacted to 97% of MDD","cubic metre (m3)",null,null,0]
[null,"C5.3.2.1(w)","G3 crushed stone base layer (layer thickness indicated) compacted to 85% of BD","cubic metre (m3)",null,null,0]
[null,"C5.3.2.1(x)","G2 crushed stone base layer (layer thickness indicated) compacted to 88% of BD ","cubic metre (m3)",null,null,0]
[null,"C5.3.2.1(y)","G2 crushed stone base layer (layer thickness indicated) compacted to 88% of AD ","cubic metre (m3)",null,null,0]
[null,"C5.3.2.1(z)","G1 crushed stone base layer (layer thickness indicated) compacted to 86 % of AD ","cubic metre (m3)",null,null,0]
[null,"C5.3.2.1(aa)","G1 crushed stone base layer (layer thickness indicated) compacted to 88 % of AD ","cubic metre (m3)",null,null,0]
[null,"C5.3.2.1(bb)","Bound macadam layer (layer thickness indicated) compacted to 90% of AD","cubic metre (m3)",null,null,0]
[null,"C5.3.2.1(cc)","PMPL wet lean-mix concrete layer (cube crushing strength and layer thickness indicated)","cubic metre (m3)",null,null,0]
[null,"C5.3.2.2","Construction of layers using labour enhancement:"]
[null,"C5.3.2.2(a)","Lower selected subgrade layer (layer thickness indicated) compacted to 93% of MDD","cubic metre (m3)",null,null,{"$f":"E1583*F1583","v":0}]
[null,"C5.3.2.2(b)","Upper selected subgrade layer (layer thickness indicated) compacted to 95% of MDD","cubic metre (m3)",null,null,0]
[null,"C5.3.2.2(c)","Sand layer (layer thickness indicated) compacted to 97% of MDD","cubic metre (m3)",null,null,0]
[null,"C5.3.2.2(d)","Sand layer (layer thickness indicated) compacted to 100% of MDD","cubic metre (m3)",null,null,0]
[null,"C5.3.2.2(e)","Gravel wearing course layer (layer thickness indicated) compacted to 95% of MDD","cubic metre (m3)",null,null,0]
[null,"C5.3.2.2(f)","Gravel shoulder layer (layer thickness indicated) compacted to 95% of MDD","cubic metre (m3)",750,null,0]
[null,"C5.3.2.2(g)","Lower gravel subbase layer (layer thickness indicated) compacted to 95% of MDD","cubic metre (m3)",null,null,0]
[null,"C5.3.2.2(h)","Upper gravel subbase layer (layer thickness indicated) compacted to 97% of MDD","cubic metre (m3)",null,null,0]
[null,"C5.3.2.2(i)","Gravel base layer (layer thickness indicated) compacted to 98% of MDD","cubic metre (m3)",null,null,0]
[null,"C5.3.2.2(j)","Gravel base layer (layer thickness indicated) compacted to 100% of MDD","cubic metre (m3)",null,null,0]
[null,"C5.3.2.2(k)","Bound macadam layer (layer thickness indicated) compacted to 90% of AD","cubic metre (m3)",null,null,0]
[null,"C5.3.2.2(l)","Soil cement or soilcrete (layer thickness indicated) wet mixture as per clause A4.1.5.14","cubic metre (m3)",null,null,0]
[null,"C5.3.2.2(m)","Soil cement or soilcrete (layer thickness indicated) stiff mixture as per clause A4.1.5.14","cubic metre (m3)",null,null,0]
[null,"C5.3.2.2(n)","Emulsion treated base material (G1 or G2 material and layer thickness indicated) as per clause A4.1.5.15","cubic metre (m3)",null,null,0]
[null,"C5.3.3","Construction of crushed stone base supplied by the Employer","cubic metre (m3)",null,null,0]
[null,"C5.3.4","Deductions for G1 crushed stone base material supplied by the Employer","ton (t)",null,null,0]
[null,"C5.3.5","Breaking down oversize layer material on the road:"]
[null,"C5.3.5.1","By additional normal grid rolling as per clause A5.3.7.3(b)","square metre-pass (m2-pass)",null,null,{"$f":"E1600*F1600","v":0}]
[null,"C5.3.5.2","By tamping roller ","square metre-pass (m2-pass)",null,null,0]
[null,"C5.3.5.3","By pad foot vibratory roller ","square metre-pass (m2-pass)",null,null,0]
[null,"C5.3.5.4","By vibratory roller ","square metre-pass (m2-pass)",null,null,0]
[null,"C5.3.5.5","By any other roller type","square metre-pass (m2-pass)",null,null,0]
[null,"C5.3.6","Removal of oversize material","cubic metre (m3)",null,null,0]
[null,"C5.3.7","Recombining recovered material","cubic metre (m3)",null,null,0]
[null,"C5.3.8","Processing of coarse gravel subbase or base layers","cubic metre (m3)",null,null,0]
[null,"C5.3.9","Construction of a trial section:"]
[null,"C5.3.9.1","Construction of a trial section using conventional methods of construction"]
[null,"C5.3.9.1(a)","Stabilised gravel layer (layer thickness indicated) trial section","cubic metre (m3)",null,null,{"$f":"E1610*F1610","v":0}]
[null,"C5.3.9.1(b)","Crushed stone subbase layer (layer thickness indicated) trial section","cubic metre (m3)",null,null,0]
[null,"C5.3.9.1(c)","Crushed stone base layer (layer thickness indicated) trial section","cubic metre (m3)",null,null,0]
[null,"C5.3.9.1(d)","PMPL layer (layer thickness indicated) trial section","cubic metre (m3)",null,null,0]
[null,"C5.3.9.1(e)","Bound macadam layer (layer thickness indicated) trial section","cubic metre (m3)",null,null,0]
[null,"C5.3.9.1(f)","… (any other)","cubic metre (m3)",null,null,0]
[null,"C5.3.9.2","Construction of a trial section using labour enhancement methods"]
[null,"C5.3.9.2(a)","Stabilised gravel layer (layer thickness indicated) trial section","cubic metre (m3)",null,null,{"$f":"E1617*F1617","v":0}]
[null,"C5.3.9.2(b)","Gravel base layer (layer thickness indicated) trial section","cubic metre (m3)",null,null,{"$f":"E1618*F1618","v":0}]
[null,"C5.3.9.2(c)","Bound macadam layer (layer thickness indicated) trial section","cubic metre (m3)",null,null,{"$f":"E1619*F1619","v":0}]
[null,"C5.3.9.2(d)","… (any other)","cubic metre (m3)",null,null,{"$f":"E1620*F1620","v":0}]
[null,"C5.3.10","Removal of a completed trial section"]
[null,"C5.1.10.1","Stabilised layer","cubic metre (m3)",null,null,{"$f":"E1622*F1622","v":0}]
[null,"C5.3.10.2","PMPL layer","cubic metre (m3)",null,null,{"$f":"E1623*F1623","v":0}]
[null,"C5.3.10.3","Crushed stone layer","cubic metre (m3)",null,null,{"$f":"E1624*F1624","v":0}]
[null,"C5.3.11","Riding quality measurements:"]
[null,"C5.3.11.1","Using a 3,0m straight edge","kilometre (km)",null,null,{"$f":"E1626*F1626","v":0}]
[null,"C5.3.11.2","Using a rolling straight edge","kilometre (km)",null,null,{"$f":"E1627*F1627","v":0}]
[null,"C5.3.11.3","Using an inertial profilometer","kilometre (km)",null,null,{"$f":"E1628*F1628","v":0}]
[null,"C5.3.12","Surface regularity payment adjustments","provisional sum"]
[]
[]
[]
[null,"C5.3","TOTAL CARRIED FORWARD TO SUMMARY",{"$nulls":3},{"$f":"SUM(G1550:G1632)","v":0}]
[]
[null,"C5.4","STABILISATION"]
[null,"C5.4.1","Pre-treatment of gravel layers:"]
[null,"C5.4.1.1","Pre-treatment of (insert layer thickness) gravel layer","cubic metre (m3)",null,null,{"$f":"E1637*F1637","v":0}]
[null,"C5.4.1.2","Pre-treatment of (insert layer thickness) gravel layer using labour enhanced methods of construction","cubic metre (m3)",null,null,{"$f":"E1638*F1638","v":0}]
[null,"C5.4.2","Chemical stabilisation:"]
[null,"C5.4.2.1","Chemical stabilisation (layer thickness indicated) of pavement layers (layer to be stabilised indicated) ","cubic metre (m3)",null,null,{"$f":"E1640*F1640","v":0}]
[null,"C5.4.2.2","Chemical stabilisation (layer thickness indicated) of pavement layers (layer to be stabilised indicated) using labour enhanced methods of construction","cubic metre (m3)",null,null,{"$f":"E1641*F1641","v":0}]
[null,"C5.4.3","Stabilised crushed stone PMPL layer: (pavement layer, type of material and source indicated) ","cubic metre (m3)",null,null,{"$f":"E1642*F1642","v":0}]
[null,"C5.4.4","Wet lean-mix concrete pavement PMPL layer (indicate specific pavement layer)","cubic metre (m3)",null,null,{"$f":"E1643*F1643","v":0}]
[null,"C5.4.5","Cementitious stabilisation agents for pavement layers:"]
[null,"C5.4.5.1","Addition of cementitious stabilisation agents (specify agent separately) for pavement layers"]
[null,"C5.4.5.1(a)","Cement (for pavement layer)","ton (t)",null,null,{"$f":"E1646*F1646","v":0}]
[null,"C5.4.5.1(b)","And so forth for other agents (for pavement layers)","ton (t)",null,null,{"$f":"E1647*F1647","v":0}]
[null,"C5.4.5.2","Addition of cementitious stabilisation agents (specify agent separately) for pavement layers and spreading the agent using bags and labour enhancement methods."]
[null,"C5.4.5.2(a)","Cement (for pavement layer)","ton (t)",null,null,{"$f":"E1649*F1649","v":0}]
[null,"C5.4.5.2(b)","And so forth for other agents (for pavement layers)","ton (t)",null,null,{"$f":"E1650*F1650","v":0}]
[null,"C5.4.6","Addition of cementitious stabilisation agents (specify agent separately) for a PMPL layer:"]
[null,"C5.4.6.1","Cement","ton (t)",null,null,{"$f":"E1652*F1652","v":0}]
[null,"C5.4.6.2","And so forth for other agents","ton (t)",null,null,{"$f":"E1653*F1653","v":0}]
[null,"C5.4.7","Bituminous stabilisation of pavement layers "]
[null,"C5.4.7.1","Bituminous stabilisation (layer thickness indicated) of payment layers (layer to be indicated)","litre (ℓ)",null,null,{"$f":"E1655*F1655","v":0}]
[null,"C5.4.7.2","Bituminous stabilisation (layer thickness indicated) of payment layers (layer to be indicated) using labour enhanced methods of construction","litre (ℓ)",null,null,{"$f":"E1656*F1656","v":0}]
[null,"C5.4.8","Bituminous stabilisation agent (specify agents separately):"]
[null,"C5.4.8.1","60% anionic emulsion","litre (ℓ)",null,null,{"$f":"E1658*F1658","v":0}]
[null,"C5.4.8.2","60% cationic emulsion","litre (ℓ)",null,null,{"$f":"E1659*F1659","v":0}]
[null,"C5.4.8.3","Foamed bitumen","litre (ℓ)",null,null,{"$f":"E1660*F1660","v":0}]
[null,"C5.4.8.4","… (any other)","litre (ℓ)",null,null,{"$f":"E1661*F1661","v":0}]
[null,"C5.4.9","Filler for bituminous stabilisation"]
[null,"C5.4.9.1","Filler for bituminous stabilisation (specify agents separately)","ton (t)",null,null,{"$f":"E1663*F1663","v":0}]
[null,"C5.4.9.2","Filler for bituminous stabilisation spreading the agent or filler using labour enhanced methods of construction (specify agents separately)","ton (t)",null,null,{"$f":"E1664*F1664","v":0}]
[null,"C5.4.10","Provision and application of water for curing","kilolitre (kℓ)",null,null,{"$f":"E1665*F1665","v":0}]
[null,"C5.4.11","Curing by covering with the subsequent layer","square metre (m2)",null,null,{"$f":"E1666*F1666","v":0}]
[null,"C5.4.12","Curing with a membrane (type of material to be specified):"]
[null,"C5.4.12.1","Cut back bitumen","litre (ℓ)",null,null,{"$f":"E1668*F1668","v":0}]
[null,"C5.4.12.2","Inverted bitumen emulsion","litre (ℓ)",null,null,0]
[null,"C5.4.12.3","Spray grade emulsion","litre (ℓ)",null,null,0]
[null,"C5.4.12.4","Curing compound for PMPL layers","litre (ℓ)",null,null,0]
[null,"C5.4.13","Trial section for a PMPL layer (specify width)","square metre (m2)",null,null,0]
[null,"C5.4.14","Trial section for a chemically stabilised layer","cubic metre (m3)",null,null,0]
[null,"C5.4.15","Trial section for a bituminously stabilised layer (specify width)","square metre (m2)",null,null,0]
[null,"C5.4.16","Mechanical modification","cubic metre (m3)",null,null,0]
[null,"C5.4.17","Addition of a soil binder","cubic metre (m3)",null,null,0]
[]
[]
[]
[null,"C5.4","TOTAL CARRIED FORWARD TO SUMMARY",{"$nulls":3},{"$f":"SUM(G1637:G1679)","v":0}]
[]
[null,"C5.5","RECONSTRUCTION OF PAVEMENT LAYERS"]
[null,"C5.5.1","Compiling and implementing M&U plans for the reconstruction of an existing road pavement","number (No.)",null,null,{"$f":"E1683*F1683","v":0}]
[null,"C5.5.2","Reconstruction preparatory work:"]
[null,"C5.5.2.1","Undivided carriageway: "]
[null,"C5.5.2.1(a)","Uniform section from km … to km … (specify)","kilometre (km)",null,null,{"$f":"E1686*F1686","v":0}]
[null,"C5.5.2.1(b)","Uniform section from km … to km … (specify)","kilometre (km)",null,null,{"$f":"E1687*F1687","v":0}]
[null,"C5.5.2.1(c)","Additional uniform sections","kilometre (km)",null,null,{"$f":"E1688*F1688","v":0}]
[null,"C5.5.2.2","Divided carriageway:"]
[null,"C5.5.2.2(a)","Uniform section from km … to km … (specify)","kilometre (km)",null,null,{"$f":"E1690*F1690","v":0}]
[null,"C5.5.2.2(b)","Uniform section from km … to km … (specify)","kilometre (km)",null,null,0]
[null,"C5.5.2.2(c)","Additional uniform sections","kilometre (km)",null,null,0]
[null,"C5.5.3","Construction equipment for sampling of in-situ material for mix design procedure","number (No.)",null,null,0]
[null,"C5.5.4","Sampling of in-situ material for mix design procedure","number (No.)",null,null,0]
[null,"C5.5.5","Construction of a trial section using a recycler","cubic metre (m3)",null,null,0]
[null,"C5.5.6","Construction of a trial section using conventional construction equipment","cubic metre (m3)",null,null,0]
[null,"C5.5.7","Pre-milling existing wearing course material:"]
[null,"C5.5.7.1","Pre-milling an asphalt wearing course (depth of pre-milling varies between 10mm and 40mm maximum)","square metre (m2)",null,null,{"$f":"E1698*F1698","v":0}]
[null,"C5.5.7.2","Pre-milling a seal wearing course (depth of pre-milling varies between 10mm and 25mm)","square metre (m2)",null,null,{"$f":"E1699*F1699","v":0}]
[null,"C5.5.8","Pre-pulverising material in the existing pavement"]
[null,"C5.5.8.1","Asphalt wearing course (specify nominal depth)","cubic metre (m3)",null,null,{"$f":"E1701*F1701","v":0}]
[null,"C5.5.8.2","Crushed stone base (specify nominal depth)","cubic metre (m3)",null,null,{"$f":"E1702*F1702","v":0}]
[null,"C5.5.8.3","Stabilised crushed stone (specify nominal depth)","cubic metre (m3)",null,null,{"$f":"E1703*F1703","v":0}]
[null,"C5.5.8.4","Stabilised gravel layer (specify nominal depth)","cubic metre (m3)",null,null,{"$f":"E1704*F1704","v":0}]
[null,"C5.5.9","Temporarily blading layer material to windrow","cubic metre (m3)",null,null,{"$f":"E1705*F1705","v":0}]
[null,"C5.5.10","Roller-pass compaction of an exposed pavement layer"]
[null,"C5.5.10.1","Smooth drum vibratory rollers","square metre (m2)",null,null,{"$f":"E1707*F1707","v":0}]
[null,"C5.5.10.2","Other vibratory rollers (specify)","square metre (m2)",null,null,0]
[null,"C5.5.10.3","Pneumatic-tyred rollers","square metre (m2)",null,null,0]
[null,"C5.5.10.4","Other rollers (specify)","square metre (m2)",null,null,0]
[null,"C5.5.11","Watering the exposed pavement layer","kilolitre (kℓ)",null,null,0]
[null,"C5.5.12","Removal of surplus material from site","cubic metre (m3)",null,null,0]
[null,"C5.5.13","Cross mixing of material (specify nominal depth)","cubic metre (m3)",null,null,0]
[null,"C5.5.14","In-situ reconstruction of a pavement layer using a recycler to construct a stabilised selected layer"]
[null,"C5.5.14.1","Chemically stabilised selected layer compacted to 95% of MDD:"]
[null,"C5.5.14.1(a)","Using non-cemented material compacted to ... mm thick (specify)","cubic metre (m3)",null,null,{"$f":"E1716*F1716","v":0}]
[null,"C5.5.14.1(b)","Using cemented material compacted to ... mm thick (specify)","cubic metre (m3)",null,null,{"$f":"E1717*F1717","v":0}]
[null,"C5.5.14.1(c)","Using a combination of non-cemented and cemented material compacted to ... mm thick (specify)","cubic metre (m3)",null,null,{"$f":"E1718*F1718","v":0}]
[null,"C5.5.14.1(d)","Using pre-pulverised material (as per item C5.5.8) compacted to ... mm thick (specify)","cubic metre (m3)",null,null,{"$f":"E1719*F1719","v":0}]
[null,"C5.5.14.2","Emulsion stabilised selected layer compacted to 95% of MDD:"]
[null,"C5.5.14.2(a)","Using non-cemented material compacted to ... mm thick (specify)","cubic metre (m3)",null,null,{"$f":"E1721*F1721","v":0}]
[null,"C5.5.14.2(b)","Using cemented material compacted to ... mm thick (specify)","cubic metre (m3)",null,null,{"$f":"E1722*F1722","v":0}]
[null,"C5.5.14.2(c)","Using a combination of non-cemented and cemented material compacted to ... mm thick (specify) ","cubic metre (m3)",null,null,{"$f":"E1723*F1723","v":0}]
[null,"C5.5.14.2(d)","Using pre-pulverised material (as per item C5.5.8) compacted to ... mm thick (specify)","cubic metre (m3)",null,null,{"$f":"E1724*F1724","v":0}]
[null,"C5.5.14.3","Foam stabilised selected layer compacted to 95% of MDD"]
[null,"C5.5.14.3(a)","Using non-cemented material compacted to ... mm thick (specify)","cubic metre (m3)",null,null,{"$f":"E1726*F1726","v":0}]
[null,"C5.5.14.3(b)","Using cemented material compacted to ... mm thick (specify)","cubic metre (m3)",null,null,{"$f":"E1727*F1727","v":0}]
[null,"C5.5.14.3(c)","Using a combination of non-cemented and cemented material compacted to ... mm thick (specify)","cubic metre (m3)",null,null,{"$f":"E1728*F1728","v":0}]
[null,"C5.5.14.3(d)","Using pre-pulverised material (as per item C5.5.8) compacted to ... mm thick (specify)","cubic metre (m3)",null,null,{"$f":"E1729*F1729","v":0}]
[null,"C5.5.15","In-situ reconstruction of a pavement layer using a recycler to construct a stabilised subbase layer"]
[null,"C5.5.15.1","Chemically stabilised subbase layer compacted to 97% of MDD:"]
[null,"C5.5.15.1(a)","Using non-cemented material compacted to ... mm thick (specify)","cubic metre (m3)",null,null,{"$f":"E1732*F1732","v":0}]
[null,"C5.5.15.1(b)","Using cemented material compacted to ... mm thick (specify)","cubic metre (m3)",null,null,{"$f":"E1733*F1733","v":0}]
[null,"C5.5.15.1(c)","Using a combination of non-cemented and cemented material compacted to ... mm thick (specify)","cubic metre (m3)",null,null,{"$f":"E1734*F1734","v":0}]
[null,"C5.5.15.1(d)","Using pre-pulverised material (as per item C5.5.8) compacted to ... mm thick (specify)","cubic metre (m3)",null,null,{"$f":"E1735*F1735","v":0}]
[null,"C5.5.15.2","Emulsion stabilised subbase layer compacted to 97% of MDD:"]
[null,"C5.5.15.2(a)","Using non-cemented material compacted to ... mm thick (specify)","cubic metre (m3)",null,null,{"$f":"E1737*F1737","v":0}]
[null,"C5.5.15.2(b)","Using cemented material compacted to ... mm thick (specify)","cubic metre (m3)",null,null,{"$f":"E1738*F1738","v":0}]
[null,"C5.5.15.2(c)","Using a combination of non-cemented and cemented material compacted to ... mm thick (specify)","cubic metre (m3)",null,null,{"$f":"E1739*F1739","v":0}]
[null,"C5.5.15.2(d)","Using pre-pulverised material (as per item C5.5.8) compacted to ... mm thick (specify)","cubic metre (m3)",null,null,{"$f":"E1740*F1740","v":0}]
[null,"C5.5.15.3","Foam stabilised subbase layer compacted to 97% of MDD"]
[null,"C5.5.15.3(a)","Using non-cemented material compacted to ... mm thick (specify)","cubic metre (m3)",null,null,{"$f":"E1742*F1742","v":0}]
[null,"C5.5.15.3(b)","Using cemented material compacted to ... mm thick (specify)","cubic metre (m3)",null,null,{"$f":"E1743*F1743","v":0}]
[null,"C5.5.15.3(c)","Using a combination of non-cemented and cemented material compacted to ... mm thick (specify) ","cubic metre (m3)",null,null,{"$f":"E1744*F1744","v":0}]
[null,"C5.5.15.3(d)","Using pre-pulverised material (as per item C5.5.8) compacted to ... mm thick (specify)","cubic metre (m3)",null,null,{"$f":"E1745*F1745","v":0}]
[null,"C5.5.16","In-situ reconstruction of a pavement layer using a recycler to construct a stabilised base layer"]
[null,"C5.5.16.1","Chemically stabilised base layer compacted to 100% of MDD:"]
[null,"C5.5.16.1(a)","Using non-cemented material compacted to ... mm thick (specify)","cubic metre (m3)",null,null,{"$f":"E1748*F1748","v":0}]
[null,"C5.5.16.1(b)","Using cemented material compacted to ... mm thick (specify)","cubic metre (m3)",null,null,{"$f":"E1749*F1749","v":0}]
[null,"C5.5.16.1(c)","Using a combination of non-cemented and cemented material compacted to ... mm thick (specify)","cubic metre (m3)",null,null,{"$f":"E1750*F1750","v":0}]
[null,"C5.5.16.1(d)","Using pre-pulverised material (as per item C5.5.8) compacted to ... mm thick (specify)","cubic metre (m3)",null,null,{"$f":"E1751*F1751","v":0}]
[null,"C5.5.16.2","Emulsion stabilised subbase layer compacted to 102% of MDD:"]
[null,"C5.5.16.2(a)","Using non-cemented material compacted to ... mm thick (specify)","cubic metre (m3)",null,null,{"$f":"E1753*F1753","v":0}]
[null,"C5.5.16.2(b)","Using cemented material compacted to ... mm thick (specify)","cubic metre (m3)",null,null,{"$f":"E1754*F1754","v":0}]
[null,"C5.5.16.2(c)","Using a combination of non-cemented and cemented material compacted to ... mm thick (specify)  ","cubic metre (m3)",null,null,{"$f":"E1755*F1755","v":0}]
[null,"C5.5.16.2(d)","Using pre-pulverised material (as per item C5.5.8) compacted to ... mm thick (specify)","cubic metre (m3)",null,null,{"$f":"E1756*F1756","v":0}]
[null,"C5.5.16.3","Foam stabilised subbase layer compacted to 102% of MDD"]
[null,"C5.5.16.3(a)","Using non-cemented material compacted to ... mm thick (specify)","cubic metre (m3)",null,null,{"$f":"E1758*F1758","v":0}]
[null,"C5.5.16.3(b)","Using cemented material compacted to ... mm thick (specify)","cubic metre (m3)",null,null,{"$f":"E1759*F1759","v":0}]
[null,"C5.5.16.3(c)","Using a combination of non-cemented and cemented material compacted to ... mm thick (specify)","cubic metre (m3)",null,null,{"$f":"E1760*F1760","v":0}]
[null,"C5.5.16.3(d)","Using pre-pulverised material (as per item C5.5.8) compacted to ... mm thick (specify)","cubic metre (m3)",null,null,{"$f":"E1761*F1761","v":0}]
[null,"C5.5.17","In-situ reconstruction of a pavement layer using conventional construction equipment to construct a stabilised selected layer"]
[null,"C5.5.17.1","Chemically stabilised selected layer compacted to 95% of MDD:"]
[null,"C5.5.17.1(a)","Using non-cemented material compacted to ... mm thick (specify)","cubic metre (m3)",null,null,{"$f":"E1764*F1764","v":0}]
[null,"C5.5.17.1(b)","Using cemented material compacted to ... mm thick (specify)","cubic metre (m3)",null,null,{"$f":"E1765*F1765","v":0}]
[null,"C5.5.17.1(c)","Using a combination of non-cemented and cemented material compacted to ... mm thick (specify)","cubic metre (m3)",null,null,{"$f":"E1766*F1766","v":0}]
[null,"C5.5.17.1(d)","Using pre-pulverised material (as per item C5.5.8) compacted to ... mm thick (specify)","cubic metre (m3)",null,null,{"$f":"E1767*F1767","v":0}]
[null,"C5.5.17.2","Emulsion stabilised selected layer compacted to 95% of MDD:"]
[null,"C5.5.17.2(a)","Using non-cemented material compacted to ... mm thick (specify)","cubic metre (m3)",null,null,{"$f":"E1769*F1769","v":0}]
[null,"C5.5.17.2(b)","Using cemented material compacted to ... mm thick (specify)","cubic metre (m3)",null,null,{"$f":"E1770*F1770","v":0}]
[null,"C5.5.17.2(c)","Using a combination of non-cemented and cemented material compacted to ... mm thick (specify)","cubic metre (m3)",null,null,{"$f":"E1771*F1771","v":0}]
[null,"C5.5.17.2(d)","Using pre-pulverised material (as per item C5.5.8) compacted to ... mm thick (specify)","cubic metre (m3)",null,null,{"$f":"E1772*F1772","v":0}]
[null,"C5.5.17.3","Foam stabilised selected layer compacted to 95% of MDD"]
[null,"C5.5.17.3(a)","Using non-cemented material compacted to ... mm thick (specify)","cubic metre (m3)",null,null,{"$f":"E1774*F1774","v":0}]
[null,"C5.5.17.3(b)","Using cemented material compacted to ... mm thick (specify)","cubic metre (m3)",null,null,{"$f":"E1775*F1775","v":0}]
[null,"C5.5.17.3(c)","Using a combination of non-cemented and cemented material compacted to ... mm thick (specify)","cubic metre (m3)",null,null,{"$f":"E1776*F1776","v":0}]
[null,"C5.5.17.3(d)","Using pre-pulverised material (as per item C5.5.8) compacted to ... mm thick (specify)","cubic metre (m3)",null,null,{"$f":"E1777*F1777","v":0}]
[null,"C5.5.18","In-situ reconstruction of a pavement layer using conventional construction equipment to construct a stabilised subbase layer"]
[null,"C5.5.18.1","Chemically stabilised subbase layer compacted to 97% of MDD:"]
[null,"C5.5.18.1(a)","Using non-cemented material compacted to ... mm thick (specify)","cubic metre (m3)",null,null,{"$f":"E1780*F1780","v":0}]
[null,"C5.5.18.1(b)","Using cemented material compacted to ... mm thick (specify)","cubic metre (m3)",null,null,{"$f":"E1781*F1781","v":0}]
[null,"C5.5.18.1(c)","Using a combination of non-cemented and cemented material compacted to ... mm thick (specify)","cubic metre (m3)",null,null,{"$f":"E1782*F1782","v":0}]
[null,"C5.5.18.1(d)","Using pre-pulverised material (as per item C5.5.8) compacted to … mm thick (specify)","cubic metre (m3)",null,null,{"$f":"E1783*F1783","v":0}]
[null,"C5.5.18.2","Emulsion stabilised subbase layer compacted to 97% of MDD:"]
[null,"C5.5.18.2(a)","Using non-cemented material compacted to ... mm thick (specify)","cubic metre (m3)",null,null,{"$f":"E1785*F1785","v":0}]
[null,"C5.5.18.2(b)","Using cemented material compacted to ... mm thick (specify)","cubic metre (m3)",null,null,{"$f":"E1786*F1786","v":0}]
[null,"C5.5.18.2(c)","Using a combination of non-cemented and cemented material compacted to ... mm thick (specify)","cubic metre (m3)",null,null,{"$f":"E1787*F1787","v":0}]
[null,"C5.5.18.2(d)","Using pre-pulverised material (as per item C5.5.8) compacted to ... mm thick (specify)","cubic metre (m3)",null,null,{"$f":"E1788*F1788","v":0}]
[null,"C5.5.18.3","Foam stabilised subbase layer compacted to 97% of MDD"]
[null,"C5.5.18.3(a)","Using non-cemented material compacted to ... mm thick (specify)","cubic metre (m3)",null,null,{"$f":"E1790*F1790","v":0}]
[null,"C5.5.18.3(b)","Using cemented material compacted to ... mm thick (specify)","cubic metre (m3)",null,null,{"$f":"E1791*F1791","v":0}]
[null,"C5.5.18.3(c)","Using a combination of non-cemented and cemented material compacted to ... mm thick (specify) ","cubic metre (m3)",null,null,{"$f":"E1792*F1792","v":0}]
[null,"C5.5.18.3(d)","Using pre-pulverised material (as per item C5.5.8) compacted to ... mm thick (specify)","cubic metre (m3)",null,null,{"$f":"E1793*F1793","v":0}]
[null,"C5.5.19","In-situ reconstruction of a pavement layer using conventional construction equipment to construct a stabilised base layer"]
[null,"C5.5.19.1","Chemically stabilised base layer compacted to 98 % of MDD:"]
[null,"C5.5.19.1(a)","Using non-cemented material compacted to ... mm thick (specify)","cubic metre (m3)",null,null,{"$f":"E1796*F1796","v":0}]
[null,"C5.5.19.1(b)","Using cemented material compacted to ... mm thick (specify)","cubic metre (m3)",null,null,{"$f":"E1797*F1797","v":0}]
[null,"C5.5.19.1(c)","Using a combination of non-cemented and cemented material compacted to ... mm thick (specify)","cubic metre (m3)",null,null,{"$f":"E1798*F1798","v":0}]
[null,"C5.5.19.1(d)","Using pre-pulverised material (as per item C5.5.8) compacted to ... mm thick (specify)","cubic metre (m3)",null,null,{"$f":"E1799*F1799","v":0}]
[null,"C5.5.19.2","Emulsion stabilised base layer compacted to 102% of MDD:"]
[null,"C5.5.19.2(a)","Using non-cemented material compacted to ... mm thick (specify)","cubic metre (m3)",null,null,{"$f":"E1801*F1801","v":0}]
[null,"C5.5.19.2(b)","Using cemented material compacted to ... mm thick (specify)","cubic metre (m3)",null,null,{"$f":"E1802*F1802","v":0}]
[null,"C5.5.19.2(c)","Using a combination of non-cemented and cemented material compacted to ... mm thick (specify)","cubic metre (m3)",null,null,{"$f":"E1803*F1803","v":0}]
[null,"C5.5.19.2(d)","Using pre-pulverised material (as per item C5.5.8) compacted to ... mm thick (specify)","cubic metre (m3)",null,null,{"$f":"E1804*F1804","v":0}]
[null,"C5.5.19.3","Foam stabilised base layer compacted to 102% of MDD"]
[null,"C5.5.19.3(a)","Using non-cemented material compacted to ... mm thick (specify)","cubic metre (m3)",null,null,{"$f":"E1806*F1806","v":0}]
[null,"C5.5.19.3(b)","Using cemented material compacted to ... mm thick (specify)","cubic metre (m3)",null,null,{"$f":"E1807*F1807","v":0}]
[null,"C5.5.19.3(c)","Using a combination of non-cemented and cemented material compacted to ... mm thick (specify)","cubic metre (m3)",null,null,{"$f":"E1808*F1808","v":0}]
[null,"C5.5.19.3(d)","Using pre-pulverised material (as per item C5.5.8) compacted to ... mm thick (specify)","cubic metre (m3)",null,null,{"$f":"E1809*F1809","v":0}]
[null,"C5.5.20","Material shortfall or make-up material"]
[null,"C5.5.20.1","For selected layer ","cubic metre (m3)",null,null,{"$f":"E1811*F1811","v":0}]
[null,"C5.5.20.2","For subbase layer ","cubic metre (m3)",null,null,{"$f":"E1812*F1812","v":0}]
[null,"C5.5.20.3","For base layer ","cubic metre (m3)",null,null,{"$f":"E1813*F1813","v":0}]
[null,"C5.5.21","Finishing the stabilised layer"]
[null,"C5.5.21.1","Slush trial section with:"]
[null,"C5.5.21.1(a)","Water","square metre (m2)",null,null,{"$f":"E1816*F1816","v":0}]
[null,"C5.5.21.1(b)","Diluted emulsion","square metre (m2)",null,null,{"$f":"E1817*F1817","v":0}]
[null,"C5.5.21.2","Slush reconstructed section with:"]
[null,"C5.5.21.2(a)","Water","square metre (m2)",null,null,{"$f":"E1819*F1819","v":0}]
[null,"C5.5.21.2(b)","Diluted emulsion","square metre (m2)",null,null,{"$f":"E1820*F1820","v":0}]
[null,"C5.5.21.3","Application of a diluted emulsion spray","litre (ℓ)",null,null,{"$f":"E1821*F1821","v":0}]
[null,"C5.5.22","Excavate pavement layers for patching in existing pavements"]
[null,"C5.5.22.1","Excavate the following layers:"]
[null,"C5.5.22.1(a)","Asphalt layers with a surface area: "]
[null,"C5.5.22.1(a)(i)","Not exceeding 20 m2, including for edge repairs wider than 250mm ","cubic metre (m3)",null,null,{"$f":"E1825*F1825","v":0}]
[null,"C5.5.22.1(a)(ii)","Exceeding 20 m2 but not exceeding 50 m2, including for edge repairs wider than 250mm","cubic metre (m3)",null,null,{"$f":"E1826*F1826","v":0}]
[null,"C5.5.22.1(a)(iii)","Exceeding 50 m2 but not exceeding 100 m2, including for edge repairs wider than 250mm. ","cubic metre (m3)",null,null,{"$f":"E1827*F1827","v":0}]
[null,"C5.5.22.1(b)","Cemented layers with a surface area:"]
[null,"C5.5.22.1(b)(i)","Not exceeding 20 m2, including for edge repairs wider than 250mm ","cubic metre (m3)",null,null,{"$f":"E1829*F1829","v":0}]
[null,"C5.5.22.1(b)(ii)","Exceeding 20 m2 but not exceeding 50 m2, including for edge repairs wider than 250mm","cubic metre (m3)",null,null,{"$f":"E1830*F1830","v":0}]
[null,"C5.5.22.1(b)(iii)","Exceeding 50 m2 but not exceeding 100 m2, including for edge repairs wider than 250mm ","cubic metre (m3)",null,null,{"$f":"E1831*F1831","v":0}]
[null,"C5.5.22.1(c)","Any other layers (specify layer) with a surface area:"]
[null,"C5.5.22.1(c)(i)","Not exceeding 20 m2, including for edge repairs wider than 250mm ","cubic metre (m3)",null,null,{"$f":"E1833*F1833","v":0}]
[null,"C5.5.22.1(c)(ii)","Exceeding 20 m2 but not exceeding 50 m2, including for edge repairs wider than 250mm","cubic metre (m3)",null,null,{"$f":"E1834*F1834","v":0}]
[null,"C5.5.22.1(c)(iii)","Exceeding 50 m2 but not exceeding 100 m2, including for edge repairs wider than 250mm. ","cubic metre (m3)",null,null,{"$f":"E1835*F1835","v":0}]
[null,"C5.5.22.2","Excavate the following layers using labour enhanced methods of construction:"]
[null,"C5.5.22.2(a)","Asphalt layers with a surface area:  "]
[null,"C5.5.22.2(a)(i)","Not exceeding 20 m2, including for edge repairs wider than 250mm ","cubic metre (m3)",null,null,{"$f":"E1838*F1838","v":0}]
[null,"C5.5.22.2(a)(ii)","Exceeding 20 m2 but not exceeding 50 m2, including for edge repairs wider than 250mm","cubic metre (m3)",null,null,{"$f":"E1839*F1839","v":0}]
[null,"C5.5.22.2(a)(iii)","Exceeding 50 m2 but not exceeding 100 m2, including for edge repairs wider than 250mm","cubic metre (m3)",null,null,{"$f":"E1840*F1840","v":0}]
[null,"C5.5.22.2(b)","Cemented layers with a surface area:"]
[null,"C5.5.22.2(b)(i)","Not exceeding 20 m2, including for edge repairs wider than 250mm ","cubic metre (m3)",null,null,{"$f":"E1842*F1842","v":0}]
[null,"C5.5.22.2(b)(ii)","Exceeding 20 m2 but not exceeding 50 m2, including for edge repairs wider than 250mm","cubic metre (m3)",null,null,{"$f":"E1843*F1843","v":0}]
[null,"C5.5.22.2(b)(iii)","Exceeding 50 m2 but not exceeding 100 m2, including for edge repairs wider than 250mm ","cubic metre (m3)",null,null,{"$f":"E1844*F1844","v":0}]
[null,"C5.5.22.2(c)","Any other layers (specify type) with a surface area:"]
[null,"C5.5.22.2(c)(i)","Not exceeding 20 m2, including for edge repairs wider than 250mm ","cubic metre (m3)",null,null,{"$f":"E1846*F1846","v":0}]
[null,"C5.5.22.2(c)(ii)","Exceeding 20 m2 but not exceeding 50 m2, including for edge repairs wider than 250mm","cubic metre (m3)",null,null,{"$f":"E1847*F1847","v":0}]
[null,"C5.5.22.2(c)(iii)","Exceeding 50 m2 but not exceeding 100 m2, including for edge repairs wider than 250mm ","cubic metre (m3)",null,null,{"$f":"E1848*F1848","v":0}]
[null,"C5.5.23","Edge break cutting back when narrower than 250mm"]
[null,"C5.5.23.1","Edge break cutting back when narrower than 250mm","metre (m)",null,null,{"$f":"E1850*F1850","v":0}]
[null,"C5.5.23.2","Edge break cutting back when narrower than 250mm using labour enhanced methods of construction","metre (m)",null,null,{"$f":"E1851*F1851","v":0}]
[null,"C5.5.24","Edge break patching when narrower than 250mm"]
[null,"C5.5.24.1","Edge break patching using emulsion treated base (ETB) material to a maximum depth of 150mm","metre (m)",null,null,{"$f":"E1853*F1853","v":0}]
[null,"C5.5.24.2","Edge break patching using labour enhanced methods of construction and ETB to a maximum depth of 150mm","metre (m)",null,null,{"$f":"E1854*F1854","v":0}]
[null,"C5.5.25","Compacting the floor of the excavation for patching","square metre (m2)",null,null,{"$f":"E1855*F1855","v":0}]
[null,"C5.5.26","Backfill patching excavations in existing pavements: "]
[null,"C5.5.26.1","Backfill with the following pavement layer material:"]
[null,"C5.5.26.1(a)","Chemically stabilised pavement layer material (specify the pavement layer, the material source being from commercial or from stockpile, the % stabilising agent and the % of MDD) for a patch with a surface area:"]
[null,"C5.5.26.1(a)(i)","Not exceeding 20 m2, including for edge repairs wider than 250mm ","cubic metre (m3)",null,null,{"$f":"E1859*F1859","v":0}]
[null,"C5.5.26.1(a)(ii)","Exceeding 20 m2 but not exceeding 50 m2, including for edge repairs wider than 250mm","cubic metre (m3)",null,null,{"$f":"E1860*F1860","v":0}]
[null,"C5.5.26.1(a)(iii)","Exceeding 50 m2 but not exceeding 100 m2, including for edge repairs wider than 250mm ","cubic metre (m3)",null,null,{"$f":"E1861*F1861","v":0}]
[null,"C5.5.26.1(b)","Emulsion treated base, or ETB pavement material (specify the pavement layer, the material source being from commercial or from stockpile, the components as per Clause A4.1.5.14, and the % of MDD) for a patch with a surface area:"]
[null,"C5.5.26.1(b)(i)","Not exceeding 20 m2, including for edge repairs wider than 250mm ","cubic metre (m3)",null,null,{"$f":"E1863*F1863","v":0}]
[null,"C5.5.26.1(b)(ii)","Exceeding 20 m2 but not exceeding 50 m2, including for edge repairs wider than 250mm","cubic metre (m3)",null,null,{"$f":"E1864*F1864","v":0}]
[null,"C5.5.26.1(b)(iii)"," Exceeding 50 m2 but not exceeding 100 m2, including for edge repairs wider than 250mm. ","cubic metre (m3)",null,null,{"$f":"E1865*F1865","v":0}]
[null,"C5.5.26.2","Backfill with the following pavement layer material using labour enhanced methods of construction:"]
[null,"C5.5.26.2(a)","Chemically stabilised pavement material (specify the pavement layer, the material source being from commercial or from stockpile, the % stabilising agent and the % of MDD) for a patch with a surface area:"]
[null,"C5.5.26.2(a)(i)","Not exceeding 20 m2, including for edge repairs wider than 250mm ","cubic metre (m3)",null,null,{"$f":"E1868*F1868","v":0}]
[null,"C5.5.26.2(a)(ii)","Exceeding 20 m2 but not exceeding 50 m2, including for edge repairs wider than 250mm","cubic metre (m3)",null,null,{"$f":"E1869*F1869","v":0}]
[null,"C5.5.26.2(a)(iii)","Exceeding 50 m2 but not exceeding 100 m2, including for edge repairs wider than 250mm. ","cubic metre (m3)",null,null,{"$f":"E1870*F1870","v":0}]
[null,"C5.5.26.2(b)","Emulsion treated base, or ETB pavement material (specify the pavement layer, the material source being from commercial or from stockpile, the components as per Clause A4.1.5.14, and the % of MDD) for a patch with a surface area:"]
[null,"C5.5.26.2(b)(i)","Not exceeding 20 m2, including for edge repairs wider than 250mm ","cubic metre (m3)",null,null,{"$f":"E1872*F1872","v":0}]
[null,"C5.5.26.2(b)(ii)","Exceeding 20 m2 but not exceeding 50 m2, including for edge repairs wider than 250mm","cubic metre (m3)",null,null,{"$f":"E1873*F1873","v":0}]
[null,"C5.5.26.2(b)(iii)","Exceeding 50 m2 but not exceeding 100 m2, including for edge repairs wider than 250mm. ","cubic metre (m3)",null,null,{"$f":"E1874*F1874","v":0}]
[]
[]
[]
[null,"C5.5","TOTAL CARRIED FORWARD TO SUMMARY",{"$nulls":3},{"$f":"SUM(G1683:G1877)","v":0}]
[]
[null,"C6.1","PAVER LAID CONCRETE LAYERS"]
[null,"C6.1.1","Construction of trial section (Complete: including texturing and curing)"]
[null,"C6.1.1.1","Mechanical construction (state pavement type and nominal thickness)","square metre (m2)",null,null,{"$f":"E1882*F1882","v":0}]
[null,"C6.1.1.2","Labour enhanced construction (state pavement type and nominal thickness)","square metre (m2)",null,null,{"$f":"E1883*F1883","v":0}]
[null,"C6.1.2","Construction of jointed concrete pavement (JCP) (Excluding texturing and curing)"]
[null,"C6.1.2.1","JCP without dowels:"]
[null,"C6.1.2.1(a)","Paver laid construction (state nominal thickness)","square metre (m2)",null,null,{"$f":"E1886*F1886","v":0}]
[null,"C6.1.2.1(b)","Labour enhanced construction (state nominal thickness)","square metre (m2)",null,null,{"$f":"E1887*F1887","v":0}]
[null,"C6.1.2.2","JCP with dowels:"]
[null,"C6.1.2.2(a)","Paver laid construction (state nominal thickness)","square metre (m2)",null,null,{"$f":"E1889*F1889","v":0}]
[null,"C6.1.2.2(b)","Labour enhanced construction (state nominal thickness) ","square metre (m2)",null,null,{"$f":"E1890*F1890","v":0}]
[null,"C6.1.2.3","Additional concrete placed to thicken up the slab at joints as specified in the Contract Documentation  ","cubic metre (m3)",null,null,{"$f":"E1891*F1891","v":0}]
[null,"C6.1.3","Construction of continuously reinforced concrete pavement (Excluding texturing and curing)"]
[null,"C6.1.3.1","Continuously reinforced concrete pavement (CRCP):"]
[null,"C6.1.3.1(a)","Paver laid construction (state nominal thickness)","square metre (m2)",null,null,{"$f":"E1894*F1894","v":0}]
[null,"C6.1.3.1(b)","Labour enhanced construction (state nominal thickness)","square metre (m2)",null,null,{"$f":"E1895*F1895","v":0}]
[null,"C6.1.4","Texturing and curing the concrete pavement  "]
[null,"C6.1.4.1","Burlap-dragged and grooved texture:"]
[null,"C6.1.4.1(a)","Paving train constructed","square metre (m2)",null,null,{"$f":"E1898*F1898","v":0}]
[null,"C6.1.4.1(b)","Labour enhanced construction","square metre (m2)",null,null,{"$f":"E1899*F1899","v":0}]
[null,"C6.1.4.2","Burlap-dragged and broom finish only","square metre (m2)",null,null,{"$f":"E1900*F1900","v":0}]
[null,"C6.1.4.3","Curing:"]
[null,"C6.1.4.3(a)","Paving train constructed","square metre (m2)",null,null,{"$f":"E1902*F1902","v":0}]
[null,"C6.1.4.3(b)","Labour enhanced construction","square metre (m2)",null,null,{"$f":"E1903*F1903","v":0}]
[null,"C6.1.5","Variation in the rate of application of the curing compound ","litre (ℓ)",null,null,{"$f":"E1904*F1904","v":0}]
[null,"C6.1.6","Joints"]
[null,"C6.1.6.1","Expansion joints complete (excluding dowels)","metre (m)",null,null,{"$f":"E1906*F1906","v":0}]
[null,"C6.1.6.2","Longitudinal hinge joints:"]
[null,"C6.1.6.2(a)","Sealed hinge joints (indicate type and reference to drawings)","metre (m)",null,null,{"$f":"E1908*F1908","v":0}]
[null,"C6.1.6.2(b)","Unsealed hinge joints (indicate type and reference to drawings)","metre (m)",null,null,{"$f":"E1909*F1909","v":0}]
[null,"C6.1.6.3","Sealed transverse contraction joints sawn in two separate operations (widths as shown on the drawings)","metre (m)",null,null,{"$f":"E1910*F1910","v":0}]
[null,"C6.1.6.4","Dowel bars: mild steel inserted in new concrete (indicate diameter, length and position on drawings):"]
[null,"C6.1.6.4(a)","Inserted by mechanical dowel bar inserter","number (No.)",null,null,{"$f":"E1912*F1912","v":0}]
[null,"C6.1.6.4(b)","Pre-installed on approved frame","number (No.)",null,null,{"$f":"E1913*F1913","v":0}]
[null,"C6.1.6.5","Tie-bars: installed in new concrete (indicate, diameter and length):"]
[null,"C6.1.6.5(a)","Mild steel","number (No.)",null,null,{"$f":"E1915*F1915","v":0}]
[null,"C6.1.6.5(b)","High tensile steel","number (No.)",null,null,{"$f":"E1916*F1916","v":0}]
[null,"C6.1.6.6","Forming and sealing joints between asphalt and concrete pavements","metre (m)",null,null,{"$f":"E1917*F1917","v":0}]
[null,"C6.1.7","Steel reinforcement in concrete pavements  "]
[null,"C6.1.7.1","Mild steel bars ","ton (t)",null,null,{"$f":"E1919*F1919","v":0}]
[null,"C6.1.7.2","High tensile steel bars","ton (t)",null,null,{"$f":"E1920*F1920","v":0}]
[null,"C6.1.7.3","Welded steel fabric ","kilogram (kg)",null,null,{"$f":"E1921*F1921","v":0}]
[null,"C6.1.8","Drilling of testing of cores  "]
[null,"C6.1.8.1","100mm cores drilled from pavement for testing of compressive strength ","number (No.)",null,null,{"$f":"E1923*F1923","v":0}]
[null,"C6.1.8.2","150mm cores drilled from pavement for testing of compressive strength","number (No.)",null,null,{"$f":"E1924*F1924","v":0}]
[]
[]
[]
[null,"C6.1","TOTAL CARRIED FORWARD TO SUMMARY",{"$nulls":3},{"$f":"SUM(G1882:G1927)","v":0}]
[]
[null,"C6.2"]
[null,"C6.2.1","Segmental block paving  "]
[null,"C6.2.1.1.","Concrete block paving (indicate class, type and thickness of blocks) ","square metre (m2)",null,null,{"$f":"E1932*F1932","v":0}]
[null,"C6.2.2","Cast in-situ concrete edge and intermediate beams ","cubic metre (m3)",null,null,{"$f":"E1933*F1933","v":0}]
[null,"C6.2.3","Provision and application of approved herbicide and ant poison"]
[null,"C6.2.3.1","Provision of materials","prime cost (PC) sum"]
[null,"C6.2.3.2","Contractor’s charges and profit added to the prime cost sum","percentage (%)",{"$f":"G1935","v":0},null,{"$f":"F1936*E1936","v":0}]
[null,"C6.2.4","Re-sanding of joints in segmental block paving  "]
[null,"C6.2.4.1","Concrete block paving (indicate class, type and thickness of blocks) ","square metre (m2)",null,null,{"$f":"E1938*F1938","v":0}]
[]
[]
[]
[null,"C6.2","TOTAL CARRIED FORWARD TO SUMMARY",{"$nulls":3},{"$f":"SUM(G1932:G1941)","v":0}]
[]
[null,"C7.1","REPLACEMENT OF EXISTING JOINT SEALANT"]
[null,"C7.1.1","Replacing of joint sealant in existing concrete pavement as follows:"]
[null,"C7.1.1.1","Removal of existing seal and backing material","metre (m)",null,null,{"$f":"E1946*F1946","v":0}]
[null,"C7.1.1.2","Reaming of existing joints (indicate width and depth)","metre (m)",null,null,0]
[null,"C7.1.1.3","Bevelling of one side of the joint to a dimension of 10mm X 10mm","metre (m)",null,null,0]
[null,"C7.1.1.4","Bevelling of both sides of the joint to a dimension of 10mm X 10mm","metre (m)",null,null,0]
[null,"C7.1.1.5","Installation of backing material in saw cut joints (to fit saw cut dimensions)","metre (m)",null,null,0]
[null,"C7.1.1.6","Installation of cold pour sealant  ","litre (ℓ)",null,null,0]
[null,"C7.1.2","Costs incurred due to repair and monitoring in terms of Product Performance Guarantee System (PPGS)","lump sum",null,null,{"$f":"E1952*F1952","v":0}]
[]
[]
[]
[null,"C7.1","TOTAL CARRIED FORWARD TO SUMMARY",{"$nulls":3},{"$f":"SUM(G1946:G1955)","v":0}]
[]
[null,"C7.2","REPAIR TO EXISTING JOINTS AND UNCONTROLLED CRACKS IN CONCRETE PAVEMENTS"]
[null,"C7.2.1","Transverse and longitudinal crack and joint repairs incorporating the following treatments  "]
[null,"C7.2.1.1","Routing of active cracks (indicate width and depth)","metre (m)",null,null,{"$f":"E1960*F1960","v":0}]
[null,"C7.2.1.2","Routing of non-active cracks (indicate width and depth)","metre (m)",null,null,0]
[null,"C7.2.1.3","Bevelling of one side of the crack (indicate dimension)","metre (m)",null,null,0]
[null,"C7.2.1.4","Bevelling of both sides of the crack (indicate dimension)","metre (m)",null,null,0]
[null,"C7.2.1.5","Saw cutting of cracks and joints in one operation (indicate depth and width)","metre (m)",null,null,0]
[null,"C7.2.1.6","Filling joint reservoir with cementitious non-shrink grout","kilogram (kg)",null,null,0]
[null,"C7.2.1.7","Installation of backing material in saw cut joints (to fit saw cut dimensions)","metre (m)",null,null,0]
[null,"C7.2.1.8","Installation of cold pour sealant  ","litre (ℓ)",null,null,0]
[null,"C7.2.2","Grouting of cracks","metre (m)",null,null,0]
[null,"C7.2.3","Cross-stitching of longitudinal and transverse joints and cracks"]
[null,"C7.2.3.1","Saw cutting of slots in concrete pavement (indicate dimensions)","number (No.)",null,null,{"$f":"E1970*F1970","v":0}]
[null,"C7.2.3.2","Application of wet-to-dry epoxy to vertical faces and top of existing concrete","litre (ℓ)",null,null,{"$f":"E1971*F1971","v":0}]
[null,"C7.2.3.3","Installation of 16mm diameter deformed tie-bar (indicate length) including application of self-levelling pourable epoxy grout and 7,1mm aggregate.","number (No.)",null,null,{"$f":"E1972*F1972","v":0}]
[null,"C7.2.3.4","Filling of slot with high strength concrete Class 50/7,1mm","cubic metre (m3)",null,null,{"$f":"E1973*F1973","v":0}]
[null,"C7.2.4","Restoration of load transfer at transverse contraction joints"]
[null,"C7.2.4.1","Saw cutting and preparation of slots in concrete pavement (indicate dimensions)","number (No.)",null,null,{"$f":"E1975*F1975","v":0}]
[null,"C7.2.4.2","Installation of new dowel bars as specified (indicate length and diameter) including application of bond breaker on free end, end caps","number (No.)",null,null,{"$f":"E1976*F1976","v":0}]
[null,"C7.2.4.3","Filling of slot with high strength concrete Class 50/7,1mm","number (No.)",null,null,{"$f":"E1977*F1977","v":0}]
[null,"C7.2.5","Pre-treating existing dowels"]
[null,"C7.2.5.1","Free ends in existing concrete","number (No.)",null,null,{"$f":"E1979*F1979","v":0}]
[null,"C7.2.5.2","Free ends in new concrete","number (No.)",null,null,{"$f":"E1980*F1980","v":0}]
[null,"C7.2.6","Texturing and curing the concrete pavement  "]
[null,"C7.2.6.1","Burlap-dragged and grooved texture","square metre (m2)",null,null,{"$f":"E1982*F1982","v":0}]
[null,"C7.2.6.2","Curing"]
[null,"C7.2.6.2(a)","Paving train constructed","square metre (m2)",null,null,{"$f":"E1984*F1984","v":0}]
[null,"C7.2.7","Variation in the rate of application of the curing compound ","litre (ℓ)",null,null,{"$f":"E1985*F1985","v":0}]
[null,"C7.2.8","Steel reinforcement in concrete pavements  "]
[null,"C7.2.8.1","Mild steel bars ","ton (t)",null,null,{"$f":"E1987*F1987","v":0}]
[null,"C7.2.8.2","High tensile steel bars","ton (t)",null,null,{"$f":"E1988*F1988","v":0}]
[null,"C7.2.8.3","Welded steel fabric ","kilogram (kg)",null,null,{"$f":"E1989*F1989","v":0}]
[]
[]
[]
[null,"C7.2","TOTAL CARRIED FORWARD TO SUMMARY",{"$nulls":3},{"$f":"SUM(G1960:G1992)","v":0}]
[]
[null,"C7.3","REMOVAL AND REINSTATEMENT OF EXISTING CONCRETE LAYERS"]
[null,"C7.3.1","Removal of concrete in rehabilitation work"]
[null,"C7.3.1.1","Concrete without reinforcing","cubic metre (m3)",null,null,{"$f":"E1997*F1997","v":0}]
[null,"C7.3.1.2","Reinforced concrete","cubic metre (m3)",null,null,{"$f":"E1998*F1998","v":0}]
[null,"C7.3.1.3","Underlying layers","cubic metre (m3)",null,null,{"$f":"E1999*F1999","v":0}]
[null,"C7.3.2","Full depth repairs using hand placed concrete with CEM I 52,5","cubic metre (m3)",null,null,{"$f":"E2000*F2000","v":0}]
[null,"C7.3.3","Partial Depth Repairs using hand placed fine concrete ","cubic metre (m3)",null,null,{"$f":"E2001*F2001","v":0}]
[null,"C7.3.4","Tie-bars and dowels for full depth repairs "]
[null,"C7.3.4.1","Tie bars (indicate diameter and length)","number (No.)",null,null,{"$f":"E2003*F2003","v":0}]
[null,"C7.3.4.2","Dowel bars (indicate diameter and length)","number (No.)",null,null,{"$f":"E2004*F2004","v":0}]
[null,"C7.3.5","Partial Depth Repairs using hand placed acrylic resin grout","square metre (m2)",null,null,{"$f":"E2005*F2005","v":0}]
[null,"C7.3.6","Reinstating the subbase with lean mix concrete","cubic metre (m3)",null,null,{"$f":"E2006*F2006","v":0}]
[null,"C7.3.7","Removal of exposed stitches in concrete pavement","number (No.)",null,null,{"$f":"E2007*F2007","v":0}]
[null,"C7.3.8","Sawing of concrete in rehabilitation works to different depths "]
[null,"C7.3.8.1","… (state depth in mm)","metre (m)",null,null,{"$f":"E2009*F2009","v":0}]
[null,"C7.3.9","Removal of existing supporting layers in rehabilitation work"]
[null,"C7.3.9.1","Granular material","cubic metre (m3)",null,null,{"$f":"E2011*F2011","v":0}]
[null,"C7.3.9.2","Cemented material","cubic metre (m3)",null,null,{"$f":"E2012*F2012","v":0}]
[null,"C3.3.9.3","Asphalt material ","cubic metre (m3)",null,null,{"$f":"E2013*F2013","v":0}]
[null,"C7.3.10","Preparing the underlying layers after the concrete has been removed"]
[null,"C7.3.10.1","Re-compaction of remaining underlying layers","square metre (m2)",null,null,{"$f":"E2015*F2015","v":0}]
[null,"C7.3.10.2","Replacement of granular layers (material class and thickness indicated) ","square metre (m2)",null,null,0]
[null,"C7.3.10.3","Replacement of stabilised layers (material class and thickness indicated)","square metre (m2)",null,null,0]
[null,"C7.3.10.4","Replacement of supporting layers with 10 MPa lean mix concrete (material class and thickness indicated) ","square metre (m2)",null,null,0]
[null,"C7.3.10.5","Replacement of subbase with hot mix asphalt (thickness indicated)","ton (t)",null,null,0]
[null,"C7.3.10.6","Levelling the surface with coarse slurry (micro surfacing) ","cubic metre (m3)",null,null,0]
[null,"C7.3.11","Reinstatement of concrete layers (Excluding texturing and curing)"]
[null,"C7.3.11.1","Replacement of concrete in JCP pavements (thickness indicated)","square metre (m2)",null,null,{"$f":"E2022*F2022","v":0}]
[null,"C7.3.11.2","Replacement concrete in CRCP pavements (thickness indicated) ","square metre (m2)",null,null,{"$f":"E2023*F2023","v":0}]
[null,"C7.3.12","Pre-treating existing dowels"]
[null,"C7.3.12.1","Free ends in existing concrete","number (No.)",null,null,{"$f":"E2025*F2025","v":0}]
[null,"C7.3.12.2","Free ends in new concrete","number (No.)",null,null,{"$f":"E2026*F2026","v":0}]
[null,"C7.3.13","Texturing and curing the concrete pavement  "]
[null,"C7.3.13.1","Burlap-dragged and texture (indicate groove or broom finish)","square metre (m2)",null,null,{"$f":"E2028*F2028","v":0}]
[null,"C7.3.13.2","Curing","square metre (m2)",null,null,{"$f":"E2029*F2029","v":0}]
[null,"C7.3.14","Variation in the rate of application of the curing compound ","litre (ℓ)",null,null,{"$f":"E2030*F2030","v":0}]
[null,"C7.3.15","Steel reinforcement in concrete pavements  "]
[null,"C7.3.15.1","Mild steel bars ","ton (t)",null,null,{"$f":"E2032*F2032","v":0}]
[null,"C7.3.15.2","High tensile steel bars","ton (t)",null,null,{"$f":"E2033*F2033","v":0}]
[null,"C7.3.15.3","Welded steel fabric ","kilogram (kg)",null,null,{"$f":"E2034*F2034","v":0}]
[null,"C7.3.16","Temporary Partial Depth Repairs using Asphalt Materials","square metre (m2)",null,null,{"$f":"E2035*F2035","v":0}]
[]
[]
[]
[null,"C7.3","TOTAL CARRIED FORWARD TO SUMMARY",{"$nulls":3},{"$f":"SUM(G1997:G2038)","v":0}]
[]
[null,"C7.4","REINSTATEMENT OF SLAB SUPPORT BY GROUT INJECTION"]
[null,"C7.4.1","Sub-sealing of the concrete pavement","number of 50 kg cement pockets",null,null,{"$f":"E2042*F2042","v":0}]
[]
[]
[]
[null,"C7.4","TOTAL CARRIED FORWARD TO SUMMARY",{"$nulls":3},{"$f":"SUM(G2042:G2045)","v":0}]
[]
[null,"C7.5","REINSTATEMENT OF RIDING QUALITY"]
[null,"C7.5.1","Grinding of existing concrete pavement surfaces","square metre (m2)",null,null,{"$f":"E2049*F2049","v":0}]
[]
[]
[]
[null,"C7.5","TOTAL CARRIED FORWARD TO SUMMARY",{"$nulls":3},{"$f":"SUM(G2049:G2052)","v":0}]
[]
[null,"C7.6","REINSTATEMENT OF SURFACE TEXTURE"]
[null,"C7.6.1","Retexturing of concrete surfaces (transverse or longitudinal)","square metre (m2)",null,null,{"$f":"E2056*F2056","v":0}]
[]
[]
[]
[null,"C7.6","TOTAL CARRIED FORWARD TO SUMMARY",{"$nulls":3},{"$f":"SUM(G2056:G2059)","v":0}]
[]
[null,"C8.1","PRIME COAT"]
[null,"C8.1.1","Prime coat:"]
[null,"C8.1.1.1","MC -10 cut-back bitumen","litre (ℓ)",null,null,{"$f":"E2064*F2064","v":0}]
[null,"C8.1.1.2","MC -30 cut-back bitumen","litre (ℓ)",800,null,{"$f":"E2065*F2065","v":0}]
[null,"C8.1.1.3","Inverted bitumen emulsion","litre (ℓ)",800,null,{"$f":"E2066*F2066","v":0}]
[null,"C8.1.1.4","Certified product containing solvents (state name)","litre (ℓ)",null,null,{"$f":"E2067*F2067","v":0}]
[null,"C8.1.1.5","Certified product containing no solvents (state name)","litre (ℓ)",null,null,{"$f":"E2068*F2068","v":0}]
[null,"C8.1.2","Aggregate for blinding:"]
[null,"C8.1.2.1","Natural sand","cubic metre (m3)",null,null,{"$f":"E2070*F2070","v":0}]
[null,"C8.1.2.2","Crusher sand","cubic metre (m3)",null,null,{"$f":"E2071*F2071","v":0}]
[null,"C8.1.3","Extra over item C8.1.1 for applying the prime coat accessible only to hand-held or light equipment","litre (ℓ)",null,null,{"$f":"E2072*F2072","v":0}]
[]
[]
[]
[null,"C8.1","TOTAL CARRIED FORWARD TO SUMMARY",{"$nulls":3},{"$f":"SUM(G2064:G2075)","v":0}]
[]
[null,"C8.2","COVER SPRAYS, FOG SPRAYS AND REJUVENATION SPRAYS"]
[null,"C8.2.1","Cover sprays, fog sprays and rejuvenation sprays"]
[null,"C8.2.1.1","65% Cationic spray grade emulsion"]
[null,"C8.2.1.1(a)","Indicate dilution (Diluted ...% Emulsion/…% Water) (specify)","litre (ℓ)",null,null,{"$f":"E2081*F2081","v":0}]
[null,"C8.2.1.2","60% Anionic stable grade emulsion"]
[null,"C8.2.1.2(a)","Indicate dilution (Diluted ...% Emulsion/…% Water) (specify)","litre (ℓ)",null,null,{"$f":"E2083*F2083","v":0}]
[null,"C8.2.1.3","Cutback Inverted bitumen emulsion","litre (ℓ)",null,null,{"$f":"E2084*F2084","v":0}]
[null,"C8.2.1.4","Certified rejuvenator (state type and certification)","litre (ℓ)",null,null,{"$f":"E2085*F2085","v":0}]
[null,"C8.2.2","Extra over item C8.2.1 for labour enhanced application"]
[null,"C8.2.2.1","65% Cationic spray grade emulsion"]
[null,"C8.2.2.1(a)","Indicate dilution (Diluted ...% Emulsion/…% Water) (specify)","litre (ℓ)",null,null,{"$f":"E2088*F2088","v":0}]
[null,"C8.2.2.2","60% Anionic stable grade emulsion"]
[null,"C8.2.2.2(a)","Indicate dilution (Diluted ...% Emulsion/…% Water) (specify)","litre (ℓ)",null,null,{"$f":"E2090*F2090","v":0}]
[null,"C8.2.2.3","Cutback inverted bitumen emulsion","litre (ℓ)",null,null,{"$f":"E2091*F2091","v":0}]
[null,"C8.2.2.4","Certified rejuvenator (state type and certification)","litre (ℓ)",null,null,{"$f":"E2092*F2092","v":0}]
[]
[]
[]
[null,"C8.2","TOTAL CARRIED FORWARD TO SUMMARY",{"$nulls":3},{"$f":"SUM(G2081:G2095)","v":0}]
[]
[null,"C8.3","TEXTURE TREATMENT"]
[null,"C8.3.1","Texture treatment"]
[null,"C8.3.1.1","Application of slurry for texture improvement, applied by hand (indicate slurry grade, type of emulsion, filler type)","cubic metre (m3)",null,null,{"$f":"E2100*F2100","v":0}]
[null,"C8.3.1.2","Application of slurry for texture improvement, applied by spreader box (fine slurry medium grade, 60% stable grade anionic stable-grade emulsion (diluted 50% emulsion: 50% water), lime filler)","cubic metre (m3)",1500,null,{"$f":"E2101*F2101","v":0}]
[null,"C8.3.1.3","Application of microsurfacing for texture improvement, applied by spreader box (indicate slurry grade, type of emulsion, filler type)","cubic metre (m3)",null,null,{"$f":"E2102*F2102","v":0}]
[]
[]
[]
[null,"C8.3","TOTAL CARRIED FORWARD TO SUMMARY",{"$nulls":3},{"$f":"SUM(G2100:G2105)","v":0}]
[]
[null,"C8.4","RUT AND/OR DEPRESSION CORRECTION"]
[null,"C8.4.1","Rut and/or Depression correction (screeding)"]
[null,"C8.4.1.1","Bond coat using 50% diluted stable grade bitumen emulsion","litre (ℓ)",2850,null,{"$f":"E2110*F2110","v":0}]
[null,"C8.4.1.2","Correction material"]
[null,"C8.4.1.2(a)","Continuously-graded asphalt (state Nominal maximum aggregate size and binder type)","ton (t)",null,null,{"$f":"E2112*F2112","v":0}]
[null,"C8.4.1.2(b)","Semi-gap graded asphalt (state Nominal maximum aggregate size and binder type)","ton (t)",null,null,{"$f":"E2113*F2113","v":0}]
[null,"C8.4.1.2(c)","Cold applied asphalt (Agrèment SA certified for specific class as specified)","ton (t)",null,null,{"$f":"E2114*F2114","v":0}]
[null,"C8.4.1.2(d)","Coarse slurry (Type II aggregate and AC-E2 modified binder)","cubic metre (m3)",60,null,{"$f":"E2115*F2115","v":0}]
[null,"C8.4.1.2(e)","Microsurfacing (state aggregate grade and binder type)","cubic metre (m3)",null,null,{"$f":"E2116*F2116","v":0}]
[]
[]
[]
[null,"C8.4","TOTAL CARRIED FORWARD TO SUMMARY",{"$nulls":3},{"$f":"SUM(G2110:G2119)","v":0}]
[]
[null,"C8.5","STANDARD CRACK SEALING"]
[null,"C8.5.1","Standard crack sealing"]
[null,"C8.5.1.1","Cleaning cracks"]
[null,"C8.5.1.1(a)","Cleaning crack with cold compressed air","metre (m)",730,null,{"$f":"E2125*F2125","v":0}]
[null,"C8.5.1.1(b)","Cleaning crack with hot compressed air","metre (m)",null,null,{"$f":"E2126*F2126","v":0}]
[null,"C8.5.1.2","Applying herbicides for sealing cracks","litre (ℓ)",75,null,{"$f":"E2127*F2127","v":0}]
[null,"C8.5.1.3","Priming (indicate primer)","litre (ℓ)",null,null,{"$f":"E2128*F2128","v":0}]
[null,"C8.5.1.4","Sealing the cracks"]
[null,"C8.5.1.4(a)","Sealing using (state crack sealant)","litre (ℓ)",150,null,{"$f":"E2130*F2130","v":0}]
[null,"C8.5.1.5","Heating of surface before rolling","metre (m)",null,null,{"$f":"E2131*F2131","v":0}]
[null,"C8.5.1.6","Rolling the cracks","metre (m)",null,null,{"$f":"E2132*F2132","v":0}]
[]
[]
[]
[null,"C8.5","TOTAL CARRIED FORWARD TO SUMMARY",{"$nulls":3},{"$f":"SUM(G2125:G2135)","v":0}]
[]
[null,"C8.6","GEOSYNTHETIC CRACK SEALING"]
[null,"C8.6.1","Geosynthetic crack sealing"]
[null,"C8.6.1.1","Sealing cracks with 200mm wide geosynthetic (specify type of emulsion)","metre (m)",null,null,{"$f":"E2140*F2140","v":0}]
[null,"C8.6.1.2","Sealing cracks with geosynthetic over areas (specify type of emulsion)","square metre (m2)",null,null,{"$f":"E2141*F2141","v":0}]
[null,"PC8.6.2","Bituminous binder variation"]
[null,"C8.6.2.1","Bitumen emulsion (specify type and binder content)","litre (ℓ)",null,null,{"$f":"E2143*F2143","v":0}]
[]
[]
[]
[null,"C8.6","TOTAL CARRIED FORWARD TO SUMMARY",{"$nulls":3},{"$f":"SUM(G2140:G2146)","v":0}]
[]
[null,"C8.7","PLANING"]
[null,"C8.7.1","Planing"]
[null,"C8.7.1.1","Planing of road surface (indicate thickness in mm)","square metre (m2)",null,null,{"$f":"E2151*F2151","v":0}]
[null,"C8.7.1.2","Fog spraying on planed surfaces","litre (ℓ)",null,null,{"$f":"E2152*F2152","v":0}]
[null,"C8.7.1.3","Hand spraying","litre (ℓ)",null,null,{"$f":"E2153*F2153","v":0}]
[null,"C8.7.1.4","Spraying with mechanical equipment","litre (ℓ)",null,null,{"$f":"E2154*F2154","v":0}]
[null,"C8.7.1.5","Rolling the planed surface","roller passes (m²-pass)",null,null,{"$f":"E2155*F2155","v":0}]
[]
[]
[]
[null,"C8.7","TOTAL CARRIED FORWARD TO SUMMARY",{"$nulls":3},{"$f":"SUM(G2151:G2158)","v":0}]
[]
[null,"C8.8","PATCHING AND EDGE BREAK REPAIR"]
[null,"C8.8.1","Saw cutting pavement layers for patching"]
[null,"C8.8.1.1","Asphalt or bituminous surfacing to an average depth"]
[null,"C8.8.1.1(a)","Not exceeding 50mm","metre (m)",600,null,{"$f":"E2164*F2164","v":0}]
[null,"C8.8.1.1(b)","Exceeding 50mm but not exceeding 100mm","metre (m)",250,null,{"$f":"E2165*F2165","v":0}]
[null,"C8.8.1.1(c)","Exceeding 100mm","metre (m)",null,null,{"$f":"E2166*F2166","v":0}]
[null,"C8.8.1.2","Cemented pavement layers to an average depth"]
[null,"C8.8.1.2(a)","Not exceeding 100mm","metre (m)",null,null,{"$f":"E2168*F2168","v":0}]
[null,"C8.8.1.2(b)","Exceeding 100mm but not exceeding 200mm","metre (m)",null,null,{"$f":"E2169*F2169","v":0}]
[null,"C8.8.1.2(c)","Exceeding 200mm","metre (m)",null,null,{"$f":"E2170*F2170","v":0}]
[null,"C8.8.1.3","Granular layers to an average depth"]
[null,"C8.8.1.3(a)","Not exceeding 100mm","metre (m)",200,null,{"$f":"E2172*F2172","v":0}]
[null,"C8.8.1.3(b)","Not exceeding 200mm","metre (m)",100,null,{"$f":"E2173*F2173","v":0}]
[null,"C8.8.1.3(c)","Exceeding 200mm","metre (m)",null,null,{"$f":"E2174*F2174","v":0}]
[null,"C8.8.2","Excavation in existing pavements for patching (non-milling)"]
[null,"C8.8.2.1","Asphalt layers"]
[null,"C8.8.2.1(a)","Not exceeding 10 m² including for edge repairs wider than 250mm","cubic metre (m3)",null,null,{"$f":"E2177*F2177","v":0}]
[null,"C8.8.2.1(b)","Exceeding 10 m² but not exceeding 50 m² including for edge repairs wider than 250mm","cubic metre (m3)",null,null,{"$f":"E2178*F2178","v":0}]
[null,"C8.8.2.1(c)","Exceeding 50 m² up to 100 m² including for edge repairs wider than 250mm","cubic metre (m3)",null,null,{"$f":"E2179*F2179","v":0}]
[null,"C8.8.2.1(d)","Exceeding 100 m²","cubic metre (m3)",null,null,{"$f":"E2180*F2180","v":0}]
[null,"C8.8.2.2","Cemented layers"]
[null,"C8.8.2.2(a)","Not exceeding 10 m² including for edge repairs wider than 250mm","cubic metre (m3)",null,null,{"$f":"E2182*F2182","v":0}]
[null,"C8.8.2.2(b)","Exceeding 10 m² but not exceeding 50 m² including for edge repairs wider than 250mm ","cubic metre (m3)",null,null,{"$f":"E2183*F2183","v":0}]
[null,"C8.8.2.2(c)","Exceeding 50 m² up to 100 m² including for edge repairs wider than 250mm","cubic metre (m3)",null,null,{"$f":"E2184*F2184","v":0}]
[null,"C8.8.2.2(d)","Exceeding 100 m²","cubic metre (m3)",null,null,{"$f":"E2185*F2185","v":0}]
[null,"C8.8.2.3","Other layers (specify type)"]
[null,"C8.8.2.3(a)","Not exceeding 10 m² including for edge repairs wider than 250mm","cubic metre (m3)",null,null,{"$f":"E2187*F2187","v":0}]
[null,"C8.8.2.3(b)","Exceeding 10 m² but not exceeding 50 m² including for edge repairs wider than 250mm","cubic metre (m3)",null,null,{"$f":"E2188*F2188","v":0}]
[null,"C8.8.2.3(c)","Exceeding 50 m² up to 100 m² including for edge repairs wider than 250mm","cubic metre (m3)",null,null,{"$f":"E2189*F2189","v":0}]
[null,"C8.8.2.3(d)","Exceeding 100 m²","cubic metre (m3)",null,null,{"$f":"E2190*F2190","v":0}]
[null,"C8.8.3","Compacting the floor of excavations for patching (specify density)","square metre (m2)",null,null,{"$f":"E2191*F2191","v":0}]
[null,"C8.8.4","Backfilling of excavations for patching with:"]
[null,"C8.8.4.1","Chemically stabilized pavement material (state the pavement material and the stabilising agent) for a patch with a surface area:"]
[null,"C8.8.4.1(a)","Not exceeding 10 m² including for edge repairs wider than 250mm","cubic metre (m3)",null,null,{"$f":"E2194*F2194","v":0}]
[null,"C8.8.4.1(b)","Exceeding 10 m² but not exceeding 50 m² including for edge repairs wider than 250mm","cubic metre (m3)",null,null,{"$f":"E2195*F2195","v":0}]
[null,"C8.8.4.1(c)","Exceeding 50 m² up to 100 m² including for edge repairs wider than 250mm","cubic metre (m3)",null,null,{"$f":"E2196*F2196","v":0}]
[null,"C8.8.4.1(d)","Exceeding 100 m²","cubic metre (m3)",null,null,{"$f":"E2197*F2197","v":0}]
[null,"C8.8.4.2","Bitumen Stabilised Material (specify type and level of compaction) for a patch with a surface area:"]
[null,"C8.8.4.2(a)","Not exceeding 10 m² including for edge repairs wider than 250mm","cubic metre (m3)",null,null,{"$f":"E2199*F2199","v":0}]
[null,"C8.8.4.2(b)","Exceeding 10 m² but not exceeding 50 m² including for edge repairs wider than 250mm","cubic metre (m3)",null,null,{"$f":"E2200*F2200","v":0}]
[null,"C8.8.4.2(c)","Exceeding 50 m² up to 100 m² including for edge repairs wider than 250mm","cubic metre (m3)",null,null,{"$f":"E2201*F2201","v":0}]
[null,"C8.8.4.2(d)","Exceeding 100 m²","cubic metre (m3)",null,null,{"$f":"E2202*F2202","v":0}]
[null,"C8.8.4.3","Asphalt for a patch with a surface area (state type and density)"]
[null,"C8.8.4.3(a)","Not exceeding 10 m² including for edge repairs wider than 250mm"]
[null,"C8.8.4.3(a)(i)","Asphalt Base (Sand skeletal mix – continuously graded as defined (90mm min. layer thickness, 20mm NMPS, 50/70 penetration grade binder, level IB))","ton (t)",855,null,{"$f":"E2205*F2205","v":0}]
[null,"C8.8.4.3(a)(ii)","Asphalt Surfacing (Sand skeletal mix – continuously graded as defined (40mm layer thickness, 10mm NMPS, 50/70 penetration grade binder, level IB))","ton (t)",505,null,{"$f":"E2206*F2206","v":0}]
[null,"C8.8.4.3(b)","Exceeding 10 m² but not exceeding 50 m² including for edge repairs wider than 250mm"]
[null,"C8.8.4.3(b)(i)","Asphalt Base (Sand skeletal mix – continuously graded as defined (90mm min. layer thickness, 20mm NMPS, 50/70 penetration grade binder, level IB))","ton (t)",855,null,{"$f":"E2208*F2208","v":0}]
[null,"C8.8.4.3(b)(ii)","Asphalt Surfacing (Sand skeletal mix – continuously graded as defined (40mm layer thickness, 10mm NMPS, 50/70 penetration grade binder, level IB))","ton (t)",505,null,{"$f":"E2209*F2209","v":0}]
[null,"C8.8.4.3(c)","Exceeding 50 m² up to 100 m² including for edge repairs wider than 250mm"]
[null,"C8.8.4.3(c)(i)","Asphalt Base (Sand skeletal mix – continuously graded as defined (90mm min. layer thickness, 20mm NMPS, 50/70 penetration grade binder, level IB))","ton (t)",855,null,{"$f":"E2211*F2211","v":0}]
[null,"C8.8.4.3(c)(ii)","Asphalt Surfacing (Sand skeletal mix – continuously graded as defined (40mm layer thickness, 10mm NMPS, 50/70 penetration grade binder, level IB))","ton (t)",505,null,{"$f":"E2212*F2212","v":0}]
[null,"C8.8.4.3(d)","Exceeding 100 m²","ton (t)",null,null,{"$f":"E2213*F2213","v":0}]
[null,"C8.8.4.4","Granular base material (state type and density) for a patch with a surface area"]
[null,"C8.8.4.4(a)","Not exceeding 10 m² including for edge repairs wider than 250mm","ton (t)",null,null,{"$f":"E2215*F2215","v":0}]
[null,"C8.8.4.4(b)","Exceeding 10 m² but not exceeding 50 m² including for edge repairs wider than 250mm","ton (t)",null,null,{"$f":"E2216*F2216","v":0}]
[null,"C8.8.4.4(c)","Exceeding 50 m² up to 100 m² including for edge repairs wider than 250mm","ton (t)",null,null,{"$f":"E2217*F2217","v":0}]
[null,"C8.8.4.4(d)","Exceeding 100 m²","ton (t)",null,null,{"$f":"E2218*F2218","v":0}]
[null,"C8.8.5","Geosynthetic patching"]
[null,"C8.8.5.1","Sealing joints with geosynthetic strips (specify width and type of emulsion)","metre (m)",null,null,{"$f":"E2220*F2220","v":0}]
[null,"C8.8.6","Repairing edge breaks in surfacing "]
[null,"C8.8.6.1","Cutting back the edges of the existing surfacing for the repairing of edge breaks","metre (m)",850,null,{"$f":"E2222*F2222","v":0}]
[null,"C8.8.6.2","Prime coat (nominal 0.8 ℓ/m2 application rate)"]
[null,"C8.8.6.2(a)(i)","MC-30 cut-back bitumen","litre (ℓ)",100,null,{"$f":"E2224*F2224","v":0}]
[null,"C8.8.6.2(b)(ii)","Invert bituminous Emulsion ","litre (ℓ)",100,null,{"$f":"E2225*F2225","v":0}]
[null,"C8.8.6.3","Reconstructing edges using:"]
[null,"C8.8.6.3(a)","Continuously-graded hot asphalt (medium grade using 50/70 pen bitumen (40mm thick))","ton (t)",25,null,{"$f":"E2227*F2227","v":0}]
[null,"C8.8.6.3(b)","Continuously-graded cold asphalt (Agrèment SA certified - state class and density)","ton (t)",null,null,{"$f":"E2228*F2228","v":0}]
[null,"C8.8.6.3(c)","Bitumen Stabilised Material (state type and level of compaction)","cubic metre (m3)",null,null,{"$f":"E2229*F2229","v":0}]
[]
[]
[]
[null,"C8.8","TOTAL CARRIED FORWARD TO SUMMARY",{"$nulls":3},{"$f":"SUM(G2164:G2232)","v":0}]
[]
[null,"C8.9","REPAIR OF SURFACE DEFECTS"]
[null,"C8.9.1","Heating of the road surface"]
[null,"C8.9.1.1","Establishing of heating apparatus on site for softening of the road surface","lump sum",null,null,{"$f":"E2237*F2237","v":0}]
[null,"C8.9.1.2","Heating of road surface","square metre (m2)",null,null,{"$f":"E2238*F2238","v":0}]
[null,"C8.9.2","Aggregate for treatment of bleeding sections"]
[null,"C8.9.2.1","Heated aggregate (state size)","cubic metre (m3)",null,null,{"$f":"E2240*F2240","v":0}]
[null,"C8.9.2.2","Precoating of aggregate (state type and application litre/m3)","cubic metre (m3)",null,null,{"$f":"E2241*F2241","v":0}]
[null,"C8.9.3","Application and rolling in of heated aggregate","square metre (m2)",null,null,{"$f":"E2242*F2242","v":0}]
[null,"C8.9.4","Trial sections for heating, application and rolling in of heated aggregate","square metre (m2)",null,null,{"$f":"E2243*F2243","v":0}]
[null,"C8.9.5","Water cutting"]
[null,"C8.9.5.1","Establishing of water cutting equipment on site ","lump sum",null,null,{"$f":"E2245*F2245","v":0}]
[null,"C8.9.5.2","Water cutting of the road surface","square metre (m2)",null,null,{"$f":"E2246*F2246","v":0}]
[null,"C8.9.6","Trial sections for water cutting","square metre (m2)",null,null,{"$f":"E2247*F2247","v":0}]
[]
[]
[]
[null,"C8.9","TOTAL CARRIED FORWARD TO SUMMARY",{"$nulls":3},{"$f":"SUM(G2237:G2250)","v":0}]
[]
[null,"C9.1","ASPHALT LAYERS"]
[null,"C9.1.1","Asphalt mix designs"]
[null,"C9.1.1.1","Stone skeletal mixes:"]
[null,"C9.1.1.1(a)","Continuously graded base or surfacing (state binder type and level of design)","lump sum"]
[null,"C9.1.1.1(b)","High modulus asphalt (EME) (state binder type and level of design)","lump sum"]
[null,"C9.1.1.1(c)","Stone Mastic Asphalt (SMA) (state binder type)","lump sum"]
[null,"C9.1.1.1(d)","Ultrathin Friction Courses (UTFC) (state binder type)","lump sum"]
[null,"C9.1.1.1(e)","Porous asphalt (state binder type)","lump sum"]
[null,"C9.1.1.1(f)","Bitumen rubber open and gap graded mixes (state mix type)","lump sum"]
[null,"C9.1.1.1(g)","Other: (as stated and defined in the Contract Documentation)","lump sum"]
[null,"C9.1.1.2","Sand skeletal mixes:"]
[null,"C9.1.1.2(a)","Continuously graded base or surfacing (state binder type and level of design)","lump sum"]
[null,"C9.1.1.2(a)(i)","Continuously graded base (performance grade binder PG58H-22, Level II mix design)","lump sum",1,null,{"$f":"E2265*F2265","v":0}]
[null,"C9.1.1.2(a)(ii)","Continuously graded surfacing (performance grade binder, A-E2 modified binder PG58H-22, Level II mix design)","lump sum",1,null,{"$f":"E2266*F2266","v":0}]
[null,"C9.1.1.2(b)","Semi-gap graded mixes (state binder type and level of design)","lump sum"]
[null,"C9.1.1.2(c)","Gap graded mixes (state binder type and level of design)","lump sum"]
[null,"C9.1.1.2(d)","Sand asphalt (state binder type and level of design)","lump sum"]
[null,"C9.1.1.2(e)","Other: (as stated and defined in the Contract Documentation)","lump sum"]
[null,"C9.1.2","Construction of trial sections "]
[null,"C9.1.2.1","Asphalt layers (state mix type, layer thickness and placing technique (hand/paver))","square metre (m2)",null,null,{"$f":"E2272*F2272","v":0}]
[null,"C9.1.2.2","Removal of trial section where so instructed by the Engineer","square metre (m2)",null,null,{"$f":"E2273*F2273","v":0}]
[null,"C9.1.3","Application of bond coat"]
[null,"C9.1.3.1","Stable–grade 30% net bitumen emulsion as specified.  Applied with a calibrated distributer ","litre (ℓ)",6500,null,{"$f":"E2275*F2275","v":0}]
[null,"C9.1.3.2","Applied in restricted areas using a portable pressure sprayer ","litre (ℓ)",null,null,{"$f":"E2276*F2276","v":0}]
[null,"C9.1.3.3","Applied by hand using brushes on all exposed transverse and longitudinal construction joints ","litre (ℓ)",300,null,{"$f":"E2277*F2277","v":0}]
[null,"C9.1.3.4","Other: (state type, such as standard, modified emulsion, “trackless”, Agrèment certified, or heated if applied for night work)","litre (ℓ)",null,null,{"$f":"E2278*F2278","v":0}]
[null,"C9.1.4","Asphalt base "]
[null,"C9.1.4.1","New Construction"]
[null,"C9.1.4.1(a)","Stone skeletal mix – continuously graded as defined (state layer thickness, binder type and design class/ level and placing technique)","square metre (m2)",null,null,{"$f":"E2281*F2281","v":0}]
[null,"C9.1.4.1(b)","Stone skeletal mix – High Modulus (EME) as defined (state layer thickness, binder type, design class/ level and placing technique) ","square metre (m2)",null,null,{"$f":"E2282*F2282","v":0}]
[null,"C9.1.4.1(c)","Sand skeletal mix – continuously graded as defined (state layer thickness, binder type, design class/ level and placing technique) ","square metre (m2)",null,null,{"$f":"E2283*F2283","v":0}]
[null,"C9.1.4.1(d)","Any of the above mix types where the use of reclaimed asphalt has been specified (indicate maximum % reclaimed asphalt or binder replacement limits)  ","square metre (m2)",null,null,{"$f":"E2284*F2284","v":0}]
[null,"C9.1.4.1(e)","Any mix certified for specific applications by an approved agency as being fit for the purpose and as specified in the Contract Documentation. ","square metre (m2)",null,null,{"$f":"E2285*F2285","v":0}]
[null,null,"In all cases state placing technique (hand/paver)"]
[null,"C9.1.4.2","Rehabilitation "]
[null,"C9.1.4.2(a)","Stone skeletal mix – continuously graded as defined (state layer thickness, binder type and design class/ level) ","ton (t)",null,null,{"$f":"E2288*F2288","v":0}]
[null,"C9.1.4.2(b)","Stone skeletal mix – High Modulus (EME) as defined (state layer thickness, binder type and design class/ level) ","ton (t)",null,null,{"$f":"E2289*F2289","v":0}]
[null,"C9.1.4.2(c)","Sand skeletal mix – continuously graded as defined (state layer thickness, binder type and design class/ level) ","ton (t)",null,null,{"$f":"E2290*F2290","v":0}]
[null,"C9.1.4.2(d)","Any of the above mix types where the use of reclaimed asphalt has been specified (indicate maximum % reclaimed asphalt or binder replacement limits)  ","ton (t)",null,null,{"$f":"E2291*F2291","v":0}]
[null,"C9.1.4.2(e)","Certified: any mixes certified for specific applications by an approved agency as being fit for the purpose and as specified in the Contract Documentation","ton (t)",null,null,{"$f":"E2292*F2292","v":0}]
[null,null,"In all cases state placing technique (hand/paver)"]
[null,"C9.1.5","Asphalt surfacing"]
[null,"C9.1.5.1","New construction"]
[null,"C9.1.5.1(a)","Stone skeletal mix – continuously graded as defined (state layer thickness, binder type and design class/ level)  ","square metre (m2)",null,null,{"$f":"E2296*F2296","v":0}]
[null,"C9.1.5.1(b)","Stone skeletal mix – SMA as defined (state layer thickness, binder type)","square metre (m2)",null,null,0]
[null,"C9.1.5.1(c)","Stone skeletal mix - open graded as defined (state layer thickness and binder type)","square metre (m2)",null,null,0]
[null,"C9.1.5.1(d)","Stone skeletal mix- gap graded as defined (state layer thickness and binder type)  ","square metre (m2)",null,null,0]
[null,"C9.1.5.1(e)","Sand skeletal mix – continuously graded as defined (state layer thickness, binder type, design class/ level) ","square metre (m2)",null,null,0]
[null,"C9.1.5.1(f)","Semi gap mix – as defined (state layer thickness, binder type and design level)","square metre (m2)",null,null,0]
[null,"C9.1.5.1(g)","Sand skeletal mix - gap graded mix (state layer thickness, binder type design class/level)","square metre (m2)",null,null,0]
[null,"C9.1.5.1(h)","Any of the above mix types where the use of reclaimed asphalt has been specified (indicate maximum % reclaimed asphalt or binder replacement limits)  ","square metre (m2)",null,null,0]
[null,"C9.1.5.1(i)","Certified: any mixes certified for specific applications by an approved agency as being fit for the purpose and as specified in the Contract Documentation","square metre (m2)",null,null,0]
[null,null,"In all cases state placing technique (hand/paver)"]
[null,"C9.1.5.2","Rehabilitation "]
[null,"C9.1.5.2(a)","Stone skeletal mix – continuously graded as defined (state layer thickness, binder type    and design class/ level)  ","ton (t)",null,null,{"$f":"E2307*F2307","v":0}]
[null,"C9.1.5.2(b)","Stone skeletal mix – SMA as defined (state layer thickness, binder type)","ton (t)",null,null,0]
[null,"C9.1.5.2(c)","Stone skeletal mix - gap graded as defined (state layer thickness and binder type)","ton (t)",null,null,0]
[null,"C9.1.5.2(d)","Stone skeletal mix- open graded as defined (state layer thickness and binder type)  ","ton (t)",null,null,0]
[null,"C9.1.5.2(e)","Sand skeletal mix – continuously graded as defined (40mm layer thickness, 10mm NMPS, performance grade binder, A-E2 modified binder PG58H-22, Level II mix design) by paver.","ton (t)",290,null,0]
[null,"C9.1.5.2(f)","Sand skeletal mix - gap graded mix (state layer thickness, binder type design class/level)  ","ton (t)",null,null,0]
[null,"C9.1.5.2(g)","Any of the above mix types where the use of reclaimed asphalt has been specified (indicate maximum % reclaimed asphalt or binder replacement limits)  ","ton (t)",null,null,0]
[null,"C9.1.5.2(h)","Certified: any mixes certified for specific applications by an approved agency as being fit for the purpose and as specified in the Contract Documentation","ton (t)",null,null,0]
[null,null,"In all cases state placing technique (hand/paver)"]
[null,"C9.1.6","Extra over pay items C9.1.4.1 and C9.1.5.1 for placing small quantities of asphalt of less than 10 tons specially produced as specified in terms of Clause A9.1.7.1(d)","ton (t)",null,null,{"$f":"E2316*F2316","v":0}]
[null,"C9.1.7","Placing and compacting asphalt in restricted areas"]
[null,"C9.1.7.1","Extra over payment items C9.1.4.1 and C9.1.5.1 (state layer thickness, mix class, binder type, nominal maximum particle size and placing technique (hand/paver))","square metre (m2)",null,null,{"$f":"E2318*F2318","v":0}]
[null,"C9.1.7.2","Extra over payment items C9.1.4.2 and C9.1.5.2 (state layer thickness, mix class, binder type, nominal maximum particle size and placing technique (hand/paver))  ","ton (t)",null,null,{"$f":"E2319*F2319","v":0}]
[null,"PC9.1.8","Surfacing of bridge decks"]
[null,"C9.1.8.1","Levelling course: Continuously graded  \n(state mix type (stone or sand skeletal), binder type and nominal maximum particle size)","ton (t)",null,null,{"$f":"E2321*F2321","v":0}]
[null,"C9.1.8.2","Surfacing  \n(state layer thickness, mix type (stone or sand skeletal), binder type, nominal maximum particle size and placing technique (hand/paver))","ton (t)",null,null,{"$f":"E2322*F2322","v":0}]
[null,"PC9.1.9","Application of rolled in chippings (state nominal size)  "]
[null,"C9.1.9.1","By means of chip spreader","square metre (m2)",null,null,{"$f":"E2324*F2324","v":0}]
[null,"C9.1.9.2","By hand in restricted areas","square metre (m2)",null,null,{"$f":"E2325*F2325","v":0}]
[null,"C9.1.10","Variation rates  "]
[null,"C9.1.10.1","Bitumen (state type)","ton (t)"]
[null,"C9.1.10.1(i)","(i) Bitumen (50/70 penetration grade bitumen)","ton (t)",5,null,{"$f":"E2328*F2328","v":0}]
[null,"C9.1.10.2","Aggregate   ","ton (t)",40,null,0]
[null,"C9.1.10.3","Active filler (lime unless stated in Contract Documentation) ","ton (t)",5,null,0]
[null,"C9.1.10.4","Cellulose fibre (state type)","ton (t)",null,null,0]
[null,"C9.1.10.5","Rolled-in chippings","ton (t)",null,null,0]
[null,"C9.1.10.6","Bituminous bond coat – net bitumen (state type)","ton (t)",null,null,0]
[null,"C9.1.11","Asphalt warm mix technology – extra over/under rate "]
[null,"C9.1.11.1","New construction","square metre (m2)",null,null,{"$f":"E2335*F2335","v":0}]
[null,"C9.1.11.2","Rehabilitation","ton (t)",null,null,{"$f":"E2336*F2336","v":0}]
[null,"C9.1.12","Asphalt reinforcing - complete (state type)","square metre (m2)",null,null,{"$f":"E2337*F2337","v":0}]
[null,"C9.1.13","Coring of asphalt layers  "]
[null,"C9.1.13.1","100mm diameter","number (No.)",100,null,{"$f":"E2339*F2339","v":0}]
[null,"C9.1.13.2","150mm diameter","number (No.)",null,null,{"$f":"E2340*F2340","v":0}]
[null,"C9.1.14","Surface regularity testing as described in Clause A9.1.8.4  "]
[null,"C9.1.14.1","Establishment of equipment: (specify type)\nInertial laser Profilometer \nOther Profilometer type, e.g. ARRB Walking or Face Dipstick  ","number (No.)",null,null,{"$f":"E2342*F2342","v":0}]
[null,"C9.1.14.2","Profiler Surveys utilising equipment as specified - Base layers and surfacing layers","lane kilometre (km)",null,null,{"$f":"E2343*F2343","v":0}]
[null,"C9.1.15","Milling of bridge decks and keys adjacent to bridge decks "]
[null,"C9.1.15.1","Provision of an appropriate sized milling machine","number (No.)",null,null,{"$f":"E2345*F2345","v":0}]
[null,"C9.1.15.2","Milling of bridge decks and keys to bridge deck approaches ","cubic metre (m3)",null,null,{"$f":"E2346*F2346","v":0}]
[null,"C9.1.15.3","Cleaning of milled surfaces","square metre (m2)",null,null,{"$f":"E2347*F2347","v":0}]
[null,"C9.1.16","Work undertaken in accordance with a Product Performance Guarantee System "]
[null,"C9.1.16.1","Provision of a Performance Guarantee ","lump sum"]
[null,"C9.1.16.2","Construction of pavement layer (indicate layer/s) ","square metre (m2)",null,null,{"$f":"E2350*F2350","v":0}]
[]
[]
[]
[null,"C9.1","TOTAL CARRIED FORWARD TO SUMMARY",{"$nulls":3},{"$f":"SUM(G2256:G2353)","v":0}]
[]
[null,"C10.1","GENERAL REQUIREMENTS FOR SURFACE TREATMENTS"]
[null,"C10.1.1","Single seals including a cover spray, if specified (indicate grade of aggregate and type of binder):"]
[null,"C10.1.1.1","Using 5,0mm aggregate","square metre (m2)",null,null,{"$f":"E2358*F2358","v":0}]
[null,"C10.1.1.2","Using 7,1mm aggregate","square metre (m2)",null,null,{"$f":"E2359*F2359","v":0}]
[null,"C10.1.1.3","Using 10mm aggregate","square metre (m2)",null,null,{"$f":"E2360*F2360","v":0}]
[null,"C10.1.1.4","Using 14mm aggregate","square metre (m2)",null,null,{"$f":"E2361*F2361","v":0}]
[null,"C10.1.1.5","Using 20mm aggregate","square metre (m2)",null,null,{"$f":"E2362*F2362","v":0}]
[null,"PC10.1.2","Single seals including a cover spray, if specified (indicate grade of aggregate and type of binder) spreading the aggregate by (state: walk behind spreader or by hand):"]
[null,"C10.1.2.1","Using 5,0mm aggregate","square metre (m2)",null,null,{"$f":"E2364*F2364","v":0}]
[null,"C10.1.2.2","Using 7,1mm aggregate","square metre (m2)",null,null,{"$f":"E2365*F2365","v":0}]
[null,"C10.1.2.3","Using 10mm aggregate","square metre (m2)",null,null,{"$f":"E2366*F2366","v":0}]
[null,"C10.1.2.4","Using 14mm aggregate","square metre (m2)",null,null,{"$f":"E2367*F2367","v":0}]
[null,"C10.1.2.5","Using 20mm aggregate","square metre (m2)",null,null,{"$f":"E2368*F2368","v":0}]
[null,"PC10.1.3","Multiple stone seals including a cover spray, if specified using:"]
[null,"C10.1.3.1","20mm and 10mm aggregate (state grade of aggregate and type of binder to be used for each layer)","square metre (m2)",null,null,{"$f":"E2370*F2370","v":0}]
[null,"C10.1.3.2","20mm and 7,1mm aggregate (state grade of aggregate and type of binder to be used for each layer)","square metre (m2)",null,null,{"$f":"E2371*F2371","v":0}]
[null,"C10.1.3.3","14mm and 7,1mm aggregate (state grade of aggregate and type of binder to be used for each layer)","square metre (m2)",null,null,{"$f":"E2372*F2372","v":0}]
[null,"C10.1.3.4","14mm and 5,0mm aggregate (state grade of aggregate and type of binder to be used for each layer)","square metre (m2)",null,null,{"$f":"E2373*F2373","v":0}]
[null,"C10.1.3.5","20mm with a split application of 7mm aggregate (Grade1 aggregate, S-R2 Bitumen rubber first application, S-E1 modified binder for the second application)","square metre (m2)",300000,null,{"$f":"E2374*F2374","v":0}]
[null,"PC10.1.4","Embargo period effects"]
[null,"C10.1.4.1","Re-establishment of sealing team after embargo period","lump sum",1,null,{"$f":"E2376*F2376","v":0}]
[null,"C10.1.4.2","Extra-over for sealing during the specified embargo period (state seal type, binder for each layer)","square metre (m2)",null,null,{"$f":"E2377*F2377","v":0}]
[null,"C10.1.5","Sand or Grit seals using:"]
[null,"C10.1.5.1","Sand seal (state grades of aggregate and types of binders to be used)","square metre (m2)",null,null,{"$f":"E2379*F2379","v":0}]
[null,"C10.1.5.2","Grit seal (state grades of aggregate and types of binders to be used)","square metre (m2)",null,null,{"$f":"E2380*F2380","v":0}]
[null,"PC10.1.6","Sand or Grit seals using (state: walk behind spreader or by hand):"]
[null,"C10.1.6.1","Sand seal (state grades of aggregate and types of binders to be used)","square metre (m2)",null,null,{"$f":"E2382*F2382","v":0}]
[null,"C10.1.6.2","Grit seal (state grades of aggregate and types of binders to be used)","square metre (m2)",null,null,{"$f":"E2383*F2383","v":0}]
[null,"C10.1.7","Graded aggregate (Otta) seals using:"]
[null,"C10.1.7.1","Single minus 20mm aggregate (state grades of aggregate and types of binders to be used)","square metre (m2)",null,null,{"$f":"E2385*F2385","v":0}]
[null,"C10.1.7.2","Single minus 14mm aggregate (state grades of aggregate and types of binders to be used)","square metre (m2)",null,null,{"$f":"E2386*F2386","v":0}]
[null,"C10.1.7.3","Single minus 10mm aggregate (state grades of aggregate and types of binders to be used)","square metre (m2)",null,null,{"$f":"E2387*F2387","v":0}]
[null,"C10.1.7.4","Extra over for sand seal (state grades of aggregate and types of binders to be used)","square metre (m2)",null,null,{"$f":"E2388*F2388","v":0}]
[null,"C10.1.8","Graded aggregate (Otta) seals, with aggregate applied by hand, using:"]
[null,"C10.1.8.1","Single minus 20mm aggregate (state grades of aggregate and types of binders to be used)","square metre (m2)",null,null,{"$f":"E2390*F2390","v":0}]
[null,"C10.1.8.2","Single minus 14mm aggregate (state grades of aggregate and types of binders to be used)","square metre (m2)",null,null,{"$f":"E2391*F2391","v":0}]
[null,"C10.1.8.3","Single minus 10mm aggregate (state grades of aggregate and types of binders to be used)","square metre (m2)",null,null,{"$f":"E2392*F2392","v":0}]
[null,"C10.1.8.4","Extra over for sand seal (state grades of aggregate and types of binders to be used)","square metre (m2)",null,null,{"$f":"E2393*F2393","v":0}]
[null,"C10.1.9","Bituminous binder variations:"]
[null,"C10.1.9.1","70/100 Penetration grade bitumen","litre (ℓ)",null,null,{"$f":"E2395*F2395","v":0}]
[null,"C10.1.9.2","60% Stable-grade emulsion","litre (ℓ)",null,null,0]
[null,"C10.1.9.3","Cationic Stable grade emulsion (indicate bitumen content)","litre (ℓ)",null,null,0]
[null,"C10.1.9.4","Cationic Spray-grade Emulsion (65% bitumen content)","litre (ℓ)",1200,null,0]
[null,"C10.1.9.5","Homogeneous modified binder (indicate type and bitumen content) cold applied","litre (ℓ)",null,null,0]
[null,"C10.1.9.6","Non-homogeneous modified binder (Bitumen Rubber class S-R1 or S-R2)","litre (ℓ)",4500,null,0]
[null,"C10.1.9.7","Homogeneous modified binder (S-E1) hot applied","litre (ℓ)",4500,null,0]
[null,"C10.1.9.8","Homogeneous modified binder S-E1 with 4,5% MC30","litre (ℓ)",null,null,0]
[null,"C10.1.9.9","Homogeneous modified binder S-E1 with 9% MC30","litre (ℓ)",null,null,0]
[null,"C10.1.9.10","MC-3000 cut-back bitumen","litre (ℓ)",null,null,0]
[null,"C10.1.9.11","Precoating fluid (Bituminous wiith 0.5% chemical adhesion agent)","litre (ℓ)",600,null,0]
[null,"C10.1.10","Aggregate variation (state grade):"]
[null,"C10.1.10.1","5mm aggregate","cubic metre (m3)",400,null,{"$f":"E2407*F2407","v":0}]
[null,"C10.1.10.2","7,1mm aggregate","cubic metre (m3)",225,null,0]
[null,"C10.1.10.3","10mm aggregate","cubic metre (m3)",400,null,0]
[null,"C10.1.10.4","14mm aggregate","cubic metre (m3)",400,null,0]
[null,"C10.1.10.5","20mm aggregate","cubic metre (m3)",375,null,0]
[null,"C10.1.10.6","Sand","cubic metre (m3)",50,null,0]
[null,"C10.1.10.7","Grit","cubic metre (m3)",50,null,0]
[null,"PC10.1.11","Application of cover spray:"]
[null,"C10.1.11.1","60% Anionic Stable-grade emulsion","litre (ℓ)",null,null,{"$f":"E2415*F2415","v":0}]
[null,"C10.1.11.2","60% Diluted Anionic stable-grade emulsion (indicate dilution in % emulsion/% water)","litre (ℓ)",null,null,{"$f":"E2416*F2416","v":0}]
[null,"C10.1.11.3","65% Diluted Cationic spray-grade Emulsion (70/30 diluted with water)","litre (ℓ)",170000,null,{"$f":"E2417*F2417","v":0}]
[null,"C10.1.11.4","Diluted SC-E1 (indicate % bitumen and dilution in % emulsion/% water)","litre (ℓ)",null,null,{"$f":"E2418*F2418","v":0}]
[null,"PC10.1.12","Application of cover spray by hand:"]
[null,"C10.1.12.1","60% Anionic Stable-grade emulsion","litre (ℓ)",null,null,{"$f":"E2420*F2420","v":0}]
[null,"C10.1.12.2","60% Diluted Anionic Stable-grade emulsion (indicate dilution in % emulsion/% water)","litre (ℓ)",null,null,{"$f":"E2421*F2421","v":0}]
[null,"C10.1.12.3","Diluted Cationic Spray-grade emulsion (indicate % bitumen and dilution in % emulsion/% water)","litre (ℓ)",null,null,{"$f":"E2422*F2422","v":0}]
[null,"C10.1.12.4","Diluted SC-E1 (indicate % bitumen and dilution in % emulsion/% water)","litre (ℓ)",null,null,{"$f":"E2423*F2423","v":0}]
[null,"C10.1.13","Precoating of aggregate using a dedicated plant"]
[null,"C10.1.13.1","Product containing low flashpoint solvent (Bituminous Precoating fluid with 0.5% chemical adhesion agent)  ","litre (ℓ)",80000,null,{"$f":"E2425*F2425","v":0}]
[null,"C10.1.13.2","Product containing no low flashpoint solvent (indicate precoating fluid)","litre (ℓ)",null,null,{"$f":"E2426*F2426","v":0}]
[null,"C10.1.14","Precoating of aggregate using a frontend loader"]
[null,"C10.1.14.1","Product containing low flashpoint solvent (indicate precoating fluid)  ","litre (ℓ)",null,null,{"$f":"E2428*F2428","v":0}]
[null,"C10.1.14.2","Product containing no low flashpoint solvent (indicate precoating fluid)","litre (ℓ)",null,null,{"$f":"E2429*F2429","v":0}]
[null,"C10.1.15","Precoating of aggregate by hand "]
[null,"C10.1.15.1","Product containing low flashpoint solvent (indicate precoating fluid)  ","litre (ℓ)",null,null,{"$f":"E2431*F2431","v":0}]
[null,"C10.1.15.2","Product containing no low flashpoint solvent (indicate precoating fluid)","litre (ℓ)",null,null,{"$f":"E2432*F2432","v":0}]
[null,"C10.1.16","Addition of wetting agent:"]
[null,"C10.1.16.1","Providing and supplying","prime cost (PC) sum"]
[null,"C10.1.16.2","Handling, applying, profit and all other costs","percentage of prime-cost sum",{"$f":"G2434","v":0},null,{"$f":"E2435*F2435","v":0}]
[null,"C10.1.17","Aggregate for blinding:"]
[null,"C10.1.17.1","Natural sand","cubic metre (m3)",null,null,{"$f":"E2437*F2437","v":0}]
[null,"C10.1.17.2","Crusher sand","cubic metre (m3)",null,null,{"$f":"E2438*F2438","v":0}]
[null,"C10.1.18","Aggregate for blinding by hand:"]
[null,"C10.1.18.1","Natural sand","cubic metre (m3)",null,null,{"$f":"E2440*F2440","v":0}]
[null,"C10.1.18.2","Crusher sand","cubic metre (m3)",null,null,{"$f":"E2441*F2441","v":0}]
[null,"C10.1.19","Extra over item for work in areas inaccessible to mechanical equipment:"]
[null,"C10.1.19.1","Single seals","square metre (m2)",null,null,{"$f":"E2443*F2443","v":0}]
[null,"C10.1.19.2","Multiple stone seals","square metre (m2)",null,null,0]
[null,"C10.1.19.3","Cape seals with one layer of slurry","square metre (m2)",null,null,0]
[null,"C10.1.19.4","Cape seals with two layers of slurry","square metre (m2)",null,null,0]
[null,"C10.1.19.5","Graded aggregate seals","square metre (m2)",null,null,0]
[null,"C10.1.19.6","Sand and Grit seals","square metre (m2)",null,null,0]
[null,"C10.1.19.7","Conventional slurry","square metre (m2)",null,null,0]
[null,"C10.1.19.8","Microsurfacing","square metre (m2)",null,null,0]
[null,"C10.1.19.9","Adding Grit or slurry to single seals on areas subjected to traffic turning and breaking actions or localised cold areas:"]
[null,"C10.1.19.9(a)","Application of diluted emulsion (state type, % bitumen and dilution)","litre (ℓ)",null,null,{"$f":"E2452*F2452","v":0}]
[null,"C10.1.19.9(b)","Applying Grit","cubic metre (m3)",null,null,{"$f":"E2453*F2453","v":0}]
[null,"C10.1.19.9(c)","Applying Texture slurry","cubic metre (m3)",null,null,{"$f":"E2454*F2454","v":0}]
[null,"C10.1.20","Supply and application of geosynthetic membrane:"]
[null,"C10.1.20.1","Supply and application of geosynthetic membrane (state type)","square metre (m2)",null,null,{"$f":"E2456*F2456","v":0}]
[null,"C10.1.21","Slurry and microsurfacing:"]
[null,"C10.1.21.1","Conventional slurry (coarse grade)","cubic metre (m3)",130,null,{"$f":"E2458*F2458","v":0}]
[null,"C10.1.21.2","Microsurfacing (indicate type and grade of binder and grade of aggregate)","cubic metre (m3)",null,null,{"$f":"E2459*F2459","v":0}]
[null,"C10.1.22","Bituminous single seal and slurry, including a cover spray if specified:"]
[null,"C10.1.22.1","Bituminous single seal with 20mm aggregate and first slurry (indicate type of tack coat and cover spray binder, grade of aggregate and slurry grade)","square metre (m2)",null,null,{"$f":"E2461*F2461","v":0}]
[null,"C10.1.22.2","Bituminous single seal with 14mm aggregate and slurry (indicate type of tack coat and cover spray binder, grade of aggregate and grade of slurry)","square metre (m2)",null,null,{"$f":"E2462*F2462","v":0}]
[null,"C10.1.22.3","Bituminous single seal with 10mm aggregate and slurry (indicate type of tack coat and cover spray binder, grade of aggregate and grade of slurry)","square metre (m2)",null,null,{"$f":"E2463*F2463","v":0}]
[null,"C10.1.22.4","Extra over C10.1.22.1 for application of second slurry (state grade of slurry)","square metre (m2)",null,null,{"$f":"E2464*F2464","v":0}]
[null,"C10.1.23","Slurry-bound macadam seal:"]
[null,"C10.1.23.1","Slurry-bound macadam seal with 14mm aggregate and slurry (indicate thickness and grade of aggregate and slurry grade)","square metre (m2)",null,null,{"$f":"E2466*F2466","v":0}]
[null,"C10.1.23.2","Slurry-bound macadam seal with 20mm aggregate and slurry (indicate thickness and grade of aggregate and slurry grade)","square metre (m2)",null,null,{"$f":"E2467*F2467","v":0}]
[null,"C10.1.23.3","Slurry-bound macadam seal with 28mm aggregate and slurry (indicate thickness and grade of aggregate and slurry grade)","square metre (m2)",null,null,{"$f":"E2468*F2468","v":0}]
[null,"C10.1.24","Variation in the rate of application of the fine slurry:"]
[null,"C10.1.24.1","Fine grade","cubic metre (m3)",null,null,{"$f":"E2470*F2470","v":0}]
[null,"C10.1.24.2","Medium grade","cubic metre (m3)",null,null,{"$f":"E2471*F2471","v":0}]
[null,"C10.1.25","Variation in active filler content (specify active filler)","ton (t)",null,null,{"$f":"E2472*F2472","v":0}]
[null,"C10.1.26","Trial sections for all seal types specified (20mm and 7mm aggregate (Grade 1 aggregate, S-R2 Bitumen rubber first application, S-E1 modified binder for the second application)","lump sum",1,null,{"$f":"E2473*F2473","v":0}]
[null,"C10.1.27","Provision of Performance Guarantee in respect of the Surfacing","lump sum"]
[null,"C10.1.28","Surfacing (state type and binders)","square metre (m2)",null,null,{"$f":"E2475*F2475","v":0}]
[]
[]
[]
[null,"C10.1","TOTAL CARRIED FORWARD TO SUMMARY",{"$nulls":3},{"$f":"SUM(G2358:G2478)","v":0}]
[]
[null,"C11.1","PITCHING, STONEWORK, CAST IN SITU CONCRETE FOR PROTECTION AGAINST EROSION"]
[null,"C11.1.1","Foundation trenches for stone masonry walls"]
[null,"C11.1.1.1","Excavating foundation trenches in soft material using labour enhanced construction methods 0m to 1,0m depth","cubic metre (m3)",null,null,{"$f":"E2483*F2483","v":0}]
[null,"C11.1.1.2","Excavating foundation trenches in intermediate material using labour enhanced construction methods 0 m to 1,0m depth ","cubic metre (m3)",null,null,{"$f":"E2484*F2484","v":0}]
[null,"C11.1.2","Stone pitching"]
[null,"C11.1.2.1","Plain stone pitching"]
[null,"C11.1.2.1(a)","Method 1","square metre (m2)",null,null,{"$f":"E2487*F2487","v":0}]
[null,"C11.1.2.1(b)","Method 2","square metre (m2)",null,null,{"$f":"E2488*F2488","v":0}]
[null,"C11.1.2.2","Grouted stone pitching with mortar","square metre (m2)",null,null,{"$f":"E2489*F2489","v":0}]
[null,"C11.1.2.3","Grouted stone pitching on a concrete bed ","square metre (m2)",null,null,{"$f":"E2490*F2490","v":0}]
[null,"C11.1.3","Riprap"]
[null,"C11.1.3.1","Packed riprap (“critical mass of stone” and thickness indicated)","cubic metre (m3)",null,null,{"$f":"E2492*F2492","v":0}]
[null,"C11.1.3.2","Extra over item C11.1.3.1 for constructing packed riprap using labour enhanced construction methods (maximum size of stone shall be 0,03 m3 or a maximum mass of 30 kg)","cubic metre (m3)",null,null,{"$f":"E2493*F2493","v":0}]
[null,"C11.1.3.3","Dumped riprap (critical mass of stone and thickness indicated)","cubic metre (m3)",null,null,{"$f":"E2494*F2494","v":0}]
[null,"C11.1.3.4","Filter layer consisting of:"]
[null,"C11.1.3.4(a)","Crushed stone","cubic metre (m3)",null,null,{"$f":"E2496*F2496","v":0}]
[null,"C11.1.3.4(b)","Filter sand","cubic metre (m3)",null,null,{"$f":"E2497*F2497","v":0}]
[null,"C11.1.3.4(c)","Geotextile (type, class and grade stated)","square metre (m2)",null,null,{"$f":"E2498*F2498","v":0}]
[null,"C11.1.4","Stone masonry walls:"]
[null,"C11.1.4.1","Plain packed stone walls","cubic metre (m3)",null,null,{"$f":"E2500*F2500","v":0}]
[null,"C11.1.4.2","Cement-mortared stone walls","cubic metre (m3)",null,null,{"$f":"E2501*F2501","v":0}]
[null,"C11.1.4.3","Extra over items C11.1.4.1 and C11.1.4.2 for procuring stone from commercial sources","cubic metre (m3)",null,null,{"$f":"E2502*F2502","v":0}]
[null,"C11.1.5","Concrete pitching or paving"]
[null,"C11.1.5.1","Cast in situ concrete pitching or paving (class of concrete and thickness of pitching or paving indicated)","square metre (m2)",null,null,{"$f":"E2504*F2504","v":0}]
[null,"C11.1.5.2","Prefabricated concrete grass blocks (type and thickness indicated)","square metre (m2)",null,null,{"$f":"E2505*F2505","v":0}]
[null,"C11.1.5.3","Welded steel fabric used for cast in situ pitching or paving (type indicated)","kilogram (kg)",null,null,{"$f":"E2506*F2506","v":0}]
[null,"C11.1.6","Concrete edge beams (Class 25/20mm)","cubic metre (m3)",45,null,{"$f":"E2507*F2507","v":0}]
[null,"C11.1.7","Provision of approved herbicide and ant poison:"]
[null,"C11.1.7.1","Provision of materials","prime cost (PC) sum"]
[null,"C11.1.7.2","Contractor’s charges and profit added to the prime cost sum","percentage (%)",{"$f":"G2509","v":0},null,{"$f":"E2510*F2510","v":0}]
[]
[]
[]
[null,"C11.1","TOTAL CARRIED FORWARD TO SUMMARY",{"$nulls":3},{"$f":"SUM(G2483:G2513)","v":0}]
[]
[null,"C11.2","NON-STRUCTURAL GABIONS"]
[null,"C11.2.1","Foundation trench excavation:"]
[null,"C11.2.1.1","Excavating all material situated within the following depth ranges below the surface level"]
[null,"C11.2.1.1(a)","0m to 1,5m","cubic metre (m3)",18,null,{"$f":"E2519*F2519","v":0}]
[null,"C11.2.1.1(b)","Exceeding 1,5m and up to 3,0m","cubic metre (m3)",null,null,0]
[null,"C11.2.1.1(c)","Etc., in increments of 1,5m","cubic metre (m3)",null,null,0]
[null,"C11.2.1.2","Extra over sub-item C11.2.1.1 for excavation in hard material, irrespective of depth","cubic metre (m3)",null,null,0]
[null,"C11.2.1.3","Excavating soft material within 1,5m below the surface level using labour enhanced construction methods","cubic metre (m3)",null,null,0]
[null,"C11.2.1.4","Excavating intermediate material within 1,5m below the surface level using labour enhanced construction methods","cubic metre (m3)",null,null,0]
[null,"C11.2.2","Surface preparation for bedding the gabion boxes and mattresses","square metre (m2)",60,null,0]
[null,"C11.2.3","Gabion boxes and mattresses:"]
[null,"C11.2.3.1","Galvanized gabion boxes (dimensions of box)","cubic metre (m3)",null,null,{"$f":"E2527*F2527","v":0}]
[null,"C11.2.3.2","PVC coated gabion boxes (dimensions of box)","cubic metre (m3)",18,null,{"$f":"E2528*F2528","v":0}]
[null,"C11.2.3.3","Galvanized gabion mattresses (dimensions of mattress)","cubic metre (m3)",null,null,{"$f":"E2529*F2529","v":0}]
[null,"C11.2.3.4","PVC-coated gabion mattresses (dimensions of mattress)","cubic metre (m3)",18,null,{"$f":"E2530*F2530","v":0}]
[null,"C11.2.4","Geotextile (type and grade indicated)","square metre (m2)",80,null,{"$f":"E2531*F2531","v":0}]
[]
[]
[]
[null,"C11.2","TOTAL CARRIED FORWARD TO SUMMARY",{"$nulls":3},{"$f":"SUM(G2519:G2534)","v":0}]
[]
[null,"C11.3","GUIDE BLOCKS AND KILOMETRE MARKERS"]
[null,"C11.3.1","Guide blocks ","number (No.)",null,null,{"$f":"E2538*F2538","v":0}]
[null,"C11.3.2","Kilometre markers ","number (No.)",null,null,{"$f":"E2539*F2539","v":0}]
[null,"C11.3.3","Kilometre markers mounted on concrete reinforced pipes (diameter to be specified)","number (No.)",null,null,{"$f":"E2540*F2540","v":0}]
[]
[]
[]
[null,"C11.3","TOTAL CARRIED FORWARD TO SUMMARY",{"$nulls":3},{"$f":"SUM(G2538:G2543)","v":0}]
[]
[null,"C11.4","ROAD RESTRAINT SYSTEMS"]
[null,"C11.4.1","Erecting of guardrails at 3,81m spacing"]
[null,"C11.4.1.1","Complete galvanized system compliant to SANS 1350:"]
[null,"C11.4.1.1(a)","On timber posts (Drawing reference)","metre (m)",null,null,{"$f":"E2549*F2549","v":0}]
[null,"C11.4.1.1(b)","On steel posts used at specific locations (Drawing reference) ","metre (m)",null,null,{"$f":"E2550*F2550","v":0}]
[null,"C11.4.1.1(c)","On concrete or other surfaces, with spacer blocks but without posts (Drawing reference) ","metre (m)",null,null,{"$f":"E2551*F2551","v":0}]
[null,"C11.4.1.1(d)","Extra over C11.4.1.1(a) and C11.4.1.1(b) for excavating holes of posts using labour enhanced methods (soft and intermediate)","metre (m)",null,null,{"$f":"E2552*F2552","v":0}]
[null,"C11.4.1.2","Terminal sections for 3,81 guardrails comprising of:"]
[null,"C11.4.1.2(a)","End wings to SANS 1350","number (No.)",null,null,{"$f":"E2554*F2554","v":0}]
[null,"C11.4.1.2(b)","Bullnoses to SANS 1350","number (No.)",null,null,0]
[null,"C11.4.1.2(c)","Bridge adapters to SANS 1350 ","number (No.)",null,null,0]
[null,"C11.4.1.2(d)","End treatments where single guardrail sections are specified (Drawing reference) ","number (No.)",4,null,0]
[null,"C11.4.1.2(e)","End treatments where double guardrail sections are specified (Drawing reference) ","number (No.)",9,null,0]
[null,"C11.4.1.2(f)","Bridge adaptors (including extra rails and posts) (Drawing reference)","number (No.)",null,null,0]
[null,"C11.4.1.2(g)","Extra over C11.4.1.2(d) and C11.4.1.2(e) for excavating holes for posts using labour enhanced methods (soft and intermediate) ","number (No.)",99,null,0]
[null,"PC11.4.2","Performance based vehicle restraint systems"]
[null,"C11.4.2.1","Complete longitudinal barrier system to EN 1317 or AASHTO MASH or NCHRP350 as alternative where no MASH product is available:"]
[null,"C11.4.2.1(a)","Guardrail system (state criteria including containment level & working width)","metre (m)",null,null,{"$f":"E2563*F2563","v":0}]
[null,"C11.4.2.1(b)","Cable barrier system (state criteria including containment level & working width)","metre (m)",null,null,{"$f":"E2564*F2564","v":0}]
[null,"C11.4.2.1(c)","Concrete barrier system (state criteria including containment level & working width)","metre (m)",null,null,{"$f":"E2565*F2565","v":0}]
[null,"C11.4.2.1(d)","Etc. for other types, permanent and temporary","metre (m)",null,null,{"$f":"E2566*F2566","v":0}]
[null,"C11.4.2.2","Terminal sections for the following to EN 1317 or AASHTO MASH or NCHRP350 as alternative where no MASH product is available:"]
[null,"C11.4.2.2(a)","End treatments (state criteria EN or MASH and containment level)","number (No.)",null,null,{"$f":"E2568*F2568","v":0}]
[null,"C11.4.2.2(b)","Crash cushions (state criteria EN or MASH and containment level)","number (No.)",null,null,{"$f":"E2569*F2569","v":0}]
[null,"C11.4.2.2(c)","Transitions (state criteria EN or MASH and containment level, etc.)","number (No.)",null,null,{"$f":"E2570*F2570","v":0}]
[null,"C11.4.2.2(d)","Other types (state criteria EN or MASH and containment level, etc.)","number (No.)",null,null,{"$f":"E2571*F2571","v":0}]
[null,"C11.4.2.3","Relocation of temporary systems (Type, EN or MASH, or NCHRP350 as alternative where no MASH product is available, containment level and working width indicated)","metre (m)",null,null,{"$f":"E2572*F2572","v":0}]
[null,"C11.4.3","Project specific concrete barrier systems"]
[null,"C11.4.3.1","In situ cast concrete barriers (reference to drawing)","metre (m)",null,null,{"$f":"E2574*F2574","v":0}]
[null,"C11.4.3.2","Precast concrete barriers (reference to drawing)","metre (m)",null,null,{"$f":"E2575*F2575","v":0}]
[null,"C11.4.3.3","Installation and removal of precast concrete barrier system (reference to drawing)","number (No.)",null,null,{"$f":"E2576*F2576","v":0}]
[null,"C11.4.3.4","Relocating or stacking precast barrier moved in excess of 1,0 km","number (No.)",null,null,{"$f":"E2577*F2577","v":0}]
[null,"C11.4.4","Extra over for horizontally curved guard rails"]
[null,"C11.4.4.1","Extra over C11.4.1 and C11.4.11 for horizontally curved guard rails factory bent to a radius of less than 45m","metre (m)",null,null,{"$f":"E2579*F2579","v":0}]
[null,"C11.4.4.2","Extra over C11.4.2.1(a) for horizontally curved guard rails factory bent to a radius of less than 45m","metre (m)",null,null,{"$f":"E2580*F2580","v":0}]
[null,"C11.4.5","Additional guardrail posts for 3,81m systems:"]
[null,"C11.4.5.1","Timber","number (No.)",null,null,{"$f":"E2582*F2582","v":0}]
[null,"C11.4.5.2","Steel (drawing reference)","number (No.)",null,null,{"$f":"E2583*F2583","v":0}]
[null,"C11.4.5.3","Extra over C11.4.5.1 and C11.4.5.2 for excavating holes of posts using labour enhanced methods ","number (No.)",null,null,{"$f":"E2584*F2584","v":0}]
[null,"C11.4.6","Reflective plates"]
[null,"C11.4.6.1","Steel plates","number (No.)",null,null,{"$f":"E2586*F2586","v":0}]
[null,"C11.4.6.2","Plastic plates","number (No.)",null,null,{"$f":"E2587*F2587","v":0}]
[null,"C11.4.7","Removing existing guardrails:","metre (m)",null,null,{"$f":"E2588*F2588","v":0}]
[null,"C11.4.8","Renovating guardrail material: "]
[null,"C11.4.8.1","Painting guardrails, end wings and bullnoses","metre (m)",null,null,{"$f":"E2590*F2590","v":0}]
[null,"C11.4.9","Re-erection of guardrails with recovered or provided material:"]
[null,"C11.4.9.1","Single guardrail","metre (m)",null,null,{"$f":"E2592*F2592","v":0}]
[null,"C11.4.9.2","Double guardrail","metre (m)",null,null,{"$f":"E2593*F2593","v":0}]
[null,"C11.4.9.3","Extra over C11.4.9.1 and C11.4.9.2 for excavating holes of posts using labour enhanced methods","metre (m)",null,null,{"$f":"E2594*F2594","v":0}]
[null,"C11.4.10","End treatments to existing guardrails with recovered or provided material:"]
[null,"C11.4.10.1","End wings","number (No.)",null,null,{"$f":"E2596*F2596","v":0}]
[null,"C11.4.10.2","Bullnoses","number (No.)",null,null,0]
[null,"C11.4.10.3","Bridge adaptors","number (No.)",null,null,0]
[null,"C11.4.10.4","End treatments with single guardrails","number (No.)",null,null,0]
[null,"C11.4.10.5","End treatments with double guardrails","number (No.)",null,null,0]
[null,"C11.4.10.6","Extra over C11.4.10.4 and C11.4.10.5 for excavating holes of posts using labour enhanced methods (soft and intermediate) ","number (No.)",null,null,0]
[null,"C11.4.11","New material required for the re-erection guardrails with recovered materials:"]
[null,"C11.4.11.1","Guardrails, 3,81m compliant to SANS 1350","number (No.)",22,null,{"$f":"E2603*F2603","v":0}]
[null,"C11.4.11.2","Timber posts compliant to SANS 457","number (No.)",22,null,0]
[null,"C11.4.11.3","Steel posts","number (No.)",null,null,0]
[null,"C11.4.11.4","Reflective plates","number (No.)",18,null,0]
[null,"C11.4.11.5","Spacer blocks compliant to SANS 457","number (No.)",22,null,0]
[null,"C11.4.11.6","Splice bolt complete with nut and washer compliant to SANS 1350","number (No.)",430,null,0]
[null,"C11.4.11.7","Post bolt complete with nut and washer compliant to SANS 1350","number (No.)",22,null,0]
[null,"C11.4.11.8","Reinforcing plates (reference to drawing)","number (No.)",25,null,0]
[null,"C11.4.12","Extra over items C11.4.1 and C11.4.2 for drilling and blasting holes for guardrail posts","number (No.)",null,null,0]
[null,"C11.4.13","Steel base plates for guardrail posts on structures","number (No.)",null,null,0]
[null,"C11.4.14","Nailing of gang nail plates on top of timber guardrail posts","number (No.)",null,null,0]
[null,"C11.4.15","Disposal of existing guardrails"]
[null,"C11.4.15.1","Straight or curved longitudinal guardrails","metre (m)",120,null,{"$f":"E2615*F2615","v":0}]
[null,"C11.4.15.2","End treatments with single guardrails","metre (m)",null,null,{"$f":"E2616*F2616","v":0}]
[null,"C11.4.15.3","End treatments with double guardrails","metre (m)",180,null,{"$f":"E2617*F2617","v":0}]
[]
[]
[]
[null,"C11.4","TOTAL CARRIED FORWARD TO SUMMARY",{"$nulls":3},{"$f":"SUM(G2549:G2620)","v":0}]
[]
[null,"C11.5","FENCING"]
[null,"C11.5.1","Supply and erect new fencing material for new fences and for supplementing material in existing fences which are being repaired or removed:"]
[null,"C11.5.1.1","Zinc-coated barbed wire (grade, and size indicated)","kilometre (km)",null,null,{"$f":"E2625*F2625","v":0}]
[null,"C11.5.1.2","Zinc-coated smooth wire (grade and size Indicated)","kilometre (km)",null,null,0]
[null,"C11.5.1.3","Diamond mesh","square metre (m2)",null,null,0]
[null,"C11.5.1.4","Wire netting","square metre (m2)",null,null,0]
[null,"C11.5.1.5","Barbed-tape security barrier","kilometre (km)",null,null,0]
[null,"C11.5.1.6","Hinge joint mesh square","square metre (m2)",null,null,0]
[null,"C11.5.1.7","Standards (material, protection, length, diameter and type indicated)","number (No.)",null,null,0]
[null,"C11.5.1.8","Droppers (material, protection, length, diameter and type indicated)","number (No.)",null,null,0]
[null,"C11.5.1.9","Straining posts, stays and anchors:"]
[null,"C11.5.1.9(a)","Vertical"]
[null,"C11.5.1.9(a)(i)","Steel straining posts (type, size and length and whether galvanized or painted indicated)","number (No.)",null,null,{"$f":"E2635*F2635","v":0}]
[null,"C11.5.1.9(a)(ii)","Timber straining posts (protection, length and diameter indicated)","number (No.)",null,null,{"$f":"E2636*F2636","v":0}]
[null,"C11.5.1.9(b)","Inclined"]
[null,"C11.5.1.9(b)(i)","Steel stays and anchors (protection, length, diameter and wall thickness indicated)","number (No.)",null,null,{"$f":"E2638*F2638","v":0}]
[null,"C11.5.1.9(b)(ii)","Timber stays and anchors (protection, length and diameter indicated)","number (No.)",null,null,{"$f":"E2639*F2639","v":0}]
[null,"C11.5.1.9(b)(iii)","Wire stays and anchors (diameter and type indicated)","number (No.)",null,null,{"$f":"E2640*F2640","v":0}]
[null,"C11.5.1.9(c)","Horizontal"]
[null,"C11.5.1.9(c)(i)","Steel stays and anchors (protection, length, diameter and wall thickness indicated)","number (No.)",null,null,{"$f":"E2642*F2642","v":0}]
[null,"C11.5.1.9(c)(ii)","Timber stays and anchors (protection, length and diameter indicated)","number (No.)",null,null,0]
[null,"C11.5.1.9(c)(iii)","Wire stays and anchors (diameter and type indicated)","number (No.)",null,null,0]
[null,"C11.5.1.10","Extra over items C11.5.1.3; C11.5.1.4 and C11.5.1.6 for stone packing","metre (m)",null,null,0]
[null,"C11.5.1.11","Extra over items C11.5.1.3; C11.5.1.4 and C11.5.1.6 for trenching","metre (m)",null,null,0]
[null,"C11.5.2","New gates (size and type indicated)","number (No.)",null,null,0]
[null,"C11.5.3","Moving existing fences and gates:"]
[null,"C11.5.3.1","Fences:"]
[null,"C11.5.3.1(a)","Stock-proof fences","kilometre (km)",null,null,{"$f":"E2650*F2650","v":0}]
[null,"C11.5.3.1(b)","Vermin-proof fences","kilometre (km)",null,null,0]
[null,"C11.5.3.1(c)","Pedestrian fences","kilometre (km)",null,null,0]
[null,"C11.5.3.1(d)","Security fences","kilometre (km)",null,null,0]
[null,"C11.5.3.1(e)","Game fences","kilometre (km)",null,null,0]
[null,"C11.5.3.2","Gates","number (No.)",null,null,0]
[null,"C11.5.4","Dismantling existing fences and gates:"]
[null,"C11.5.4.1","Fences:"]
[null,"C11.5.4.1(a)","Stock-proof fences","kilometre (km)",null,null,{"$f":"E2658*F2658","v":0}]
[null,"C11.5.4.1(b)","Vermin-proof fences","kilometre (km)",null,null,0]
[null,"C11.5.4.1(c)","Pedestrian fences","kilometre (km)",null,null,0]
[null,"C11.5.4.1(d)","Security fences","kilometre (km)",null,null,0]
[null,"C11.5.4.1(e)","Game fences ","kilometre (km)",null,null,0]
[null,"C11.5.4.2","Gates (type and size indicated)","number (No.)",null,null,0]
[null,"C11.5.5","Providing temporary fences and gates:"]
[null,"C11.5.5.1","Stock-proof fence","kilometre (km)",null,null,{"$f":"E2665*F2665","v":0}]
[null,"C11.5.5.2","Vermin-proof fence","kilometre (km)",null,null,0]
[null,"C11.5.5.3","Pedestrian fence","kilometre (km)",null,null,0]
[null,"C11.5.5.4","Game fences ","kilometre (km)",null,null,0]
[null,"C11.5.5.5","Temporary gates (type and size indicated)","number (No.)",null,null,0]
[null,"C11.5.6","Ringbolts for anchoring fencing to structures","number (No.)",null,null,0]
[null,"C11.5.7","Drilling and blasting holes for posts and anchors","number (No.)",null,null,0]
[null,"C11.5.8","Posts fixed horizontally to the bottom of wire mesh for the closing of openings under fences:"]
[null,"C11.5.8.1","Timber posts (diameter indicated)","metre (m)",null,null,{"$f":"E2673*F2673","v":0}]
[null,"C11.5.8.2","Mild steel pipes (diameter and wall thickness indicated)","metre (m)",null,null,{"$f":"E2674*F2674","v":0}]
[null,"C11.5.9","Repairing existing fences (type indicated)","kilometre (km)",null,null,{"$f":"E2675*F2675","v":0}]
[null,"C11.5.10","Disposal of existing fencing materials"]
[null,"C11.5.10.1","… (type indicated)","kilometre (km)",null,null,{"$f":"E2677*F2677","v":0}]
[null,"C11.5.10.2","… etc. (type indicated)","kilometre (km)",null,null,0]
[null,"C11.5.10.3","… etc. (type indicated)","kilometre (km)",null,null,0]
[null,"C11.5.10.4","… etc. (type indicated)","kilometre (km)",null,null,0]
[null,"C11.5.10.5","… etc. (type indicated)","kilometre (km)",null,null,0]
[null,"C11.5.10.6","Gates (type indicated)","number (No.)",null,null,0]
[]
[]
[]
[null,"C11.5","TOTAL CARRIED FORWARD TO SUMMARY",{"$nulls":3},{"$f":"SUM(G2625:G2685)","v":0}]
[]
[null,"C11.6","ROAD SIGNS "]
[null,"PC11.6.1","Road signboards with painted or coloured semi-matt background. Symbols, lettering and borders in semi- matt black or in Class I retro-reflective material, where the sign board is constructed from:"]
[null,"C11.6.1.1","Aluminium sheet (2,0mm thick):"]
[null,"C11.6.1.1(a)","Area 0 to 0,5 m2","square metre (m2)",null,null,{"$f":"E2691*F2691","v":0}]
[null,"C11.6.1.1(b)","Area exceeding 0,5 m2 but not 2,0 m2","square metre (m2)",null,null,{"$f":"E2692*F2692","v":0}]
[null,"C11.6.1.1(c)","Area exceeding 2,0 m2 but not 10 m2","square metre (m2)",null,null,{"$f":"E2693*F2693","v":0}]
[null,"C11.6.1.1(d)","Area exceeding 10 m2","square metre (m2)",null,null,{"$f":"E2694*F2694","v":0}]
[null,"C11.6.1.2","Aluminium composite sheet"]
[null,"C11.6.1.2(a)","Area 0 to 0,5 m2  (indicate plate thickness, 2,0 or 3,0mm)","square metre (m2)",null,null,{"$f":"E2696*F2696","v":0}]
[null,"C11.6.1.2(b)","Area exceeding 0,5 m2 but not 2,0 m2  (indicate plate thickness, 2,0 or 3,0mm)","square metre (m2)",null,null,{"$f":"E2697*F2697","v":0}]
[null,"C11.6.1.2(c)","Area exceeding 2,0 m2 but not 10 m2 (3,0mm plate thickness)","square metre (m2)",null,null,{"$f":"E2698*F2698","v":0}]
[null,"C11.6.1.2(d)","Area exceeding 10 m2 (3,0mm plate thickness)","square metre (m2)",null,null,{"$f":"E2699*F2699","v":0}]
[null,"C11.6.1.3","Prepainted galvanized steel plate:"]
[null,"C11.6.1.3(a)","Area 0 to 0,5 m2","square metre (m2)",null,null,{"$f":"E2701*F2701","v":0}]
[null,"C11.6.1.3(b)","Area exceeding 0,5 m2 but not 2,0 m2","square metre (m2)",null,null,{"$f":"E2702*F2702","v":0}]
[null,"C11.6.1.3(c)","Area exceeding 2,0 m2 but not 10 m2","square metre (m2)",null,null,{"$f":"E2703*F2703","v":0}]
[null,"C11.6.1.3(d)","Area exceeding 10 m2","square metre (m2)",null,null,{"$f":"E2704*F2704","v":0}]
[null,"C11.6.1.4","Prepainted galvanized steel profiles (200mm high panels):"]
[null,"C11.6.1.4(a)","Area 0 to 0,5 m2","square metre (m2)",null,null,{"$f":"E2706*F2706","v":0}]
[null,"C11.6.1.4(b)","Area exceeding 0,5 m2 but not 2,0 m2","square metre (m2)",2,null,{"$f":"E2707*F2707","v":0}]
[null,"C11.6.1.4(c)","Area exceeding 2,0 m2 but not 10 m2","square metre (m2)",20,null,{"$f":"E2708*F2708","v":0}]
[null,"C11.6.1.4(d)","Area exceeding 10 m2","square metre (m2)",null,null,{"$f":"E2709*F2709","v":0}]
[null,"C11.6.1.5","Other material (details indicated):"]
[null,"C11.6.1.5(a)","Area 0 to 0,5 m2","square metre (m2)",null,null,{"$f":"E2711*F2711","v":0}]
[null,"C11.6.1.5(b)","Area exceeding 0,5 m2 but not 2,0 m2","square metre (m2)",null,null,{"$f":"E2712*F2712","v":0}]
[null,"C11.6.1.5(c)","Area exceeding 2,0 m2 but not 10 m2","square metre (m2)",null,null,{"$f":"E2713*F2713","v":0}]
[null,"C11.6.1.5(d)","Area exceeding 10 m2","square metre (m2)",null,null,{"$f":"E2714*F2714","v":0}]
[null,"C11.6.1.6","Extra over items C11.6.1.1 to C11.6.1.4 for attaching signboards to overhead gantry structures and overhead to bridges","square metre (m2)",null,null,{"$f":"E2715*F2715","v":0}]
[null,"C11.6.1.7","Regulatory signs, permanent "]
[null,"C11.6.1.7(a)","600mm diameter (signboard material, background and symbol retro-reflective class indicated)","number (No.)",null,null,{"$f":"E2717*F2717","v":0}]
[null,"C11.6.1.7(b)","900mm diameter (signboard material, background and symbol retro-reflective class indicated)","number (No.)",null,null,{"$f":"E2718*F2718","v":0}]
[null,"C11.6.1.7(c)","1200mm diameter (signboard material, background and symbol retro-reflective class indicated)","number (No.)",1,null,{"$f":"E2719*F2719","v":0}]
[null,"C11.6.1.8","Regulatory signs, temporary"]
[null,"C11.6.1.8(a)","600mm diameter (signboard material, background and symbol retro-reflective class indicated)","number (No.)",null,null,{"$f":"E2721*F2721","v":0}]
[null,"C11.6.1.8(b)","900mm diameter (signboard material, background and symbol retro-reflective class indicated)","number (No.)",null,null,{"$f":"E2722*F2722","v":0}]
[null,"C11.6.1.8(c)","1200mm diameter (signboard material, background and symbol retro-reflective class indicated)","number (No.)",null,null,{"$f":"E2723*F2723","v":0}]
[null,"C11.6.1.9","Warning signs, permanent "]
[null,"C11.6.1.9(a)","600mm size (signboard material, background and symbol retro-reflective class indicated)","number (No.)",null,null,{"$f":"E2725*F2725","v":0}]
[null,"C11.6.1.9(b)","900mm size (signboard material, background and symbol retro-reflective class indicated)","number (No.)",null,null,{"$f":"E2726*F2726","v":0}]
[null,"C11.6.1.9(c)","1200mm size (signboard material, background and symbol retro-reflective class indicated)","number (No.)",null,null,{"$f":"E2727*F2727","v":0}]
[null,"C11.6.1.9(d)","1500mm size (prepaineted galvanised steel, Class I retro-reflective background, Class III retro-reflective symbol)","number (No.)",2,null,{"$f":"E2728*F2728","v":0}]
[null,"C11.6.1.10","Warning signs, temporary "]
[null,"C11.6.1.10(a)","600mm size (signboard material, background and symbol retro-reflective class indicated)","number (No.)",null,null,{"$f":"E2730*F2730","v":0}]
[null,"C11.6.1.10(b)","900mm size (signboard material, background and symbol retro-reflective class indicated)","number (No.)",null,null,0]
[null,"C11.6.1.10(c)","1200mm size (signboard material, background and symbol retro-reflective class indicated)","number (No.)",null,null,0]
[null,"C11.6.1.10(d)","1500mm size (signboard material, background and symbol retro-reflective class indicated)","number (No.)",null,null,0]
[null,"C11.6.1.11","Supplementary plates to permanent regulatory or warning signs (prepaineted galvanised steel, Class I retro-reflective background, Class III retro-reflective symbol)","square metre (m2)",1,null,0]
[null,"C11.6.1.12","Supplementary plates to temporary regulatory or warning signs (signboard material, background and symbol retro-reflective class indicated)","square metre (m2)",null,null,0]
[null,"C11.6.1.13","Moveable barricade/road sign combination (signboard material, background, symbol retro-reflective class and size indicated)","number (No.)",null,null,0]
[null,"C11.6.2","Extra over on item C11.6.1 for using:"]
[null,"C11.6.2.1","Background of retro-reflective material:"]
[null,"C11.6.2.1(a)","Class I","square metre (m2)",null,null,{"$f":"E2739*F2739","v":0}]
[null,"C11.6.2.1(b)","Class III","square metre (m2)",null,null,{"$f":"E2740*F2740","v":0}]
[null,"C11.6.2.1(c)","Class IV specify a) or b)","square metre (m2)",null,null,{"$f":"E2741*F2741","v":0}]
[null,"C11.6.2.2","Lettering, symbols, numbers, arrows, emblems and borders of retro-reflective material:"]
[null,"C11.6.2.2(a)","Class III","square metre (m2)",null,null,{"$f":"E2743*F2743","v":0}]
[null,"C11.6.2.2(b)","Class IV specify a) or b)","square metre (m2)",null,null,{"$f":"E2744*F2744","v":0}]
[null,"C11.6.3","Road sign supports (overhead road sign structures excluded):"]
[null,"C11.6.3.1","Steel tubing (diameter and wall thickness indicated)","ton (t)",null,null,{"$f":"E2746*F2746","v":0}]
[null,"C11.6.3.2","Timber (Eucalyptus pole to SANS 754)"]
[null,"C11.6.3.2(a)","150mm min. diameter","metre (m)",5,null,{"$f":"E2748*F2748","v":0}]
[null,"C11.6.3.2(b)","175mm min. diameter","metre (m)",15,null,{"$f":"E2749*F2749","v":0}]
[null,"C11.6.3.2©","200mm min. diameter","metre (m)",35,null,{"$f":"E2750*F2750","v":0}]
[null,"C11.6.4","Kilometre Markers  "]
[null,"C11.6.4.1","Kilometre markers on posts (50mm X 50mm X 2mm Galvanised steel post including base plate (drawing TD-R-RS-1401-V1)","number (No.)",10,null,{"$f":"E2752*F2752","v":0}]
[null,"C11.6.4.2","Replace marker boards on existing kilometre posts","square metre (m2)",null,null,{"$f":"E2753*F2753","v":0}]
[null,"C11.6.5","Excavation and backfilling for road sign supports (not applicable to kilometre posts)"]
[null,"C11.6.5.1","Excavating soft material and backfilling","cubic metre (m3)",10,null,{"$f":"E2755*F2755","v":0}]
[null,"C11.6.5.2","Excavating soft or intermediate material and backfilling using labour enhanced construction methods","cubic metre (m3)",10,null,{"$f":"E2756*F2756","v":0}]
[null,"C11.6.5.3","Extra over item C11.6.5.1 and C11.6.5.2 for cement-treated soil backfill","cubic metre (m3)",20,null,{"$f":"E2757*F2757","v":0}]
[null,"C11.6.5.4","Extra over item C11.6.5.1 for hard material excavation","cubic metre (m3)",null,null,{"$f":"E2758*F2758","v":0}]
[null,"C11.6.5.5","Imported backfill material from commercial sources","cubic metre (m3)",null,null,{"$f":"E2759*F2759","v":0}]
[null,"C11.6.6","Dismantling, storing and re-erecting road signs with a surface area of:"]
[null,"C11.6.6.1","Area 0 to 0,5 m2","square metre (m2)",null,null,{"$f":"E2761*F2761","v":0}]
[null,"C11.6.6.2","Area exceeding 0,5 m2 but not 2,0 m2","square metre (m2)",null,null,{"$f":"E2762*F2762","v":0}]
[null,"C11.6.6.3","Exceeding 2,0 m2 but not 10 m2","square metre (m2)",null,null,{"$f":"E2763*F2763","v":0}]
[null,"C11.6.6.4","Exceeding 10 m2","square metre (m2)",null,null,{"$f":"E2764*F2764","v":0}]
[null,"C11.6.7","Dismantling and storing of road signs and overhead signs"]
[null,"C11.6.7.1","Dismantling and storing of road signs with a surface area of:"]
[null,"C11.6.7.1(a)","Area 0 to 0,5 m2","square metre (m2)",null,null,{"$f":"E2767*F2767","v":0}]
[null,"C11.6.7.1(b)","Area exceeding 0,5 m2 but not 2,0 m2","square metre (m2)",null,null,{"$f":"E2768*F2768","v":0}]
[null,"C11.6.7.1(c)","Exceeding 2,0 m2 but not 10 m2","square metre (m2)",null,null,{"$f":"E2769*F2769","v":0}]
[null,"C11.6.7.1(d)","Exceeding 10 m2","square metre (m2)",null,null,{"$f":"E2770*F2770","v":0}]
[null,"C11.6.7.2","Dismantling and storing of overhead signs with a surface area of:"]
[null,"C11.6.7.2(a)","Area exceeding 0 m2 but not 2,0 m2","square metre (m2)",null,null,{"$f":"E2772*F2772","v":0}]
[null,"C11.6.7.2(b)","Exceeding 2,0 m2 but not 10 m2","square metre (m2)",null,null,{"$f":"E2773*F2773","v":0}]
[null,"C11.6.7.2(c)","Exceeding 10 m2","square metre (m2)",null,null,{"$f":"E2774*F2774","v":0}]
[null,"C11.6.8","Danger plates at culverts/structures"]
[null,"C11.6.8.1","Size 150 x 600mm (state post type and reflective material)","number (No.)",null,null,{"$f":"E2776*F2776","v":0}]
[null,"C11.6.8.2","Size 200 x 800mm (state post type and reflective material)","number (No.)",15,null,{"$f":"E2777*F2777","v":0}]
[null,"C11.6.8.3","Size 300 x 1200mm (state post type and reflective material)","number (No.)",null,null,{"$f":"E2778*F2778","v":0}]
[null,"C11.6.9","Installation of traffic signals"]
[null,"C11.6.9.1","Specialist installation of traffic signals","prime cost (PC) sum"]
[null,"C11.6.9.2","Handling cost, profit and all other charges of sub item C11.6.9.1","percentage (%)",{"$f":"G2780","v":0},null,{"$f":"E2781*F2781","v":0}]
[null,"C11.6.10","Disposing of road signs with a surface area of:"]
[null,"C11.6.10.1","Area 0 to 0,5 m2","square metre (m2)",null,null,{"$f":"E2783*F2783","v":0}]
[null,"C11.6.10.2","Area exceeding 0,5 m2 but not 2,0 m2","square metre (m2)",null,null,{"$f":"E2784*F2784","v":0}]
[null,"C11.6.10.3","Exceeding 2,0 m2 but not 10 m2","square metre (m2)",null,null,{"$f":"E2785*F2785","v":0}]
[null,"C11.6.10.4","Exceeding 10 m2","square metre (m2)",null,null,{"$f":"E2786*F2786","v":0}]
[null,"C11.6.11","Disposing of overhead road signs:"]
[null,"C11.6.11.1","Up to 10 m2","square metre (m2)",null,null,{"$f":"E2788*F2788","v":0}]
[null,"C11.6.11.2","Exceeding 10 m2","square metre (m2)",null,null,{"$f":"E2789*F2789","v":0}]
[]
[]
[]
[null,"C11.6","TOTAL CARRIED FORWARD TO SUMMARY",{"$nulls":3},{"$f":"SUM(G2691:G2792)","v":0}]
[]
[null,"C11.7","ROAD MARKINGS AND ROAD STUDS"]
[null,"C11.7.1","Road marking:"]
[null,"C11.7.1.1","White lines broken or unbroken (paint type and width of line indicated)","kilometre (km)",null,null,{"$f":"E2797*F2797","v":0}]
[null,"C11.7.1.2","Yellow lines broken or unbroken (paint type and width of line indicated)","kilometre (km)",null,null,0]
[null,"C11.7.1.3","Red lines broken or unbroken (paint type and width of line indicated)","kilometre (km)",null,null,0]
[null,"C11.7.1.4","White lettering and symbols (paint type indicated)","square metre (m2)",null,null,0]
[null,"C11.7.1.5","Yellow lettering and symbols (paint type indicated)","square metre (m2)",null,null,0]
[null,"C11.7.1.6","Red lettering and symbols (paint type indicated)","square metre (m2)",null,null,0]
[null,"C11.7.1.7","Transverse lines, painted island and arrestor bed markings (any colour) (paint type indicated)","square metre (m2)",null,null,0]
[null,"C11.7.1.8","Labour enhanced hand painted white lines broken or unbroken (paint type and width of line indicated) ","square metre (m2)",null,null,0]
[null,"C11.7.1.9","Labour enhanced hand painted yellow lines broken or unbroken (paint type and width of line indicated) ","square metre (m2)",null,null,0]
[null,"C11.7.1.10","Labour enhanced hand painted red lines broken or unbroken (paint type and width of line indicated) ","kilometre (km)",null,null,0]
[null,"C11.7.1.11","Labour enhanced hand painted white lettering and symbols (paint type indicated) ","square metre (m2)",null,null,0]
[null,"C11.7.1.12","Labour enhanced hand painted yellow lettering and symbols (paint type indicated)","square metre (m2)",null,null,0]
[null,"C11.7.1.13","Labour enhanced hand painted transverse lines, painted island and arrestor bed markings (any colour) (paint type indicated)","square metre (m2)",null,null,0]
[null,"C11.7.1.14","Labour enhanced hand painted kerb markings (any colour) (paint type indicated) ","square metre (m2)",null,null,0]
[null,"C11.7.1.15","Labour enhanced hand operated pressure applied machine white lines broken or unbroken (paint type and width of line indicated) ","kilometre (km)",null,null,0]
[null,"C11.7.1.16","Labour enhanced hand operated pressure applied machine yellow lines broken or unbroken (paint type and width of line indicated) ","kilometre (km)",null,null,0]
[null,"C11.7.1.17","Labour enhanced hand operated pressure applied machine red lines broken or unbroken (paint type and width of line indicated) ","kilometre (km)",null,null,0]
[null,"C11.7.1.18","Labour enhanced hand operated pressure applied machine white lettering and symbols (paint type indicated)","square metre (m2)",null,null,0]
[null,"C11.7.1.19","Labour enhanced hand operated pressure applied machine yellow lettering and symbols (paint type indicated) ","square metre (m2)",null,null,0]
[null,"C11.7.1.20","Labour enhanced hand operated pressure applied machine transverse lines, painted island and arrestor bed markings (any colour) (paint type indicated)","square metre (m2)",null,null,0]
[null,"C11.7.2","Retro-reflective road marking:"]
[null,"C11.7.2.1","White lines broken or unbroken (paint type and width of line indicated)"]
[null,"C11.7.2.1(a)","100mm wide","kilometre (km)",88,null,{"$f":"E2819*F2819","v":0}]
[null,"C11.7.2.1(b)","150mm wide","kilometre (km)",88,null,0]
[null,"C11.7.2.1(c)","200mm wide","kilometre (km)",2,null,0]
[null,"C11.7.2.2","Yellow lines broken or unbroken (paint type and width of line indicated)"]
[null,"C11.7.2.2(b)","150mm wide","kilometre (km)",88,null,0]
[null,"C11.7.2.3","Red lines broken or unbroken (paint type and width of line indicated)"]
[null,"C11.7.2.3(b)","150mm wide","kilometre (km)",0.4,null,0]
[null,"C11.7.2.4","White lettering and symbols (paint type indicated)","square metre (m2)",500,null,0]
[null,"C11.7.2.5","Yellow lettering and symbols (paint type indicated)","square metre (m2)",200,null,0]
[null,"C11.7.2.6","Red lettering and symbols (paint type indicated) ","square metre (m2)"]
[null,"C11.7.2.7","Transverse lines, painted island and arrestor bed markings (any colour) (paint type indicated) ","square metre (m2)",1000,null,0]
[null,"C11.7.2.8","Hand painted white lines broken or unbroken (paint type and width of line indicated) ","kilometre (km)",null,null,0]
[null,"C11.7.2.9","Hand painted yellow lines broken or unbroken (paint type and width of line indicated) ","kilometre (km)",null,null,0]
[null,"C11.7.2.10","Hand painted red lines broken or unbroken (paint type and width of line indicated) ","kilometre (km)",null,null,0]
[null,"C11.7.2.11","Hand painted white lettering and symbols (paint type indicated) ","square metre (m2)",null,null,0]
[null,"C11.7.2.12","Hand painted yellow lettering and symbols (paint type indicated) ","square metre (m2)",null,null,0]
[null,"C11.7.2.13","Hand painted transverse lines, painted island and arrestor bed markings (any colour) (paint type indicated)","square metre (m2)",null,null,0]
[null,"C11.7.2.14","Hand operated pressure applied machine white lines broken or unbroken (paint type and width of line indicated)","kilometre (km)",null,null,0]
[null,"C11.7.2.15","Hand operated pressure applied machine yellow lines broken or unbroken (paint type and width of line indicated)","kilometre (km)",null,null,0]
[null,"C11.7.2.16","Hand operated pressure applied machine red lines broken or unbroken (paint type and width of line indicated) ","kilometre (km)",null,null,0]
[null,"C11.7.2.17","Hand operated pressure applied machine white lettering and symbols (paint type indicated) ","square metre (m2)",null,null,0]
[null,"C11.7.2.18","Hand operated pressure applied machine yellow lettering and symbols (paint type indicated) ","square metre (m2)",null,null,0]
[null,"C11.7.2.19","Hand operated pressure applied machine transverse lines, painted island and arrestor bed markings (any colour) (paint type indicated)","square metre (m2)",null,null,0]
[null,"PC11.7.3","Thermoplastic road marking"]
[null,"C11.7.3.1","Thermoplastic road marking, broken or unbroken"]
[null,null,"(a) White lines broken or unbroken"]
[null,null,"(i) 100 mm wide","kilometre (km)",44,null,{"$f":"E2845*F2845","v":0}]
[null,null,"(ii) 150 mm wide","kilometre (km)",44,null,{"$f":"E2846*F2846","v":0}]
[null,null,"(iii) 200 mm wide","kilometre (km)",1,null,{"$f":"E2847*F2847","v":0}]
[null,null,"(b) Yellow lines broken or unbroken "]
[null,null,"(ii) 150 mm wide","kilometre (km)",44,null,{"$f":"E2849*F2849","v":0}]
[null,null,"(b) Red lines broken or unbroken "]
[null,null,"(ii) 150 mm wide","kilometre (km)",0.2,null,{"$f":"E2851*F2851","v":0}]
[null,null,"(c) White lettering and symbols","square metre (m2)",250,null,{"$f":"E2852*F2852","v":0}]
[null,null,"(d) Yellow lettering and symbols","square metre (m2)",100,null,{"$f":"E2853*F2853","v":0}]
[null,null,"(e) Transverse lines, painted island and arrestor bed markings (any colour)","square metre (m2)",500,null,{"$f":"E2854*F2854","v":0}]
[null,"C11.7.3.2","Performance based thermoplastic road marking, broken or unbroken (colour and width of line indicated)","kilometre (km)",null,null,{"$f":"E2855*F2855","v":0}]
[null,"C11.7.3.3","Reduced payment for thermoplastic road marking, white lines, broken or unbroken (width of line indicated)","kilometre (km)",null,null,{"$f":"E2856*F2856","v":0}]
[null,"C11.7.3.4","Reduced payment for thermoplastic road marking, yellow lines, broken or unbroken (width of line indicated)","kilometre (km)",null,null,{"$f":"E2857*F2857","v":0}]
[null,"C11.7.4","Cold plastic road marking material"]
[null,"C11.7.4.1","White lettering and symbols","square metre (m2)",null,null,{"$f":"E2859*F2859","v":0}]
[null,"C11.7.4.2","Yellow lettering and symbols","square metre (m2)",null,null,{"$f":"E2860*F2860","v":0}]
[null,"C11.7.4.3","Red lettering and symbols","square metre (m2)",null,null,{"$f":"E2861*F2861","v":0}]
[null,"C11.7.4.4","Transverse lines, painted island and arrestor bed markings (any colour)","square metre (m2)",null,null,{"$f":"E2862*F2862","v":0}]
[null,"C11.7.5","Variations in rate of application:"]
[null,"C11.7.5.1","White paint","litre (ℓ)",200,null,{"$f":"E2864*F2864","v":0}]
[null,"C11.7.5.2","Yellow paint","litre (ℓ)",200,null,0]
[null,"C11.7.5.3","Red paint","litre (ℓ)",200,null,0]
[null,"C11.7.5.4","Retro-reflective beads","kilogram (kg)",250,null,0]
[null,"C11.7.5.5","Thermoplastic material, all colours","kilogram (kg)",250,null,0]
[null,"C11.7.5.6","Cold plastic marking material, all colours ","kilogram (kg)",null,null,0]
[null,"C11.7.6","Pre formed road marking tape "]
[null,"C11.7.6.1","White (specify width)","metre (m)",null,null,{"$f":"E2871*F2871","v":0}]
[null,"C11.7.6.2","Yellow (specify width)","metre (m)",null,null,{"$f":"E2872*F2872","v":0}]
[null,"C11.7.6.3","Red (specify width)","metre (m)",null,null,{"$f":"E2873*F2873","v":0}]
[null,"C11.7.7","Road studs"]
[null,"C11.7.7.1","Permanent road studs compliant to SANS 1442 (type & colours stated)","number (No.)"]
[null,"C11.7.7.2","Permanent road studs compliant to SANS 1463 (classification & colours stated)","number (No.)",2760,null,{"$f":"E2876*F2876","v":0}]
[null,"C11.7.7.3","Temporary road studs compliant to SANS 1442 or 1463 (type/classification & colours stated)","number (No.)",null,null,{"$f":"E2877*F2877","v":0}]
[null,"C11.7.7.4","Solar powered road studs (No. of LED’s & colours stated) ","number (No.)",null,null,{"$f":"E2878*F2878","v":0}]
[null,"C11.7.7.5","Provision of temporary and permanent road studs ","provisional sum"]
[null,"C11.7.7.6","Handling cost, profit and all other charges of sub item C11.7.7.5 ","percentage (%)",{"$f":"G2879","v":0},null,{"$f":"E2880*F2880","v":0}]
[null,"C11.7.7.7","Installation only of surface bonded road studs with anchor shanks ","number (No.)",null,null,0]
[null,"C11.7.7.8","Installation only of surface bonded road studs without anchor shanks ","number (No.)",null,null,0]
[null,"C11.7.7.9","Installation only of embedded glass road studs ","number (No.)",null,null,0]
[null,"C11.7.7.10","Installation only of temporary stick on road studs (including removal) ","number (No.)",920,null,0]
[null,"C11.7.8","Setting out and premarking the lines (excluding traffic island markings, lettering and symbols)","kilometre (km)",66,null,0]
[null,"C11.7.9","Re-establishing the painting unit during the defects notification period and at other instances on instruction of the Engineer","number (No.)",3,null,0]
[null,"C11.7.10","Removal of existing, temporary or final road markings by:"]
[null,"C11.7.10.1","Sandblasting","square metre (m2)",null,null,{"$f":"E2888*F2888","v":0}]
[null,"C11.7.10.2","Water-jetting ","square metre (m2)",100,null,{"$f":"E2889*F2889","v":0}]
[null,"C11.7.10.3","Overpainting as temporary measure","square metre (m2)",null,null,{"$f":"E2890*F2890","v":0}]
[null,"C11.7.11","Removal of existing road studs","number (No.)",2500,null,{"$f":"E2891*F2891","v":0}]
[]
[]
[]
[null,"C11.7","TOTAL CARRIED FORWARD TO SUMMARY",{"$nulls":3},{"$f":"SUM(G2797:G2894)","v":0}]
[]
[null,"C11.8","LANDSCAPING AND PLANTING PLANTS"]
[null,"C11.8.1","Trimming:"]
[null,"C11.8.1.1","Machine trimming","square metre (m2)",null,null,{"$f":"E2899*F2899","v":0}]
[null,"C11.8.1.2","Hand trimming","square metre (m2)",null,null,{"$f":"E2900*F2900","v":0}]
[null,"C11.8.2","Trimming using machines for trimming or shaping (alternative to subitem C11.8.1.1):"]
[null,"C11.8.2.1","Bulldozer","hour (h)",null,null,{"$f":"E2902*F2902","v":0}]
[null,"C11.8.2.2","Motor grader","hour (h)",null,null,{"$f":"E2903*F2903","v":0}]
[null,"C11.8.3","Preparing the areas for grassing:"]
[null,"C11.8.3.1","Ripping","hectare (ha)",null,null,{"$f":"E2905*F2905","v":0}]
[null,"C11.8.3.2","Scarifying for loosening topsoil","hectare (ha)",null,null,{"$f":"E2906*F2906","v":0}]
[null,"C11.8.3.3","Topsoiling within the road reserve where the following materials are used:"]
[null,"C11.8.3.3(a)","Topsoil obtained from within the road reserve or borrow areas","cubic metre (m3)",null,null,{"$f":"E2908*F2908","v":0}]
[null,"C11.8.3.3(b)","Topsoil obtained from commercial sources by the Contractor ","cubic metre (m3)",null,null,{"$f":"E2909*F2909","v":0}]
[null,"C11.8.3.4","Topsoiling of borrowpits by using topsoil obtained from borrow areas or from the road reserve ","cubic metre (m3)",null,null,{"$f":"E2910*F2910","v":0}]
[null,"C11.8.3.5","Providing and applying chemical fertilisers and/or soil-improvement material:"]
[null,"C11.8.3.5(a)","Lime","ton (t)",null,null,{"$f":"E2912*F2912","v":0}]
[null,"C11.8.3.5(b)","Superphosphate","ton (t)",null,null,0]
[null,"C11.8.3.5(c)","Limestone ammonium nitrate","ton (t)",null,null,0]
[null,"C11.8.3.5(d)","2:3:2 (22)","ton (t)",null,null,0]
[null,"C11.8.3.5(e)","3:2:1 (25)","ton (t)",null,null,0]
[null,"C11.8.3.5(f)","Other fertilisers and / or soil-improvement materials if required","ton (t)",null,null,0]
[null,"C11.8.4","Grassing"]
[null,"C11.8.4.1","The planting of grass cuttings (type of grass indicated)","hectare (ha)",null,null,{"$f":"E2919*F2919","v":0}]
[null,"C11.8.4.2","Sodding by using the following types of sods:"]
[null,"C11.8.4.2(a)","Nursery sods (type of grass specified)","square metre (m2)",null,null,{"$f":"E2921*F2921","v":0}]
[null,"C11.8.4.2(b)","Veld sods","square metre (m2)",null,null,{"$f":"E2922*F2922","v":0}]
[null,"C11.8.4.3","Hydroseeding:"]
[null,"C11.8.4.3(a)","Providing an approved seed mixture for hydroseeding","kilogram (kg)",null,null,{"$f":"E2924*F2924","v":0}]
[null,"C11.8.4.3(b)","Providing an approved mulch","kilogram (kg)",null,null,0]
[null,"C11.8.4.3(c)","Hydroseeding","hectare (ha)",null,null,0]
[null,"C11.8.4.4","Planting grass seed with an approved grass-planting machine","hectare (ha)",null,null,0]
[null,"C11.8.4.5","Hand sowing","square metre (m2)",null,null,0]
[null,"C11.8.4.6","Other methods (specify)",{"$nulls":3},0]
[null,"C11.8.5","Watering the grass when established by topsoiling only","kilolitre (kℓ)",null,null,0]
[null,"C11.8.6","Watering the already planted grass, trees and shrubs during the growing season","kilolitre (kℓ)",null,null,0]
[null,"C11.8.7","Mowing the grass","hectare (ha)",null,null,0]
[null,"C11.8.8","Anti-erosion compound or hydraulic mulches (specify type)","kilogram (kg)",null,null,0]
[null,"C11.8.9","Trees and shrubs:"]
[null,"C11.8.9.1","Providing trees and shrubs "]
[null,"C11.8.9.1(a)","Trees (types and size/mass indicated)","number (No.)",null,null,{"$f":"E2936*F2936","v":0}]
[null,"C11.8.9.1(b)","Shrubs (types and size/mass indicated)","number (No.)",null,null,{"$f":"E2937*F2937","v":0}]
[null,"C11.8.9.2","Planting and establishing:"]
[null,"C11.8.9.2(a)","Trees, all types and sizes","number (No.)",null,null,{"$f":"E2939*F2939","v":0}]
[null,"C11.8.9.2(b)","Shrubs, all types and sizes","number (No.)",null,null,{"$f":"E2940*F2940","v":0}]
[null,"C11.8.10","Unspecified work for landscaping","provisional sum"]
[null,"C11.8.11","Weeding all grass-seeded areas and the grass when established by topsoiling only","hectare (ha)",null,null,{"$f":"E2942*F2942","v":0}]
[null,"C11.8.12","Removal of undesirable vegetation","square metre (m2)",null,null,{"$f":"E2943*F2943","v":0}]
[]
[]
[]
[null,"C11.8","TOTAL CARRIED FORWARD TO SUMMARY",{"$nulls":3},{"$f":"SUM(G2899:G2946)","v":0}]
[]
[null,"C11.9","FINISHING THE ROAD AND ROAD RESERVE AND TREATING OLD ROADS"]
[null,"C11.9.1","Finishing the road and road reserve:"]
[null,"C11.9.1.1","Dual carriageway road","kilometre (km)",null,null,{"$f":"E2951*F2951","v":0}]
[null,"C11.9.1.2","Single carriageway road","kilometre (km)",22,null,{"$f":"E2952*F2952","v":0}]
[null,"C11.9.2","Treatment of old roads and temporary deviations"]
[null,"C11.9.2.1","Conventional construction methods","kilometre (km)",null,null,{"$f":"E2954*F2954","v":0}]
[null,"C11.9.2.2","By hand only","kilometre (km)",null,null,{"$f":"E2955*F2955","v":0}]
[]
[]
[]
[null,"C11.9","TOTAL CARRIED FORWARD TO SUMMARY",{"$nulls":3},{"$f":"SUM(G2951:G2958)","v":0}]
[]
[null,"C12.1","PILING"]
[null,"C12.1.1","Additional foundation investigations","provisional sum"]
[null,"C12.1.2","Access and drainage:"]
[null,"C12.1.2.1","Access","lump sum"]
[null,"C12.1.2.2","Drainage by pumping or other means","lump sum"]
[null,"C12.1.3","Establishment on site for piling (piling locations indicated (type indicated)","lump sum"]
[null,"C12.1.4","Moving to, and setting up equipment at each position for installing piles (pile type indicated)","number (No.)",null,null,{"$f":"E2967*F2967","v":0}]
[null,"C12.1.5","Augered or bored holes (type specified) for piles  with a diameter of (diameter indicated) through  material situated within the following successive depth ranges"]
[null,"C12.1.5.1","Augered holes"]
[null,"C12.1.5.1(a)","0m up to 10m provided for in pay item C12.1.6","metre (m)",null,null,{"$f":"E2970*F2970","v":0}]
[null,"C12.1.5.1(b)","Exceeding 10m and up to 15m","metre (m)",null,null,{"$f":"E2971*F2971","v":0}]
[null,"C12.1.5.1(c)","Etc. in increments of 5,0m depths","metre (m)",null,null,{"$f":"E2972*F2972","v":0}]
[null,"C12.1.5.2","Bored piles"]
[null,"C12.1.5.2(a)","0m up to 10m","metre (m)",null,null,{"$f":"E2974*F2974","v":0}]
[null,"C12.1.5.2(b)","Exceeding 10m and up to 15m","metre (m)",null,null,{"$f":"E2975*F2975","v":0}]
[null,"C12.1.5.2(c)","Etc. in increments of 5,0m depths","metre (m)",null,null,{"$f":"E2976*F2976","v":0}]
[null,"C12.1.6","Extra over item C12.1.5 irrespective of the depth, to form augered and bored pile holes through identified materials consisting of:"]
[null,"C12.1.6.1","Coarse gravel with a matrix content of less than (max. percentage indicated)","metre (m)",null,null,{"$f":"E2978*F2978","v":0}]
[null,"C12.1.6.2","Boulders (description of and maximum size indicated)","metre (m)",null,null,{"$f":"E2979*F2979","v":0}]
[null,"C12.1.6.3","Rock formation (description and class of rock indicated)","metre (m)",null,null,{"$f":"E2980*F2980","v":0}]
[null,"C12.1.7","Driving temporary casing for driven displacement piling systems (system indicated) for forming holes for piles with a diameter of (diameter indicated) through material situated within the following successive depth ranges:"]
[null,"C12.1.7.1","0m up to 10m","metre (m)",null,null,{"$f":"E2982*F2982","v":0}]
[null,"C12.1.7.2","Exceeding 10m and up to 15m","metre (m)",null,null,{"$f":"E2983*F2983","v":0}]
[null,"C12.1.7.3","Etc. in increments of 5,0m depths","metre (m)",null,null,{"$f":"E2984*F2984","v":0}]
[null,"C12.1.8","Forming augered or bored pile holes through unidentified materials","provisional sum"]
[null,"C12.1.9","Forming augered or bored pile holes through obstructions","provisional sum"]
[null,"C12.1.10","Provision for and maintenance of bentonite head for underslurry piles","lump sum"]
[null,"C12.1.11","Installing and removing temporary casings in augered holes for piles of (diameter indicated)","metre (m)",null,null,{"$f":"E2988*F2988","v":0}]
[null,"C12.1.12","Installing permanent pile casing for piles of (diameter and pile type indicated)","metre (m)",null,null,{"$f":"E2989*F2989","v":0}]
[null,"C12.1.13","Extra over items C12.1.5 and C12.1.7 for raking of piles:"]
[null,"C12.1.13.1","Holes for piles of (diameter and rake indicated)","metre (m)",null,null,{"$f":"E2991*F2991","v":0}]
[null,"C12.1.13.2","Temporary casing for driven displacement pile systems (diameter and rake indicated)","metre (m)",null,null,{"$f":"E2992*F2992","v":0}]
[null,"C12.1.14","Forming bulbous bases for piles of (diameter indicated)","number (No.)",null,null,{"$f":"E2993*F2993","v":0}]
[null,"C12.1.15","Steel reinforcement in cast in situ piles:"]
[null,"C12.1.15.1","Mild-steel bars (type indicated)","ton (t)",null,null,{"$f":"E2995*F2995","v":0}]
[null,"C12.1.15.2","High-yield-stress-steel bars (type indicated)","ton (t)",null,null,{"$f":"E2996*F2996","v":0}]
[null,"C12.1.16","Cast in situ concrete in piles, underreams, bulbous bases and sockets (class of concrete indicated)","cubic metre (m3)",null,null,{"$f":"E2997*F2997","v":0}]
[null,"C12.1.17","Extra over item C12.1.16 for concrete cast underwater","cubic metre (m3)",null,null,{"$f":"E2998*F2998","v":0}]
[null,"C12.1.18","Manufacturing, supplying and delivering prefabricated piles (type and size indicated)","metre (m)",null,null,{"$f":"E2999*F2999","v":0}]
[null,"C12.1.19","Installation of prefabricated piles (type and size indicated) through material situated within the following successive depth ranges:"]
[null,"C12.1.19.1","0m up to 10m","metre (m)",null,null,{"$f":"E3001*F3001","v":0}]
[null,"C12.1.19.2","Exceeding 10m and up to 15m","metre (m)",null,null,{"$f":"E3002*F3002","v":0}]
[null,"C12.1.19.3","Etc. in increments of 5,0m depths","metre (m)",null,null,{"$f":"E3003*F3003","v":0}]
[null,"C12.1.20","Installation of self-drilling micropiles (size indicated) through material situated within the following successive depth ranges:"]
[null,"C12.1.20.1","0m up to 9,0m","metre (m)",null,null,{"$f":"E3005*F3005","v":0}]
[null,"C12.1.20.2","Exceeding 9,0m and up to 15m","metre (m)",null,null,{"$f":"E3006*F3006","v":0}]
[null,"C12.1.20.3","Etc. in increments of 3,0m depths","metre (m)",null,null,{"$f":"E3007*F3007","v":0}]
[null,"C12.1.21","Driving temporary casings for driven displacement in piling systems or install prefabricated piles through identified or unidentified materials","provisional sum"]
[null,"C12.1.22","Extra over item C12.1.19 for raking of prefabricated piles (type, size and rake indicated)","metre (m)",null,null,{"$f":"E3009*F3009","v":0}]
[null,"C12.1.23","Splicing/coupling prefabricated piles for lengthening (size of pile indicated)","number (No.)",null,null,{"$f":"E3010*F3010","v":0}]
[null,"C12.1.24","Stripping/cutting the pile heads (type and diameter/size of pile indicated)","number (No.)",null,null,{"$f":"E3011*F3011","v":0}]
[null,"C12.1.25","Establishment on site for the load testing of piles","lump sum"]
[null,"C12.1.26","Load tests on piles (compression/tension test, diameter/ size, specified, working load and pile type indicated)","number (No.)",null,null,{"$f":"E3013*F3013","v":0}]
[null,"C12.1.27","Establishment on site for core drilling ","lump sum"]
[null,"C12.1.28","Moving equipment to and assembling at each location where cores are to be drilled","number (No.)",null,null,{"$f":"E3015*F3015","v":0}]
[null,"C12.1.29","Drilling the cores (diameter indicated) in:"]
[null,"C12.1.29.1","Concrete","metre (m)",null,null,{"$f":"E3017*F3017","v":0}]
[null,"C12.1.29.2","Founding formation:"]
[null,"C12.1.29.2(a)","Irrespective of hardness","metre (m)",null,null,{"$f":"E3019*F3019","v":0}]
[null,"C12.1.30","Standing time for pile-installation frame","hour (h)",null,null,{"$f":"E3020*F3020","v":0}]
[null,"C12.1.31","Pile Integrity Testing on augered/bored piles"]
[null,"C12.1.31.1","Providing and installing (diameter indicated) mild steel tubes for “Cross Hole Sonic Logging” in all designated piles","metre (m)",null,null,{"$f":"E3022*F3022","v":0}]
[null,"C12.1.31.2","Carrying out of Impact Frequency Response (IFR) measurements or Sonic Tapping tests and interpretation of results (per pile diameter)","number (No.)",null,null,{"$f":"E3023*F3023","v":0}]
[null,"C12.1.31.3","Cross-Hole Sonic Logging tests and interpreted results (per pile diameter)","metre (m)",null,null,{"$f":"E3024*F3024","v":0}]
[null,"C12.1.31.4","Base integrity tests (per designated pile)","number (No.)",null,null,{"$f":"E3025*F3025","v":0}]
[null,"C12.1.32","Lateral support to excavations"]
[null,"C12.1.32.1","At location (to be indicated):"]
[null,"C12.1.32.1(a)","0 to 3,0m depth","square metre (m2)",null,null,{"$f":"E3028*F3028","v":0}]
[null,"C12.1.32.1(b)","3,0 to 6,0m depth","square metre (m2)",null,null,{"$f":"E3029*F3029","v":0}]
[null,"C12.1.32.2","At other locations (as indicated)","square metre (m2)",null,null,{"$f":"E3030*F3030","v":0}]
[]
[]
[]
[null,"C12.1","TOTAL CARRIED FORWARD TO SUMMARY",{"$nulls":3},{"$f":"SUM(G2962:G3033)","v":0}]
[]
[null,"C12.2","GROUND ANCHORS"]
[null,"C12.2.1","Establishment on site for anchoring ","lump sum"]
[null,"C12.2.2","Re-establishment on site for additional work (type indicated)","lump sum"]
[null,"C12.2.3","Provision of access to anchor positions ","lump sum"]
[null,"C12.2.4","Moving to, and setting up the equipment for drilling the holes at each position","number (No.)",null,null,{"$f":"E3040*F3040","v":0}]
[null,"C12.2.5","Drill holes with a diameter of (diameter indicated) to the specified depths and inclinations","metre (m)",null,null,{"$f":"E3041*F3041","v":0}]
[null,"C12.2.6","Installation of permanent casing (size and length indicated)","metre (m)",null,null,{"$f":"E3042*F3042","v":0}]
[null,"C12.2.7","Water tests","number (No.)",null,null,{"$f":"E3043*F3043","v":0}]
[null,"C12.2.8","Grouting and re-drilling the holes ","metre (m)",null,null,{"$f":"E3044*F3044","v":0}]
[null,"C12.2.9","Cable anchor tendons:"]
[null,"C12.2.9.1","Free anchor length","meganewton-metre (MN-m)",null,null,{"$f":"E3046*F3046","v":0}]
[null,"C12.2.9.2","Fixed anchor length","meganewton-metre (MN-m)",null,null,{"$f":"E3047*F3047","v":0}]
[null,"C12.2.10","Anchorages and couplers:"]
[null,"C12.2.10.1","Anchorage at jacking end","meganewton (MN)",null,null,{"$f":"E3049*F3049","v":0}]
[null,"C12.2.10.2","Coupler at jacking end","meganewton (MN)",null,null,{"$f":"E3050*F3050","v":0}]
[null,"C12.2.11","Encasing the anchorages at the jacking end in concrete","number (No.)",null,null,{"$f":"E3051*F3051","v":0}]
[null,"C12.2.12","Performance monitoring of anchors"]
[null,"C12.2.12.1","Establishment of lift-off testing team and equipment","lump sum"]
[null,"C12.2.12.2","Lift-off tests","number (No.)",null,null,{"$f":"E3054*F3054","v":0}]
[null,"C12.2.13","Establishment on the site for drilling of rockbolts, dowels, soil nails or mechanical anchors (type indicated)","lump sum"]
[null,"C12.2.14","Move to and set up at each rockbolt, dowel, soil nail or mechanical anchor position","number (No.)",null,null,{"$f":"E3056*F3056","v":0}]
[null,"C12.2.15","Install, grout and protect soil nails or rock bolts (lengths indicated)","number (No.)",null,null,0]
[null,"C12.2.16","Extra over for tensioning soil nails or rockbolts","number (No.)",null,null,0]
[null,"C12.2.17","Apply rock bolt protection and camouflage","number (No.)",null,null,0]
[null,"C12.2.18","Move to and set up at each mechanical driven tipping anchor/ mechanical screw anchor position (type indicated)","number (No.)",null,null,0]
[null,"C12.2.19","Install mechanically driven tipping anchors / mechanical screw anchors (type and lengths indicated)","number (No.)",null,null,0]
[]
[]
[]
[null,"C12.2","TOTAL CARRIED FORWARD TO SUMMARY",{"$nulls":3},{"$f":"SUM(G3037:G3064)","v":0}]
[]
[null,"C12.3","GROUND IMPROVEMENT"]
[null,"C12.3.1","Site Establishment"]
[null,"C12.3.1.1","Geotechnical Grouting","lump sum"]
[null,"C12.3.1.2","Jet Grouting","lump sum"]
[null,"C12.3.1.3","Compaction Grouting","lump sum"]
[null,"C12.3.1.4","Dynamic compaction","lump sum"]
[null,"C12.3.1.5","Rapid impact compaction","lump sum"]
[null,"C12.3.1.6","Vibration compaction","lump sum"]
[null,"C12.3.1.7","Underpinning","lump sum"]
[null,"C12.3.1.8","Preloading","lump sum"]
[null,"C12.3.1.9","Basal reinforcement","lump sum"]
[null,"C12.3.2","Moving to and setting up equipment at each position for:"]
[null,"C12.3.2.1","Geotechnical Grouting","number (No.)",null,null,{"$f":"E3079*F3079","v":0}]
[null,"C12.3.2.2","Jet Grouting","number (No.)",null,null,0]
[null,"C12.3.2.3","Compaction Grouting","number (No.)",null,null,0]
[null,"C12.3.2.4","Dynamic compaction","number (No.)",null,null,0]
[null,"C12.3.2.5","Rapid impact compaction","number (No.)",null,null,0]
[null,"C12.3.2.6","Vibration compaction","number (No.)",null,null,0]
[null,"C12.3.2.7","Underpinning","number (No.)",null,null,0]
[null,"C12.3.2.8","Preloading","number (No.)",null,null,0]
[null,"C12.3.2.9","Basal treatment","number (No.)",null,null,0]
[null,"C12.3.3","Setting out of works at treatment positions","number (No.)",null,null,0]
[null,"C12.3.4","Grouting (Cement)"]
[null,"C12.3.4.1","Geotechnical grouting","kilogram (kg)",null,null,{"$f":"E3090*F3090","v":0}]
[null,"C12.3.4.2","Jet grouting","kilogram (kg)",null,null,{"$f":"E3091*F3091","v":0}]
[null,"C12.3.4.3","Compaction grouting","kilogram (kg)",null,null,{"$f":"E3092*F3092","v":0}]
[null,"C12.3.5","Grouting (Fillers and Additives)"]
[null,"C12.3.5.1","Sand","kilogram (kg)",null,null,{"$f":"E3094*F3094","v":0}]
[null,"C12.3.5.2","Bentonite","kilogram (kg)",null,null,0]
[null,"C12.3.5.3","Other fillers (specify)","kilogram (kg)",null,null,0]
[null,"C12.3.6","Drilling of holes for geotechnical /compaction grouting (diameter and inclination indicated)","metre (m)",null,null,0]
[null,"C12.3.7","Extra over for drilling through reinforced concrete","metre (m)",null,null,0]
[null,"C12.3.8","Drilling holes for jet grouting to specified depths (depth ranges and inclinations to be specified)","metre (m)",null,null,0]
[null,"C12.3.9","Installation of casing (diameter and inclination indicated)","metre (m)",null,null,0]
[null,"C12.3.10","Installation of standpipes for geotechnical grouting","number (No.)",null,null,0]
[null,"C12.3.11","Injection Grouting (type indicated)","cubic metre (m3)",null,null,0]
[null,"C12.3.12","Extra-over items 12.3.4 and 12.3.5 for stage grouting (specify up-or downstage)","number (No.)",null,null,0]
[null,"C12.3.13","Extra-over items 12.3.4 and 12.3.5 for jet grouting of widened sections or mushroom heads (position and width to be specified)","number (No.)",null,null,0]
[null,"C12.3.14","Exposing test jet grouted columns","number (No.)",null,null,0]
[null,"C12.3.15","Coring of jet grouted columns"]
[null,"C12.3.15.1","Setting up over completed jet grouted columns","number (No.)",null,null,{"$f":"E3107*F3107","v":0}]
[null,"C12.3.15.2","Drilling and core recovery (size indicated)","metre (m)",null,null,{"$f":"E3108*F3108","v":0}]
[null,"C12.3.15.3","Provision of core boxes","number (No.)",null,null,{"$f":"E3109*F3109","v":0}]
[null,"C12.3.16","Removal of jetting and drilling spoil","cubic metre-kilometre (m3-km)",null,null,{"$f":"E3110*F3110","v":0}]
[null,"C12.3.17","Performing dynamic compaction over (specify distance) utilising a (indicate mass) tonne pounder  "]
[null,"C12.3.17.1","Primary prints","blows",null,null,{"$f":"E3112*F3112","v":0}]
[null,"C12.3.17.2","Secondary prints","blows",null,null,{"$f":"E3113*F3113","v":0}]
[null,"C12.3.17.3","Ironing prints","blows",null,null,{"$f":"E3114*F3114","v":0}]
[null,"C12.3.18","Variation in number of blows"]
[null,"C12.3.18.1","Primary prints","blows",null,null,{"$f":"E3116*F3116","v":0}]
[null,"C12.3.18.2","Secondary prints","blows",null,null,0]
[null,"C12.3.18.3","Ironing prints","blows",null,null,0]
[null,"C12.3.19","Importing G7 quality material from approved sources ","cubic metre (m3)",null,null,0]
[null,"C12.3.20","Importing dump rock for forming stone columns by dynamic compaction from approved sources","cubic metre (m3)",null,null,0]
[null,"C12.3.21","Importing crushed rock for vibratory replacement from approved sources","cubic metre (m3)",null,null,0]
[null,"C12.3.22","Water acceptance testing (permeability tests as specified)","number (No.)",null,null,0]
[null,"C12.3.23","Plate load tests","number (No.)",null,null,0]
[null,"C12.3.24","Establishment on site for"]
[null,"C12.3.24.1","DCP testing (depth indicated)","lump sum"]
[null,"C12.3.24.2","CPT testing (depth indicated)","lump sum"]
[null,"C12.3.24.3","DPSH testing (depth indicated)","lump sum"]
[null,"C12.3.25","DCP, CPT and DPSH testing"]
[null,"C12.3.25.1","DCP testing (depth indicated)","number (No.)",null,null,{"$f":"E3129*F3129","v":0}]
[null,"C12.3.25.2","CPT testing (depth indicated)","number (No.)",null,null,0]
[null,"C12.3.25.3","DPSH testing (depth indicated)","number (No.)",null,null,0]
[null,"C12.3.26","Continuous surface wave testing (CSW)","number (No.)",null,null,0]
[null,"C12.3.27","Monitoring of instruments and earthworks by survey","month",null,null,0]
[null,"C12.3.28","Supply and install rod settlement gauges","number (No.)",null,null,0]
[null,"C12.3.29","Supply and install standpipe piezometers","number (No.)",null,null,0]
[null,"C12.3.30","Supply and install pneumatic piezometers (lengths indicated)","number (No.)",null,null,0]
[null,"C12.3.31","Supply and install inclinometer monitoring systems (lengths indicated)","metre (m)",null,null,0]
[null,"C12.3.32","Supply and install pressure measuring loadcells (type and make specified)","number (No.)",null,null,0]
[null,"C12.3.33","Supply and install geosynthetic for basal reinforcements","square metre (m2)",null,null,0]
[null,"C12.3.34","Supply and placement of 125 mm protection layer","cubic metre (m3)",null,null,0]
[]
[]
[]
[null,"C12.3","TOTAL CARRIED FORWARD TO SUMMARY",{"$nulls":3},{"$f":"SUM(G3069:G3143)","v":0}]
[]
[null,"C12.4","LATERAL SUPPORT"]
[null,"C12.4.1","Site Establishment"]
[null,"C12.4.1.1","Sheet Piling","lump sum"]
[null,"C12.4.1.2","Diaphragm Walls","lump sum"]
[null,"C12.4.2","Moving to and setting up equipment at  sections or sites to be defined"]
[null,"C12.4.2.1","Sheet Piling","number (No.)",null,null,{"$f":"E3151*F3151","v":0}]
[null,"C12.4.2.2","Diaphragm Walls","number (No.)",null,null,{"$f":"E3152*F3152","v":0}]
[null,"C12.4.3","Setting out of works at sheet piling or diaphragm panel positions","metre (m)",null,null,{"$f":"E3153*F3153","v":0}]
[null,"C12.4.4","Sheet pile driving (individual sheet pile type or sheet panel extent specified)","square metre (m2)",null,null,{"$f":"E3154*F3154","v":0}]
[null,"C12.4.5","Sheet pile extraction","square metre (m2)",null,null,{"$f":"E3155*F3155","v":0}]
[null,"C12.4.6","Sheet pile and diaphragm wall supports (as specified)"]
[null,"C12.4.6.1","Props","number (No.)",null,null,{"$f":"E3157*F3157","v":0}]
[null,"C12.4.6.2","Anchors","number (No.)",null,null,{"$f":"E3158*F3158","v":0}]
[null,"C12.4.6.3","Tie-bars","number (No.)",null,null,{"$f":"E3159*F3159","v":0}]
[null,"C12.4.7","Sheet pile grouting"]
[null,"C12.4.7.1","Chemical grouting","kilogram (kg)",null,null,{"$f":"E3161*F3161","v":0}]
[null,"C12.4.7.2","Jet grouting","kilogram (kg)",null,null,{"$f":"E3162*F3162","v":0}]
[null,"C12.4.7.3","Compaction grouting","kilogram (kg)",null,null,{"$f":"E3163*F3163","v":0}]
[null,"C12.4.8","Concrete placed by tremie under slurry in diaphragm walls (class of concrete indicated)","cubic metre (m3)",null,null,{"$f":"E3164*F3164","v":0}]
[null,"C12.4.9","Partial Excavation of Panels","cubic metre (m3)",null,null,{"$f":"E3165*F3165","v":0}]
[null,"C12.4.10","Cement, additives, bentonite, aggregate and  fillers"]
[null,"C12.4.10.1","Cement","kilogram (kg)",null,null,{"$f":"E3167*F3167","v":0}]
[null,"C12.4.10.2","Bentonite","kilogram (kg)",null,null,0]
[null,"C12.4.10.3","Fine/coarse aggregate (specify)","kilogram (kg)",null,null,0]
[null,"C12.4.10.4","Other fillers (specify)","kilogram (kg)",null,null,0]
[null,"C12.4.11","Bentonite slurry re-use","cubic metre (m3)",null,null,0]
[null,"C12.4.12","Steel reinforcement","ton (t)",null,null,0]
[null,"C12.4.13","Exposing tops of selected concrete panels","number (No.)",null,null,0]
[null,"C12.4.14","Coring of concrete panels"]
[null,"C12.4.14.1","Setting up at completed panels","number (No.)",null,null,{"$f":"E3175*F3175","v":0}]
[null,"C12.4.14.2","Drilling and core recovery (size indicated)","metre (m)",null,null,{"$f":"E3176*F3176","v":0}]
[null,"C12.4.14.3","Provision of core boxes","number (No.)",null,null,{"$f":"E3177*F3177","v":0}]
[null,"C12.4.14.4","Extra-over for inclined drilling","metre (m)",null,null,{"$f":"E3178*F3178","v":0}]
[]
[]
[]
[null,"C12.4","TOTAL CARRIED FORWARD TO SUMMARY",{"$nulls":3},{"$f":"SUM(G3148:G3181)","v":0}]
[]
[null,"C12.5","SHOTCRETE"]
[null,"C12.5.1","Establishment on site","lump sum"]
[null,"C12.5.2","Surface preparation for shotcreting","square metre (m2)",null,null,{"$f":"E3186*F3186","v":0}]
[null,"C12.5.3","Supply and installation of reinforcement:"]
[null,"C12.5.3.1","Welded steel mesh fabric (Ref. 395)","square metre (m2)",null,null,{"$f":"E3188*F3188","v":0}]
[null,"C12.5.3.2","Fibre (type indicated)","kilogram (kg)",null,null,{"$f":"E3189*F3189","v":0}]
[null,"C12.5.3.3","Other special reinforcement systems as specified","square metre (m2)",null,null,{"$f":"E3190*F3190","v":0}]
[null,"PC12.5.4","Shotcrete (of specified thickness or volume):"]
[null,"C12.5.4.1","Flash/base coat (unreinforced) (specify thickness)","square metre (m2)",null,null,{"$f":"E3192*F3192","v":0}]
[null,"C12.5.4.2","Intermediate coat/s (specify thickness and number of layers)","square metre (m2)",null,null,0]
[null,"C12.5.4.3","Final coat (specify thickness, pigmentation and finish)","square metre (m2)",null,null,0]
[null,"C12.5.4.4","Dental shotcrete","cubic metre (m3)",null,null,0]
[null,"C12.5.5","Removal to spoil of material trimmed from slope","cubic metre-kilometre (m3-km)",null,null,0]
[null,"C12.5.6","Edge finishing of shotcrete","metre (m)",null,null,0]
[null,"C12.5.7","Geopipe collectors and weepholes:"]
[null,"C12.5.7.1","50mm diameter U-PVC weephole piping (specify length and class)","number (No.)",null,null,{"$f":"E3199*F3199","v":0}]
[null,"C12.5.7.2","Geopipe collectors (specify type, diameter and class)","metre (m)",null,null,{"$f":"E3200*F3200","v":0}]
[null,"C12.5.7.3","Other piping (specify type, diameter and class)","metre (m)",null,null,{"$f":"E3201*F3201","v":0}]
[null,"C12.5.8","Geocomposite/geosynthetic drain as specified","metre (m)",null,null,{"$f":"E3202*F3202","v":0}]
[]
[]
[]
[null,"C12.5","TOTAL CARRIED FORWARD TO SUMMARY",{"$nulls":3},{"$f":"SUM(G3185:G3205)","v":0}]
[]
[null,"C12.6","MECHANICALLY STABILISED EARTH AND GABIONS"]
[null,"C12.6.1","Establishment on site for MSE"]
[null,"C12.6.1.1","For reinforced concrete facing","lump sum"]
[null,"C12.6.1.2","For concrete block wall facing","lump sum"]
[null,"C12.6.1.3","For metallic facing","lump sum"]
[null,"C12.6.2","Excavation for wall base foundation","cubic metre (m3)",null,null,{"$f":"E3213*F3213","v":0}]
[null,"C12.6.3","Concrete for wall base foundation","cubic metre (m3)",null,null,{"$f":"E3214*F3214","v":0}]
[null,"C12.6.4","Reinforcing steel in wall base foundation"]
[null,"C12.6.4.1","Mild steel","ton (t)",null,null,{"$f":"E3216*F3216","v":0}]
[null,"C12.6.4.2","High tensile steel","ton (t)",null,null,0]
[null,"C12.6.5","Preparation of surface for laying metallic strips or geosynthetic","square metre (m2)",null,null,0]
[null,"C12.6.6","Metallic reinforcing strips (section dimension indicated)","metre (m)",null,null,0]
[null,"C12.6.7","Metallic reinforcing mesh (section dimension indicated)","square metre (m2)",null,null,0]
[null,"C12.6.8","Polymer/Geosynthetic reinforcing strips (section dimension indicated)","metre (m)",null,null,0]
[null,"C12.6.9","Polymer/Geosynthetic reinforcing sheet as specified","square metre (m2)",null,null,0]
[null,"C12.6.10","Fixing mechanism to facings"]
[null,"C12.6.10.1","Strips","number (No.)",null,null,{"$f":"E3224*F3224","v":0}]
[null,"C12.6.10.2","Sheets","metre (m)",null,null,{"$f":"E3225*F3225","v":0}]
[null,"C12.6.11","Backfill (material type and compaction requirements indicated)","cubic metre (m3)",null,null,{"$f":"E3226*F3226","v":0}]
[null,"C12.6.12","Facings (type, size and thickness indicated)"]
[null,"C12.6.12.1","For reinforced concrete panel facing","square metre (m2)",null,null,{"$f":"E3228*F3228","v":0}]
[null,"C12.6.12.2","For concrete block wall facing","square metre (m2)",null,null,{"$f":"E3229*F3229","v":0}]
[null,"C12.6.12.3","For metallic facing","square metre (m2)",null,null,{"$f":"E3230*F3230","v":0}]
[null,"C12.6.13","Drainage (type and size indicated)","number (No.)",null,null,{"$f":"E3231*F3231","v":0}]
[null,"C12.6.14","Foundation trench excavation:"]
[null,"C12.6.14.1","Excavating all material situated within the following depth ranges below the surface level"]
[null,"C12.6.14.1(a)","0m to 1,5m","cubic metre (m3)",null,null,{"$f":"E3234*F3234","v":0}]
[null,"C12.6.14.1(b)","Exceeding 1,5m and up to 3,0m","cubic metre (m3)",null,null,0]
[null,"C12.6.14.1(c)","Etc. in increments of 1,5m","cubic metre (m3)",null,null,0]
[null,"C12.5.14.2","Extra over sub-item C11.2.1.1 for excavation in hard material, irrespective of depth","cubic metre (m3)",null,null,0]
[null,"C12.6.14.3","Excavating soft material within 1,5m below the surface level using labour enhancement construction methods","cubic metre (m3)",null,null,0]
[null,"C12.6.14.4","Excavating intermediate material within 1,5m below the surface level using labour enhancement construction methods","cubic metre (m3)",null,null,0]
[null,"C12.6.15","Surface preparation for bedding the gabions","square metre (m2)",null,null,0]
[null,"C12.6.16","Gabions and mattresses: "]
[null,"C12.6.16.1","Galvanized gabion boxes (dimensions of box)","cubic metre (m3)",null,null,{"$f":"E3242*F3242","v":0}]
[null,"C12.6.16.2","Polymer coated gabion boxes (dimensions of box)","cubic metre (m3)",null,null,{"$f":"E3243*F3243","v":0}]
[null,"C12.6.16.3","Galvanized gabion mattresses (dimensions of mattress)","cubic metre (m3)",null,null,{"$f":"E3244*F3244","v":0}]
[null,"C12.6.16.4","Polymer coated gabion mattresses (dimensions of mattress)","cubic metre (m3)",null,null,{"$f":"E3245*F3245","v":0}]
[null,"C12.6.17","Geotextile (type indicated)","square metre (m2)",null,null,{"$f":"E3246*F3246","v":0}]
[]
[]
[]
[null,"C12.6","TOTAL CARRIED FORWARD TO SUMMARY",{"$nulls":3},{"$f":"SUM(G3210:G3249)","v":0}]
[]
[null,"C12.7","TRENCHLESS METHODS "]
[null,"C12.7.1","Establishment on site for: (indicate type of operation: Pipe Jacking, Horizontal directional drilling, Pipe Ramming, or Micro-tunnelling)","lump sum"]
[null,"C12.7.2","Moving to and setting up equipment at each position for (indicate type of operation)","number (No.)",null,null,{"$f":"E3254*F3254","v":0}]
[null,"C12.7.3","Installing holes (diameter, lining type indicated) to required length for (indicate type of operation)","metre (m)",null,null,{"$f":"E3255*F3255","v":0}]
[null,"C12.7.4","Penetrating unidentified obstructions/services (indicate type of operation, i.e. Pipe Jacking, Horizontal directional drilling, Pipe Ramming or  Micro-tunnelling) for penetration of:"]
[null,"C12.7.4.1","Steel or iron","metre (m)",null,null,{"$f":"E3257*F3257","v":0}]
[null,"C12.7.4.2","Concrete","metre (m)",null,null,{"$f":"E3258*F3258","v":0}]
[null,"C12.7.4.3","Rock of UCS > 3 MPa","metre (m)",null,null,{"$f":"E3259*F3259","v":0}]
[]
[]
[]
[null,"C12.7","TOTAL CARRIED FORWARD TO SUMMARY",{"$nulls":3},{"$f":"SUM(G3253:G3262)","v":0}]
[]
[null,"C12.8","GROUND DRAINAGE"]
[null,"C12.8.1","Establishment on site for"]
[null,"C12.8.1.1","Well point construction  ","lump sum"]
[null,"C12.8.1.2","Horizontal drains","lump sum"]
[null,"C12.8.1.3","Vertical drains (all types)","lump sum"]
[null,"C12.8.1.4","Geosynthetic/Blanket drains","lump sum"]
[null,"C12.8.2","Provision of access to drain positions (type indicated)","lump sum"]
[null,"C12.8.3","Moving to, and setting up the equipment for drilling the holes at each well/horizontal/ sand drain position (type indicated)","number (No.)",null,null,{"$f":"E3272*F3272","v":0}]
[null,"C12.8.4","Moving to, and setting up the equipment   for installing vertical drains at each drain position (size and type of drain indicated)","number (No.)",null,null,0]
[null,"C12.8.5","Drill holes for wells (diameter   indicated) to the required depth","metre (m)",null,null,0]
[null,"C12.8.6","Drill holes for horizontal drains  (inclination and diameter indicated) to the required depth","metre (m)",null,null,0]
[null,"C12.8.7","Drill holes for vertical sand drains (diameter indicated) to the required depth","metre (m)",null,null,0]
[null,"C12.8.8","Pre-drilling of holes for vertical drains (diameter indicated) to the required depth","metre (m)",null,null,0]
[null,"C12.8.9","Installation of slotted drainage pipes for wells (size indicated)","metre (m)",null,null,0]
[null,"C12.8.10","Installation of slotted drainage pipes for horizontal drains (size indicated)","metre (m)",null,null,0]
[null,"C12.8.11","Installation of vertical drains (type/ size indicated) ","metre (m)",null,null,0]
[null,"C12.8.12","Filter sand for wells (type/ size indicated)","kilogram (kg)",null,null,0]
[null,"C12.8.13","River sand for vertical drains (source indicated)","cubic metre (m3)",null,null,0]
[null,"C12.8.14","Provision and installation of submersible borehole pumps in designated wells","provisional sum"]
[null,"C12.8.15","Construction of base station for wells","provisional sum"]
[]
[]
[]
[null,"C12.8","TOTAL CARRIED FORWARD TO SUMMARY",{"$nulls":3},{"$f":"SUM(G3267:G3287)","v":0}]
[]
[null,"C12.9","SLOPE PROTECTION MEASURES"]
[null,"C12.9.1","Barring down of rock surfaces within vertical height intervals (intervals stated)","square metre (m2)",null,null,{"$f":"E3291*F3291","v":0}]
[null,"C12.9.2","Cleaning of rock surfaces by high pressure air and water jetting equipment within the vertical height intervals (categories stated)  ","square metre (m2)",null,null,0]
[null,"C12.9.3","Disposal of barred down and accumulated debris","cubic metre-kilometre (m3-km)",null,null,0]
[null,"C12.9.4","Supply and install wire mesh rockfall netting within vertical height intervals (intervals stated) (galvanic requirements, roll width, wire thickness, tensile strength, weave, aperture, PVC coating and/or colouring indicated)","square metre (m2)",null,null,0]
[null,"C12.9.5","Supply and Installation/erection of catch fencing (galvanic requirements, type, height, length and energy rating in kJ and location of fences indicated)","metre (m)",null,null,0]
[null,"C12.9.6","Supply and installation/erection of additional anchor lengths for catch fences (differentiate between threadbar and wire rope anchor for different diameters)","metre (m)",null,null,0]
[null,"C12.9.7","Gap filling under the catch fences (energy class stated)","square metre (m2)",null,null,0]
[null,"C12.9.8","Supply and installation/erection of shallow landslide fencing (galvanic requirements, type, height, length and rating and fence length class interval)","metre (m)",null,null,0]
[null,"C12.9.9","Supply and install additional anchor lengths for shallow landslide fences (differentiate between threadbar and wire rope anchor for different diameters)","metre (m)",null,null,0]
[null,"C12.9.10","Gap filling under the shallow landslide fences (fence rating indicated)","square metre (m2)",null,null,0]
[null,"C12.9.11","Supply and installation/erection of debris flow fencing (galvanic requirements, type, rating and location for each numbered fence indicated)","metre (m)",null,null,0]
[null,"C12.9.12","Supply and install additional anchor lengths for debris flow fences (differentiate between threadbar and wire rope anchor for different diameters)","metre (m)",null,null,0]
[]
[]
[]
[null,"C12.9","TOTAL CARRIED FORWARD TO SUMMARY",{"$nulls":3},{"$f":"SUM(G3291:G3305)","v":0}]
[]
[null,"C12.10","HARD EXCAVATION BY BLASTING"]
[null,"PC12.10.1","Excavation in hard rock using controlled blasting techniques ","cubic metre (m3)",null,null,{"$f":"E3309*F3309","v":0}]
[null,"C12.10.2","Pre-splitting - base rate for holes @ 750mm c/c","square metre (m2)",null,null,0]
[null,"C12.10.3","Pre-splitting - compensation for additional holes","metre of hole (m)",null,null,0]
[null,"C12.10.4","Smooth blasting - base rate for holes @ 1500mm c/c","square metre (m2)",null,null,0]
[null,"C12.10.5","Smooth Blasting - compensation for additional holes ","metre (m)",null,null,0]
[null,"C12.10.6","Line Drilling - base rate for holes @ 300mm c/c","square metre (m2)",null,null,0]
[null,"C12.10.7","Line Drilling – compensation for additional holes ","metre (m)",null,null,0]
[null,"PC12.10.8","Ground vibration, air blast and fly rock monitoring ","lump sum"]
[]
[]
[]
[null,"C12.10","TOTAL CARRIED FORWARD TO SUMMARY",{"$nulls":3},{"$f":"SUM(G3309:G3319)","v":0}]
[]
[null,"C12.11","GEOSYNTHETICS"]
[null,null,"Measurement and Payment will be covered under the Chapters where applicable"]
[]
[]
[]
[null,"C12.11","TOTAL CARRIED FORWARD TO SUMMARY",{"$nulls":3},{"$f":"SUM(G3323:G3326)","v":0}]
[]
[null,"C12.12","CONSTRUCTION DEWATERING"]
[null,"C12.12.1","Establishment on site for construction dewatering","lump sum"]
[null,"C12.12.2","Installing and commissioning all requisite plant and equipment to undertake dewatering by well system offered (type of well system to be nominated by tenderer)","number (No.)",null,null,{"$f":"E3331*F3331","v":0}]
[null,"C12.12.3","Operate and maintain well system  (type of well system to be nominated by tenderer)","(pumped) hours (hrs)",null,null,{"$f":"E3332*F3332","v":0}]
[null,"C12.12.4","Supply, install and remove discharge pipeline  to the required depth (diameter and class indicated)","metre (m)",null,null,{"$f":"E3333*F3333","v":0}]
[null,"C12.12.5","Install ground observation wells to the required depth (diameter and class indicated)","metre (m)",null,null,{"$f":"E3334*F3334","v":0}]
[null,"C12.12.6","Monitoring of lowering of ground water levels","lump sum"]
[null,"C12.12.7","Monitoring of potential settlements","lump sum"]
[null,"C12.12.8","Monitoring quality of groundwater"]
[null,"C12.12.8.1","Monitoring of silt and fine sand","lump sum"]
[null,"C12.12.8.2","Monitoring of groundwater chemistry and quality","lump sum"]
[]
[]
[]
[null,"C12.12","TOTAL CARRIED FORWARD TO SUMMARY",{"$nulls":3},{"$f":"SUM(G3330:G3342)","v":0}]
[]
[null,"C13.1","FOUNDATIONS"]
[null,"C13.1.1","Provision of designs and drawings of temporary works by an ECSA-registered Professional Engineer or Technologist or Geotechnical Engineer (description of works to which applicable)","lump sum"]
[null,"C13.1.2","Additional foundation investigations:"]
[null,"C13.1.2.1","Provisional sum allowed for additional foundation investigations","provisional sum"]
[null,"C13.1.2.2","Handling costs and profit in respect of item C13.1.2.1","percentage (%)",{"$f":"G3348","v":0},null,{"$f":"E3349*F3349","v":0}]
[null,"134.1.3","Excavation:"]
[null,"C13.1.3.1","Excavating soft material situated within the following successive depth ranges:"]
[null,"C13.1.3.1(a)","0m up to 1,5m","cubic metre (m3)",null,null,{"$f":"E3352*F3352","v":0}]
[null,"C13.1.3.1(b)","> 1,5m and < 3,0m","cubic metre (m3)",null,null,0]
[null,"C13.1.3.1(c)","Etc. in increments of 1,5m","cubic metre (m3)",null,null,0]
[null,"C13.1.3.2","Extra over subitem C13.1.3.1 for excavation in hard material  irrespective of depth","cubic metre (m3)",null,null,0]
[null,"C13.1.3.3","Extra over subitem C13.1.3.1 for additional excavation required by the Engineer after excavation is complete","cubic metre (m3)",null,null,0]
[null,"C13.1.3.4","Extra over subitem C13.1.3.1 for excavation by hand","cubic metre (m3)",null,null,0]
[null,"C13.1.3.5","Extra over subitem C13.1.3.1 for excavation in restricted areas","cubic metre (m3)",null,null,0]
[null,"C13.1.4","Excavation by labour enhanced methods:"]
[null,"C13.1.4.1","Excavate in soft material situated within the following successive depth ranges:"]
[null,"C13.1.4.1(a)","0m up to 1,5m","cubic metre (m3)",null,null,{"$f":"E3361*F3361","v":0}]
[null,"C13.1.4.2","Extra over item C13.1.3.1(a) for excavation in intermediate material","cubic metre (m3)",null,null,{"$f":"E3362*F3362","v":0}]
[null,"C13.1.4.3","Extra over item C13.1.3.1(a) for additional excavation required by the Engineer after excavation is complete","cubic metre (m3)",null,null,{"$f":"E3363*F3363","v":0}]
[null,"C13.1.5","Mass excavation within a restricted area (extra over item C13.1.3)","cubic metre (m3)",null,null,{"$f":"E3364*F3364","v":0}]
[null,"C13.1.6","Access and drainage:"]
[null,"C13.1.6.1","Access","lump sum"]
[null,"C13.1.6.2","Drainage","lump sum"]
[null,"C13.1.7","Backfill to excavations utilising:"]
[null,"C13.1.7.1","Material from excavation","cubic metre (m3)",null,null,{"$f":"E3369*F3369","v":0}]
[null,"C13.1.7.2","Imported material","cubic metre (m3)",null,null,{"$f":"E3370*F3370","v":0}]
[null,"C13.1.7.3","Soil cement","cubic metre (m3)",null,null,{"$f":"E3371*F3371","v":0}]
[null,"C13.1.8","Backfill to excavations utilising labour:"]
[null,"C13.1.8.1","Material from excavation ","cubic metre (m3)",null,null,{"$f":"E3373*F3373","v":0}]
[null,"C13.1.8.2","Imported material ","cubic metre (m3)",null,null,0]
[null,"C13.1.8.3","Soil cement ","cubic metre (m3)",null,null,0]
[null,"C13.1.9","Fill within a restricted area (extra over item C5.2.2)","cubic metre (m3)",null,null,0]
[null,"C13.1.10","Haul in excess of 1,0 km on excavated material and on material imported for backfill, foundation fill and fill for caissons","cubic metre kilometre (m3.km)",null,null,0]
[null,"C13.1.11","Haul in excess of 50 metres on excavated material and on foundation fill for labour enhanced construction","cubic metre kilometre (m3.km)",null,null,0]
[null,"C13.1.12","Overbreak in excavation in hard material","square metre (m2)",null,null,0]
[null,"C13.1.13","Overbreak in excavation in hard material for labour enhanced construction","square metre (m2)",null,null,0]
[null,"C13.1.14","Foundation fill consisting of:"]
[null,"C13.1.14.1","Rock fill","cubic metre (m3)",null,null,{"$f":"E3382*F3382","v":0}]
[null,"C13.1.14.2","Crushed-stone fill","cubic metre (m3)",null,null,0]
[null,"C13.1.14.3","Compacted granular material","cubic metre (m3)",null,null,0]
[null,"C13.1.14.4","Mass concrete (class indicated)","cubic metre (m3)",null,null,0]
[null,"C13.1.14.5","Concrete blinding (thickness and class of concrete indicated)","cubic metre (m3)",null,null,0]
[null,"C13.1.14.6","Plum concrete (class indicated)","cubic metre (m3)",null,null,0]
[null,"C13.1.15","Foundation fill placed by labour enhanced methods consisting of:"]
[null,"C13.1.15.1","Rock fill","cubic metre (m3)",null,null,{"$f":"E3389*F3389","v":0}]
[null,"C13.1.15.2","Crushed-stone fill","cubic metre (m3)",null,null,0]
[null,"C13.1.15.3","Compacted granular material","cubic metre (m3)",null,null,0]
[null,"C13.1.15.4","Mass concrete (class indicated)","cubic metre (m3)",null,null,0]
[null,"C13.1.15.5","Concrete blinding (thickness and class of concrete indicated)","cubic metre (m3)",null,null,0]
[null,"C13.1.15.6","Plum concrete (class indicated)","cubic metre (m3)",null,null,0]
[null,"C13.1.16","Establishment on site for drilling of holes and grouting of rock fissures (type of drilling indicated)","lump sum"]
[null,"C13.1.17","Moving to and setting up equipment at each hole to be drilled for grouting","number (No.)",null,null,{"$f":"E3396*F3396","v":0}]
[null,"C13.1.18","Drilling of holes for grouting (diameter and type of drilling indicated)","metre (m)",null,null,0]
[null,"C13.1.19","Grouting of rock fissures (type of grout and for which purpose it is required indicated)","kilogram (kg)",null,null,0]
[null,"C13.1.20","Dowel bars:",{"$nulls":3},0]
[null,"C13.1.20.1","Drilling and preparation of holes (diameter and length indicated)","metre (m)",null,null,0]
[null,"C13.1.20.2","Supply and installation of dowel bars\n(type, diameter, length, corrosion protection, together with type of grout, indicated)","kilogram (kg)",null,null,0]
[null,"C13.1.21","Foundation lining (type of material and thickness indicated)","square metre (m2)",null,null,0]
[null,"C13.1.22","Foundation lining (type of material and thickness indicated) using labour enhanced methods","square metre (m2)",null,null,0]
[null,"C13.1.23","Lateral support for excavations:"]
[null,"C13.1.23.1","Excavation or fill at (indicate location)"]
[null,"C13.1.23.1(a)","0m to 2,5m depth","square metre (m2)",null,null,{"$f":"E3406*F3406","v":0}]
[null,"C13.1.23.1(b)","2,5m to 5,0m depth","square metre (m2)",null,null,{"$f":"E3407*F3407","v":0}]
[null,"C13.1.23.1(c)","Etc. at other locations",{"$nulls":3},{"$f":"E3408*F3408","v":0}]
[null,"C13.1.24","Establishment on site for constructing caissons","lump sum"]
[null,"C13.1.25","Formwork for caissons (class of finish indicated)","square metre (m2)",null,null,{"$f":"E3410*F3410","v":0}]
[null,"C13.1.26","Steel reinforcement for caissons:"]
[null,"C13.1.26.1","Mild-steel bars","ton (t)",null,null,{"$f":"E3412*F3412","v":0}]
[null,"C13.1.26.2","High-yield-stress-steel bars (type indicated)","ton (t)",null,null,{"$f":"E3413*F3413","v":0}]
[null,"C13.1.27","Cast in situ concrete in caissons and concrete seals (class of concrete indicated)","cubic metre (m3)",null,null,{"$f":"E3414*F3414","v":0}]
[null,"C13.1.28","Cutting edge for (diameter/ size indicated) caissons","number (No.)",null,null,{"$f":"E3415*F3415","v":0}]
[null,"C13.1.29","Sinking (diameter/size indicated) caissons through material situated within the following successive depth ranges:"]
[null,"C13.1.29.1","0m up to 5,0m","metre (m)",null,null,{"$f":"E3417*F3417","v":0}]
[null,"C13.1.29.2","Exceeding 5,0m and up to 10m","metre (m)",null,null,{"$f":"E3418*F3418","v":0}]
[null,"C13.1.29.3","Etc.in increments of 5,0m depths","metre (m)",null,null,{"$f":"E3419*F3419","v":0}]
[null,"C13.1.30","Excavation for caissons:"]
[null,"C13.1.30.1","Excavating soft material situated within the following successive depth ranges:"]
[null,"C13.1.30.1(a)","0m up to 2,0m","cubic metre (m3)",null,null,{"$f":"E3422*F3422","v":0}]
[null,"C13.1.30.1(b)","Exceeding 2,0m and up to 4,0m","cubic metre (m3)",null,null,0]
[null,"C13.1.30.1(c)","Etc. in increments of 2,0m depths","cubic metre (m3)",null,null,0]
[null,"C13.1.30.2","Extra over subitem C13.1.24.1 for excavation in hard material irrespective of depth","cubic metre (m3)",null,null,0]
[null,"C13.1.31","Filling the caissons","cubic metre (m3)",null,null,0]
[null,"C13.1.32","Stripping (size of caisson indicated) caisson heads","number (No.)",null,null,0]
[]
[]
[]
[null,"C13.1","TOTAL CARRIED FORWARD TO SUMMARY",{"$nulls":3},{"$f":"SUM(G3346:G3430)","v":0}]
[]
[null,"C13.2","FALSEWORK, FORMWORK AND CONCRETE FINISH"]
[null,"C13.2.1","Formwork to provide (class of finish indicated as F1, F2, F3 or board) surface finish to (description of member to which applicable)","square metre (m2)",null,null,{"$f":"E3434*F3434","v":0}]
[null,"C13.2.2","Vertical formwork to provide (class of finish indicated as F1, F2, F3 or board) surface finish to (description of member to which applicable)","square metre (m2)",null,null,{"$f":"E3435*F3435","v":0}]
[null,"C13.2.3","Horizontal formwork to provide (class of finish Indicated as F1, F2, F3 or board) surface finish to (description of member to which applicable)","square metre (m2)",null,null,{"$f":"E3436*F3436","v":0}]
[null,"C13.2.4","Inclined formwork to provide (class of finish indicated as F1, F2, F3 or board) surface finish to (description of member to which applicable)","square metre (m2)",null,null,{"$f":"E3437*F3437","v":0}]
[null,"C13.2.5","Permanent formwork"]
[null,"C13.2.5.1","To form voids of (diameter/ size of void indicated) in (description of member to which applicable)","square metre (m2)",null,null,{"$f":"E3439*F3439","v":0}]
[null,"C13.2.5.2","Of (description of material and member to which applicable)","square metre (m2)",null,null,{"$f":"E3440*F3440","v":0}]
[null,"C13.2.6","Formwork to form open joints (description of member to which applicable, and location)","square metre (m2)",null,null,{"$f":"E3441*F3441","v":0}]
[null,"C13.2.7","Establishment on the site for sliding formwork operations","lump sum"]
[null,"C13.2.8","Transporting to and setting up the sliding formwork assembly at (description of each structure)","number (No.)",null,null,{"$f":"E3443*F3443","v":0}]
[null,"C13.2.9","Forming the concrete by sliding formwork for (description of each structure and class of surface finish to exposed surfaces indicated)","metre (m)",null,null,{"$f":"E3444*F3444","v":0}]
[null,"C13.2.10","Provision of designs and drawings of falsework and formwork by an ECSA registered Professional Engineer or Technologist (description of member to which applicable)","lump sum"]
[]
[]
[]
[null,"C13.2","TOTAL CARRIED FORWARD TO SUMMARY",{"$nulls":3},{"$f":"SUM(G3434:G3448)","v":0}]
[]
[null,"C13.3","STEEL REINFORCEMENT"]
[null,"C13.3.1","Reinforcement for:"]
[null,"C13.3.1.1","… (Description of portion of structure to which applicable):"]
[null,"C13.3.1.1(a)","Mild-steel bars","ton (t)",null,null,{"$f":"E3454*F3454","v":0}]
[null,"C13.3.1.1(b)","High-yield-stress-steel bars (type indicated)","ton (t)",null,null,0]
[null,"C13.3.1.1(c)","Welded Steel Fabric","kilogram (kg)",null,null,0]
[null,"C13.3.1.1(d)","Stainless steel bars (type indicated)","ton (t)",null,null,0]
[null,"C13.3.1.1(e)","Other Materials (specify material)","ton (t)",null,null,0]
[null,"C13.3.1.2","Etc. for other structures or parts of structures","ton (t)",null,null,0]
[null,"C13.3.2","Mechanical couplers (type of coupler and diameter of bar indicated)","number (No.)",null,null,0]
[null,"C13.3.3","Spacer ladders for (description of part of structure to which applicable)","ton (t)",null,null,0]
[null,"C13.3.4","Extra-over item C13.3.1 (a), (b), etc. for galvanising of reinforcement    ","ton (t)",null,null,0]
[]
[]
[]
[null,"C13.3","TOTAL CARRIED FORWARD TO SUMMARY",{"$nulls":3},{"$f":"SUM(G3454:G3465)","v":0}]
[]
[null,"C13.4","CONCRETE"]
[null,"C13.4.1","Cast in situ concrete (Class of concrete and use or position in structure stated): "]
[null,"C13.4.1.1","Strength concrete (class C):"]
[null,"C13.4.1.1(a)","Indicate part of structure, class code and 28 day characteristic cylinder strength/characteristic compressive cube strength and nominal aggregate size e.g. Blinding C12/15-20","cubic metre (m3)",null,null,{"$f":"E3471*F3471","v":0}]
[null,"C13.4.1.1(b)","Etc. For other parts of structure","cubic metre (m3)",null,null,{"$f":"E3472*F3472","v":0}]
[null,"C13.4.1.2","Durable concrete (class D):"]
[null,"C13.4.1.2(a)","Indicate part of structure, class code and 28 day characteristic cylinder strength/characteristic compressive cube strength, environmental exposure and service life and nominal aggregate size e.g. Deck slab D35/45-XS1(100)-20","cubic metre (m3)",null,null,{"$f":"E3474*F3474","v":0}]
[null,"C13.4.1.2(b)","Etc. For other parts of structure","cubic metre (m3)",null,null,{"$f":"E3475*F3475","v":0}]
[null,"C13.4.1.3","Prescribed-composition concrete (class P):"]
[null,"C13.4.1.3(a)","Indicate part of structure, class code and 28 day characteristic cylinder strength/characteristic compressive cube strength and nominal aggregate size e.g. Piers P32/40-20","cubic metre (m3)",null,null,{"$f":"E3477*F3477","v":0}]
[null,"C13.4.1.3(b)","Etc. for other parts of structure","cubic metre (m3)",null,null,{"$f":"E3478*F3478","v":0}]
[null,"C13.4.2","Labour enhanced cast in situ concrete (class of concrete and use or position in structure stated)"]
[null,"C13.4.2.1","Commercially- sourced concrete","cubic metre (m3)",null,null,{"$f":"E3480*F3480","v":0}]
[null,"C13.4.2.2","Contractor-mixed concrete on site","cubic metre (m3)",null,null,{"$f":"E3481*F3481","v":0}]
[null,"C13.4.3","Extra over item C13.4.1 for the protection of concrete from adverse environmental conditions, if required:"]
[null,"C13.4.3.1","Strength concrete (class C):"]
[null,"C13.4.3.1(a)","Indicate part of structure, class code and 28 day characteristic cylinder strength/characteristic compressive cube strength and nominal aggregate size e.g. Blinding C12/15-20","cubic metre (m3)",null,null,{"$f":"E3484*F3484","v":0}]
[null,"C13.4.3.1(b)","Etc. for other parts of structure","cubic metre (m3)",null,null,{"$f":"E3485*F3485","v":0}]
[null,"C13.4.3.2","Durable concrete (class D):"]
[null,"C13.4.3.2(a)","Indicate part of structure, class code and 28 day characteristic cylinder strength/characteristic compressive cube strength, environmental exposure and service life and nominal aggregate size e.g. Deck slab D35/45-XS1(100)-20","cubic metre (m3)",null,null,{"$f":"E3487*F3487","v":0}]
[null,"C13.4.3.2(b)","Etc. for other parts of structure","cubic metre (m3)",null,null,{"$f":"E3488*F3488","v":0}]
[null,"C13.4.3.3","Prescribed-composition concrete (class P):"]
[null,"C13.4.3.3(a)","Indicate part of structure, class code and 28 day characteristic cylinder strength/characteristic compressive cube strength and nominal aggregate size e.g. Piers P32/40-20","cubic metre (m3)",null,null,{"$f":"E3490*F3490","v":0}]
[null,"C13.4.3.3(b)","Etc. for other parts of structure","cubic metre (m3)",null,null,{"$f":"E3491*F3491","v":0}]
[null,"C13.4.4","Extra over item C13.4.2 for the protection of labour enhanced concrete from adverse environmental conditions"]
[null,"C13.4.4.1","… (Class of concrete and use or position in structure stated)","cubic metre (m3)",null,null,{"$f":"E3493*F3493","v":0}]
[null,"C13.4.5","Curing and surface protection of cast in situ concrete, as and where specifically required:"]
[null,"C13.4.5.1","Indicate structural element and surface to be cured (Tenderer to specify method of curing)","square metre (m2)",null,null,{"$f":"E3495*F3495","v":0}]
[null,"C13.4.5.2","Etc. for other parts of structure (Tenderer to specify method of curing)","square metre (m2)",null,null,{"$f":"E3496*F3496","v":0}]
[null,"C13.4.6","Curing and surface protection of labour enhanced cast in situ concrete"]
[null,"C13.4.6.1","Structural element and surface to be stated (Tenderer to specify method of curing)","square metre (m2)",null,null,{"$f":"E3498*F3498","v":0}]
[null,"C13.4.7","No-fines concrete (class NF):"]
[null,"C13.4.7.1","Cast in situ:"]
[null,"C13.4.7.1(a)","Indicate class of no-fines concrete and portion of structure or use","cubic metre (m3)",null,null,{"$f":"E3501*F3501","v":0}]
[null,"C13.4.7.1(b)","Etc. for other classes of no-fines concrete and other portions of structures or uses","cubic metre (m3)",null,null,{"$f":"E3502*F3502","v":0}]
[null,"C13.4.7.2","Precast:"]
[null,"C13.4.7.2(a)","Indicate class of no-fines concrete and describe unit with reference to drawing","number (No.)",null,null,{"$f":"E3504*F3504","v":0}]
[null,"C13.4.7.2(b)","Etc. for other classes of no-fines concrete and units of other types and sizes","number (No.)",null,null,{"$f":"E3505*F3505","v":0}]
[null,"C13.4.8","Labour enhanced no fines concrete (Class NF)"]
[null,"C13.4.8.1","Cast in situ (class and portion of structure or use stated)","cubic metre (m3)",null,null,{"$f":"E3507*F3507","v":0}]
[null,"C13.4.8.2","Precast","cubic metre (m3)",null,null,0]
[null,"C13.4.9","Manufacturing precast concrete members (description of member with reference to drawing)","number (No.)",null,null,0]
[null,"C13.4.10","Labour enhanced manufacture of precast concrete members (description of member with reference to drawing)","number (No.)",null,null,0]
[null,"C13.4.11","Transporting and erecting precast concrete members (description of member and approximate mass to be given)","number (No.)",null,null,0]
[null,"C13.4.12","Labour enhanced transporting and erecting precast concrete members (description of member and approximate mass to be given)","number (No.)",null,null,0]
[null,"C13.4.13","Complete demolition and disposal of existing structural concrete elements or parts existing structures:"]
[null,"C13.4.13.1","… (Member Indicated)","cubic metre (m3)",null,null,{"$f":"E3514*F3514","v":0}]
[null,"C13.4.13.2","etc. for other members","cubic metre (m3)",null,null,{"$f":"E3515*F3515","v":0}]
[null,"C13.4.14","Controlled demolition of concrete from structural elements:"]
[null,"C13.4.14.1","… (Member Indicated)","cubic metre (m3)",null,null,{"$f":"E3517*F3517","v":0}]
[null,"C13.4.14.2","etc. for other members","cubic metre (m3)",null,null,{"$f":"E3518*F3518","v":0}]
[]
[]
[]
[null,"C13.4","TOTAL CARRIED FORWARD TO SUMMARY",{"$nulls":3},{"$f":"SUM(G3471:G3521)","v":0}]
[]
[null,"C13.5","PRESTRESSING"]
[null,"C13.5.1","Prestressing tendons:"]
[null,"C13.5.1.1","Longitudinal tendons","meganewton-metre (MN-m)",null,null,{"$f":"E3526*F3526","v":0}]
[null,"C13.5.1.2","Transverse tendons","meganewton-metre (MN-m)",null,null,{"$f":"E3527*F3527","v":0}]
[null,"C13.5.1.3","Vertical tendons","meganewton-metre (MN-m)",null,null,{"$f":"E3528*F3528","v":0}]
[null,"C13.5.2","Anchorages and couplers:"]
[null,"C13.5.2.1","Anchorage at jacking end","meganewton (MN)",null,null,{"$f":"E3530*F3530","v":0}]
[null,"C13.5.2.2","Anchorage at dead end","meganewton (MN)",null,null,{"$f":"E3531*F3531","v":0}]
[null,"C13.5.2.3","Coupler at jacking end","meganewton (MN)",null,null,{"$f":"E3532*F3532","v":0}]
[null,"C13.5.2.4","Coupler at dead end","meganewton (MN)",null,null,{"$f":"E3533*F3533","v":0}]
[null,"C13.5.3","Extra over item C13.5.2 for partially tensioning the tendons","meganewton (MN)",null,null,{"$f":"E3534*F3534","v":0}]
[]
[]
[]
[null,"C13.5","TOTAL CARRIED FORWARD TO SUMMARY",{"$nulls":3},{"$f":"SUM(G3526:G3537)","v":0}]
[]
[null,"C13.6","BEARINGS"]
[null,"C13.6.1","Bearings:"]
[null,"C13.6.1.1","Bearings (description of each type and class)","number (No.)",null,null,{"$f":"E3542*F3542","v":0}]
[null,"C13.6.1.2","Provision of engineering drawings of proprietary bearings and certification after installation by an ECSA Registered Professional Engineer or Technologist","lump sum"]
[null,"C13.6.2","Concrete Hinges"]
[null,"C13.6.2.1","… (description of hinge measured per metre)","metre (m)",null,null,{"$f":"E3545*F3545","v":0}]
[null,"C13.6.2.2","… (description of hinge measured by number)","number (No.)",null,null,{"$f":"E3546*F3546","v":0}]
[null,"C13.6.3","Bearing strips (description of the material and number of Layers)","square metre (m2)",null,null,{"$f":"E3547*F3547","v":0}]
[null,"C13.6.4","Dowels or guides (description of each type)","number (No.)",null,null,{"$f":"E3548*F3548","v":0}]
[null,"C13.6.5","Specialist proprietary bearings:"]
[null,"C13.6.5.1","Prime cost sum allowed for purchasing and taking delivery of bearing","prime cost (PC) sum"]
[null,"C13.6.5.2","Percentage on prime cost sum for charges and profit","percentage (%)",{"$f":"G3550","v":0},null,{"$f":"E3551*F3551","v":0}]
[null,"C13.6.6","Installing the proprietary bearings (description of each type, and state class)","number (No.)",null,null,{"$f":"E3552*F3552","v":0}]
[]
[]
[]
[null,"C13.6","TOTAL CARRIED FORWARD TO SUMMARY",{"$nulls":3},{"$f":"SUM(G3542:G3555)","v":0}]
[]
[null,"C13.7","JOINTS"]
[null,"C13.7.1","Expansion joints:"]
[null,"C13.7.1.1","… (description of joint measured per metre)","metre (m)",null,null,{"$f":"E3560*F3560","v":0}]
[null,"C13.7.1.2","… (description of joint measured by number)","number (No.)",null,null,{"$f":"E3561*F3561","v":0}]
[null,"C13.7.2","Filled joints:"]
[null,"C13.7.2.1","… (description of joint and thickness of joint filler for joints measured per square metre)","square metre (m2)",null,null,{"$f":"E3563*F3563","v":0}]
[null,"C13.7.2.2","… (description of joint and thickness of joint filler for joints measured per metre)","metre (m)",null,null,{"$f":"E3564*F3564","v":0}]
[null,"C13.7.3","Unfilled joints:"]
[null,"C13.7.3.1","… (description of joint for joints measured per square metre)","square metre (m2)",null,null,{"$f":"E3566*F3566","v":0}]
[null,"C13.7.3.2","… (description of joint for joints measured per linear metre)","metre (m)",null,null,{"$f":"E3567*F3567","v":0}]
[null,"C13.7.4","Sealing joints with:"]
[null,"C13.7.4.1","Sealant (description of joint, sealant and size)","metre (m)",null,null,{"$f":"E3569*F3569","v":0}]
[null,"C13.7.4.2","Waterstop (description of joint, waterstop and size)","metre (m)",null,null,{"$f":"E3570*F3570","v":0}]
[null,"C13.7.5","Supply and installation of Agrément South Africa certified proprietary expansion joints"]
[null,"C13.7.5.1","Claw and other modular joints in nosings"]
[null,"C13.7.5.1(a)","… (Type of joint and movement range specified)","metre (m)",null,null,{"$f":"E3573*F3573","v":0}]
[null,"C13.7.5.1(b)","… (Type of joint and movement range specified)","metre (m)",null,null,{"$f":"E3574*F3574","v":0}]
[null,"C13.7.5.2","Asphaltic plug type joints"]
[null,"C13.7.5.2(a)","150mm x 50mm","metre (m)",null,null,{"$f":"E3576*F3576","v":0}]
[null,"C13.7.5.2(b)","300mm x 50mm","metre (m)",null,null,0]
[null,"C13.7.5.2(c)","400mm x 75mm","metre (m)",null,null,0]
[null,"C13.7.5.2(d)","500mm x 75mm","metre (m)",null,null,0]
[null,"C13.7.5.2(e)","500mm x 100mm","metre (m)",null,null,0]
[null,"C13.7.5.2(f)","… (other dimensions as specified)","metre (m)",null,null,0]
[null,"C13.7.5.2(g)","Extra over for variation in joint depth of asphaltic joints","litre (ℓ)",null,null,0]
[null,"C13.7.5.3","Provision of engineering drawings of proprietary joints and certification after installation by an ECSA registered Professional Engineer or Technologist","lump sum"]
[null,"C13.7.6","Joint terminations in:"]
[null,"C13.7.6.1","Barriers and Parapets (type of joint indicated)","number (No.)",null,null,{"$f":"E3585*F3585","v":0}]
[null,"C13.7.6.2","Sidewalks (type of joint indicated)","number (No.)",null,null,{"$f":"E3586*F3586","v":0}]
[null,"C13.7.7","Cover plates (non-metallic) in barriers, parapets and sidewalks where specified on the drawings in:"]
[null,"C13.7.7.1","Barriers and Parapets (type of joint indicated)","number (No.)",null,null,{"$f":"E3588*F3588","v":0}]
[null,"C13.7.7.2","Sidewalks (type of joint indicated)","number (No.)",null,null,{"$f":"E3589*F3589","v":0}]
[null,"C13.7.8","Additional water tests for joints ordered by the Engineer","number (No.)",null,null,{"$f":"E3590*F3590","v":0}]
[null,"C13.7.9","Specialist proprietary expansion joints:"]
[null,"C13.7.9.1","Prime cost sum allowed for purchasing and taking delivery of expansion joints","prime cost (PC) sum"]
[null,"C13.7.9.2","Percentage on prime cost sum for charges and profit","percentage (%)",{"$f":"G3592","v":0},null,{"$f":"E3593*F3593","v":0}]
[null,"C13.7.10","Installation of specialist proprietary expansion joints :"]
[null,"C13.7.10.1","… (description of joint measured per metre)","metre (m)",null,null,{"$f":"E3595*F3595","v":0}]
[null,"C13.7.10.2","… (description of joint measured by number)","number (No.)",null,null,{"$f":"E3596*F3596","v":0}]
[]
[]
[]
[null,"C13.7","TOTAL CARRIED FORWARD TO SUMMARY",{"$nulls":3},{"$f":"SUM(G3560:G3599)","v":0}]
[]
[null,"C13.8","ANCILLARY STRUCTURAL ELEMENTS"]
[null,"C13.8.1","Concrete barriers and parapets (refer to drawings)"]
[null,"C13.8.1.1","Barriers","metre (m)",null,null,{"$f":"E3604*F3604","v":0}]
[null,"C13.8.1.2","Parapets","metre (m)",null,null,0]
[null,"C13.8.2","End blocks (length indicated)","number (No.)",null,null,0]
[null,"C13.8.3","Concrete transition blocks (length indicated)","number (No.)",null,null,0]
[null,"C13.8.4","Concrete pedestrian railings","metre (m)",null,null,0]
[null,"C13.8.5","Steel railings (type described)","metre (m)",null,null,0]
[null,"C13.8.6","Service ducts in structures"]
[null,"C13.8.6.1","Type and size (diameter)","metre (m)",null,null,{"$f":"E3611*F3611","v":0}]
[null,"C13.8.6.2","Joint in ducts at bridge deck expansion joints","number (No.)",null,null,{"$f":"E3612*F3612","v":0}]
[null,"C13.8.7","Numbers for structures: (refer to drawings)"]
[null,"C13.8.7.1","Number plates","number (No.)",null,null,{"$f":"E3614*F3614","v":0}]
[null,"C13.8.7.2","Painted numbers","number (No.)",null,null,0]
[null,"C13.8.7.3","Numbers formed in concrete","number (No.)",null,null,0]
[null,"C13.8.7.4","Numbers on concrete pedestals ","number (No.)",null,null,0]
[null,"C13.8.8","Cast in situ no-fines concrete (class of concrete indicated)","cubic metre (m3)",null,null,0]
[null,"C13.8.9","Precast no-fines concrete units (class of concrete and description of unit)","number (No.)",null,null,0]
[null,"C13.8.10","Drainage pipes and weep holes:"]
[null,"C13.8.10.1","Drainage pipes:"]
[null,"C13.8.10.1(a)","… (Type and size indicated)","metre (m)",null,null,{"$f":"E3622*F3622","v":0}]
[null,"C13.8.10.1(b)","… (Type and size indicated)","number (No.)",null,null,{"$f":"E3623*F3623","v":0}]
[null,"C13.8.10.2","Weep holes:"]
[null,"C13.8.10.2(a)","… (Type and size indicated)","metre (m)",null,null,{"$f":"E3625*F3625","v":0}]
[null,"C13.8.10.2(b)","… (Type and size indicated)","number (No.)",null,null,0]
[null,"C13.8.11","Drainage gulley’s (description of each type given)","number (No.)",null,null,0]
[null,"C13.8.12","Synthetic-fibre filter fabric (type indicated and description)","square metre (m2)",null,null,0]
[null,"C13.8.13","Concrete channels adjoining structural works (size indicated)","metre (m)",null,null,0]
[null,"C13.8.14","Crushed stone in drainage strips (stone size indicated)","cubic metre (m3)",null,null,0]
[null,"C13.8.15","Drainage strips (type, size and grade indicated)","metre (m)",null,null,0]
[null,"C13.8.16","Perforated drainage pipes:"]
[null,"C13.8.16.1","Size (diameter) and type of pipe wrapped in synthetic – filter fabric as specified (describe type, grade etc.)","metre (m)",null,null,{"$f":"E3633*F3633","v":0}]
[null,"C13.8.17","Supplying and installing bolt groups complete with electrification brackets:"]
[null,"C13.8.17.1","Single-bolt groups","number (No.)",null,null,{"$f":"E3635*F3635","v":0}]
[null,"C13.8.17.2","Double-bolt groups","number (No.)",null,null,{"$f":"E3636*F3636","v":0}]
[]
[]
[]
[null,"C13.8","TOTAL CARRIED FORWARD TO SUMMARY",{"$nulls":3},{"$f":"SUM(G3604:G3639)","v":0}]
[]
[null,"C13.9","STRUCTURAL STEELWORK FOR MINOR STRUCTURES"]
[null,"C13.9.1","Structural steel:"]
[null,"C13.9.1.1","… (Structure/article described)","ton (t)",null,null,{"$f":"E3644*F3644","v":0}]
[null,"C13.9.1.2","… (Structure/article described)","metre (m)",null,null,{"$f":"E3645*F3645","v":0}]
[null,"C13.9.1.3","… (Structure/article described)","number (No.)",null,null,{"$f":"E3646*F3646","v":0}]
[null,"C13.9.2","Anchor bolts:"]
[null,"C13.9.2.1","… (Description of each assembly, and grade/type of steel, diameter and length indicated)","kilogram (kg)",null,null,{"$f":"E3648*F3648","v":0}]
[null,"C13.9.2.2","… (Description of each assembly, and grade/type of steel, diameter and length indicated)","number (No.)",null,null,{"$f":"E3649*F3649","v":0}]
[null,"C13.9.3","Corrosion protection :"]
[null,"C13.9.3.1","Sprayed-on metal:"]
[null,"C13.9.3.1(a)","… (Type of metal and thickness or type symbol of coating indicated)","ton (t)",null,null,{"$f":"E3652*F3652","v":0}]
[null,"C13.9.3.1(b)","… (Type of metal and thickness or type symbol of coating indicated)","metre (m)",null,null,{"$f":"E3653*F3653","v":0}]
[null,"C13.9.3.1(c)","… (Type of metal and thickness or type symbol of coating indicated)","number (No.)",null,null,{"$f":"E3654*F3654","v":0}]
[null,"C13.9.3.2","Galvanising"]
[null,"C13.9.3.2(a)","… (Thickness or type symbol of zinc coat indicated)","ton (t)",null,null,{"$f":"E3656*F3656","v":0}]
[null,"C13.9.3.2(b)","… (Thickness or type symbol of zinc coat indicated)","metre (m)",null,null,{"$f":"E3657*F3657","v":0}]
[null,"C13.9.3.2(c)","… (Thickness or type symbol of zinc coat indicated)","number (No.)",null,null,{"$f":"E3658*F3658","v":0}]
[]
[]
[]
[null,"C13.9","TOTAL CARRIED FORWARD TO SUMMARY",{"$nulls":3},{"$f":"SUM(G3644:G3661)","v":0}]
[]
[null,"C13.10","PAINTING OF MINOR STRUCTURES"]
[null,"C13.10.1","Painting:"]
[null,"C13.10.1.1","… (Describe structure/article)","square metre (m2)",null,null,{"$f":"E3666*F3666","v":0}]
[null,"C13.10.1.2","… (Describe structure/article)","number (No.)",null,null,{"$f":"E3667*F3667","v":0}]
[null,"C13.10.1.3","… (Describe structure/article)","metre (m)",null,null,{"$f":"E3668*F3668","v":0}]
[null,"C13.10.1.4","… (Describe structure/article)","ton (t)",null,null,{"$f":"E3669*F3669","v":0}]
[null,"C13.10.2","Extra-over item C13.10.1, using non-toxic materials:"]
[null,"C13.10.2.1","… (Describe structure/article)","square metre (m2)",null,null,{"$f":"E3671*F3671","v":0}]
[null,"C13.10.2.2","… (Describe structure/article)","number (No.)",null,null,{"$f":"E3672*F3672","v":0}]
[null,"C13.10.2.3","… (Describe structure/article)","metre (m)",null,null,{"$f":"E3673*F3673","v":0}]
[null,"C13.10.2.4","… (Describe structure/article)","ton (t)",null,null,{"$f":"E3674*F3674","v":0}]
[]
[]
[]
[null,"C13.10","TOTAL CARRIED FORWARD TO SUMMARY",{"$nulls":3},{"$f":"SUM(G3666:G3677)","v":0}]
[]
[null,"C13.11","STRUCTURAL STEELWORK FOR MAJOR STRUCTURES"]
[null,"C13.11.1","Supply, fabrication and erection of steelwork  (location, member, grade and type identified)","ton (t)",null,null,{"$f":"E3681*F3681","v":0}]
[null,"C13.11.2","Miscellaneous metalwork (location and member to be specified)","number (No.)",null,null,{"$f":"E3682*F3682","v":0}]
[]
[]
[]
[null,"C13.11","TOTAL CARRIED FORWARD TO SUMMARY",{"$nulls":3},{"$f":"SUM(G3681:G3685)","v":0}]
[]
[null,"C13.12"]
[null,"C13.12.1","Steelwork protective system:"]
[null,"C13.12.1.1","… (system and location to be specified)","square metre (m2)",null,null,{"$f":"E3690*F3690","v":0}]
[null,"C13.12.1.2","… (system and location to be specified)","square metre (m2)",null,null,{"$f":"E3691*F3691","v":0}]
[]
[]
[]
[null,"C13.12","TOTAL CARRIED FORWARD TO SUMMARY",{"$nulls":3},{"$f":"SUM(G3690:G3694)","v":0}]
[]
[null,"C13.13","INCREMENTAL LAUNCHING OF BRIDGE DECKS"]
[null,"C13.13.1","Temporary bridge segment casting yard:"]
[null,"C13.13.1.1","Installation (Description of Structure)","lump sum"]
[null,"C13.13.2","Cover to casting area:"]
[null,"C13.13.2.1","Provide cover (Description of Structure)","lump sum"]
[null,"C13.13.2.2","Re-use (Description of Structure) ","lump sum"]
[null,"C13.13.3","Launching girder:"]
[null,"C13.13.3.1","Provide launching girder (Description of Structure)","lump sum"]
[null,"C13.13.3.2","Re-use (Description of Structure) ","lump sum"]
[null,"C13.13.4","Formwork assembly:"]
[null,"C13.13.4.1","Supply formwork assembly (Description of Structure)","lump sum"]
[null,"C13.13.4.2","Re-use (Description of Structure) ","lump sum"]
[null,"C13.13.5","Launching equipment:"]
[null,"C13.13.5.1","Supply launching equipment (Description of Structure)","lump sum"]
[null,"C13.13.5.2","Re-use (Description of Structure) ","lump sum"]
[null,"C13.13.6","Temporary bearings, side guides and launching pads :"]
[null,"C13.13.6.1","Supply temporary bearings","number (No.)",null,null,{"$f":"E3713*F3713","v":0}]
[null,"C13.13.6.2","Supply side guides","number (No.)",null,null,{"$f":"E3714*F3714","v":0}]
[null,"C13.13.6.3","Re-use of temporary bearings ","number (No.)",null,null,{"$f":"E3715*F3715","v":0}]
[null,"C13.13.6.4","Re-use of side guides ","number (No.)",null,null,{"$f":"E3716*F3716","v":0}]
[null,"C13.13.7","Platforms:"]
[null,"C13.13.7.1","Supply platforms (Description of Structure)","number (No.)",null,null,{"$f":"E3718*F3718","v":0}]
[null,"C13.13.7.2","Re-use (Description of Structure) ","number (No.)",null,null,{"$f":"E3719*F3719","v":0}]
[null,"C13.13.8","Stay system for piers:"]
[null,"C13.13.8.1","Pier (description)","number (No.)",null,null,{"$f":"E3721*F3721","v":0}]
[null,"C13.13.9","Launching of deck segments:"]
[null,"C13.13.9.1","Structure (description) deck segments","number (No.)",null,null,{"$f":"E3723*F3723","v":0}]
[null,"C13.13.10","Temporary piers including piles and pilecap:"]
[null,"C13.13.10.1","Temporary piers (description)","number (No.)",null,null,{"$f":"E3725*F3725","v":0}]
[]
[]
[]
[null,"C13.13","TOTAL CARRIED FORWARD TO SUMMARY",{"$nulls":3},{"$f":"SUM(G3699:G3728)","v":0}]
[]
[null,"C13.14","SPECIALIST STRUCTURES"]
[null,"C13.14.1"]
[]
[]
[]
[null,"C13.14","TOTAL CARRIED FORWARD TO SUMMARY",{"$nulls":3},{"$f":"SUM(G3732:G3735)","v":0}]
[]
[null,"C14.1","ACCESS FOR BRIDGE REHABILITATION"]
[null,"C14.1.1","Temporary access structures and work platforms (by element)"]
[null,"C14.1.1.1","Access and platforms to locations as described as well as dismantling and removal at completion (heights assessed by Contractor)"]
[null,"C14.1.1.1(a)","… (Description of bridge or structures given)"]
[null,"C14.1.1.1(a)(i)","… (Element of work requiring access described)","number (No.)",null,null,{"$f":"E3742*F3742","v":0}]
[null,"C14.1.1.1(a)(ii)","… (Etc. for other elements of work)","number (No.)",null,null,{"$f":"E3743*F3743","v":0}]
[null,"C14.1.1.1(b)","… (Etc. for other bridges or structures)"]
[null,"C14.1.1.1(b)(i)","… (Element of work requiring access described)","number (No.)",null,null,{"$f":"E3745*F3745","v":0}]
[null,"C14.1.1.1(b)(ii)","… (Etc. for other elements of work)","number (No.)",null,null,{"$f":"E3746*F3746","v":0}]
[null,"C14.1.2","Mobile access units"]
[null,"C14.1.2.1","Establishment of mobile access unit on site (description of type of unit)","lump sum"]
[null,"C14.1.2.2","Setting up of mobile access unit at each structure location and removal after completion","number (No.)",null,null,{"$f":"E3749*F3749","v":0}]
[null,"C14.1.2.3","Operation of mobile access unit during repair work at each location (structure)","days",null,null,{"$f":"E3750*F3750","v":0}]
[null,"C14.1.2.4","Operation of mobile access unit during inspections by the Engineer","hour (h)",null,null,{"$f":"E3751*F3751","v":0}]
[null,"C14.1.2.5","De-establishing and removal of mobile access unit from site after completion of work","lump sum"]
[null,"C14.1.3","Access at end of defects liability period (description of location)","lump sum"]
[null,"C14.1.4","Attendance by (relevant authority)"]
[null,"C14.1.4.1","Prime cost sum to allow for attendance by relevant authority to obtain access near electrified railway lines or other relevant authorities as required (give description of bridge)","prime cost (PC) sum"]
[null,"C14.1.4.2","Percentage on prime cost sum for charges and profits","percentage (%)",{"$f":"G3755","v":0},null,{"$f":"E3756*F3756","v":0}]
[null,"C14.1.5","Provision of designs and drawings of access structures and platforms by an ECSA Registered Professional Engineer or Technologist (description of member to which applicable)","lump sum"]
[null,"C14.1.6","Provision of a safety gantry with warning system (description of type of gantry, size and location)","number (No.)",null,null,{"$f":"E3758*F3758","v":0}]
[null,"C14.1.7","Accommodation of Vehicular and Pedestrian Traffic at Access Structures","lump sum"]
[]
[]
[]
[null,"C14.1","TOTAL CARRIED FORWARD TO SUMMARY",{"$nulls":3},{"$f":"SUM(G3742:G3762)","v":0}]
[]
[null,"C14.2","CORROSION SURVEY METHODS AND TESTING OF NEAR SURFACE CONCRETE PROPERTIES"]
[null,"C14.2.1","Delamination Survey:"]
[null,"C14.2.1.1","using hammer tapping technique to (description)","square metre (m2)",null,null,{"$f":"E3767*F3767","v":0}]
[null,"C14.2.1.2","using chain drag technique to (description)","square metre (m2)",null,null,{"$f":"E3768*F3768","v":0}]
[null,"C14.2.1.3","using extracted core samples (description of location, core size and length)","number (No.)",null,null,{"$f":"E3769*F3769","v":0}]
[null,"C14.2.1.4","using extracted core samples (description of location, core size and length)","metre (m)",null,null,{"$f":"E3770*F3770","v":0}]
[null,"C14.2.2","Concrete cover survey "]
[null,"C14.2.2.1","… (description of location on structure)","square metre (m2)",null,null,{"$f":"E3772*F3772","v":0}]
[null,"C14.2.3","Concrete compressive strength"]
[null,"C14.2.3.1","using extracted core samples (description of location, core size and length)","number (No.)",null,null,{"$f":"E3774*F3774","v":0}]
[null,"C14.2.3.2","using extracted core samples (description of location, core size and length)","metre (m)",null,null,{"$f":"E3775*F3775","v":0}]
[null,"C14.2.4","Carbonation depth testing "]
[null,"C14.2.4.1","using extracted core samples or fragment removed for (description of location on structure)","number (No.)",null,null,{"$f":"E3777*F3777","v":0}]
[null,"C14.2.5","Chloride profile testing "]
[null,"C14.2.5.1","using extracted core samples or fragment removed for (description of location on structure)","number (No.)",null,null,{"$f":"E3779*F3779","v":0}]
[null,"C14.2.6","Half-cell potential measurements "]
[null,"C14.2.6.1","… (description of location on structure)","square metre (m2)",null,null,{"$f":"E3781*F3781","v":0}]
[null,"C14.2.7","Surface resistivity measurements "]
[null,"C14.2.7.1","… (description of location on structure)","square metre (m2)",null,null,{"$f":"E3783*F3783","v":0}]
[null,"C14.2.8","Corrosion rate measurements "]
[null,"C14.2.8.1","… (description of location on structure)","square metre (m2)",null,null,{"$f":"E3785*F3785","v":0}]
[]
[]
[]
[null,"C14.2","TOTAL CARRIED FORWARD TO SUMMARY",{"$nulls":3},{"$f":"SUM(G3767:G3788)","v":0}]
[]
[null,"C14.3","DEMOLITION AND REMOVAL OF STRUCTURAL CONCRETE AND STEELWORK"]
[null,"C14.3.1","Demolition of concrete members or elements "]
[null,"C14.3.1.1","Full member or element (location and description)","cubic metre (m3)",null,null,{"$f":"E3793*F3793","v":0}]
[null,"C14.3.1.2","Partial member or element (location and description)","cubic metre (m3)",null,null,{"$f":"E3794*F3794","v":0}]
[null,"C14.3.2","Demolition of concrete members or elements by labour enhanced construction"]
[null,"C14.3.2.1","Full member or element (location and description)","cubic metre (m3)",null,null,{"$f":"E3796*F3796","v":0}]
[null,"C14.3.2.2","Partial member or element (location and description)","cubic metre (m3)",null,null,{"$f":"E3797*F3797","v":0}]
[null,"C14.3.3","Demolition of structural steel structures, members or elements (location and description)"]
[null,"C14.3.3.1","Full member or element (location and description)","ton (t)",null,null,{"$f":"E3799*F3799","v":0}]
[null,"C14.3.3.2","Partial member or element (location and description)","ton (t)",null,null,{"$f":"E3800*F3800","v":0}]
[null,"C14.3.4","Demolition of structural steel structures, members or elements by labour optimised construction (location and description)"]
[null,"C14.3.4.1","Full member or element (location and description)","ton (t)",null,null,{"$f":"E3802*F3802","v":0}]
[null,"C14.3.4.2","Partial member or element (location and description)","ton (t)",null,null,{"$f":"E3803*F3803","v":0}]
[null,"C14.3.5","Removal of metal sections embedded in concrete (description)","number (No.)",null,null,{"$f":"E3804*F3804","v":0}]
[null,"C14.3.6","Establishment on site for hydro-demolition equipment","lump sum",null,null,{"$f":"E3805*F3805","v":0}]
[]
[]
[]
[null,"C14.3","TOTAL CARRIED FORWARD TO SUMMARY",{"$nulls":3},{"$f":"SUM(G3793:G3808)","v":0}]
[]
[null,"C14.4","SURFACE AND STRUCTURAL REPAIR OF CONCRETE MEMBERS"]
[null,"C14.4.1","Cementitious mortar or concrete (Class) to (description)","litre (ℓ)",null,null,{"$f":"E3812*F3812","v":0}]
[null,"C14.4.2","Epoxy mortar","litre (ℓ)",null,null,{"$f":"E3813*F3813","v":0}]
[null,"C14.4.3","Proprietary cementitious repair system (Class and generic description) in positions as indicated in accordance with Table A14.4.5-1"]
[null,"C14.4.3.1","Class R4 – (Generic description)"]
[null,"C14.4.3.1(a)","… (Position indicated)","litre (ℓ)",null,null,{"$f":"E3816*F3816","v":0}]
[null,"C14.4.3.1(b)","… (Etc. for other positions)",{"$nulls":3},{"$f":"E3817*F3817","v":0}]
[null,"C14.4.3.2","Class R3 – (Polymer modified, fibre reinforced, low shrinkage repair mortar)"]
[null,"C14.4.3.2(a)","Soffits of precast culvert units","litre (ℓ)",280,null,{"$f":"E3819*F3819","v":0}]
[null,"C14.4.3.2(b)","Legs of precast culvert units","litre (ℓ)",410,null,{"$f":"E3820*F3820","v":0}]
[null,"C14.4.3.3","Class R2 – (Generic description)"]
[null,"C14.4.3.3(a)","… (Position indicated)","litre (ℓ)",null,null,{"$f":"E3822*F3822","v":0}]
[null,"C14.4.3.3(b)","… (Etc. for other positions)",{"$nulls":3},{"$f":"E3823*F3823","v":0}]
[null,"C14.4.3.4","Class R1 – (Generic description)"]
[null,"C14.4.3.4(a)","… (Position indicated)","litre (ℓ)",null,null,{"$f":"E3825*F3825","v":0}]
[null,"C14.4.3.4(b)","… (Etc. for other positions)",{"$nulls":3},{"$f":"E3826*F3826","v":0}]
[null,"C14.4.4","Curing of repair surfaces"]
[null,"C14.4.4.1","By coating the surface with (type indicated) to (description)","square metre (m2)",null,null,{"$f":"E3828*F3828","v":0}]
[null,"C14.4.4.2","Curing by (method indicated) to (description)","square metre (m2)",null,null,{"$f":"E3829*F3829","v":0}]
[null,"C14.4.5","Sounding survey (Prior to repair of the surface)","square metre (m2)",null,null,{"$f":"E3830*F3830","v":0}]
[]
[]
[]
[null,"C14.4","TOTAL CARRIED FORWARD TO SUMMARY",{"$nulls":3},{"$f":"SUM(G3812:G3833)","v":0}]
[]
[null,"C14.5","ANCHORING OF REINFORCEMENT, GROUTING AND CRACK INJECTION"]
[null,"C14.5.1","Anchoring of reinforcing steel:"]
[null,"C14.5.1.1","Reinforcing (type, bar diameter) into formed holes (hole diameter and depth stated) in (description of member)","number (No.)",null,null,{"$f":"E3838*F3838","v":0}]
[null,"C14.5.1.2","Reinforcing (type, bar diameter) into pockets (pocket size and depth stated) in (description of member)","number (No.)",null,null,{"$f":"E3839*F3839","v":0}]
[null,"C14.5.2","Preparation of contact surfaces for grouting (type, position and size indicated)","number (No.)",null,null,{"$f":"E3840*F3840","v":0}]
[null,"C14.5.3","Grouting for:"]
[null,"C14.5.3.1","Bedding (type, thickness and size indicated) to (description)","litre (ℓ)",null,null,{"$f":"E3842*F3842","v":0}]
[null,"C14.5.3.2","Gap filling (type, thickness and size indicated) to (description)","litre (ℓ)",null,null,{"$f":"E3843*F3843","v":0}]
[null,"C14.5.4","Establishment on site for crack injection","lump sum"]
[null,"C14.5.5","Surface preparation and surface sealing for crack injection to (location on structure)","metre (m)",null,null,{"$f":"E3845*F3845","v":0}]
[null,"C14.5.6","Crack injection adhesive to (location on structure)","litre (ℓ)",null,null,{"$f":"E3846*F3846","v":0}]
[null,"C14.5.7","Crack filling "]
[null,"C14.5.7.1","Repair system to (location on structure)","metre (m)",null,null,{"$f":"E3848*F3848","v":0}]
[null,"C14.5.8","Site and core tests"]
[null,"C14.5.8.1","Drilling of cores (specify diameter of cores)","metre (m)",null,null,{"$f":"E3850*F3850","v":0}]
[null,"C14.5.8.2","Site testing and testing of cores","provisional sum"]
[null,"C14.5.8.3","Percentage on provisional sum for charges and profit","percentage (%)",{"$f":"G3851","v":0},null,{"$f":"E3852*F3852","v":0}]
[]
[]
[]
[null,"C14.5","TOTAL CARRIED FORWARD TO SUMMARY",{"$nulls":3},{"$f":"SUM(G3838:G3855)","v":0}]
[]
[null,"C14.6","SPRAYED CONCRETE FOR STRUCTURES"]
[null,"C14.6.1","Establishment on site for sprayed concrete work","lump sum"]
[null,"C14.6.2","Preparation of concrete surface","square metre (m2)",null,null,{"$f":"E3860*F3860","v":0}]
[null,"C14.6.3","Sprayed concrete of specified strength class, thickness and finish applied in one or multiple layers as necessary:"]
[null,"C14.6.3.1","… (Indicate strength, thickness, finish of sprayed concrete to portion of structure or use)","square metre (m2)",null,null,{"$f":"E3862*F3862","v":0}]
[null,"C14.6.3.2","Etc. for other strength, thickness, finish of sprayed concrete to other portions of structure or uses","square metre (m2)",null,null,{"$f":"E3863*F3863","v":0}]
[null,"C14.6.4","Curing of sprayed concrete surface","square metre (m2)",null,null,{"$f":"E3864*F3864","v":0}]
[null,"C14.6.5","Special tests ordered by the Engineer","provisional sum"]
[]
[]
[]
[null,"C14.6","TOTAL CARRIED FORWARD TO SUMMARY",{"$nulls":3},{"$f":"SUM(G3859:G3868)","v":0}]
[]
[null,"C14.7","PROTECTIVE COATINGS AND TREATMENTS FOR CONCRETE"]
[null,"C14.7.1","Cleaning and preparation of concrete surface (method and surface finish indicated)","square metre (m2)",null,null,{"$f":"E3872*F3872","v":0}]
[null,"C14.7.2","Application of protective coatings and treatments (type and application rate indicated)","square metre (m2)",null,null,{"$f":"E3873*F3873","v":0}]
[null,"C14.7.3","On site monitoring and supply of written product performance guarantee","lump sum"]
[null,"C14.7.4","Trial sample panels","square metre (m2)",null,null,{"$f":"E3875*F3875","v":0}]
[]
[]
[]
[null,"C14.7","TOTAL CARRIED FORWARD TO SUMMARY",{"$nulls":3},{"$f":"SUM(G3872:G3878)","v":0}]
[]
[null,"C14.8","EXTERNAL BONDING OF STEEL AND CARBON FIBRE"]
[null,"C14.8.1","Moving to and setting up the equipment at each work site (description of location)","number (No.)",null,null,{"$f":"E3882*F3882","v":0}]
[null,"C14.8.2","Preparation of concrete surfaces "]
[null,"C14.8.2.1","Concrete surfaces for plate bonding (position, size and material indicated)","square metre (m2)",null,null,{"$f":"E3884*F3884","v":0}]
[null,"C14.8.2.2","Slots in concrete for steel or carbon fibre bonding (position, size and material indicated)","metre (m)",null,null,{"$f":"E3885*F3885","v":0}]
[null,"C14.8.3","Adhesive and saturant"]
[null,"C14.8.3.1","Adhesive (description or type to location)","litre (ℓ)",null,null,{"$f":"E3887*F3887","v":0}]
[null,"C14.8.3.2","Saturant (description or type to location)","kilogram (kg)",null,null,{"$f":"E3888*F3888","v":0}]
[null,"C14.8.4","Bonded plates, bars or sections"]
[null,"C14.8.4.1","Plates (description of material, unit, size and mass)","number (No.)",null,null,{"$f":"E3890*F3890","v":0}]
[null,"C14.8.4.2","Bars (material, type and size indicated)","kilogram (kg)",null,null,0]
[null,"C14.8.4.3","Sections (material, type and size indicated)","number (No.)",null,null,0]
[null,"C14.8.4.4","Elements (material, description)","number (No.)",null,null,0]
[null,"C14.8.4.5","Fibre fabric material (material and type indicated)","square metre (m2)",null,null,0]
[null,"C14.8.5","Fixing studs and bolts (type and size indicated)","number (No.)",null,null,0]
[null,"C14.8.6","Protective paint coatings (type and film thickness indicated)","square metre (m2)",null,null,0]
[]
[]
[]
[null,"C14.8","TOTAL CARRIED FORWARD TO SUMMARY",{"$nulls":3},{"$f":"SUM(G3882:G3899)","v":0}]
[]
[null,"C14.9","REPAIR AND REPLACEMENT OF ANCILLARY STRUCTURAL ELEMENTS"]
[null,"C14.9.1","Removal of debris from expansion gaps (description)","metre (m)",null,null,{"$f":"E3903*F3903","v":0}]
[null,"C14.9.2","Clear bridge drainage system (description of elements)","number (No.)",null,null,{"$f":"E3904*F3904","v":0}]
[null,"C14.9.3","Service and repair of existing joint system"]
[null,"C14.9.3.1","Service and repair of bridge joints (description)","metre (m)",null,null,{"$f":"E3906*F3906","v":0}]
[null,"C14.9.4","Joint terminations as specified on the drawings in:"]
[null,"C14.9.4.1","Barriers and Parapets (type of joint indicated)","number (No.)",null,null,{"$f":"E3908*F3908","v":0}]
[null,"C14.9.4.2","Sidewalks (type of joint indicated)","number (No.)",null,null,{"$f":"E3909*F3909","v":0}]
[null,"C14.9.5","Cover plates (non-metallic) in barriers, parapets and sidewalks as specified on the drawings in:"]
[null,"C14.9.5.1","Barriers and parapets (type of joint indicated)","number (No.)",null,null,{"$f":"E3911*F3911","v":0}]
[null,"C14.9.5.2","Sidewalks (type of joint indicated)","number (No.)",null,null,{"$f":"E3912*F3912","v":0}]
[null,"C14.9.6","Repair of handrails (description of work)","metre (m)",null,null,{"$f":"E3913*F3913","v":0}]
[null,"C14.9.7","Removal and reinstatement of brickwork on bridges (description and wall thickness)","square metre (m2)",null,null,{"$f":"E3914*F3914","v":0}]
[null,"C14.9.8","Drilling of drainage holes into void formers from deck soffit (size of hole indicated)","number (No.)",null,null,{"$f":"E3915*F3915","v":0}]
[null,"C14.9.9","Refurbishment of bearings (type and size described)"]
[null,"C14.9.9.1","Removal and inspection","number (No.)",null,null,{"$f":"E3917*F3917","v":0}]
[null,"C14.9.9.2","Refurbish and reinstall","number (No.)",null,null,{"$f":"E3918*F3918","v":0}]
[null,"C14.9.10","Replace PVC junctions in deck (type and size described)","number (No.)",null,null,{"$f":"E3919*F3919","v":0}]
[null,"C14.9.11","Reseal PVC junctions in deck drainage network (type and size described)","number (No.)",null,null,{"$f":"E3920*F3920","v":0}]
[null,"C14.9.12","Inlet gratings"]
[null,"C14.9.12.1","Inlet grating in kerb (size)","number (No.)",null,null,{"$f":"E3922*F3922","v":0}]
[null,"C14.9.12.2","Other types of gratings (indicate details)","number (No.)",null,null,{"$f":"E3923*F3923","v":0}]
[null,"C14.9.13","Seal deck drainage outlets at deck level (size)","number (No.)",null,null,{"$f":"E3924*F3924","v":0}]
[null,"C14.9.14","Bridge number plates"]
[null,"C14.9.14.1","Refurbishment of existing plates","number (No.)",null,null,{"$f":"E3926*F3926","v":0}]
[null,"C14.9.14.2","New number plate","number (No.)",null,null,{"$f":"E3927*F3927","v":0}]
[null,"C14.9.15","Fix or re-fix ancillary elements"]
[null,"C14.9.15.1","… (Description of element)","metre (m)",null,null,{"$f":"E3929*F3929","v":0}]
[null,"C14.9.15.2","… (Description of element)","number (No.)",null,null,{"$f":"E3930*F3930","v":0}]
[null,"C14.9.15.3","… (Description of element)","square metre (m2)",null,null,{"$f":"E3931*F3931","v":0}]
[null,"C14.9.16","Supply new ancillary elements"]
[null,"C14.9.16.1","… (Description of element)","metre (m)",null,null,{"$f":"E3933*F3933","v":0}]
[null,"C14.9.16.2","… (Description of element)","square metre (m2)",null,null,{"$f":"E3934*F3934","v":0}]
[null,"C14.9.17","Light fittings (description of element)","provisional sum"]
[]
[]
[]
[null,"C14.9","TOTAL CARRIED FORWARD TO SUMMARY",{"$nulls":3},{"$f":"SUM(G3903:G3938)","v":0}]
[]
[null,"C14.10","JACKING OF BRIDGE STRUCTURES"]
[null,"C14.10.1","Temporary support and foundations"]
[null,"C14.10.1.1","Design, construct and erect temporary supports for the jacking of … (bridge deck)","lump sum"]
[null,"C14.10.1.2","Dismantle and remove from site","lump sum"]
[null,"C14.10.2","Jacking equipment"]
[null,"C14.10.2.1","Design, supply and install equipment for the jacking of ... (bridge deck)","lump sum"]
[null,"C14.10.2.2","Dismantle and remove all jacking equipment from site","lump sum"]
[null,"C14.10.3","Vertical jacking of the bridge deck (site details)","number (No.)",null,null,{"$f":"E3948*F3948","v":0}]
[]
[]
[]
[null,"C14.10","TOTAL CARRIED FORWARD TO SUMMARY",{"$nulls":3},{"$f":"SUM(G3943:G3951)","v":0}]
[]
[null,"C14.11","REPAIR OF STEEL ELEMENTS"]
[null,"C14.11.1","Refurbishment of (describe item)","number (No.)",null,null,{"$f":"E3955*F3955","v":0}]
[null,"C14.11.2","Replacement of rivets or bolts with HSFG bolts (diameter and class indicated)","number (No.)",null,null,{"$f":"E3956*F3956","v":0}]
[]
[]
[]
[null,"C14.11","TOTAL CARRIED FORWARD TO SUMMARY",{"$nulls":3},{"$f":"SUM(G3955:G3959)","v":0}]
[]
[null,"C20.1","TESTING MATERIALS AND JUDGEMENT OF WORKMANSHIP"]
[null,"C20.1.1","Special tests on elastomeric bearings (150% vertical load and 150% shear distortion) ","number (No.)",null,null,{"$f":"E3963*F3963","v":0}]
[null,"C20.1.2","Special tests requested by the Engineer"]
[null,"C20.1.2.1","Employer’s contribution to concrete durability tests"]
[null,"C20.1.2.1(a)","Tests for water sorptivity","prime cost (PC) sum"]
[null,"C20.1.2.1(a)(i)","Handling costs and profit in respect of item C20.1.2.1(a)","percentage (%)",{"$f":"G3966","v":0},null,{"$f":"E3967*F3967","v":0}]
[null,"C20.1.2.1(b)","Tests for oxygen permeability","prime cost (PC) sum"]
[null,"C20.1.2.1(b)(i)","Handling costs and profit in respect of item C20.1.2.1(b)","percentage (%)",{"$f":"G3968","v":0},null,{"$f":"E3969*F3969","v":0}]
[null,"C20.1.2.1(c)","Tests for chloride conductivity","prime cost (PC) sum"]
[null,"C20.1.2.1(c)(i)","Handling costs and profit in respect of item C20.1.2.1(c)","percentage (%)",{"$f":"G3970","v":0},null,{"$f":"E3971*F3971","v":0}]
[null,"C20.1.2.1(d)","Tests for concrete cover","prime cost (PC) sum"]
[null,"C20.1.2.1(d)(i)","Handling costs and profit in respect of item C20.1.2.1(d)","percentage (%)",{"$f":"G3972","v":0},null,{"$f":"E3973*F3973","v":0}]
[null,"C20.1.2.2","Employer’s contribution to other special tests"]
[null,"C20.1.2.2(a)","Any other tests","prime cost (PC) sum",1,500000,{"$f":"E3975*F3975","v":{"v":500000,"d":"R500,000.00"}}]
[null,"C20.1.2.2(a)(i)","Handling costs and profit in respect of item C20.1.2.2(a)","percentage (%)",{"$f":"G3975","v":{"v":500000,"d":"R500,000.00"}},null,{"$f":"E3976*F3976","v":0}]
[null,"C20.1.3","Providing testing equipment:"]
[null,"C20.1.3.1","Core drill","number (No.)",1,null,{"$f":"E3978*F3978","v":0}]
[null,"C20.1.4","Special tests using Automated Road condition assessment instruments operated by service providers as requested by the Engineer for acceptance control in terms of Clause A20.1.3.6b)(iii)"]
[null,"C20.1.4.1","Using Highspeed Inertial Non-Contact laser profilers (Clause A20.1.5.5c)(ii))","prime cost (PC) sum"]
[null,"C20.1.4.1(a)","Handling cost and profit in respect of item C20.1.4.1","percentage (%)",{"$f":"G3980","v":0},null,{"$f":"E3981*F3981","v":0}]
[null,"C20.1.4.2","Using Direct Contact Devices (Clause A20.1.5.5c)(i))","prime cost (PC) sum"]
[null,"C20.1.4.2(a)","Handling cost and profit in respect of item C20.1.4.2","percentage (%)",{"$f":"G3982","v":0},null,{"$f":"E3983*F3983","v":0}]
[null,"C20.1.4.3","Rutting measurements (Clause A20.1.5.5 d)(i))","prime cost (PC) sum"]
[null,"C20.1.4.3(a)","Handling cost and profit in respect of item C20.1.4.3","percentage (%)",{"$f":"G3984","v":0},null,{"$f":"E3985*F3985","v":0}]
[null,"C20.1.4.4","Surface macro texture (Clause A20.1.5.5 b))","prime cost (PC) sum"]
[null,"C20.1.4.4(a)","Handling cost and profit in respect of item C20.1.4.4","percentage (%)",{"$f":"G3986","v":0},null,{"$f":"E3987*F3987","v":0}]
[null,"C20.1.4.5","Deflection measurements (FWD) (Clause A20.1.5.5e))","prime cost (PC) sum"]
[null,"C20.1.4.5(a)","Handling cost and profit in respect of item C20.1.4.5","percentage (%)",{"$f":"G3988","v":0},null,{"$f":"E3989*F3989","v":0}]
[null,"PC20.1.5","Financial contribution for an independent site/commercial laboratory (to be a negative rate)","month",12,null,{"$f":"E3990*F3990","v":0}]
[null,"PC20.1.6","Payment of independent site laboratory","Note to compiler: Add this pay item PC20.1.6 if the site laboratory is to be paid by the contractor (See Clause C4.7 of the Site laboratory pro-forma document):"]
[null,"C20.1.6.1","Direct payment by contractor","prime cost (PC) sum"]
[null,null,"Handling cost and profit in respect of item PC20.1.6.1","percentage (%)",{"$f":"G3992","v":0},null,{"$f":"E3993*F3993","v":0}]
[null,"C20.1","TOTAL CARRIED FORWARD TO SUMMARY",{"$nulls":3},{"$f":"SUM(G3963:G3993)","v":{"v":500000,"d":"R500,000.00"}}]
[]
[null,"SECTION D - D1000","STAKEHOLDER AND COMMUNITY LIAISON, AND TARGETED LABOUR AND TARGETED ENTERPRISES UTILISATION AND DEVELOPMENT"]
[null,"D10.01","Target Group Participation"]
[null,"D10.01(a)","N/A"]
[null,"D10.02","Stakeholder and Community Liaison and Social Facilitation"]
[null,"D10.02(a)","Cost of liaison, social facilitation and PLC support ","prime cost (PC) sum",1,{"v":250000,"d":"R250,000.00"},{"$f":"E4000*F4000","v":{"v":250000,"d":"R250,000.00"}}]
[null,"D10.02(b)","Handling cost and profit in respect of sub-item D10.02(a) ","percentage (%)",{"$f":"G4000","v":{"v":250000,"d":"R250,000.00"}},null,{"$f":"E4001*F4001","v":0}]
[null,"D10.03","Tender Process for Targeted Enterprises"]
[null,"D10.03(a)","Contractor’s charge for the management and execution of the Targeted Enterprise procurement process:"]
[null,"D10.03(a)(i)","Procurement process for the totality of all tenders concluded for the appointment of Targeted Enterprise subcontractors of CIDB 1 and 2 contractor grading","number (No.)",6,null,{"$f":"E4004*F4004","v":0}]
[null,"D10.03(a)(ii)","Procurement process for the totality of all tenders concluded for the appointment of Targeted Enterprise subcontractors of CIDB 3 and 4 contractor grading","number (No.)",6,null,{"$f":"E4005*F4005","v":0}]
[null,"D10.03(a)(iii)","Procurement process for the totality of all tenders concluded for the appointment of Targeted Enterprise subcontractors of CIDB 5 and higher contractor grading","number (No.)",1,null,{"$f":"E4006*F4006","v":0}]
[null,"D10.03(a)(iv)","Procurement process for the totality of all tenders concluded for the appointment of Targeted Enterprise suppliers","number (No.)",1,null,{"$f":"E4007*F4007","v":0}]
[null,"D10.03(b)","Targeted Enterprise Procurement Coordinator","month",15,null,{"$f":"E4008*F4008","v":0}]
[null,"D10.04","Responsibilities of the Contractor towards Targeted Enterprises"]
[null,"D10.04(a)","Contractor’s establishment, management, management support, assistance, coaching, guidance, mentoring and supervision of Targeted Enterprises","month",15,null,{"$f":"E4010*F4010","v":0}]
[null,"D10.04(b)","Targeted Enterprise Construction Manager","Person.Month",15,null,{"$f":"E4011*F4011","v":0}]
[null,"D10.04(c)","Targeted Enterprise Site Supervisors","Person.Month",15,null,{"$f":"E4012*F4012","v":0}]
[null,"D10.05","Construction Works by Targeted Enterprises"]
[null,"D10.05(a)","Payments associated with the construction works executed by Targeted Enterprise subcontractors of CIDB 1 and 2 contractor grading designation appointed in terms of Section D of the Specifications","prime cost (PC) sum",1,{"v":7500000,"d":"R7,500,000.00"},{"$f":"E4014*F4014","v":{"v":7500000,"d":"R7,500,000.00"}}]
[null,"D10.05(b)","Handling costs and profit in respect of payment associated with sub-item D10.05(a)","percentage (%)",{"$f":"G4014","v":{"v":7500000,"d":"R7,500,000.00"}},null,{"$f":"E4015*F4015","v":0}]
[null,"D10.05(c)","Fluctuation between the main contractor’s rates and that of the Targeted Enterprise subcontractors","lump sum",1,null,{"$f":"E4016*F4016","v":0}]
[null,"D10.05(d)","Preliminary and General Obligations of Targeted Enterprise sub-contractors appointed in terms of Section D of the Specifications","lump sum",1,null,{"$f":"E4017*F4017","v":0}]
[null,"D10.06","Training, coaching, guidance, mentoring and assistance"]
[null,"D10.06(a)","Accredited occupational qualification training"]
[null,"D10.06(a)(i)","Stipend/wages for unemployed learners","prime cost (PC) sum",1,{"v":600000,"d":"R600,000.00"},{"$f":"E4020*F4020","v":{"v":600000,"d":"R600,000.00"}}]
[null,"D10.06(a)(ii)","Handling costs and profit in respect of payment associated with sub-item D10.06(a)(i).","percentage (%)",{"$f":"G4020","v":{"v":600000,"d":"R600,000.00"}},null,{"$f":"E4021*F4021","v":0}]
[null,"D10.06(a)(iii)","Mentorship and other costs","Person.Month",12,null,{"$f":"E4022*F4022","v":0}]
[null,"D10.06(b)","TVET college graduates and apprenticeships"]
[null,"D10.06(b)(i)","Stipend/wages for unemployed learners","prime cost (PC) sum",1,{"v":450000,"d":"R450,000.00"},{"$f":"E4024*F4024","v":{"v":450000,"d":"R450,000.00"}}]
[null,"D10.06(b)(ii)","Handling costs and profit in respect of payment associated with sub-item D10.06(b)(i).","percentage (%)",{"$f":"G4024","v":{"v":450000,"d":"R450,000.00"}},null,{"$f":"E4025*F4025","v":0}]
[null,"D10.06(b)(iii)","Mentorship and other costs","Person.Month",12,null,{"$f":"E4026*F4026","v":0}]
[null,"D10.06(c)","P1 and P2 learners and learners with a 240 credits qualification"]
[null,"D10.06(c)(i)","Stipend/wages for unemployed learners","prime cost (PC) sum",1,{"v":150000,"d":"R150,000.00"},{"v":150000,"d":"R150,000.00"}]
[null,"D10.06(c)(ii)","Handling costs and profit in respect of payment associated with sub-item D10.06(c)(i).","percentage (%)",{"$f":"G4028","v":{"v":150000,"d":"R150,000.00"}},null,{"$f":"E4029*F4029","v":0}]
[null,"D10.06(c)(iii)","Mentorship and other costs","Person.Month",12,null,{"$f":"E4030*F4030","v":0}]
[null,"D10.06(c)(iv)","Travel and Accommodation","prime cost (PC) sum",1,120000,{"$f":"E4031*F4031","v":{"v":120000,"d":"R120,000.00"}}]
[null,"D10.06(c)(v)","Handling costs and profit in respect of payment associated with sub-item D10.06(c)(iv).","percentage (%)",{"$f":"G4031","v":{"v":120000,"d":"R120,000.00"}},null,{"$f":"E4032*F4032","v":0}]
[null,"D10.06(d)","Candidates with 360 credits or more qualification"]
[null,"D10.06(d)(i)","Stipend/wages for unemployed learners","prime cost (PC) sum",1,200000,{"v":200000,"d":"R200,000.00"}]
[null,"D10.06(d)(ii)","Handling costs and profit in respect of payment associated with sub-item D10.06(d)(i).","percentage (%)",{"$f":"G4034","v":{"v":200000,"d":"R200,000.00"}},null,{"$f":"E4035*F4035","v":0}]
[null,"D10.06(d)(iii)","Mentorship and other costs","Person.Month",12,null,{"$f":"E4036*F4036","v":0}]
[null,"D10.06(d)(iv)","Travel and Accommodation","prime cost (PC) sum",1,120000,{"$f":"E4037*F4037","v":{"v":120000,"d":"R120,000.00"}}]
[null,"D10.06(d)(v)","Handling costs and profit in respect of payment associated with sub-item D10.06(d)(iv).","percentage (%)",{"$f":"G4037","v":{"v":120000,"d":"R120,000.00"}},null,{"$f":"E4038*F4038","v":0}]
[null,"D10.06(e)","Generic skills training"]
[null,"D10.06(e)(i)","Stipend/wages for unemployed learners","prime cost (PC) sum",1,300000,{"$f":"E4040*F4040","v":{"v":300000,"d":"R300,000.00"}}]
[null,"D10.06(e)(ii)","Handling costs and profit in respect of payment associated with sub-item D10.06(e)(i).","percentage (%)",{"$f":"G4040","v":{"v":300000,"d":"R300,000.00"}},null,{"$f":"E4041*F4041","v":0}]
[null,"D10.06(e)(iii)","Mentorship and other costs","Person.Month",12,null,{"$f":"E4042*F4042","v":0}]
[null,"D10.06(f)","Community training"]
[null,"D10.06(f)(i)","Stipend/wages for unemployed learners","prime cost (PC) sum",1,300000,{"$f":"E4044*F4044","v":{"v":300000,"d":"R300,000.00"}}]
[null,"D10.06(f)(ii)","Handling costs and profit in respect of payment associated with sub-item D10.06(f)(i).","percentage (%)",{"$f":"G4044","v":{"v":300000,"d":"R300,000.00"}},null,{"$f":"E4045*F4045","v":0}]
[null,"D10.06(f)(iii)","Mentorship and other costs","Person.Month",12,null,{"$f":"E4046*F4046","v":0}]
[null,"SECTION D - D1000","TOTAL CARRIED FORWARD TO SUMMARY",{"$nulls":3},{"$f":"SUM(G4000:G4046)","v":{"v":9990000,"d":"R9,990,000.00"}}]

{"sheet":"Summary","index":2,"n_rows":129,"n_cols":4,"rows_kept":129,"merged":[[0,0,0,1],[2,0,2,1],[3,0,3,1],[5,0,5,1],[13,0,13,1],[19,0,19,1],[24,0,24,1],[31,0,31,1],[38,0,38,1],[42,0,42,1],[50,0,50,1],[61,0,61,1],[64,0,64,1],[67,0,67,1],[78,0,78,1],[108,0,108,1],[121,0,121,1],[124,0,124,1]]}
["SUMMARY"]
[]
["CONTRACT SANRAL N.010-010-2021/1R"]
["FOR THE RESEAL ON NATIONAL ROUTE N10 SECTION 1 FROM NANAGA (KM0.0) TO PATERSON (KM22.0)"]
[]
["GENERAL"]
["C1.2","GENERAL REQUIREMENTS AND PROVISIONS",{"$f":"'Conv. Construction BoQ'!G78","v":{"v":2290000,"d":"R2,290,000.00"}}]
["C1.3","CONTRACTOR’S SITE ESTABLISHMENT AND GENERAL OBLIGATIONS",{"$f":"'Conv. Construction BoQ'!G97","v":{"v":500000,"d":"R500,000.00"}}]
["C1.4","FACILITIES FOR THE ENGINEER",{"$f":"'Conv. Construction BoQ'!G203","v":{"v":987500,"d":"R987,500.00"}}]
["C1.5","ACCOMMODATION OF TRAFFIC",{"$f":"'Conv. Construction BoQ'!G273","v":{"v":1500000,"d":"R1,500,000.00"}}]
["C1.6","CLEARING AND GRUBBING",{"$f":"'Conv. Construction BoQ'!G312","v":{"v":0,"d":"R0.00"}}]
["C1.7","LOADING AND HAULING",{"$f":"'Conv. Construction BoQ'!G330","v":{"v":0,"d":"R0.00"}},{"$f":"SUM(C7:C12)","v":{"v":5277500,"d":"R5,277,500.00"}}]
[]
["SERVICES"]
["C2.1","GENERAL REQUIREMENTS AND TRENCHING FOR SERVICES",{"$f":"'Conv. Construction BoQ'!G474","v":{"v":0,"d":"R0.00"}}]
["C2.2","DRY SERVICES",{"$f":"'Conv. Construction BoQ'!G546","v":{"v":0,"d":"R0.00"}}]
["C2.3","WET SERVICES",{"$f":"'Conv. Construction BoQ'!G770","v":{"v":0,"d":"R0.00"}}]
["C2.4","ENERGY AND OTHER SERVICES",{"$f":"'Conv. Construction BoQ'!G794","v":{"v":0,"d":"R0.00"}},{"$f":"SUM(C15:C18)","v":{"v":0,"d":"R0.00"}}]
[]
["DRAINAGE"]
["C3.1","DRAINS",{"$f":"'Conv. Construction BoQ'!G882","v":{"v":0,"d":"R0.00"}}]
["C3.2","CULVERTS",{"$f":"'Conv. Construction BoQ'!G984","v":{"v":0,"d":"R0.00"}}]
["C3.3","CONCRETE KERBING AND CHANNELING, ASPHALT BERMS, CHUTES, DOWNPIPES, AS WELL AS CONCRETE, STONE PITCHED AND GABION LININGS FOR OPEN DRAINS",{"$f":"'Conv. Construction BoQ'!G1047","v":{"v":0,"d":"R0.00"}},{"$f":"SUM(C21:C23)","v":{"v":0,"d":"R0.00"}}]
[]
["EARTHWORKS AND PAVEMENT LAYERS MATERIALS"]
["C4.1","BORROW MATERIALS",{"$f":"'Conv. Construction BoQ'!G1126","v":{"v":0,"d":"R0.00"}}]
["C4.2","CUT MATERIALS",{"$f":"'Conv. Construction BoQ'!G1194","v":{"v":0,"d":"R0.00"}}]
["C4.3","EXISTING ROAD MATERIALS",{"$f":"'Conv. Construction BoQ'!G1310","v":{"v":0,"d":"R0.00"}}]
["C4.4","COMMERCIAL MATERIALS",{"$f":"'Conv. Construction BoQ'!G1388","v":{"v":0,"d":"R0.00"}}]
["C4.5","ALTERNATIVE MATERIALS",{"$f":"#REF!","v":{"v":0,"d":"R0.00"}},{"$f":"SUM(C26:C30)","v":{"v":0,"d":"R0.00"}}]
[]
["EARTHWORKS AND PAVEMENT LAYERS CONSTRUCTION"]
["C5.1","ROADBED",{"$f":"'Conv. Construction BoQ'!G1498","v":{"v":0,"d":"R0.00"}}]
["C5.2","FILL",{"$f":"'Conv. Construction BoQ'!G1547","v":{"v":0,"d":"R0.00"}}]
["C5.3","ROAD PAVEMENT LAYERS",{"$f":"'Conv. Construction BoQ'!G1633","v":{"v":0,"d":"R0.00"}},{"$f":"SUM(C33:C37)","v":{"v":0,"d":"R0.00"}}]
["C5.4","STABILISATION",{"$f":"'Conv. Construction BoQ'!G1680","v":{"v":0,"d":"R0.00"}}]
["C5.5","RECONSTRUCTION OF PAVEMENT LAYERS",{"$f":"'Conv. Construction BoQ'!G1878","v":{"v":0,"d":"R0.00"}}]
[]
["CONCRETE LAYERS"]
["C6.1","PAVER LAID CONCRETE LAYERS",{"$f":"'Conv. Construction BoQ'!G1928","v":{"v":0,"d":"R0.00"}}]
["C6.2","SEGMENTAL BLOCK PAVING LAYERS",{"$f":"'Conv. Construction BoQ'!G1942","v":{"v":0,"d":"R0.00"}},{"$f":"SUM(C40:C41)","v":{"v":0,"d":"R0.00"}}]
[]
["MAINTENANCE AND REPAIR CONCRETE LAYERS"]
["C7.1","REPLACEMENT OF EXISTING JOINT SEALANT",{"$f":"'Conv. Construction BoQ'!G1956","v":{"v":0,"d":"R0.00"}}]
["C7.2","REPAIR TO CONCRETE PANELS AND CONCRETE ADJACENT TO UNCONTROLLED CRACKS AND EXISTING JOINTS",{"$f":"'Conv. Construction BoQ'!G1993","v":{"v":0,"d":"R0.00"}}]
["C7.3","REMOVAL AND REINSTATEMENT OF EXISTING CONCRETE LAYERS",{"$f":"'Conv. Construction BoQ'!G2039","v":{"v":0,"d":"R0.00"}}]
["C7.4","REINSTATEMENT OF SLAB SUPPORT BY GROUT INJECTION",{"$f":"'Conv. Construction BoQ'!G2046","v":{"v":0,"d":"R0.00"}}]
["C7.5","REINSTATEMENT OF RIDING QUALITY",{"$f":"'Conv. Construction BoQ'!G2053","v":{"v":0,"d":"R0.00"}}]
["C7.6","REINSTATEMENT OF SURFACE TEXTURE",{"$f":"'Conv. Construction BoQ'!G2060","v":{"v":0,"d":"R0.00"}},{"$f":"SUM(C44:C49)","v":{"v":0,"d":"R0.00"}}]
[]
["PRETREATMENT AND REPAIR EXISTING LAYERS"]
["C8.1","PRIME COAT",{"$f":"'Conv. Construction BoQ'!G2076","v":{"v":0,"d":"R0.00"}}]
["C8.2","COVER SPRAYS, FOG SPRAYS AND REJUVENATION SPRAYS",{"$f":"'Conv. Construction BoQ'!G2096","v":{"v":0,"d":"R0.00"}}]
["C8.3","TEXTURE TREATMENT",{"$f":"'Conv. Construction BoQ'!G2106","v":{"v":0,"d":"R0.00"}}]
["C8.4","RUT AND/OR DEPRESSION CORRECTION",{"$f":"'Conv. Construction BoQ'!G2120","v":{"v":0,"d":"R0.00"}}]
["C8.5","STANDARD CRACK SEALING",{"$f":"'Conv. Construction BoQ'!G2136","v":{"v":0,"d":"R0.00"}}]
["C8.6","GEOSYNTHETIC CRACK SEALING",{"$f":"'Conv. Construction BoQ'!G2147","v":{"v":0,"d":"R0.00"}}]
["C8.7","PLANING",{"$f":"'Conv. Construction BoQ'!G2159","v":{"v":0,"d":"R0.00"}}]
["C8.8","PATCHING AND EDGE BREAK REPAIR",{"$f":"'Conv. Construction BoQ'!G2233","v":{"v":0,"d":"R0.00"}},{"$f":"SUM(C52:C60)","v":{"v":0,"d":"R0.00"}}]
["C8.9","REPAIR OF SURFACE DEFECTS",{"$f":"'Conv. Construction BoQ'!G2251","v":{"v":0,"d":"R0.00"}}]
[]
["ASPHALT LAYERS"]
["C9.1","ASPHALT LAYERS",{"$f":"'Conv. Construction BoQ'!G2354","v":{"v":0,"d":"R0.00"}},{"$f":"SUM(C63)","v":{"v":0,"d":"R0.00"}}]
[]
["SURFACE TREATMENTS"]
["C10.1","GENERAL REQUIREMENTS FOR SURFACE TREATMENTS",{"$f":"'Conv. Construction BoQ'!G2479","v":{"v":0,"d":"R0.00"}},{"$f":"SUM(C66)","v":{"v":0,"d":"R0.00"}}]
[]
["ANCILLIARY ROAD WORKS"]
["C11.1","PITCHING, STONEWORK, CAST IN SITU CONCRETE FOR PROTECTION AGAINST EROSION",{"$f":"'Conv. Construction BoQ'!G2514","v":{"v":0,"d":"R0.00"}}]
["C11.2","NON-STRUCTURAL GABIONS",{"$f":"'Conv. Construction BoQ'!G2535","v":{"v":0,"d":"R0.00"}}]
["C11.3","GUIDE BLOCKS AND KILOMETRE MARKERS",{"$f":"'Conv. Construction BoQ'!G2544","v":{"v":0,"d":"R0.00"}}]
["C11.4","ROAD RESTRAINT SYSTEMS",{"$f":"'Conv. Construction BoQ'!G2621","v":{"v":0,"d":"R0.00"}}]
["C11.5","FENCING",{"$f":"'Conv. Construction BoQ'!G2686","v":{"v":0,"d":"R0.00"}}]
["C11.6","ROAD SIGNS",{"$f":"'Conv. Construction BoQ'!G2793","v":{"v":0,"d":"R0.00"}}]
["C11.7","ROAD MARKINGS AND ROAD STUDS",{"$f":"'Conv. Construction BoQ'!G2895","v":{"v":0,"d":"R0.00"}}]
["C11.8","LANDSCAPING AND PLANTING PLANTS",{"$f":"'Conv. Construction BoQ'!G2947","v":{"v":0,"d":"R0.00"}}]
["C11.9","FINISHING THE ROAD AND ROAD RESERVE AND TREATING OLD ROADS",{"$f":"'Conv. Construction BoQ'!G2959","v":{"v":0,"d":"R0.00"}},{"$f":"SUM(C69:C77)","v":{"v":0,"d":"R0.00"}}]
[]
["GEOTECHNICAL"]
["C12.1","PILING",{"$f":"'Conv. Construction BoQ'!G3034","v":{"v":0,"d":"R0.00"}}]
["C12.2","GROUND ANCHORS",{"$f":"'Conv. Construction BoQ'!G3065","v":{"v":0,"d":"R0.00"}}]
["C12.3","GROUND IMPROVEMENT",{"$f":"'Conv. Construction BoQ'!G3144","v":{"v":0,"d":"R0.00"}}]
["C12.4","LATERAL SUPPORT",{"$f":"'Conv. Construction BoQ'!G3182","v":{"v":0,"d":"R0.00"}}]
["C12.5","SHOTCRETE",{"$f":"'Conv. Construction BoQ'!G3206","v":{"v":0,"d":"R0.00"}}]
["C12.6","MECHANICALLY STABILISED EARTH WALLS AND GABIONS",{"$f":"'Conv. Construction BoQ'!G3250","v":{"v":0,"d":"R0.00"}}]
["C12.7","TRENCHLESS METHODS ",{"$f":"'Conv. Construction BoQ'!G3263","v":{"v":0,"d":"R0.00"}}]
["C12.8","GROUND DRAINAGE",{"$f":"'Conv. Construction BoQ'!G3288","v":{"v":0,"d":"R0.00"}}]
["C12.9","SLOPE PROTECTION MEASURES",{"$f":"'Conv. Construction BoQ'!G3306","v":{"v":0,"d":"R0.00"}}]
["C12.10","HARD EXCAVATION BY BLASTING",{"$f":"'Conv. Construction BoQ'!G3320","v":{"v":0,"d":"R0.00"}}]
["C12.11","GEOSYNTHETICS",{"$f":"'Conv. Construction BoQ'!G3327","v":{"v":0,"d":"R0.00"}}]
["C12.12","CONSTRUCTION DEWATERING",{"$f":"'Conv. Construction BoQ'!G3343","v":{"v":0,"d":"R0.00"}},{"$f":"SUM(C80:C91)","v":{"v":0,"d":"R0.00"}}]
[]
["STRUCTURES"]
["C13.1","FOUNDATIONS",{"$f":"'Conv. Construction BoQ'!G3431","v":{"v":0,"d":"R0.00"}}]
["C13.2","FALSEWORK, FORMWORK AND CONCRETE FINISH",{"$f":"'Conv. Construction BoQ'!G3449","v":{"v":0,"d":"R0.00"}}]
["C13.3","STEEL REINFORCEMENT",{"$f":"'Conv. Construction BoQ'!G3466","v":{"v":0,"d":"R0.00"}}]
["C13.4","CONCRETE",{"$f":"'Conv. Construction BoQ'!G3522","v":{"v":0,"d":"R0.00"}}]
["C13.5","PRESTRESSING",{"$f":"'Conv. Construction BoQ'!G3538","v":{"v":0,"d":"R0.00"}}]
["C13.6","BEARINGS",{"$f":"'Conv. Construction BoQ'!G3556","v":{"v":0,"d":"R0.00"}}]
["C13.7","JOINTS",{"$f":"'Conv. Construction BoQ'!G3600","v":{"v":0,"d":"R0.00"}}]
["C13.8","ANCILLARY STRUCTURAL ELEMENTS",{"$f":"'Conv. Construction BoQ'!G3640","v":{"v":0,"d":"R0.00"}}]
["C13.9","STRUCTURAL STEELWORK FOR MINOR STRUCTURES",{"$f":"'Conv. Construction BoQ'!G3662","v":{"v":0,"d":"R0.00"}}]
["C13.10","PAINTING OF MINOR STRUCTURES",{"$f":"'Conv. Construction BoQ'!G3678","v":{"v":0,"d":"R0.00"}}]
["C13.11","STRUCTURAL STEELWORK FOR MAJOR STRUCTURES",{"$f":"'Conv. Construction BoQ'!G3686","v":{"v":0,"d":"R0.00"}}]
["C13.12","STRUCTURAL STEEL PROTECTIVE TREATMENT OF MAJOR STRUCTURES",{"$f":"'Conv. Construction BoQ'!G3695","v":{"v":0,"d":"R0.00"}}]
["C13.13","INCREMENTAL LAUNCHING OF BRIDGE DECKS",{"$f":"'Conv. Construction BoQ'!G3729","v":{"v":0,"d":"R0.00"}}]
["C13.14","SPECIALIST STRUCTURES",{"$f":"'Conv. Construction BoQ'!G3736","v":{"v":0,"d":"R0.00"}},{"$f":"SUM(C94:C107)","v":{"v":0,"d":"R0.00"}}]
[]
["REPAIR AND REHABILITATION STRUCTURES"]
["C14.1","ACCESS FOR BRIDGE REHABILITATION",{"$f":"'Conv. Construction BoQ'!G3763","v":{"v":0,"d":"R0.00"}}]
["C14.2","CORROSION SURVEY METHODS AND TESTING OF NEAR SURFACE CONCRETE PROPERTIES",{"$f":"'Conv. Construction BoQ'!G3789","v":{"v":0,"d":"R0.00"}}]
["C14.3","DEMOLITION AND REMOVAL OF STRUCTURAL CONCRETE AND STEELWORK",{"$f":"'Conv. Construction BoQ'!G3809","v":{"v":0,"d":"R0.00"}}]
["C14.4","SURFACE AND STRUCTURAL REPAIR OF CONCRETE MEMBERS",{"$f":"'Conv. Construction BoQ'!G3834","v":{"v":0,"d":"R0.00"}},{"$f":"SUM(C110:C120)","v":{"v":0,"d":"R0.00"}}]
["C14.5","ANCHORING OF REINFORCEMENT, GROUTING AND CRACK INJECTION",{"$f":"'Conv. Construction BoQ'!G3856","v":{"v":0,"d":"R0.00"}}]
["C14.6","SPRAYED CONCRETE FOR STRUCTURES",{"$f":"'Conv. Construction BoQ'!G3869","v":{"v":0,"d":"R0.00"}}]
["C14.7","PROTECTIVE COATINGS AND TREATMENTS FOR CONCRETE",{"$f":"'Conv. Construction BoQ'!G3879","v":{"v":0,"d":"R0.00"}}]
["C14.8","EXTERNAL BONDING OF STEEL AND CARBON FIBRE",{"$f":"'Conv. Construction BoQ'!G3900","v":{"v":0,"d":"R0.00"}}]
["C14.9","REPAIR AND REPLACEMENT OF ANCILLARY STRUCTURAL ELEMENTS",{"$f":"'Conv. Construction BoQ'!G3939","v":{"v":0,"d":"R0.00"}}]
["C14.10","JACKING OF BRIDGE STRUCTURES",{"$f":"'Conv. Construction BoQ'!G3952","v":{"v":0,"d":"R0.00"}}]
["C14.11","REPAIR OF STEEL ELEMENTS",{"$f":"'Conv. Construction BoQ'!G3960","v":{"v":0,"d":"R0.00"}}]
[]
["QUALITY ASSURANCE"]
["C20.1","TESTING MATERIALS AND JUDGEMENT OF WORKMANSHIP",{"$f":"'Conv. Construction BoQ'!G3994","v":{"v":500000,"d":"R500,000.00"}},{"$f":"SUM(C123)","v":{"v":500000,"d":"R500,000.00"}}]
[]
["SECTION D: STAKEHOLDER AND COMMUNITY LIAISON, AND TARGET LABOUR AND TARGETED ENTERPRISES UTILISATION AND DEVELOPMENT"]
["D1010","TRAINING, COACHING, GUIDANCE, MENTORING AND ASSISTANCE",{"$f":"'Conv. Construction BoQ'!G4047","v":{"v":9990000,"d":"R9,990,000.00"}},{"$f":"SUM(C126)","v":{"v":9990000,"d":"R9,990,000.00"}}]
[]
[]
[null,"SUBTOTAL",{"$f":"SUM(D12+D18+D23+D30+D35+D41+D49+D59+D63+D66+D77+D91+D107+D113+D123+D126)","v":{"v":15767500,"d":"R15,767,500.00"}}]

{"sheet":"Form C2.3 Summary of Pricing Sc","index":3,"n_rows":33,"n_cols":3,"rows_kept":33,"merged":[[0,0,0,1],[1,0,1,2],[2,0,2,1],[3,0,3,1],[5,0,5,1],[10,0,10,2]]}
["C2.3 SUMMARY OF PRICING SCHEDULE"]
["Note to compiler: This form to match the layout of form C2.3 Summary of Pricing schedule in Book 3"]
["CONTRACT SANRAL N.010-010-2021/1R"]
["FOR THE RESEAL ON NATIONAL ROUTE N10 SECTION 1 FROM NANAGA (KM0.0) TO PATERSON (KM22.0)"]
[]
[]
["SCHEDULE A:","ROADWORKS",{"$f":"Summary!D12+Summary!D18+Summary!D23+Summary!D30+Summary!D35+Summary!D41+Summary!D49+Summary!D59+Summary!D63+Summary!D66+Summary!D77+Summary!D91+Summary!D107+Summary!D113+Summary!D123","v":{"v":5777500,"d":"R5,777,500.00"}}]
[]
["SCHEDULE B:","BRIDGES",{"v":0,"d":"R0.00"}]
[]
["Note to compiler: Insert additional schedules for other work such as Schedule C for electrical, lighting, Schedule E for buildings etc."]
["SCHEDULE C:","ELECTRICAL AND LIGHTING",{"v":0,"d":"R0.00"}]
[]
["SCHEDULE D: ","STAKEHOLDER AND COMMUNITY LIAISON, AND TARGET LABOUR AND TARGETED ENTERPRISES UTILISATION AND DEVELOPMENT",{"$f":"'Conv. Construction BoQ'!G4047","v":{"v":9990000,"d":"R9,990,000.00"}}]
[]
[]
["SUBTOTAL A",null,{"$f":"C7+C9+C12+C14","v":{"v":15767500,"d":"R15,767,500.00"}}]
[]
["CONTRACT SKILLS DEVELOPMENT GOAL:"]
["0.25% of Subtotal A",null,{"$f":"0.25%*C17","v":{"v":39418.75,"d":"R39,418.75"}}]
[]
["SUBTOTAL B",null,{"$f":"C17+C20","v":{"v":15806918.75,"d":"R15,806,918.75"}}]
[]
["VALUE ADDED TAX:"]
["15% of Subtotal B",null,{"$f":"C22*0.15","v":{"v":2371037.8125,"d":"R2,371,037.81"}}]
[]
["TOTAL CARRIED TO C.1.1.1 : FORM OF OFFER ",null,{"$f":"C22+C25","v":{"v":18177956.5625,"d":"R18,177,956.56"}}]
[]
[]
[]
[]
[]
["SIGNED BY TENDERER: …..................................................................................................................."]